Workbook

Sheet Calendar
H1: Wednesday Fun Fours 2019/20 season
V5: =MAX(C6:E35) -> 0 | W5: =MAX(V6:X35) -> 0
A6: wk1 | B6: 2019-09-04
A7: wk2 | B7: 2019-09-11
A8: wk3 | B8: 2019-09-18
A9: wk4 | B9: 2019-09-25
A10: wk5 | B10: 2019-10-02
A11: wk6 | B11: 2019-10-09
A12: wk7 | B12: 2019-10-16
A13: wk8 | B13: 2020-10-23
A14: wk9 | B14: 2019-11-06
A15: wk10 | B15: 2019-11-13
A16: wk11 | B16: 2019-11-20
A17: wk12 | B17: 2019-12-04
A18: wk13 | B18: 2019-12-11
A19: wk14 | B19: 2019-12-18
A20: wk15 | B20: 2020-01-08
A21: wk16 | B21: 2020-01-15
A22: wk17 | B22: 2020-01-22
A23: wk18 | B23: 2020-01-29
A24: wk19 | B24: 2020-02-05
A25: wk20 | B25: 2020-02-12
A26: wk21 | B26: 2020-02-19
A27: wk22 | B27: 2020-02-16
A28: wk23 | B28: 2020-03-04
A29: wk24 | B29: 2020-03-11
A30: wk25 | B30: 2020-03-18
A31: wk26 | B31: 2020-03-25
A32: wk27 | B32: 2020-04-01
A33: wk28 | B33: 2020-04-08
A34: wk29 | B34: 2020-04-15
A35: wk30 | B35: 2020-04-22

Sheet P.Attendance
A1: Rsharma6 | B1: R2 | C1: B2 | D1: k3 | E1: 1 | F1: =RSharma6!B3 -> Roshini Sharma | G1: =IF(INDIRECT("'" & $A1 & "'!" & C1)>1,(INDIRECT("'" & $A1 & "'!" & C1))," ") -> 24 | H1: =IF(INDIRECT("'" & $A1 & "'!" & D1)>1,(INDIRECT("'" & $A1 & "'!" & D1))," ") -> No | I1: =IF(INDIRECT("'" & $A1 & "'!" & B1)>1,(INDIRECT("'" & $A1 & "'!" & B1))," ") -> 13
A2: Dsharma | B2: R2 | C2: B2 | D2: k3 | E2: 1 | F2: =DSharma!$B$3 -> Devi Sharma | G2: 24 | H2: No
A3: Corcutt | B3: R2 | C3: B2 | D3: k3 | E3: 1 | F3: =COrcutt!$B$3 -> Carolyn Orcutt | G3: 24 | H3: Yes
A4: Jnorberg | B4: R2 | C4: B2 | D4: k3 | E4: 1 | F4: Jodi Norberg | G4: =IF(INDIRECT("'" & $A4 & "'!" & C4)>1,(INDIRECT("'" & $A4 & "'!" & C4))," ") -> 24 | H4: =IF(INDIRECT("'" & $A4 & "'!" & D4)>1,(INDIRECT("'" & $A4 & "'!" & D4))," ") -> No | I4: =IF(INDIRECT("'" & $A4 & "'!" & B4)>1,(INDIRECT("'" & $A4 & "'!" & B4))," ") -> 
A5: Cruggiero | B5: R2 | C5: B2 | D5: k3 | E5: 1 | F5: Charlie Ruggiero | G5: 9 | H5: No
A6: Mthomas | B6: R2 | C6: B2 | D6: k3 | E6: 2 | F6: =MThomas!$B$3 -> Morgan Thomas | G6: 24 | H6: Yes
A7: Mrobles | B7: R2 | C7: B2 | D7: k3 | E7: 2 | F7: =MRobles!$B$3 -> Mary Robles | G7: 15 | H7: No
A8: Mslinsen | B8: R2 | C8: B2 | D8: k3 | E8: 2 | F8: Michael Slinsen | G8: 24 | H8: No
A9: Sanderson6 | B9: R2 | C9: B2 | D9: k3 | E9: 18 | F9: Steve Anderson | G9: =IF(INDIRECT("'" & $A9 & "'!" & C9)>1,(INDIRECT("'" & $A9 & "'!" & C9))," ") -> 24 | H9: =IF(INDIRECT("'" & $A9 & "'!" & D9)>1,(INDIRECT("'" & $A9 & "'!" & D9))," ") -> No | I9: =IF(INDIRECT("'" & $A9 & "'!" & B9)>1,(INDIRECT("'" & $A9 & "'!" & B9))," ") -> 19
A10: Tlang | B10: R2 | C10: B2 | D10: k3 | E10: 3 | F10: =TLang!$B$3 -> Tammy Lang | G10: 24 | H10: Yes
A11: Athomson | B11: R2 | C11: B2 | D11: k3 | E11: 3 | F11: =AThomson!$B$3 -> Andy Thomson | G11: 24 | H11: No
A12: Ahellhake | B12: R2 | C12: B2 | D12: k3 | E12: 3 | F12: =AHellhake!$B$3 -> Andy Hellhake | G12: 24 | H12: Yes
A13: Mdoyel6 | B13: R2 | C13: B2 | D13: k3 | E13: 3 | F13: =MDoyel6!B3 -> Mike Doyel | G13: 24 | H13: Yes | I13: 7
A14: Jwoodard | B14: R2 | C14: B2 | D14: k3 | E14: 4 | F14: =JWoodard!$B$3 -> Jan Woodard | G14: 24 | H14: No | I14: =IF(INDIRECT("'" & $A14 & "'!" & B14)>1,(INDIRECT("'" & $A14 & "'!" & B14))," ") -> 
A15: Twoodard | B15: R2 | C15: B2 | D15: k3 | E15: 4 | F15: =TWoodard!B3 -> Tom Woodard | G15: 24 | H15: No
A16: Pgreen | B16: R2 | C16: B2 | D16: k3 | E16: 4 | F16: =PGreen!$B$3 -> Patty Green | G16: 23 | H16: No
A17: Dgreen | B17: R2 | C17: B2 | D17: k3 | E17: 4 | F17: =DGreen!B3 -> Dave Green | G17: 23 | H17: No
A18: Jbrady6 | B18: R2 | C18: B2 | D18: k3 | E18: 5 | F18: Jasmine Brady | G18: 24 | H18: No | I18: 16
A19: Ktockey6 | B19: R2 | C19: B2 | D19: k3 | E19: 5 | F19: Katie Tockey | G19: 23 | H19: No | I19: 22
A20: Lchilds | B20: R2 | C20: B2 | D20: k3 | E20: 5 | F20: =LChilds!B3 -> Larry Childs | G20: 19 | H20: No
A21: Tbrady | B21: R2 | C21: B2 | D21: k3 | E21: 5 | F21: =TBrady!B3 -> Tim Brady | G21: 24 | H21: No
A22: Rkummer | B22: R2 | C22: B2 | D22: k3 | E22: 6 | F22: =RKummer!B3 -> Ray Kummer | G22: 24 | H22: No
A23: Dbrazell | B23: R2 | C23: B2 | D23: k3 | E23: 6 | F23: =DBrazell!B3 -> David Brazell | G23: 24 | H23: No
A24: Pschaffer | B24: R2 | C24: B2 | D24: k3 | E24: 6 | F24: =PSchaffer!B3 -> Paul Schaffer | G24: 24 | H24: No
A25: Tsikes | B25: R2 | C25: B2 | D25: k3 | E25: 6 | F25: =TSikes!B3 -> Tim Sikes | G25: 24 | H25: No
A26: Dtorres | B26: R2 | C26: B2 | D26: k3 | E26: 6 | F26: Dan Torres | G26: 23 | H26: No
A27: Aspohr | B27: R2 | C27: B2 | D27: k3 | E27: 7 | F27: Annette Spohr | G27: 24 | H27: Yes
A28: Jschliemann | B28: R2 | C28: B2 | D28: k3 | E28: 7 | F28: John Schliemann | G28: 24 | H28: No
A29: Lharjak6 | B29: R2 | C29: B2 | D29: k3 | E29: 7 | F29: Lisa Harjak | G29: 24 | H29: No | I29: 20
A30: Dgoodwin | B30: R2 | C30: B2 | D30: k3 | E30: 7 | F30: David Goodwin | G30: 23 | H30: No
A31: Mstoufer | B31: R2 | C31: B2 | D31: k3 | E31: 8 | F31: Melissa Stoufer | G31: 24 | H31: No
A32: Mthomson6 | B32: R2 | C32: B2 | D32: k3 | E32: 8 | F32: Marilyn Thomson | G32: 24 | H32: No | I32: 9
A33: Jorcutt | B33: R2 | C33: B2 | D33: k3 | E33: 8 | F33: John Orcutt | G33: 24 | H33: No
A34: Mschirman6 | B34: R2 | C34: B2 | D34: k3 | E34: 8 | F34: Mike Schirman | G34: 24 | H34: No | I34: 10
A35: Cheric | B35: R2 | C35: B2 | D35: k3 | E35: 9 | F35: Cesira Heric | G35: =IF(INDIRECT("'" & $A35 & "'!" & C35)>1,(INDIRECT("'" & $A35 & "'!" & C35))," ") -> 24 | H35: =IF(INDIRECT("'" & $A35 & "'!" & D35)>1,(INDIRECT("'" & $A35 & "'!" & D35))," ") -> No | I35: =IF(INDIRECT("'" & $A35 & "'!" & B35)>1,(INDIRECT("'" & $A35 & "'!" & B35))," ") -> 
A36: Gruhl6 | B36: R2 | C36: B2 | D36: k3 | E36: 9 | F36: Ginny Ruhl | G36: 24 | H36: Yes | I36: 6
A37: Mfridley | B37: R2 | C37: B2 | D37: k3 | E37: 9 | F37: Marty Fridley | G37: 24 | H37: No
A38: Lruhl | B38: R2 | C38: B2 | D38: k3 | E38: 9 | F38: Lauren Ruhl | G38: 23 | H38: No
A39: Rplasse6 | B39: R2 | C39: B2 | D39: k3 | E39: 10 | F39: Ron Plasse | G39: 24 | H39: No | I39: 21
A40: Dharkey | B40: R2 | C40: B2 | D40: k3 | E40: 10 | F40: Dick Harkey | G40: 10 | H40: No
A41: Mharkey | B41: R2 | C41: B2 | D41: k3 | E41: 10 | F41: MaryAnn Harkey | G41: 24 | H41: No
A42: Lplasse | B42: R2 | C42: B2 | D42: k3 | E42: 10 | F42: LouAnn Plasse | G42: 24 | H42: No
A43: Broffeld6 | B43: R2 | C43: B2 | D43: k3 | E43: 11 | F43: Bill Roffeld | G43: 24 | H43: No | I43: 16
A44: Astern | B44: R2 | C44: B2 | D44: k3 | E44: 11 | F44: Allan Stern | G44: 23 | H44: No
A45: Chuygen | B45: R2 | C45: B2 | D45: k3 | E45: 11 | F45: Carole Huygen | G45: 24 | H45: No
A46: Mclark6 | B46: R2 | C46: B2 | D46: K3 | E46: 11 | F46: Matt Clark | G46: 24 | H46: No | I46: 10
A47: Bcahill | B47: R2 | C47: B2 | D47: k3 | E47: 12 | F47: Barbara Cahill | G47: 24 | H47: Yes
A48: Bbisler6 | B48: R2 | C48: B2 | D48: k3 | E48: 12 | F48: Bob Bisler | G48: 23 | H48: No | I48: 22
A49: Jbisler | B49: R2 | C49: B2 | D49: k3 | E49: 12 | F49: Josie Bisler | G49: 24 | H49: Yes
A50: Cbrady6 | B50: R2 | C50: B2 | D50: k3 | E50: 13 | F50: Cheryl Brady | G50: 24 | H50: No | I50: 16
A51: Kdavis | B51: R2 | C51: B2 | D51: k3 | E51: 13 | F51: Ken Davis | G51: 24 | H51: No
A52: Lline | B52: R2 | C52: B2 | D52: k3 | E52: 13 | F52: Liz Line | G52: 24 | H52: No
A53: Rgiuliani | B53: R2 | C53: B2 | D53: k3 | E53: 13 | F53: Rich Giuliani | G53: 24 | H53: No
A54: Kwade | B54: R2 | C54: B2 | D54: k3 | E54: 14 | F54: Kevin Wade | G54: 24 | H54: No
A55: Sarrow | B55: R2 | C55: B2 | D55: k3 | E55: 14 | F55: Scott Arrow | G55: 24 | H55: No
A56: Darrow | B56: R2 | C56: B2 | D56: k3 | E56: 14 | F56: Danny Arrow | G56: 21 | H56: No
A57: Jelkins | B57: R2 | C57: B2 | D57: k3 | E57: 14 | F57: Judd Elkins | G57: 19 | H57: No
A58: Gjones6 | B58: R2 | C58: B2 | D58: k3 | E58: 14 | F58: Gabi Jones | G58: =IF(INDIRECT("'" & $A58 & "'!" & C58)>1,(INDIRECT("'" & $A58 & "'!" & C58))," ") -> 21 | H58: =IF(INDIRECT("'" & $A58 & "'!" & D58)>1,(INDIRECT("'" & $A58 & "'!" & D58))," ") -> No | I58: =IF(INDIRECT("'" & $A58 & "'!" & B58)>1,(INDIRECT("'" & $A58 & "'!" & B58))," ") -> 8
A59: Dwicker6 | B59: R2 | C59: B2 | D59: k3 | E59: 14 | F59: David Wicker | G59: =IF(INDIRECT("'" & $A59 & "'!" & C59)>1,(INDIRECT("'" & $A59 & "'!" & C59))," ") -> 24 | H59: =IF(INDIRECT("'" & $A59 & "'!" & D59)>1,(INDIRECT("'" & $A59 & "'!" & D59))," ") -> No | I59: =IF(INDIRECT("'" & $A59 & "'!" & B59)>1,(INDIRECT("'" & $A59 & "'!" & B59))," ") -> 23
A60: Srobinson | B60: R2 | C60: B2 | D60: k3 | E60: 15 | F60: Sean Robinson | G60: 23 | H60: No
A61: Ssouza6 | B61: R2 | C61: B2 | D61: k3 | E61: 15 | F61: Stefan Souza | G61: 24 | H61: No | I61: 6
A62: Kmosser | B62: R2 | C62: B2 | D62: k3 | E62: 15 | F62: Ken Mosser | G62: 24 | H62: Yes
A63: Tlewallen | B63: R2 | C63: B2 | D63: k3 | E63: 16 | F63: Tim Lewallen | G63: 24 | H63: No
A64: Tkummer | B64: R2 | C64: B2 | D64: k3 | E64: 16 | F64: Tammy Kummer | G64: 24 | H64: No
A65: Bwibben | B65: R2 | C65: B2 | D65: k3 | E65: 16 | F65: Brian Wibben | G65: 24 | H65: Yes
A66: Thunt6 | B66: R2 | C66: B2 | D66: k3 | E66: 16 | F66: Tyler Hunt | G66: 24 | H66: No | I66: 10
A67: Lgonzalez6 | B67: R2 | C67: B2 | D67: k3 | E67: 17 | F67: Lorenzo Gonzalez | G67: 24 | H67: No | I67: 8
A68: Dcarretero6 | B68: R2 | C68: B2 | D68: k3 | E68: 17 | F68: Dominic Carretero | G68: 24 | H68: Yes | I68: 8
A69: Jcarretero | B69: R2 | C69: B2 | D69: k3 | E69: 17 | F69: Jenny Carretero | G69: 24 | H69: Yes
A70: Rcarretero6 | B70: R2 | C70: B2 | D70: k3 | E70: 17 | F70: Ronnie Carretero | G70: 24 | H70: Yes | I70: 11
A71: Bolsen | B71: R2 | C71: B2 | D71: k3 | E71: 17 | F71: Bill Olsen | G71: =IF(INDIRECT("'" & $A71 & "'!" & C71)>1,(INDIRECT("'" & $A71 & "'!" & C71))," ") -> 21 | H71: =IF(INDIRECT("'" & $A71 & "'!" & D71)>1,(INDIRECT("'" & $A71 & "'!" & D71))," ") -> No | I71: =IF(INDIRECT("'" & $A71 & "'!" & B71)>1,(INDIRECT("'" & $A71 & "'!" & B71))," ") -> 
A72: Dhogan | B72: R2 | C72: B2 | D72: k3 | E72: 17 | F72: Duwayne Hogan | G72: =IF(INDIRECT("'" & $A72 & "'!" & C72)>1,(INDIRECT("'" & $A72 & "'!" & C72))," ") -> 24 | H72: =IF(INDIRECT("'" & $A72 & "'!" & D72)>1,(INDIRECT("'" & $A72 & "'!" & D72))," ") -> No | I72: =IF(INDIRECT("'" & $A72 & "'!" & B72)>1,(INDIRECT("'" & $A72 & "'!" & B72))," ") -> 

Sheet RSharma6
H1: =Calendar!H1 -> Wednesday Fun Fours 2019/20 season | R1: 6-over wk:
A2: wk# | B2: =MAX(AB6:AB35) -> 24 | R2: 13
A3: Name: | B3: Roshini Sharma | I3: Perfect Attendance: | K3: =IF(SUM(AA6:AA35)<0.5,"Yes","No") -> No | L3: =_xlfn.IFS(AND(B2=30,K3="Yes"),"good",AND(B2<>30,K3="Yes"),"So Far",AND(B2<>30,K3="No")," ") -> 
A4: book average: | C4: 128 | H4: wky | I4: wky | J4: cumulative | L4: cumulative | P4: hdcp | Q4: high | R4: high | S4: high hcp | T4: high hcp
C5: g1 | D5: g2 | E5: g3 | H5: series | I5: average | J5: score | K5: games | L5: average | O5: hdcp | P5: series | Q5: series | R5: game | S5: series | T5: game | V5: =MAX(C6:E35) -> 182 | W5: =MAX(V6:X35) -> 272
A6: wk1 | B6: =Calendar!B6 -> 2019-09-04 | C6: 112 | D6: 120 | E6: 162 | H6: =IF(COUNT(C6:E6)<1," ",SUM(C6:E6)) -> 394 | I6: =IF(COUNT(C6:E6)<1," ",TRUNC(H6/COUNT(C6:E6))) -> 131 | J6: =_xlfn.IFS(SUM(C6:E6)<1,"",SUM(C6:E6)>=1,SUM($C$6:E6)) -> 394 | K6: =_xlfn.IFS(COUNT(C6:E6)<1,"",COUNT($C$6:E6)>=1,COUNT($C$6:E6)) -> 3 | L6: =_xlfn.IFS(COUNT(C6:E6)<1,"",AND(COUNT($C$6:E6)<=9,$C$4>1),$C$4,COUNT(C6:E6)>=1,M6) -> 128 | M6: =IF(COUNT($C$6:E6)>=1,TRUNC(SUM($C$6:E6)/COUNT($C$6:E6)),0) -> 131 | N6: =IF(COUNT($C$6:E6)<=6,0,TRUNC((230-M5)*0.9)) -> 0 | O6: =_xlfn.IFS(SUM(C6:E6)<1,"",COUNT($C$6:E6)>9,TRUNC((230-M5)*(0.9)),COUNT($C$6:E6)<=9,0) -> 0 | P6: =_xlfn.IFS(SUM(C6:E6)<1,"",COUNT($C$6:E6)>9,N6*3+H6,COUNT($C$6:E6)<=9,0) -> 0 | Q6: =IF(H6=(MAX($H$6:$H$35)),H6," ") ->  | R6: =IF((OR(C6=$V$5,D6=$V$5,E6=$V$5)),$V$5," ") ->  | S6: =IF(COUNT($C$6:E6)>9,IF(P6=MAX($P$6:$P$35),P6," "),"") ->  | T6: =IF(OR(V6=$W$5,W6=$W$5,X6=$W$5),$W$5," ") ->  | V6: =IF(COUNT(C6:E6)<1,0,IF(COUNT($C$6:E6)>9,C6+N6,0)) -> 0 | W6: =IF(COUNT(C6:E6)<1,0,IF(COUNT($C$6:E6)>9,D6+N6,0)) -> 0 | X6: =IF(COUNT(C6:E6)<1,0,IF(COUNT($C$6:E6)>9,E6+N6,0)) -> 0 | AA6: =IF((MAX($AB$6:$AB$35))<AC6,0,IF(AB6=AC6,0,1)) -> 0 | AB6: =IF(COUNT(C6:E6)>0,AC6,0) -> 1 | AC6: 1
A7: wk2 | B7: =Calendar!B7 -> 2019-09-11 | C7: 133 | D7: 150 | E7: 147 | H7: 430 | I7: =IF(COUNT(C7:E7)<1," ",TRUNC(H7/COUNT(C7:E7))) -> 143 | J7: =_xlfn.IFS(SUM(C7:E7)<1,"",SUM(C7:E7)>=1,SUM($C$6:E7)) -> 824 | K7: =_xlfn.IFS(COUNT(C7:E7)<1,"",COUNT($C$6:E7)>=1,COUNT($C$6:E7)) -> 6 | L7: =_xlfn.IFS(COUNT(C7:E7)<1,"",AND(COUNT($C$6:E7)<=9,$C$4>1),$C$4,COUNT(C7:E7)>=1,M7) -> 128 | M7: =IF(COUNT($C$6:E7)>=1,TRUNC(SUM($C$6:E7)/COUNT($C$6:E7)),0) -> 137 | N7: =IF(COUNT($C$6:E7)<=6,0,TRUNC((230-M6)*0.9)) -> 0 | O7: =_xlfn.IFS(SUM(C7:E7)<1,"",COUNT($C$6:E7)>9,TRUNC((230-M6)*(0.9)),COUNT($C$6:E7)<=9,0) -> 0 | P7: =_xlfn.IFS(SUM(C7:E7)<1,"",COUNT($C$6:E7)>9,N7*3+H7,COUNT($C$6:E7)<=9,0) -> 0 | S7: =IF(COUNT($C$6:E7)>9,IF(P7=MAX($P$6:$P$35),P7," "),"") ->  | V7: =IF(COUNT(C7:E7)<1,0,IF(COUNT($C$6:E7)>9,C7+N7,0)) -> 0 | W7: =IF(COUNT(C7:E7)<1,0,IF(COUNT($C$6:E7)>9,D7+N7,0)) -> 0 | X7: =IF(COUNT(C7:E7)<1,0,IF(COUNT($C$6:E7)>9,E7+N7,0)) -> 0 | AA7: 0 | AB7: =IF(COUNT(C7:E7)>0,AC7,0) -> 2 | AC7: 2
A8: wk3 | B8: =Calendar!B8 -> 2019-09-18 | C8: 118 | D8: 112 | E8: 133 | H8: 363 | I8: 121 | J8: =_xlfn.IFS(SUM(C8:E8)<1,"",SUM(C8:E8)>=1,SUM($C$6:E8)) -> 1187 | K8: =_xlfn.IFS(COUNT(C8:E8)<1,"",COUNT($C$6:E8)>=1,COUNT($C$6:E8)) -> 9 | L8: =_xlfn.IFS(COUNT(C8:E8)<1,"",AND(COUNT($C$6:E8)<=9,$C$4>1),$C$4,COUNT(C8:E8)>=1,M8) -> 128 | M8: =IF(COUNT($C$6:E8)>=1,TRUNC(SUM($C$6:E8)/COUNT($C$6:E8)),0) -> 131 | N8: =IF(COUNT($C$6:E8)<=6,0,TRUNC((230-M7)*0.9)) -> 83 | O8: =_xlfn.IFS(SUM(C8:E8)<1,"",COUNT($C$6:E8)>9,TRUNC((230-M7)*(0.9)),COUNT($C$6:E8)<=9,0) -> 0 | P8: =_xlfn.IFS(SUM(C8:E8)<1,"",COUNT($C$6:E8)>9,N8*3+H8,COUNT($C$6:E8)<=9,0) -> 0 | S8: =IF(COUNT($C$6:E8)>9,IF(P8=MAX($P$6:$P$35),P8," "),"") ->  | V8: =IF(COUNT(C8:E8)<1,0,IF(COUNT($C$6:E8)>9,C8+N8,0)) -> 0 | W8: =IF(COUNT(C8:E8)<1,0,IF(COUNT($C$6:E8)>9,D8+N8,0)) -> 0 | X8: =IF(COUNT(C8:E8)<1,0,IF(COUNT($C$6:E8)>9,E8+N8,0)) -> 0 | AA8: 0 | AB8: 3 | AC8: 3
A9: wk4 | B9: =Calendar!B9 -> 2019-09-25 | C9: 110 | D9: 125 | E9: 135 | H9: 370 | I9: 123 | J9: =_xlfn.IFS(SUM(C9:E9)<1,"",SUM(C9:E9)>=1,SUM($C$6:E9)) -> 1557 | K9: =_xlfn.IFS(COUNT(C9:E9)<1,"",COUNT($C$6:E9)>=1,COUNT($C$6:E9)) -> 12 | L9: =_xlfn.IFS(COUNT(C9:E9)<1,"",AND(COUNT($C$6:E9)<=9,$C$4>1),$C$4,COUNT(C9:E9)>=1,M9) -> 129 | M9: =IF(COUNT($C$6:E9)>=1,TRUNC(SUM($C$6:E9)/COUNT($C$6:E9)),0) -> 129 | N9: =IF(COUNT($C$6:E9)<=6,0,TRUNC((230-M8)*0.9)) -> 89 | O9: =_xlfn.IFS(SUM(C9:E9)<1,"",COUNT($C$6:E9)>9,TRUNC((230-M8)*(0.9)),COUNT($C$6:E9)<=9,0) -> 89 | P9: =_xlfn.IFS(SUM(C9:E9)<1,"",COUNT($C$6:E9)>9,N9*3+H9,COUNT($C$6:E9)<=9,0) -> 637 | S9: =IF(COUNT($C$6:E9)>9,IF(P9=MAX($P$6:$P$35),P9," "),"") ->  | V9: =IF(COUNT(C9:E9)<1,0,IF(COUNT($C$6:E9)>9,C9+N9,0)) -> 199 | W9: =IF(COUNT(C9:E9)<1,0,IF(COUNT($C$6:E9)>9,D9+N9,0)) -> 214 | X9: =IF(COUNT(C9:E9)<1,0,IF(COUNT($C$6:E9)>9,E9+N9,0)) -> 224 | AA9: 0 | AB9: 4 | AC9: 4
A10: wk5 | B10: =Calendar!B10 -> 2019-10-02 | C10: 107 | D10: 182 | E10: 111 | H10: 400 | I10: 133 | J10: =_xlfn.IFS(SUM(C10:E10)<1,"",SUM(C10:E10)>=1,SUM($C$6:E10)) -> 1957 | K10: =_xlfn.IFS(COUNT(C10:E10)<1,"",COUNT($C$6:E10)>=1,COUNT($C$6:E10)) -> 15 | L10: =_xlfn.IFS(COUNT(C10:E10)<1,"",AND(COUNT($C$6:E10)<=9,$C$4>1),$C$4,COUNT(C10:E10)>=1,M10) -> 130 | M10: =IF(COUNT($C$6:E10)>=1,TRUNC(SUM($C$6:E10)/COUNT($C$6:E10)),0) -> 130 | N10: =IF(COUNT($C$6:E10)<=6,0,TRUNC((230-M9)*0.9)) -> 90 | O10: =_xlfn.IFS(SUM(C10:E10)<1,"",COUNT($C$6:E10)>9,TRUNC((230-M9)*(0.9)),COUNT($C$6:E10)<=9,0) -> 90 | P10: =_xlfn.IFS(SUM(C10:E10)<1,"",COUNT($C$6:E10)>9,N10*3+H10,COUNT($C$6:E10)<=9,0) -> 670 | R10: 182 | S10: =IF(COUNT($C$6:E10)>9,IF(P10=MAX($P$6:$P$35),P10," "),"") ->  | T10: 272 | V10: =IF(COUNT(C10:E10)<1,0,IF(COUNT($C$6:E10)>9,C10+N10,0)) -> 197 | W10: =IF(COUNT(C10:E10)<1,0,IF(COUNT($C$6:E10)>9,D10+N10,0)) -> 272 | X10: =IF(COUNT(C10:E10)<1,0,IF(COUNT($C$6:E10)>9,E10+N10,0)) -> 201 | AA10: 0 | AB10: 5 | AC10: 5
A11: wk6 | B11: =Calendar!B11 -> 2019-10-09 | C11: 114 | D11: 126 | E11: 139 | F11: =IF(COUNT(C11:E11)<1," ",IF(AND(C11>M10,D11>M10,E11>M10,COUNT($C$6:E10)>=15),"*"," ")) ->  | H11: 379 | I11: 126 | J11: =_xlfn.IFS(SUM(C11:E11)<1,"",SUM(C11:E11)>=1,SUM($C$6:E11)) -> 2336 | K11: =_xlfn.IFS(COUNT(C11:E11)<1,"",COUNT($C$6:E11)>=1,COUNT($C$6:E11)) -> 18 | L11: =_xlfn.IFS(COUNT(C11:E11)<1,"",AND(COUNT($C$6:E11)<=9,$C$4>1),$C$4,COUNT(C11:E11)>=1,M11) -> 129 | M11: =IF(COUNT($C$6:E11)>=1,TRUNC(SUM($C$6:E11)/COUNT($C$6:E11)),0) -> 129 | N11: =IF(COUNT($C$6:E11)<=6,0,TRUNC((230-M10)*0.9)) -> 90 | O11: =_xlfn.IFS(SUM(C11:E11)<1,"",COUNT($C$6:E11)>9,TRUNC((230-M10)*(0.9)),COUNT($C$6:E11)<=9,0) -> 90 | P11: =_xlfn.IFS(SUM(C11:E11)<1,"",COUNT($C$6:E11)>9,N11*3+H11,COUNT($C$6:E11)<=9,0) -> 649 | S11: =IF(COUNT($C$6:E11)>9,IF(P11=MAX($P$6:$P$35),P11," "),"") ->  | V11: =IF(COUNT(C11:E11)<1,0,IF(COUNT($C$6:E11)>9,C11+N11,0)) -> 204 | W11: =IF(COUNT(C11:E11)<1,0,IF(COUNT($C$6:E11)>9,D11+N11,0)) -> 216 | X11: =IF(COUNT(C11:E11)<1,0,IF(COUNT($C$6:E11)>9,E11+N11,0)) -> 229 | AA11: 0 | AB11: 6 | AC11: 6
A12: wk7 | B12: =Calendar!B12 -> 2019-10-16 | F12: =IF(COUNT(C12:E12)<1," ",IF(AND(C12>M11,D12>M11,E12>M11,COUNT($C$6:E11)>=15),"*"," ")) ->  | G12: =IF(COUNT(C12:E12)<1," ",IF(AND(C12>M10,D12>M10,E12>M10,COUNT($C$6:E10)>=15),"*"," ")) ->  | J12: =_xlfn.IFS(SUM(C12:E12)<1,"",SUM(C12:E12)>=1,SUM($C$6:E12)) ->  | K12: =_xlfn.IFS(COUNT(C12:E12)<1,"",COUNT($C$6:E12)>=1,COUNT($C$6:E12)) ->  | L12: =_xlfn.IFS(COUNT(C12:E12)<1,"",AND(COUNT($C$6:E12)<=9,$C$4>1),$C$4,COUNT(C12:E12)>=1,M12) ->  | M12: =IF(COUNT($C$6:E12)>=1,TRUNC(SUM($C$6:E12)/COUNT($C$6:E12)),0) -> 129 | N12: =IF(COUNT($C$6:E12)<=6,0,TRUNC((230-M11)*0.9)) -> 90 | O12: =_xlfn.IFS(SUM(C12:E12)<1,"",COUNT($C$6:E12)>9,TRUNC((230-M11)*(0.9)),COUNT($C$6:E12)<=9,0) ->  | P12: =_xlfn.IFS(SUM(C12:E12)<1,"",COUNT($C$6:E12)>9,N12*3+H12,COUNT($C$6:E12)<=9,0) ->  | S12: =IF(COUNT($C$6:E12)>9,IF(P12=MAX($P$6:$P$35),P12," "),"") ->  | V12: =IF(COUNT(C12:E12)<1,0,IF(COUNT($C$6:E12)>9,C12+N12,0)) -> 0 | W12: =IF(COUNT(C12:E12)<1,0,IF(COUNT($C$6:E12)>9,D12+N12,0)) -> 0 | X12: =IF(COUNT(C12:E12)<1,0,IF(COUNT($C$6:E12)>9,E12+N12,0)) -> 0 | AA12: 1 | AB12: 0 | AC12: 7
A13: wk8 | B13: =Calendar!B13 -> 2020-10-23 | C13: 120 | D13: 125 | E13: 92 | F13: =IF(COUNT(C13:E13)<1," ",IF(AND(C13>M12,D13>M12,E13>M12,COUNT($C$6:E12)>=15),"*"," ")) ->  | G13: =IF(COUNT(C13:E13)<1," ",IF(AND(C13>M11,D13>M11,E13>M11,COUNT($C$6:E11)>=15),"*"," ")) ->  | H13: 337 | I13: 112 | J13: =_xlfn.IFS(SUM(C13:E13)<1,"",SUM(C13:E13)>=1,SUM($C$6:E13)) -> 2673 | K13: =_xlfn.IFS(COUNT(C13:E13)<1,"",COUNT($C$6:E13)>=1,COUNT($C$6:E13)) -> 21 | L13: =_xlfn.IFS(COUNT(C13:E13)<1,"",AND(COUNT($C$6:E13)<=9,$C$4>1),$C$4,COUNT(C13:E13)>=1,M13) -> 127 | M13: =IF(COUNT($C$6:E13)>=1,TRUNC(SUM($C$6:E13)/COUNT($C$6:E13)),0) -> 127 | N13: =IF(COUNT($C$6:E13)<=6,0,TRUNC((230-M12)*0.9)) -> 90 | O13: =_xlfn.IFS(SUM(C13:E13)<1,"",COUNT($C$6:E13)>9,TRUNC((230-M12)*(0.9)),COUNT($C$6:E13)<=9,0) -> 90 | P13: =_xlfn.IFS(SUM(C13:E13)<1,"",COUNT($C$6:E13)>9,N13*3+H13,COUNT($C$6:E13)<=9,0) -> 607 | S13: =IF(COUNT($C$6:E13)>9,IF(P13=MAX($P$6:$P$35),P13," "),"") ->  | V13: =IF(COUNT(C13:E13)<1,0,IF(COUNT($C$6:E13)>9,C13+N13,0)) -> 210 | W13: =IF(COUNT(C13:E13)<1,0,IF(COUNT($C$6:E13)>9,D13+N13,0)) -> 215 | X13: =IF(COUNT(C13:E13)<1,0,IF(COUNT($C$6:E13)>9,E13+N13,0)) -> 182 | AA13: 0 | AB13: 8 | AC13: 8
A14: wk9 | B14: =Calendar!B14 -> 2019-11-06 | F14: =IF(COUNT(C14:E14)<1," ",IF(AND(C14>M13,D14>M13,E14>M13,COUNT($C$6:E13)>=15),"*"," ")) ->  | G14: =IF(COUNT(C14:E14)<1," ",IF(AND(C14>M12,D14>M12,E14>M12,COUNT($C$6:E12)>=15),"*"," ")) ->  | J14: =_xlfn.IFS(SUM(C14:E14)<1,"",SUM(C14:E14)>=1,SUM($C$6:E14)) ->  | K14: =_xlfn.IFS(COUNT(C14:E14)<1,"",COUNT($C$6:E14)>=1,COUNT($C$6:E14)) ->  | L14: =_xlfn.IFS(COUNT(C14:E14)<1,"",AND(COUNT($C$6:E14)<=9,$C$4>1),$C$4,COUNT(C14:E14)>=1,M14) ->  | M14: =IF(COUNT($C$6:E14)>=1,TRUNC(SUM($C$6:E14)/COUNT($C$6:E14)),0) -> 127 | N14: =IF(COUNT($C$6:E14)<=6,0,TRUNC((230-M13)*0.9)) -> 92 | O14: =_xlfn.IFS(SUM(C14:E14)<1,"",COUNT($C$6:E14)>9,TRUNC((230-M13)*(0.9)),COUNT($C$6:E14)<=9,0) ->  | P14: =_xlfn.IFS(SUM(C14:E14)<1,"",COUNT($C$6:E14)>9,N14*3+H14,COUNT($C$6:E14)<=9,0) ->  | S14: =IF(COUNT($C$6:E14)>9,IF(P14=MAX($P$6:$P$35),P14," "),"") ->  | V14: =IF(COUNT(C14:E14)<1,0,IF(COUNT($C$6:E14)>9,C14+N14,0)) -> 0 | W14: =IF(COUNT(C14:E14)<1,0,IF(COUNT($C$6:E14)>9,D14+N14,0)) -> 0 | X14: =IF(COUNT(C14:E14)<1,0,IF(COUNT($C$6:E14)>9,E14+N14,0)) -> 0 | AA14: 1 | AB14: 0 | AC14: 9
A15: wk10 | B15: =Calendar!B15 -> 2019-11-13 | F15: =IF(COUNT(C15:E15)<1," ",IF(AND(C15>M14,D15>M14,E15>M14,COUNT($C$6:E14)>=15),"*"," ")) ->  | G15: =IF(COUNT(C15:E15)<1," ",IF(AND(C15>M13,D15>M13,E15>M13,COUNT($C$6:E13)>=15),"*"," ")) ->  | J15: =_xlfn.IFS(SUM(C15:E15)<1,"",SUM(C15:E15)>=1,SUM($C$6:E15)) ->  | K15: =_xlfn.IFS(COUNT(C15:E15)<1,"",COUNT($C$6:E15)>=1,COUNT($C$6:E15)) ->  | L15: =_xlfn.IFS(COUNT(C15:E15)<1,"",AND(COUNT($C$6:E15)<=9,$C$4>1),$C$4,COUNT(C15:E15)>=1,M15) ->  | M15: =IF(COUNT($C$6:E15)>=1,TRUNC(SUM($C$6:E15)/COUNT($C$6:E15)),0) -> 127 | N15: =IF(COUNT($C$6:E15)<=6,0,TRUNC((230-M14)*0.9)) -> 92 | O15: =_xlfn.IFS(SUM(C15:E15)<1,"",COUNT($C$6:E15)>9,TRUNC((230-M14)*(0.9)),COUNT($C$6:E15)<=9,0) ->  | P15: =_xlfn.IFS(SUM(C15:E15)<1,"",COUNT($C$6:E15)>9,N15*3+H15,COUNT($C$6:E15)<=9,0) ->  | S15: =IF(COUNT($C$6:E15)>9,IF(P15=MAX($P$6:$P$35),P15," "),"") ->  | V15: =IF(COUNT(C15:E15)<1,0,IF(COUNT($C$6:E15)>9,C15+N15,0)) -> 0 | W15: =IF(COUNT(C15:E15)<1,0,IF(COUNT($C$6:E15)>9,D15+N15,0)) -> 0 | X15: =IF(COUNT(C15:E15)<1,0,IF(COUNT($C$6:E15)>9,E15+N15,0)) -> 0 | AA15: 1 | AB15: 0 | AC15: 10
A16: wk11 | B16: =Calendar!B16 -> 2019-11-20 | C16: 140 | D16: 155 | E16: 170 | F16: =IF(COUNT(C16:E16)<1," ",IF(AND(C16>M15,D16>M15,E16>M15,COUNT($C$6:E15)>=15),"*"," ")) -> * | G16: =IF(COUNT(C16:E16)<1," ",IF(AND(C16>M14,D16>M14,E16>M14,COUNT($C$6:E14)>=15),"*"," ")) -> * | H16: 465 | I16: 155 | J16: =_xlfn.IFS(SUM(C16:E16)<1,"",SUM(C16:E16)>=1,SUM($C$6:E16)) -> 3138 | K16: =_xlfn.IFS(COUNT(C16:E16)<1,"",COUNT($C$6:E16)>=1,COUNT($C$6:E16)) -> 24 | L16: =_xlfn.IFS(COUNT(C16:E16)<1,"",AND(COUNT($C$6:E16)<=9,$C$4>1),$C$4,COUNT(C16:E16)>=1,M16) -> 130 | M16: =IF(COUNT($C$6:E16)>=1,TRUNC(SUM($C$6:E16)/COUNT($C$6:E16)),0) -> 130 | N16: =IF(COUNT($C$6:E16)<=6,0,TRUNC((230-M15)*0.9)) -> 92 | O16: =_xlfn.IFS(SUM(C16:E16)<1,"",COUNT($C$6:E16)>9,TRUNC((230-M15)*(0.9)),COUNT($C$6:E16)<=9,0) -> 92 | P16: =_xlfn.IFS(SUM(C16:E16)<1,"",COUNT($C$6:E16)>9,N16*3+H16,COUNT($C$6:E16)<=9,0) -> 741 | Q16: 465 | S16: =IF(COUNT($C$6:E16)>9,IF(P16=MAX($P$6:$P$35),P16," "),"") -> 741 | V16: =IF(COUNT(C16:E16)<1,0,IF(COUNT($C$6:E16)>9,C16+N16,0)) -> 232 | W16: =IF(COUNT(C16:E16)<1,0,IF(COUNT($C$6:E16)>9,D16+N16,0)) -> 247 | X16: =IF(COUNT(C16:E16)<1,0,IF(COUNT($C$6:E16)>9,E16+N16,0)) -> 262 | AA16: 0 | AB16: 11 | AC16: 11
A17: wk12 | B17: =Calendar!B17 -> 2019-12-04 | C17: 125 | D17: 143 | E17: 131 | F17: =IF(COUNT(C17:E17)<1," ",IF(AND(C17>M16,D17>M16,E17>M16,COUNT($C$6:E16)>=15),"*"," ")) ->  | G17: =IF(COUNT(C17:E17)<1," ",IF(AND(C17>M15,D17>M15,E17>M15,COUNT($C$6:E15)>=15),"*"," ")) ->  | H17: 399 | I17: 133 | J17: =_xlfn.IFS(SUM(C17:E17)<1,"",SUM(C17:E17)>=1,SUM($C$6:E17)) -> 3537 | K17: =_xlfn.IFS(COUNT(C17:E17)<1,"",COUNT($C$6:E17)>=1,COUNT($C$6:E17)) -> 27 | L17: =_xlfn.IFS(COUNT(C17:E17)<1,"",AND(COUNT($C$6:E17)<=9,$C$4>1),$C$4,COUNT(C17:E17)>=1,M17) -> 131 | M17: =IF(COUNT($C$6:E17)>=1,TRUNC(SUM($C$6:E17)/COUNT($C$6:E17)),0) -> 131 | N17: =IF(COUNT($C$6:E17)<=6,0,TRUNC((230-M16)*0.9)) -> 90 | O17: =_xlfn.IFS(SUM(C17:E17)<1,"",COUNT($C$6:E17)>9,TRUNC((230-M16)*(0.9)),COUNT($C$6:E17)<=9,0) -> 90 | P17: =_xlfn.IFS(SUM(C17:E17)<1,"",COUNT($C$6:E17)>9,N17*3+H17,COUNT($C$6:E17)<=9,0) -> 669 | S17: =IF(COUNT($C$6:E17)>9,IF(P17=MAX($P$6:$P$35),P17," "),"") ->  | V17: =IF(COUNT(C17:E17)<1,0,IF(COUNT($C$6:E17)>9,C17+N17,0)) -> 215 | W17: =IF(COUNT(C17:E17)<1,0,IF(COUNT($C$6:E17)>9,D17+N17,0)) -> 233 | X17: =IF(COUNT(C17:E17)<1,0,IF(COUNT($C$6:E17)>9,E17+N17,0)) -> 221 | AA17: 0 | AB17: 12 | AC17: 12
A18: wk13 | B18: =Calendar!B18 -> 2019-12-11 | C18: 147 | D18: 146 | E18: 152 | F18: =IF(COUNT(C18:E18)<1," ",IF(AND(C18>M17,D18>M17,E18>M17,COUNT($C$6:E17)>=15),"*"," ")) -> * | G18: =IF(COUNT(C18:E18)<1," ",IF(AND(C18>M16,D18>M16,E18>M16,COUNT($C$6:E16)>=15),"*"," ")) -> * | H18: 445 | I18: 148 | J18: =_xlfn.IFS(SUM(C18:E18)<1,"",SUM(C18:E18)>=1,SUM($C$6:E18)) -> 3982 | K18: =_xlfn.IFS(COUNT(C18:E18)<1,"",COUNT($C$6:E18)>=1,COUNT($C$6:E18)) -> 30 | L18: =_xlfn.IFS(COUNT(C18:E18)<1,"",AND(COUNT($C$6:E18)<=9,$C$4>1),$C$4,COUNT(C18:E18)>=1,M18) -> 132 | M18: =IF(COUNT($C$6:E18)>=1,TRUNC(SUM($C$6:E18)/COUNT($C$6:E18)),0) -> 132 | N18: =IF(COUNT($C$6:E18)<=6,0,TRUNC((230-M17)*0.9)) -> 89 | O18: =_xlfn.IFS(SUM(C18:E18)<1,"",COUNT($C$6:E18)>9,TRUNC((230-M17)*(0.9)),COUNT($C$6:E18)<=9,0) -> 89 | P18: =_xlfn.IFS(SUM(C18:E18)<1,"",COUNT($C$6:E18)>9,N18*3+H18,COUNT($C$6:E18)<=9,0) -> 712 | S18: =IF(COUNT($C$6:E18)>9,IF(P18=MAX($P$6:$P$35),P18," "),"") ->  | V18: =IF(COUNT(C18:E18)<1,0,IF(COUNT($C$6:E18)>9,C18+N18,0)) -> 236 | W18: =IF(COUNT(C18:E18)<1,0,IF(COUNT($C$6:E18)>9,D18+N18,0)) -> 235 | X18: =IF(COUNT(C18:E18)<1,0,IF(COUNT($C$6:E18)>9,E18+N18,0)) -> 241 | AA18: 0 | AB18: 13 | AC18: 13
A19: wk14 | B19: =Calendar!B19 -> 2019-12-18 | C19: 138 | D19: 133 | E19: 147 | F19: =IF(COUNT(C19:E19)<1," ",IF(AND(C19>M18,D19>M18,E19>M18,COUNT($C$6:E18)>=15),"*"," ")) -> * | G19: =IF(COUNT(C19:E19)<1," ",IF(AND(C19>M17,D19>M17,E19>M17,COUNT($C$6:E17)>=15),"*"," ")) -> * | H19: 418 | I19: 139 | J19: =_xlfn.IFS(SUM(C19:E19)<1,"",SUM(C19:E19)>=1,SUM($C$6:E19)) -> 4400 | K19: =_xlfn.IFS(COUNT(C19:E19)<1,"",COUNT($C$6:E19)>=1,COUNT($C$6:E19)) -> 33 | L19: =_xlfn.IFS(COUNT(C19:E19)<1,"",AND(COUNT($C$6:E19)<=9,$C$4>1),$C$4,COUNT(C19:E19)>=1,M19) -> 133 | M19: =IF(COUNT($C$6:E19)>=1,TRUNC(SUM($C$6:E19)/COUNT($C$6:E19)),0) -> 133 | N19: =IF(COUNT($C$6:E19)<=6,0,TRUNC((230-M18)*0.9)) -> 88 | O19: =_xlfn.IFS(SUM(C19:E19)<1,"",COUNT($C$6:E19)>9,TRUNC((230-M18)*(0.9)),COUNT($C$6:E19)<=9,0) -> 88 | P19: =_xlfn.IFS(SUM(C19:E19)<1,"",COUNT($C$6:E19)>9,N19*3+H19,COUNT($C$6:E19)<=9,0) -> 682 | S19: =IF(COUNT($C$6:E19)>9,IF(P19=MAX($P$6:$P$35),P19," "),"") ->  | V19: =IF(COUNT(C19:E19)<1,0,IF(COUNT($C$6:E19)>9,C19+N19,0)) -> 226 | W19: =IF(COUNT(C19:E19)<1,0,IF(COUNT($C$6:E19)>9,D19+N19,0)) -> 221 | X19: =IF(COUNT(C19:E19)<1,0,IF(COUNT($C$6:E19)>9,E19+N19,0)) -> 235 | AA19: 0 | AB19: 14 | AC19: 14
A20: wk15 | B20: =Calendar!B20 -> 2020-01-08 | C20: 157 | D20: 137 | E20: 137 | F20: =IF(COUNT(C20:E20)<1," ",IF(AND(C20>M19,D20>M19,E20>M19,COUNT($C$6:E19)>=15),"*"," ")) -> * | G20: =IF(COUNT(C20:E20)<1," ",IF(AND(C20>M18,D20>M18,E20>M18,COUNT($C$6:E18)>=15),"*"," ")) -> * | H20: 431 | I20: 143 | J20: =_xlfn.IFS(SUM(C20:E20)<1,"",SUM(C20:E20)>=1,SUM($C$6:E20)) -> 4831 | K20: =_xlfn.IFS(COUNT(C20:E20)<1,"",COUNT($C$6:E20)>=1,COUNT($C$6:E20)) -> 36 | L20: =_xlfn.IFS(COUNT(C20:E20)<1,"",AND(COUNT($C$6:E20)<=9,$C$4>1),$C$4,COUNT(C20:E20)>=1,M20) -> 134 | M20: =IF(COUNT($C$6:E20)>=1,TRUNC(SUM($C$6:E20)/COUNT($C$6:E20)),0) -> 134 | N20: =IF(COUNT($C$6:E20)<=6,0,TRUNC((230-M19)*0.9)) -> 87 | O20: =_xlfn.IFS(SUM(C20:E20)<1,"",COUNT($C$6:E20)>9,TRUNC((230-M19)*(0.9)),COUNT($C$6:E20)<=9,0) -> 87 | P20: =_xlfn.IFS(SUM(C20:E20)<1,"",COUNT($C$6:E20)>9,N20*3+H20,COUNT($C$6:E20)<=9,0) -> 692 | S20: =IF(COUNT($C$6:E20)>9,IF(P20=MAX($P$6:$P$35),P20," "),"") ->  | V20: =IF(COUNT(C20:E20)<1,0,IF(COUNT($C$6:E20)>9,C20+N20,0)) -> 244 | W20: =IF(COUNT(C20:E20)<1,0,IF(COUNT($C$6:E20)>9,D20+N20,0)) -> 224 | X20: =IF(COUNT(C20:E20)<1,0,IF(COUNT($C$6:E20)>9,E20+N20,0)) -> 224 | AA20: 0 | AB20: 15 | AC20: 15
A21: wk16 | B21: =Calendar!B21 -> 2020-01-15 | C21: 139 | D21: 124 | E21: 155 | F21: =IF(COUNT(C21:E21)<1," ",IF(AND(C21>M20,D21>M20,E21>M20,COUNT($C$6:E20)>=15),"*"," ")) ->  | G21: =IF(COUNT(C21:E21)<1," ",IF(AND(C21>M19,D21>M19,E21>M19,COUNT($C$6:E19)>=15),"*"," ")) ->  | H21: 418 | I21: 139 | J21: =_xlfn.IFS(SUM(C21:E21)<1,"",SUM(C21:E21)>=1,SUM($C$6:E21)) -> 5249 | K21: =_xlfn.IFS(COUNT(C21:E21)<1,"",COUNT($C$6:E21)>=1,COUNT($C$6:E21)) -> 39 | L21: =_xlfn.IFS(COUNT(C21:E21)<1,"",AND(COUNT($C$6:E21)<=9,$C$4>1),$C$4,COUNT(C21:E21)>=1,M21) -> 134 | M21: =IF(COUNT($C$6:E21)>=1,TRUNC(SUM($C$6:E21)/COUNT($C$6:E21)),0) -> 134 | N21: =IF(COUNT($C$6:E21)<=6,0,TRUNC((230-M20)*0.9)) -> 86 | O21: =_xlfn.IFS(SUM(C21:E21)<1,"",COUNT($C$6:E21)>9,TRUNC((230-M20)*(0.9)),COUNT($C$6:E21)<=9,0) -> 86 | P21: =_xlfn.IFS(SUM(C21:E21)<1,"",COUNT($C$6:E21)>9,N21*3+H21,COUNT($C$6:E21)<=9,0) -> 676 | S21: =IF(COUNT($C$6:E21)>9,IF(P21=MAX($P$6:$P$35),P21," "),"") ->  | V21: =IF(COUNT(C21:E21)<1,0,IF(COUNT($C$6:E21)>9,C21+N21,0)) -> 225 | W21: =IF(COUNT(C21:E21)<1,0,IF(COUNT($C$6:E21)>9,D21+N21,0)) -> 210 | X21: =IF(COUNT(C21:E21)<1,0,IF(COUNT($C$6:E21)>9,E21+N21,0)) -> 241 | AA21: 0 | AB21: 16 | AC21: 16
A22: wk17 | B22: =Calendar!B22 -> 2020-01-22 | C22: 130 | D22: 107 | E22: 152 | F22: =IF(COUNT(C22:E22)<1," ",IF(AND(C22>M21,D22>M21,E22>M21,COUNT($C$6:E21)>=15),"*"," ")) ->  | G22: =IF(COUNT(C22:E22)<1," ",IF(AND(C22>M20,D22>M20,E22>M20,COUNT($C$6:E20)>=15),"*"," ")) ->  | H22: 389 | I22: 129 | J22: =_xlfn.IFS(SUM(C22:E22)<1,"",SUM(C22:E22)>=1,SUM($C$6:E22)) -> 5638 | K22: =_xlfn.IFS(COUNT(C22:E22)<1,"",COUNT($C$6:E22)>=1,COUNT($C$6:E22)) -> 42 | L22: =_xlfn.IFS(COUNT(C22:E22)<1,"",AND(COUNT($C$6:E22)<=9,$C$4>1),$C$4,COUNT(C22:E22)>=1,M22) -> 134 | M22: =IF(COUNT($C$6:E22)>=1,TRUNC(SUM($C$6:E22)/COUNT($C$6:E22)),0) -> 134 | N22: =IF(COUNT($C$6:E22)<=6,0,TRUNC((230-M21)*0.9)) -> 86 | O22: =_xlfn.IFS(SUM(C22:E22)<1,"",COUNT($C$6:E22)>9,TRUNC((230-M21)*(0.9)),COUNT($C$6:E22)<=9,0) -> 86 | P22: =_xlfn.IFS(SUM(C22:E22)<1,"",COUNT($C$6:E22)>9,N22*3+H22,COUNT($C$6:E22)<=9,0) -> 647 | S22: =IF(COUNT($C$6:E22)>9,IF(P22=MAX($P$6:$P$35),P22," "),"") ->  | V22: =IF(COUNT(C22:E22)<1,0,IF(COUNT($C$6:E22)>9,C22+N22,0)) -> 216 | W22: =IF(COUNT(C22:E22)<1,0,IF(COUNT($C$6:E22)>9,D22+N22,0)) -> 193 | X22: =IF(COUNT(C22:E22)<1,0,IF(COUNT($C$6:E22)>9,E22+N22,0)) -> 238 | AA22: 0 | AB22: 17 | AC22: 17
A23: wk18 | B23: =Calendar!B23 -> 2020-01-29 | C23: 112 | D23: 108 | E23: 127 | F23: =IF(COUNT(C23:E23)<1," ",IF(AND(C23>M22,D23>M22,E23>M22,COUNT($C$6:E22)>=15),"*"," ")) ->  | G23: =IF(COUNT(C23:E23)<1," ",IF(AND(C23>M21,D23>M21,E23>M21,COUNT($C$6:E21)>=15),"*"," ")) ->  | H23: 347 | I23: 115 | J23: =_xlfn.IFS(SUM(C23:E23)<1,"",SUM(C23:E23)>=1,SUM($C$6:E23)) -> 5985 | K23: =_xlfn.IFS(COUNT(C23:E23)<1,"",COUNT($C$6:E23)>=1,COUNT($C$6:E23)) -> 45 | L23: =_xlfn.IFS(COUNT(C23:E23)<1,"",AND(COUNT($C$6:E23)<=9,$C$4>1),$C$4,COUNT(C23:E23)>=1,M23) -> 133 | M23: =IF(COUNT($C$6:E23)>=1,TRUNC(SUM($C$6:E23)/COUNT($C$6:E23)),0) -> 133 | N23: =IF(COUNT($C$6:E23)<=6,0,TRUNC((230-M22)*0.9)) -> 86 | O23: =_xlfn.IFS(SUM(C23:E23)<1,"",COUNT($C$6:E23)>9,TRUNC((230-M22)*(0.9)),COUNT($C$6:E23)<=9,0) -> 86 | P23: =_xlfn.IFS(SUM(C23:E23)<1,"",COUNT($C$6:E23)>9,N23*3+H23,COUNT($C$6:E23)<=9,0) -> 605 | S23: =IF(COUNT($C$6:E23)>9,IF(P23=MAX($P$6:$P$35),P23," "),"") ->  | V23: =IF(COUNT(C23:E23)<1,0,IF(COUNT($C$6:E23)>9,C23+N23,0)) -> 198 | W23: =IF(COUNT(C23:E23)<1,0,IF(COUNT($C$6:E23)>9,D23+N23,0)) -> 194 | X23: =IF(COUNT(C23:E23)<1,0,IF(COUNT($C$6:E23)>9,E23+N23,0)) -> 213 | AA23: 0 | AB23: 18 | AC23: 18
A24: wk19 | B24: =Calendar!B24 -> 2020-02-05 | F24: =IF(COUNT(C24:E24)<1," ",IF(AND(C24>M23,D24>M23,E24>M23,COUNT($C$6:E23)>=15),"*"," ")) ->  | G24: =IF(COUNT(C24:E24)<1," ",IF(AND(C24>M22,D24>M22,E24>M22,COUNT($C$6:E22)>=15),"*"," ")) ->  | J24: =_xlfn.IFS(SUM(C24:E24)<1,"",SUM(C24:E24)>=1,SUM($C$6:E24)) ->  | K24: =_xlfn.IFS(COUNT(C24:E24)<1,"",COUNT($C$6:E24)>=1,COUNT($C$6:E24)) ->  | L24: =_xlfn.IFS(COUNT(C24:E24)<1,"",AND(COUNT($C$6:E24)<=9,$C$4>1),$C$4,COUNT(C24:E24)>=1,M24) ->  | M24: =IF(COUNT($C$6:E24)>=1,TRUNC(SUM($C$6:E24)/COUNT($C$6:E24)),0) -> 133 | N24: =IF(COUNT($C$6:E24)<=6,0,TRUNC((230-M23)*0.9)) -> 87 | O24: =_xlfn.IFS(SUM(C24:E24)<1,"",COUNT($C$6:E24)>9,TRUNC((230-M23)*(0.9)),COUNT($C$6:E24)<=9,0) ->  | P24: =_xlfn.IFS(SUM(C24:E24)<1,"",COUNT($C$6:E24)>9,N24*3+H24,COUNT($C$6:E24)<=9,0) ->  | S24: =IF(COUNT($C$6:E24)>9,IF(P24=MAX($P$6:$P$35),P24," "),"") ->  | V24: =IF(COUNT(C24:E24)<1,0,IF(COUNT($C$6:E24)>9,C24+N24,0)) -> 0 | W24: =IF(COUNT(C24:E24)<1,0,IF(COUNT($C$6:E24)>9,D24+N24,0)) -> 0 | X24: =IF(COUNT(C24:E24)<1,0,IF(COUNT($C$6:E24)>9,E24+N24,0)) -> 0 | AA24: 1 | AB24: 0 | AC24: 19
A25: wk20 | B25: =Calendar!B25 -> 2020-02-12 | C25: 135 | D25: 162 | E25: 146 | F25: =IF(COUNT(C25:E25)<1," ",IF(AND(C25>M24,D25>M24,E25>M24,COUNT($C$6:E24)>=15),"*"," ")) -> * | G25: =IF(COUNT(C25:E25)<1," ",IF(AND(C25>M23,D25>M23,E25>M23,COUNT($C$6:E23)>=15),"*"," ")) -> * | H25: 443 | I25: 147 | J25: =_xlfn.IFS(SUM(C25:E25)<1,"",SUM(C25:E25)>=1,SUM($C$6:E25)) -> 6428 | K25: =_xlfn.IFS(COUNT(C25:E25)<1,"",COUNT($C$6:E25)>=1,COUNT($C$6:E25)) -> 48 | L25: =_xlfn.IFS(COUNT(C25:E25)<1,"",AND(COUNT($C$6:E25)<=9,$C$4>1),$C$4,COUNT(C25:E25)>=1,M25) -> 133 | M25: =IF(COUNT($C$6:E25)>=1,TRUNC(SUM($C$6:E25)/COUNT($C$6:E25)),0) -> 133 | N25: =IF(COUNT($C$6:E25)<=6,0,TRUNC((230-M24)*0.9)) -> 87 | O25: =_xlfn.IFS(SUM(C25:E25)<1,"",COUNT($C$6:E25)>9,TRUNC((230-M24)*(0.9)),COUNT($C$6:E25)<=9,0) -> 87 | P25: =_xlfn.IFS(SUM(C25:E25)<1,"",COUNT($C$6:E25)>9,N25*3+H25,COUNT($C$6:E25)<=9,0) -> 704 | S25: =IF(COUNT($C$6:E25)>9,IF(P25=MAX($P$6:$P$35),P25," "),"") ->  | V25: =IF(COUNT(C25:E25)<1,0,IF(COUNT($C$6:E25)>9,C25+N25,0)) -> 222 | W25: =IF(COUNT(C25:E25)<1,0,IF(COUNT($C$6:E25)>9,D25+N25,0)) -> 249 | X25: =IF(COUNT(C25:E25)<1,0,IF(COUNT($C$6:E25)>9,E25+N25,0)) -> 233 | AA25: 0 | AB25: 20 | AC25: 20
A26: wk21 | B26: =Calendar!B26 -> 2020-02-19 | C26: 133 | D26: 109 | E26: 158 | F26: =IF(COUNT(C26:E26)<1," ",IF(AND(C26>M25,D26>M25,E26>M25,COUNT($C$6:E25)>=15),"*"," ")) ->  | G26: =IF(COUNT(C26:E26)<1," ",IF(AND(C26>M24,D26>M24,E26>M24,COUNT($C$6:E24)>=15),"*"," ")) ->  | H26: 400 | I26: 133 | J26: =_xlfn.IFS(SUM(C26:E26)<1,"",SUM(C26:E26)>=1,SUM($C$6:E26)) -> 6828 | K26: =_xlfn.IFS(COUNT(C26:E26)<1,"",COUNT($C$6:E26)>=1,COUNT($C$6:E26)) -> 51 | L26: =_xlfn.IFS(COUNT(C26:E26)<1,"",AND(COUNT($C$6:E26)<=9,$C$4>1),$C$4,COUNT(C26:E26)>=1,M26) -> 133 | M26: =IF(COUNT($C$6:E26)>=1,TRUNC(SUM($C$6:E26)/COUNT($C$6:E26)),0) -> 133 | N26: =IF(COUNT($C$6:E26)<=6,0,TRUNC((230-M25)*0.9)) -> 87 | O26: =_xlfn.IFS(SUM(C26:E26)<1,"",COUNT($C$6:E26)>9,TRUNC((230-M25)*(0.9)),COUNT($C$6:E26)<=9,0) -> 87 | P26: =_xlfn.IFS(SUM(C26:E26)<1,"",COUNT($C$6:E26)>9,N26*3+H26,COUNT($C$6:E26)<=9,0) -> 661 | S26: =IF(COUNT($C$6:E26)>9,IF(P26=MAX($P$6:$P$35),P26," "),"") ->  | V26: =IF(COUNT(C26:E26)<1,0,IF(COUNT($C$6:E26)>9,C26+N26,0)) -> 220 | W26: =IF(COUNT(C26:E26)<1,0,IF(COUNT($C$6:E26)>9,D26+N26,0)) -> 196 | X26: =IF(COUNT(C26:E26)<1,0,IF(COUNT($C$6:E26)>9,E26+N26,0)) -> 245 | AA26: 0 | AB26: 21 | AC26: 21
A27: wk22 | B27: =Calendar!B27 -> 2020-02-16 | C27: 115 | D27: 108 | E27: 120 | F27: =IF(COUNT(C27:E27)<1," ",IF(AND(C27>M26,D27>M26,E27>M26,COUNT($C$6:E26)>=15),"*"," ")) ->  | G27: =IF(COUNT(C27:E27)<1," ",IF(AND(C27>M25,D27>M25,E27>M25,COUNT($C$6:E25)>=15),"*"," ")) ->  | H27: 343 | I27: 114 | J27: =_xlfn.IFS(SUM(C27:E27)<1,"",SUM(C27:E27)>=1,SUM($C$6:E27)) -> 7171 | K27: =_xlfn.IFS(COUNT(C27:E27)<1,"",COUNT($C$6:E27)>=1,COUNT($C$6:E27)) -> 54 | L27: =_xlfn.IFS(COUNT(C27:E27)<1,"",AND(COUNT($C$6:E27)<=9,$C$4>1),$C$4,COUNT(C27:E27)>=1,M27) -> 132 | M27: =IF(COUNT($C$6:E27)>=1,TRUNC(SUM($C$6:E27)/COUNT($C$6:E27)),0) -> 132 | N27: =IF(COUNT($C$6:E27)<=6,0,TRUNC((230-M26)*0.9)) -> 87 | O27: =_xlfn.IFS(SUM(C27:E27)<1,"",COUNT($C$6:E27)>9,TRUNC((230-M26)*(0.9)),COUNT($C$6:E27)<=9,0) -> 87 | P27: =_xlfn.IFS(SUM(C27:E27)<1,"",COUNT($C$6:E27)>9,N27*3+H27,COUNT($C$6:E27)<=9,0) -> 604 | S27: =IF(COUNT($C$6:E27)>9,IF(P27=MAX($P$6:$P$35),P27," "),"") ->  | V27: =IF(COUNT(C27:E27)<1,0,IF(COUNT($C$6:E27)>9,C27+N27,0)) -> 202 | W27: =IF(COUNT(C27:E27)<1,0,IF(COUNT($C$6:E27)>9,D27+N27,0)) -> 195 | X27: =IF(COUNT(C27:E27)<1,0,IF(COUNT($C$6:E27)>9,E27+N27,0)) -> 207 | AA27: 0 | AB27: 22 | AC27: 22
A28: wk23 | B28: =Calendar!B28 -> 2020-03-04 | C28: 135 | D28: 132 | E28: 135 | F28: =IF(COUNT(C28:E28)<1," ",IF(AND(C28>M27,D28>M27,E28>M27,COUNT($C$6:E27)>=15),"*"," ")) ->  | G28: =IF(COUNT(C28:E28)<1," ",IF(AND(C28>M26,D28>M26,E28>M26,COUNT($C$6:E26)>=15),"*"," ")) ->  | H28: 402 | I28: 134 | J28: =_xlfn.IFS(SUM(C28:E28)<1,"",SUM(C28:E28)>=1,SUM($C$6:E28)) -> 7573 | K28: =_xlfn.IFS(COUNT(C28:E28)<1,"",COUNT($C$6:E28)>=1,COUNT($C$6:E28)) -> 57 | L28: =_xlfn.IFS(COUNT(C28:E28)<1,"",AND(COUNT($C$6:E28)<=9,$C$4>1),$C$4,COUNT(C28:E28)>=1,M28) -> 132 | M28: =IF(COUNT($C$6:E28)>=1,TRUNC(SUM($C$6:E28)/COUNT($C$6:E28)),0) -> 132 | N28: =IF(COUNT($C$6:E28)<=6,0,TRUNC((230-M27)*0.9)) -> 88 | O28: =_xlfn.IFS(SUM(C28:E28)<1,"",COUNT($C$6:E28)>9,TRUNC((230-M27)*(0.9)),COUNT($C$6:E28)<=9,0) -> 88 | P28: =_xlfn.IFS(SUM(C28:E28)<1,"",COUNT($C$6:E28)>9,N28*3+H28,COUNT($C$6:E28)<=9,0) -> 666 | S28: =IF(COUNT($C$6:E28)>9,IF(P28=MAX($P$6:$P$35),P28," "),"") ->  | V28: =IF(COUNT(C28:E28)<1,0,IF(COUNT($C$6:E28)>9,C28+N28,0)) -> 223 | W28: =IF(COUNT(C28:E28)<1,0,IF(COUNT($C$6:E28)>9,D28+N28,0)) -> 220 | X28: =IF(COUNT(C28:E28)<1,0,IF(COUNT($C$6:E28)>9,E28+N28,0)) -> 223 | AA28: 0 | AB28: 23 | AC28: 23
A29: wk24 | B29: =Calendar!B29 -> 2020-03-11 | C29: 131 | D29: 145 | E29: 121 | F29: =IF(COUNT(C29:E29)<1," ",IF(AND(C29>M28,D29>M28,E29>M28,COUNT($C$6:E28)>=15),"*"," ")) ->  | G29: =IF(COUNT(C29:E29)<1," ",IF(AND(C29>M27,D29>M27,E29>M27,COUNT($C$6:E27)>=15),"*"," ")) ->  | H29: 397 | I29: 132 | J29: =_xlfn.IFS(SUM(C29:E29)<1,"",SUM(C29:E29)>=1,SUM($C$6:E29)) -> 7970 | K29: =_xlfn.IFS(COUNT(C29:E29)<1,"",COUNT($C$6:E29)>=1,COUNT($C$6:E29)) -> 60 | L29: =_xlfn.IFS(COUNT(C29:E29)<1,"",AND(COUNT($C$6:E29)<=9,$C$4>1),$C$4,COUNT(C29:E29)>=1,M29) -> 132 | M29: =IF(COUNT($C$6:E29)>=1,TRUNC(SUM($C$6:E29)/COUNT($C$6:E29)),0) -> 132 | N29: =IF(COUNT($C$6:E29)<=6,0,TRUNC((230-M28)*0.9)) -> 88 | O29: =_xlfn.IFS(SUM(C29:E29)<1,"",COUNT($C$6:E29)>9,TRUNC((230-M28)*(0.9)),COUNT($C$6:E29)<=9,0) -> 88 | P29: =_xlfn.IFS(SUM(C29:E29)<1,"",COUNT($C$6:E29)>9,N29*3+H29,COUNT($C$6:E29)<=9,0) -> 661 | S29: =IF(COUNT($C$6:E29)>9,IF(P29=MAX($P$6:$P$35),P29," "),"") ->  | V29: =IF(COUNT(C29:E29)<1,0,IF(COUNT($C$6:E29)>9,C29+N29,0)) -> 219 | W29: =IF(COUNT(C29:E29)<1,0,IF(COUNT($C$6:E29)>9,D29+N29,0)) -> 233 | X29: =IF(COUNT(C29:E29)<1,0,IF(COUNT($C$6:E29)>9,E29+N29,0)) -> 209 | AA29: 0 | AB29: 24 | AC29: 24
A30: wk25 | B30: =Calendar!B30 -> 2020-03-18 | F30: =IF(COUNT(C30:E30)<1," ",IF(AND(C30>M29,D30>M29,E30>M29,COUNT($C$6:E29)>=15),"*"," ")) ->  | G30: =IF(COUNT(C30:E30)<1," ",IF(AND(C30>M28,D30>M28,E30>M28,COUNT($C$6:E28)>=15),"*"," ")) ->  | J30: =_xlfn.IFS(SUM(C30:E30)<1,"",SUM(C30:E30)>=1,SUM($C$6:E30)) ->  | K30: =_xlfn.IFS(COUNT(C30:E30)<1,"",COUNT($C$6:E30)>=1,COUNT($C$6:E30)) ->  | L30: =_xlfn.IFS(COUNT(C30:E30)<1,"",AND(COUNT($C$6:E30)<=9,$C$4>1),$C$4,COUNT(C30:E30)>=1,M30) ->  | M30: =IF(COUNT($C$6:E30)>=1,TRUNC(SUM($C$6:E30)/COUNT($C$6:E30)),0) -> 132 | N30: =IF(COUNT($C$6:E30)<=6,0,TRUNC((230-M29)*0.9)) -> 88 | O30: =_xlfn.IFS(SUM(C30:E30)<1,"",COUNT($C$6:E30)>9,TRUNC((230-M29)*(0.9)),COUNT($C$6:E30)<=9,0) ->  | P30: =_xlfn.IFS(SUM(C30:E30)<1,"",COUNT($C$6:E30)>9,N30*3+H30,COUNT($C$6:E30)<=9,0) ->  | S30: =IF(COUNT($C$6:E30)>9,IF(P30=MAX($P$6:$P$35),P30," "),"") ->  | V30: =IF(COUNT(C30:E30)<1,0,IF(COUNT($C$6:E30)>9,C30+N30,0)) -> 0 | W30: =IF(COUNT(C30:E30)<1,0,IF(COUNT($C$6:E30)>9,D30+N30,0)) -> 0 | X30: =IF(COUNT(C30:E30)<1,0,IF(COUNT($C$6:E30)>9,E30+N30,0)) -> 0 | AA30: 0 | AB30: 0 | AC30: 25
A31: wk26 | B31: =Calendar!B31 -> 2020-03-25 | F31: =IF(COUNT(C31:E31)<1," ",IF(AND(C31>M30,D31>M30,E31>M30,COUNT($C$6:E30)>=15),"*"," ")) ->  | G31: =IF(COUNT(C31:E31)<1," ",IF(AND(C31>M29,D31>M29,E31>M29,COUNT($C$6:E29)>=15),"*"," ")) ->  | J31: =_xlfn.IFS(SUM(C31:E31)<1,"",SUM(C31:E31)>=1,SUM($C$6:E31)) ->  | K31: =_xlfn.IFS(COUNT(C31:E31)<1,"",COUNT($C$6:E31)>=1,COUNT($C$6:E31)) ->  | L31: =_xlfn.IFS(COUNT(C31:E31)<1,"",AND(COUNT($C$6:E31)<=9,$C$4>1),$C$4,COUNT(C31:E31)>=1,M31) ->  | M31: =IF(COUNT($C$6:E31)>=1,TRUNC(SUM($C$6:E31)/COUNT($C$6:E31)),0) -> 132 | N31: =IF(COUNT($C$6:E31)<=6,0,TRUNC((230-M30)*0.9)) -> 88 | O31: =_xlfn.IFS(SUM(C31:E31)<1,"",COUNT($C$6:E31)>9,TRUNC((230-M30)*(0.9)),COUNT($C$6:E31)<=9,0) ->  | P31: =_xlfn.IFS(SUM(C31:E31)<1,"",COUNT($C$6:E31)>9,N31*3+H31,COUNT($C$6:E31)<=9,0) ->  | S31: =IF(COUNT($C$6:E31)>9,IF(P31=MAX($P$6:$P$35),P31," "),"") ->  | V31: =IF(COUNT(C31:E31)<1,0,IF(COUNT($C$6:E31)>9,C31+N31,0)) -> 0 | W31: =IF(COUNT(C31:E31)<1,0,IF(COUNT($C$6:E31)>9,D31+N31,0)) -> 0 | X31: =IF(COUNT(C31:E31)<1,0,IF(COUNT($C$6:E31)>9,E31+N31,0)) -> 0 | AA31: 0 | AB31: 0 | AC31: 26
A32: wk27 | B32: =Calendar!B32 -> 2020-04-01 | F32: =IF(COUNT(C32:E32)<1," ",IF(AND(C32>M31,D32>M31,E32>M31,COUNT($C$6:E31)>=15),"*"," ")) ->  | G32: =IF(COUNT(C32:E32)<1," ",IF(AND(C32>M30,D32>M30,E32>M30,COUNT($C$6:E30)>=15),"*"," ")) ->  | J32: =_xlfn.IFS(SUM(C32:E32)<1,"",SUM(C32:E32)>=1,SUM($C$6:E32)) ->  | K32: =_xlfn.IFS(COUNT(C32:E32)<1,"",COUNT($C$6:E32)>=1,COUNT($C$6:E32)) ->  | L32: =_xlfn.IFS(COUNT(C32:E32)<1,"",AND(COUNT($C$6:E32)<=9,$C$4>1),$C$4,COUNT(C32:E32)>=1,M32) ->  | M32: =IF(COUNT($C$6:E32)>=1,TRUNC(SUM($C$6:E32)/COUNT($C$6:E32)),0) -> 132 | N32: =IF(COUNT($C$6:E32)<=6,0,TRUNC((230-M31)*0.9)) -> 88 | O32: =_xlfn.IFS(SUM(C32:E32)<1,"",COUNT($C$6:E32)>9,TRUNC((230-M31)*(0.9)),COUNT($C$6:E32)<=9,0) ->  | P32: =_xlfn.IFS(SUM(C32:E32)<1,"",COUNT($C$6:E32)>9,N32*3+H32,COUNT($C$6:E32)<=9,0) ->  | S32: =IF(COUNT($C$6:E32)>9,IF(P32=MAX($P$6:$P$35),P32," "),"") ->  | V32: =IF(COUNT(C32:E32)<1,0,IF(COUNT($C$6:E32)>9,C32+N32,0)) -> 0 | W32: =IF(COUNT(C32:E32)<1,0,IF(COUNT($C$6:E32)>9,D32+N32,0)) -> 0 | X32: =IF(COUNT(C32:E32)<1,0,IF(COUNT($C$6:E32)>9,E32+N32,0)) -> 0 | AA32: 0 | AB32: 0 | AC32: 27
A33: wk28 | B33: =Calendar!B33 -> 2020-04-08 | F33: =IF(COUNT(C33:E33)<1," ",IF(AND(C33>M32,D33>M32,E33>M32,COUNT($C$6:E32)>=15),"*"," ")) ->  | G33: =IF(COUNT(C33:E33)<1," ",IF(AND(C33>M31,D33>M31,E33>M31,COUNT($C$6:E31)>=15),"*"," ")) ->  | J33: =_xlfn.IFS(SUM(C33:E33)<1,"",SUM(C33:E33)>=1,SUM($C$6:E33)) ->  | K33: =_xlfn.IFS(COUNT(C33:E33)<1,"",COUNT($C$6:E33)>=1,COUNT($C$6:E33)) ->  | L33: =_xlfn.IFS(COUNT(C33:E33)<1,"",AND(COUNT($C$6:E33)<=9,$C$4>1),$C$4,COUNT(C33:E33)>=1,M33) ->  | M33: =IF(COUNT($C$6:E33)>=1,TRUNC(SUM($C$6:E33)/COUNT($C$6:E33)),0) -> 132 | N33: =IF(COUNT($C$6:E33)<=6,0,TRUNC((230-M32)*0.9)) -> 88 | O33: =_xlfn.IFS(SUM(C33:E33)<1,"",COUNT($C$6:E33)>9,TRUNC((230-M32)*(0.9)),COUNT($C$6:E33)<=9,0) ->  | P33: =_xlfn.IFS(SUM(C33:E33)<1,"",COUNT($C$6:E33)>9,N33*3+H33,COUNT($C$6:E33)<=9,0) ->  | S33: =IF(COUNT($C$6:E33)>9,IF(P33=MAX($P$6:$P$35),P33," "),"") ->  | V33: =IF(COUNT(C33:E33)<1,0,IF(COUNT($C$6:E33)>9,C33+N33,0)) -> 0 | W33: =IF(COUNT(C33:E33)<1,0,IF(COUNT($C$6:E33)>9,D33+N33,0)) -> 0 | X33: =IF(COUNT(C33:E33)<1,0,IF(COUNT($C$6:E33)>9,E33+N33,0)) -> 0 | AA33: 0 | AB33: 0 | AC33: 28
A34: wk29 | B34: =Calendar!B34 -> 2020-04-15 | F34: =IF(COUNT(C34:E34)<1," ",IF(AND(C34>M33,D34>M33,E34>M33,COUNT($C$6:E33)>=15),"*"," ")) ->  | G34: =IF(COUNT(C34:E34)<1," ",IF(AND(C34>M32,D34>M32,E34>M32,COUNT($C$6:E32)>=15),"*"," ")) ->  | J34: =_xlfn.IFS(SUM(C34:E34)<1,"",SUM(C34:E34)>=1,SUM($C$6:E34)) ->  | K34: =_xlfn.IFS(COUNT(C34:E34)<1,"",COUNT($C$6:E34)>=1,COUNT($C$6:E34)) ->  | L34: =_xlfn.IFS(COUNT(C34:E34)<1,"",AND(COUNT($C$6:E34)<=9,$C$4>1),$C$4,COUNT(C34:E34)>=1,M34) ->  | M34: =IF(COUNT($C$6:E34)>=1,TRUNC(SUM($C$6:E34)/COUNT($C$6:E34)),0) -> 132 | N34: =IF(COUNT($C$6:E34)<=6,0,TRUNC((230-M33)*0.9)) -> 88 | O34: =_xlfn.IFS(SUM(C34:E34)<1,"",COUNT($C$6:E34)>9,TRUNC((230-M33)*(0.9)),COUNT($C$6:E34)<=9,0) ->  | P34: =_xlfn.IFS(SUM(C34:E34)<1,"",COUNT($C$6:E34)>9,N34*3+H34,COUNT($C$6:E34)<=9,0) ->  | S34: =IF(COUNT($C$6:E34)>9,IF(P34=MAX($P$6:$P$35),P34," "),"") ->  | V34: =IF(COUNT(C34:E34)<1,0,IF(COUNT($C$6:E34)>9,C34+N34,0)) -> 0 | W34: =IF(COUNT(C34:E34)<1,0,IF(COUNT($C$6:E34)>9,D34+N34,0)) -> 0 | X34: =IF(COUNT(C34:E34)<1,0,IF(COUNT($C$6:E34)>9,E34+N34,0)) -> 0 | AA34: 0 | AB34: 0 | AC34: 29
A35: wk30 | B35: =Calendar!B35 -> 2020-04-22 | F35: =IF(COUNT(C35:E35)<1," ",IF(AND(C35>M34,D35>M34,E35>M34,COUNT($C$6:E34)>=15),"*"," ")) ->  | G35: =IF(COUNT(C35:E35)<1," ",IF(AND(C35>M33,D35>M33,E35>M33,COUNT($C$6:E33)>=15),"*"," ")) ->  | J35: =_xlfn.IFS(SUM(C35:E35)<1,"",SUM(C35:E35)>=1,SUM($C$6:E35)) ->  | K35: =_xlfn.IFS(COUNT(C35:E35)<1,"",COUNT($C$6:E35)>=1,COUNT($C$6:E35)) ->  | L35: =_xlfn.IFS(COUNT(C35:E35)<1,"",AND(COUNT($C$6:E35)<=9,$C$4>1),$C$4,COUNT(C35:E35)>=1,M35) ->  | M35: =IF(COUNT($C$6:E35)>=1,TRUNC(SUM($C$6:E35)/COUNT($C$6:E35)),0) -> 132 | N35: =IF(COUNT($C$6:E35)<=6,0,TRUNC((230-M34)*0.9)) -> 88 | O35: =_xlfn.IFS(SUM(C35:E35)<1,"",COUNT($C$6:E35)>9,TRUNC((230-M34)*(0.9)),COUNT($C$6:E35)<=9,0) ->  | P35: =_xlfn.IFS(SUM(C35:E35)<1,"",COUNT($C$6:E35)>9,N35*3+H35,COUNT($C$6:E35)<=9,0) ->  | S35: =IF(COUNT($C$6:E35)>9,IF(P35=MAX($P$6:$P$35),P35," "),"") ->  | V35: =IF(COUNT(C35:E35)<1,0,IF(COUNT($C$6:E35)>9,C35+N35,0)) -> 0 | W35: =IF(COUNT(C35:E35)<1,0,IF(COUNT($C$6:E35)>9,D35+N35,0)) -> 0 | X35: =IF(COUNT(C35:E35)<1,0,IF(COUNT($C$6:E35)>9,E35+N35,0)) -> 0 | AA35: 0 | AB35: 0 | AC35: 30
C36: =(IF(COUNT(C6:C35)=0," ",(SUM(C6:C35))/COUNT(C6:C35))) -> 127.55 | D36: =(IF(COUNT(D6:D35)=0," ",(SUM(D6:D35))/COUNT(D6:D35))) -> 132.45 | E36: =(IF(COUNT(E6:E35)=0," ",(SUM(E6:E35))/COUNT(E6:E35))) -> 138.50

Sheet DSharma
H1: =Calendar!H1 -> Wednesday Fun Fours 2019/20 season | R1: 6-over wk:
A2: wk# | B2: =MAX(AB6:AB35) -> 24 | R2: 0
A3: Name: | B3: Devi Sharma | I3: Perfect Attendance: | K3: =IF(SUM(AA6:AA35)<0.5,"Yes","No") -> No | L3: =_xlfn.IFS(AND(B2=30,K3="Yes"),"good",AND(B2<>30,K3="Yes"),"So Far",AND(B2<>30,K3="No")," ") -> 
A4: book average: | C4: 111 | H4: wky | I4: wky | J4: cumulative | L4: cumulative | P4: hdcp | Q4: high | R4: high | S4: high hcp | T4: high hcp
C5: g1 | D5: g2 | E5: g3 | H5: series | I5: average | J5: score | K5: games | L5: average | O5: hdcp | P5: series | Q5: series | R5: game | S5: series | T5: game | V5: =MAX(C6:E35) -> 160 | W5: =MAX(V6:X35) -> 248
A6: wk1 | B6: =Calendar!B6 -> 2019-09-04 | C6: 104 | D6: 102 | E6: 148 | H6: =IF(COUNT(C6:E6)<1," ",SUM(C6:E6)) -> 354 | I6: =IF(COUNT(C6:E6)<1," ",TRUNC(H6/COUNT(C6:E6))) -> 118 | J6: =_xlfn.IFS(SUM(C6:E6)<1,"",SUM(C6:E6)>=1,SUM($C$6:E6)) -> 354 | K6: =_xlfn.IFS(COUNT(C6:E6)<1,"",COUNT($C$6:E6)>=1,COUNT($C$6:E6)) -> 3 | L6: =_xlfn.IFS(COUNT(C6:E6)<1,"",AND(COUNT($C$6:E6)<=9,$C$4>1),$C$4,COUNT(C6:E6)>=1,M6) -> 111 | M6: =IF(COUNT($C$6:E6)>=1,TRUNC(SUM($C$6:E6)/COUNT($C$6:E6)),0) -> 118 | N6: =IF(COUNT($C$6:E6)<=6,0,TRUNC((230-M5)*0.9)) -> 0 | O6: =_xlfn.IFS(SUM(C6:E6)<1,"",COUNT($C$6:E6)>9,TRUNC((230-M5)*(0.9)),COUNT($C$6:E6)<=9,0) -> 0 | P6: =_xlfn.IFS(SUM(C6:E6)<1,"",COUNT($C$6:E6)>9,N6*3+H6,COUNT($C$6:E6)<=9,0) -> 0 | Q6: =IF(H6=(MAX($H$6:$H$35)),H6," ") ->  | R6: =IF((OR(C6=$V$5,D6=$V$5,E6=$V$5)),$V$5," ") ->  | S6: =IF(COUNT($C$6:E6)>9,IF(P6=MAX($P$6:$P$35),P6," "),"") ->  | T6: =IF(OR(V6=$W$5,W6=$W$5,X6=$W$5),$W$5," ") ->  | V6: =IF(COUNT(C6:E6)<1,0,IF(COUNT($C$6:E6)>9,C6+N6,0)) -> 0 | W6: =IF(COUNT(C6:E6)<1,0,IF(COUNT($C$6:E6)>9,D6+N6,0)) -> 0 | X6: =IF(COUNT(C6:E6)<1,0,IF(COUNT($C$6:E6)>9,E6+N6,0)) -> 0 | AA6: =IF((MAX($AB$6:$AB$35))<AC6,0,IF(AB6=AC6,0,1)) -> 0 | AB6: =IF(COUNT(C6:E6)>0,AC6,0) -> 1 | AC6: 1
A7: wk2 | B7: =Calendar!B7 -> 2019-09-11 | C7: 160 | D7: 104 | E7: 108 | H7: 372 | I7: =IF(COUNT(C7:E7)<1," ",TRUNC(H7/COUNT(C7:E7))) -> 124 | J7: =_xlfn.IFS(SUM(C7:E7)<1,"",SUM(C7:E7)>=1,SUM($C$6:E7)) -> 726 | K7: =_xlfn.IFS(COUNT(C7:E7)<1,"",COUNT($C$6:E7)>=1,COUNT($C$6:E7)) -> 6 | L7: =_xlfn.IFS(COUNT(C7:E7)<1,"",AND(COUNT($C$6:E7)<=9,$C$4>1),$C$4,COUNT(C7:E7)>=1,M7) -> 111 | M7: =IF(COUNT($C$6:E7)>=1,TRUNC(SUM($C$6:E7)/COUNT($C$6:E7)),0) -> 121 | N7: =IF(COUNT($C$6:E7)<=6,0,TRUNC((230-M6)*0.9)) -> 0 | O7: =_xlfn.IFS(SUM(C7:E7)<1,"",COUNT($C$6:E7)>9,TRUNC((230-M6)*(0.9)),COUNT($C$6:E7)<=9,0) -> 0 | P7: =_xlfn.IFS(SUM(C7:E7)<1,"",COUNT($C$6:E7)>9,N7*3+H7,COUNT($C$6:E7)<=9,0) -> 0 | R7: 160 | S7: =IF(COUNT($C$6:E7)>9,IF(P7=MAX($P$6:$P$35),P7," "),"") ->  | V7: =IF(COUNT(C7:E7)<1,0,IF(COUNT($C$6:E7)>9,C7+N7,0)) -> 0 | W7: =IF(COUNT(C7:E7)<1,0,IF(COUNT($C$6:E7)>9,D7+N7,0)) -> 0 | X7: =IF(COUNT(C7:E7)<1,0,IF(COUNT($C$6:E7)>9,E7+N7,0)) -> 0 | AA7: 0 | AB7: =IF(COUNT(C7:E7)>0,AC7,0) -> 2 | AC7: 2
A8: wk3 | B8: =Calendar!B8 -> 2019-09-18 | C8: 85 | D8: 99 | E8: 109 | H8: 293 | I8: 97 | J8: =_xlfn.IFS(SUM(C8:E8)<1,"",SUM(C8:E8)>=1,SUM($C$6:E8)) -> 1019 | K8: =_xlfn.IFS(COUNT(C8:E8)<1,"",COUNT($C$6:E8)>=1,COUNT($C$6:E8)) -> 9 | L8: =_xlfn.IFS(COUNT(C8:E8)<1,"",AND(COUNT($C$6:E8)<=9,$C$4>1),$C$4,COUNT(C8:E8)>=1,M8) -> 111 | M8: =IF(COUNT($C$6:E8)>=1,TRUNC(SUM($C$6:E8)/COUNT($C$6:E8)),0) -> 113 | N8: =IF(COUNT($C$6:E8)<=6,0,TRUNC((230-M7)*0.9)) -> 98 | O8: =_xlfn.IFS(SUM(C8:E8)<1,"",COUNT($C$6:E8)>9,TRUNC((230-M7)*(0.9)),COUNT($C$6:E8)<=9,0) -> 0 | P8: =_xlfn.IFS(SUM(C8:E8)<1,"",COUNT($C$6:E8)>9,N8*3+H8,COUNT($C$6:E8)<=9,0) -> 0 | S8: =IF(COUNT($C$6:E8)>9,IF(P8=MAX($P$6:$P$35),P8," "),"") ->  | V8: =IF(COUNT(C8:E8)<1,0,IF(COUNT($C$6:E8)>9,C8+N8,0)) -> 0 | W8: =IF(COUNT(C8:E8)<1,0,IF(COUNT($C$6:E8)>9,D8+N8,0)) -> 0 | X8: =IF(COUNT(C8:E8)<1,0,IF(COUNT($C$6:E8)>9,E8+N8,0)) -> 0 | AA8: 0 | AB8: 3 | AC8: 3
A9: wk4 | B9: =Calendar!B9 -> 2019-09-25 | J9: =_xlfn.IFS(SUM(C9:E9)<1,"",SUM(C9:E9)>=1,SUM($C$6:E9)) ->  | K9: =_xlfn.IFS(COUNT(C9:E9)<1,"",COUNT($C$6:E9)>=1,COUNT($C$6:E9)) ->  | L9: =_xlfn.IFS(COUNT(C9:E9)<1,"",AND(COUNT($C$6:E9)<=9,$C$4>1),$C$4,COUNT(C9:E9)>=1,M9) ->  | M9: =IF(COUNT($C$6:E9)>=1,TRUNC(SUM($C$6:E9)/COUNT($C$6:E9)),0) -> 113 | N9: =IF(COUNT($C$6:E9)<=6,0,TRUNC((230-M8)*0.9)) -> 105 | O9: =_xlfn.IFS(SUM(C9:E9)<1,"",COUNT($C$6:E9)>9,TRUNC((230-M8)*(0.9)),COUNT($C$6:E9)<=9,0) ->  | P9: =_xlfn.IFS(SUM(C9:E9)<1,"",COUNT($C$6:E9)>9,N9*3+H9,COUNT($C$6:E9)<=9,0) ->  | S9: =IF(COUNT($C$6:E9)>9,IF(P9=MAX($P$6:$P$35),P9," "),"") ->  | V9: =IF(COUNT(C9:E9)<1,0,IF(COUNT($C$6:E9)>9,C9+N9,0)) -> 0 | W9: =IF(COUNT(C9:E9)<1,0,IF(COUNT($C$6:E9)>9,D9+N9,0)) -> 0 | X9: =IF(COUNT(C9:E9)<1,0,IF(COUNT($C$6:E9)>9,E9+N9,0)) -> 0 | AA9: 1 | AB9: 0 | AC9: 4
A10: wk5 | B10: =Calendar!B10 -> 2019-10-02 | C10: 118 | D10: 97 | E10: 107 | F10: =IF(COUNT(C10:E10)<1," ",IF(AND(C10>M9,D10>M9,E10>M9,COUNT($C$6:E9)>=12),"*"," ")) ->  | H10: 322 | I10: 107 | J10: =_xlfn.IFS(SUM(C10:E10)<1,"",SUM(C10:E10)>=1,SUM($C$6:E10)) -> 1341 | K10: =_xlfn.IFS(COUNT(C10:E10)<1,"",COUNT($C$6:E10)>=1,COUNT($C$6:E10)) -> 12 | L10: =_xlfn.IFS(COUNT(C10:E10)<1,"",AND(COUNT($C$6:E10)<=9,$C$4>1),$C$4,COUNT(C10:E10)>=1,M10) -> 111 | M10: =IF(COUNT($C$6:E10)>=1,TRUNC(SUM($C$6:E10)/COUNT($C$6:E10)),0) -> 111 | N10: =IF(COUNT($C$6:E10)<=6,0,TRUNC((230-M9)*0.9)) -> 105 | O10: =_xlfn.IFS(SUM(C10:E10)<1,"",COUNT($C$6:E10)>9,TRUNC((230-M9)*(0.9)),COUNT($C$6:E10)<=9,0) -> 105 | P10: =_xlfn.IFS(SUM(C10:E10)<1,"",COUNT($C$6:E10)>9,N10*3+H10,COUNT($C$6:E10)<=9,0) -> 637 | S10: =IF(COUNT($C$6:E10)>9,IF(P10=MAX($P$6:$P$35),P10," "),"") ->  | V10: =IF(COUNT(C10:E10)<1,0,IF(COUNT($C$6:E10)>9,C10+N10,0)) -> 223 | W10: =IF(COUNT(C10:E10)<1,0,IF(COUNT($C$6:E10)>9,D10+N10,0)) -> 202 | X10: =IF(COUNT(C10:E10)<1,0,IF(COUNT($C$6:E10)>9,E10+N10,0)) -> 212 | AA10: 0 | AB10: 5 | AC10: 5
A11: wk6 | B11: =Calendar!B11 -> 2019-10-09 | C11: 90 | D11: 117 | E11: 95 | F11: =IF(COUNT(C11:E11)<1," ",IF(AND(C11>M10,D11>M10,E11>M10,COUNT($C$6:E10)>=12),"*"," ")) ->  | G11: =IF(COUNT(C11:E11)<1," ",IF(AND(C11>M9,D11>M9,E11>M9,COUNT($C$6:E9)>=12),"*"," ")) ->  | H11: 302 | I11: 100 | J11: =_xlfn.IFS(SUM(C11:E11)<1,"",SUM(C11:E11)>=1,SUM($C$6:E11)) -> 1643 | K11: =_xlfn.IFS(COUNT(C11:E11)<1,"",COUNT($C$6:E11)>=1,COUNT($C$6:E11)) -> 15 | L11: =_xlfn.IFS(COUNT(C11:E11)<1,"",AND(COUNT($C$6:E11)<=9,$C$4>1),$C$4,COUNT(C11:E11)>=1,M11) -> 109 | M11: =IF(COUNT($C$6:E11)>=1,TRUNC(SUM($C$6:E11)/COUNT($C$6:E11)),0) -> 109 | N11: =IF(COUNT($C$6:E11)<=6,0,TRUNC((230-M10)*0.9)) -> 107 | O11: =_xlfn.IFS(SUM(C11:E11)<1,"",COUNT($C$6:E11)>9,TRUNC((230-M10)*(0.9)),COUNT($C$6:E11)<=9,0) -> 107 | P11: =_xlfn.IFS(SUM(C11:E11)<1,"",COUNT($C$6:E11)>9,N11*3+H11,COUNT($C$6:E11)<=9,0) -> 623 | S11: =IF(COUNT($C$6:E11)>9,IF(P11=MAX($P$6:$P$35),P11," "),"") ->  | V11: =IF(COUNT(C11:E11)<1,0,IF(COUNT($C$6:E11)>9,C11+N11,0)) -> 197 | W11: =IF(COUNT(C11:E11)<1,0,IF(COUNT($C$6:E11)>9,D11+N11,0)) -> 224 | X11: =IF(COUNT(C11:E11)<1,0,IF(COUNT($C$6:E11)>9,E11+N11,0)) -> 202 | AA11: 0 | AB11: 6 | AC11: 6
A12: wk7 | B12: =Calendar!B12 -> 2019-10-16 | F12: =IF(COUNT(C12:E12)<1," ",IF(AND(C12>M11,D12>M11,E12>M11,COUNT($C$6:E11)>=12),"*"," ")) ->  | G12: =IF(COUNT(C12:E12)<1," ",IF(AND(C12>M10,D12>M10,E12>M10,COUNT($C$6:E10)>=12),"*"," ")) ->  | J12: =_xlfn.IFS(SUM(C12:E12)<1,"",SUM(C12:E12)>=1,SUM($C$6:E12)) ->  | K12: =_xlfn.IFS(COUNT(C12:E12)<1,"",COUNT($C$6:E12)>=1,COUNT($C$6:E12)) ->  | L12: =_xlfn.IFS(COUNT(C12:E12)<1,"",AND(COUNT($C$6:E12)<=9,$C$4>1),$C$4,COUNT(C12:E12)>=1,M12) ->  | M12: =IF(COUNT($C$6:E12)>=1,TRUNC(SUM($C$6:E12)/COUNT($C$6:E12)),0) -> 109 | N12: =IF(COUNT($C$6:E12)<=6,0,TRUNC((230-M11)*0.9)) -> 108 | O12: =_xlfn.IFS(SUM(C12:E12)<1,"",COUNT($C$6:E12)>9,TRUNC((230-M11)*(0.9)),COUNT($C$6:E12)<=9,0) ->  | P12: =_xlfn.IFS(SUM(C12:E12)<1,"",COUNT($C$6:E12)>9,N12*3+H12,COUNT($C$6:E12)<=9,0) ->  | S12: =IF(COUNT($C$6:E12)>9,IF(P12=MAX($P$6:$P$35),P12," "),"") ->  | V12: =IF(COUNT(C12:E12)<1,0,IF(COUNT($C$6:E12)>9,C12+N12,0)) -> 0 | W12: =IF(COUNT(C12:E12)<1,0,IF(COUNT($C$6:E12)>9,D12+N12,0)) -> 0 | X12: =IF(COUNT(C12:E12)<1,0,IF(COUNT($C$6:E12)>9,E12+N12,0)) -> 0 | AA12: 1 | AB12: 0 | AC12: 7
A13: wk8 | B13: =Calendar!B13 -> 2020-10-23 | F13: =IF(COUNT(C13:E13)<1," ",IF(AND(C13>M12,D13>M12,E13>M12,COUNT($C$6:E12)>=12),"*"," ")) ->  | G13: =IF(COUNT(C13:E13)<1," ",IF(AND(C13>M11,D13>M11,E13>M11,COUNT($C$6:E11)>=12),"*"," ")) ->  | J13: =_xlfn.IFS(SUM(C13:E13)<1,"",SUM(C13:E13)>=1,SUM($C$6:E13)) ->  | K13: =_xlfn.IFS(COUNT(C13:E13)<1,"",COUNT($C$6:E13)>=1,COUNT($C$6:E13)) ->  | L13: =_xlfn.IFS(COUNT(C13:E13)<1,"",AND(COUNT($C$6:E13)<=9,$C$4>1),$C$4,COUNT(C13:E13)>=1,M13) ->  | M13: =IF(COUNT($C$6:E13)>=1,TRUNC(SUM($C$6:E13)/COUNT($C$6:E13)),0) -> 109 | N13: =IF(COUNT($C$6:E13)<=6,0,TRUNC((230-M12)*0.9)) -> 108 | O13: =_xlfn.IFS(SUM(C13:E13)<1,"",COUNT($C$6:E13)>9,TRUNC((230-M12)*(0.9)),COUNT($C$6:E13)<=9,0) ->  | P13: =_xlfn.IFS(SUM(C13:E13)<1,"",COUNT($C$6:E13)>9,N13*3+H13,COUNT($C$6:E13)<=9,0) ->  | S13: =IF(COUNT($C$6:E13)>9,IF(P13=MAX($P$6:$P$35),P13," "),"") ->  | V13: =IF(COUNT(C13:E13)<1,0,IF(COUNT($C$6:E13)>9,C13+N13,0)) -> 0 | W13: =IF(COUNT(C13:E13)<1,0,IF(COUNT($C$6:E13)>9,D13+N13,0)) -> 0 | X13: =IF(COUNT(C13:E13)<1,0,IF(COUNT($C$6:E13)>9,E13+N13,0)) -> 0 | AA13: 1 | AB13: 0 | AC13: 8
A14: wk9 | B14: =Calendar!B14 -> 2019-11-06 | F14: =IF(COUNT(C14:E14)<1," ",IF(AND(C14>M13,D14>M13,E14>M13,COUNT($C$6:E13)>=12),"*"," ")) ->  | G14: =IF(COUNT(C14:E14)<1," ",IF(AND(C14>M12,D14>M12,E14>M12,COUNT($C$6:E12)>=12),"*"," ")) ->  | J14: =_xlfn.IFS(SUM(C14:E14)<1,"",SUM(C14:E14)>=1,SUM($C$6:E14)) ->  | K14: =_xlfn.IFS(COUNT(C14:E14)<1,"",COUNT($C$6:E14)>=1,COUNT($C$6:E14)) ->  | L14: =_xlfn.IFS(COUNT(C14:E14)<1,"",AND(COUNT($C$6:E14)<=9,$C$4>1),$C$4,COUNT(C14:E14)>=1,M14) ->  | M14: =IF(COUNT($C$6:E14)>=1,TRUNC(SUM($C$6:E14)/COUNT($C$6:E14)),0) -> 109 | N14: =IF(COUNT($C$6:E14)<=6,0,TRUNC((230-M13)*0.9)) -> 108 | O14: =_xlfn.IFS(SUM(C14:E14)<1,"",COUNT($C$6:E14)>9,TRUNC((230-M13)*(0.9)),COUNT($C$6:E14)<=9,0) ->  | P14: =_xlfn.IFS(SUM(C14:E14)<1,"",COUNT($C$6:E14)>9,N14*3+H14,COUNT($C$6:E14)<=9,0) ->  | S14: =IF(COUNT($C$6:E14)>9,IF(P14=MAX($P$6:$P$35),P14," "),"") ->  | V14: =IF(COUNT(C14:E14)<1,0,IF(COUNT($C$6:E14)>9,C14+N14,0)) -> 0 | W14: =IF(COUNT(C14:E14)<1,0,IF(COUNT($C$6:E14)>9,D14+N14,0)) -> 0 | X14: =IF(COUNT(C14:E14)<1,0,IF(COUNT($C$6:E14)>9,E14+N14,0)) -> 0 | AA14: 1 | AB14: 0 | AC14: 9
A15: wk10 | B15: =Calendar!B15 -> 2019-11-13 | F15: =IF(COUNT(C15:E15)<1," ",IF(AND(C15>M14,D15>M14,E15>M14,COUNT($C$6:E14)>=12),"*"," ")) ->  | G15: =IF(COUNT(C15:E15)<1," ",IF(AND(C15>M13,D15>M13,E15>M13,COUNT($C$6:E13)>=12),"*"," ")) ->  | J15: =_xlfn.IFS(SUM(C15:E15)<1,"",SUM(C15:E15)>=1,SUM($C$6:E15)) ->  | K15: =_xlfn.IFS(COUNT(C15:E15)<1,"",COUNT($C$6:E15)>=1,COUNT($C$6:E15)) ->  | L15: =_xlfn.IFS(COUNT(C15:E15)<1,"",AND(COUNT($C$6:E15)<=9,$C$4>1),$C$4,COUNT(C15:E15)>=1,M15) ->  | M15: =IF(COUNT($C$6:E15)>=1,TRUNC(SUM($C$6:E15)/COUNT($C$6:E15)),0) -> 109 | N15: =IF(COUNT($C$6:E15)<=6,0,TRUNC((230-M14)*0.9)) -> 108 | O15: =_xlfn.IFS(SUM(C15:E15)<1,"",COUNT($C$6:E15)>9,TRUNC((230-M14)*(0.9)),COUNT($C$6:E15)<=9,0) ->  | P15: =_xlfn.IFS(SUM(C15:E15)<1,"",COUNT($C$6:E15)>9,N15*3+H15,COUNT($C$6:E15)<=9,0) ->  | S15: =IF(COUNT($C$6:E15)>9,IF(P15=MAX($P$6:$P$35),P15," "),"") ->  | V15: =IF(COUNT(C15:E15)<1,0,IF(COUNT($C$6:E15)>9,C15+N15,0)) -> 0 | W15: =IF(COUNT(C15:E15)<1,0,IF(COUNT($C$6:E15)>9,D15+N15,0)) -> 0 | X15: =IF(COUNT(C15:E15)<1,0,IF(COUNT($C$6:E15)>9,E15+N15,0)) -> 0 | AA15: 1 | AB15: 0 | AC15: 10
A16: wk11 | B16: =Calendar!B16 -> 2019-11-20 | F16: =IF(COUNT(C16:E16)<1," ",IF(AND(C16>M15,D16>M15,E16>M15,COUNT($C$6:E15)>=12),"*"," ")) ->  | G16: =IF(COUNT(C16:E16)<1," ",IF(AND(C16>M14,D16>M14,E16>M14,COUNT($C$6:E14)>=12),"*"," ")) ->  | J16: =_xlfn.IFS(SUM(C16:E16)<1,"",SUM(C16:E16)>=1,SUM($C$6:E16)) ->  | K16: =_xlfn.IFS(COUNT(C16:E16)<1,"",COUNT($C$6:E16)>=1,COUNT($C$6:E16)) ->  | L16: =_xlfn.IFS(COUNT(C16:E16)<1,"",AND(COUNT($C$6:E16)<=9,$C$4>1),$C$4,COUNT(C16:E16)>=1,M16) ->  | M16: =IF(COUNT($C$6:E16)>=1,TRUNC(SUM($C$6:E16)/COUNT($C$6:E16)),0) -> 109 | N16: =IF(COUNT($C$6:E16)<=6,0,TRUNC((230-M15)*0.9)) -> 108 | O16: =_xlfn.IFS(SUM(C16:E16)<1,"",COUNT($C$6:E16)>9,TRUNC((230-M15)*(0.9)),COUNT($C$6:E16)<=9,0) ->  | P16: =_xlfn.IFS(SUM(C16:E16)<1,"",COUNT($C$6:E16)>9,N16*3+H16,COUNT($C$6:E16)<=9,0) ->  | S16: =IF(COUNT($C$6:E16)>9,IF(P16=MAX($P$6:$P$35),P16," "),"") ->  | V16: =IF(COUNT(C16:E16)<1,0,IF(COUNT($C$6:E16)>9,C16+N16,0)) -> 0 | W16: =IF(COUNT(C16:E16)<1,0,IF(COUNT($C$6:E16)>9,D16+N16,0)) -> 0 | X16: =IF(COUNT(C16:E16)<1,0,IF(COUNT($C$6:E16)>9,E16+N16,0)) -> 0 | AA16: 1 | AB16: 0 | AC16: 11
A17: wk12 | B17: =Calendar!B17 -> 2019-12-04 | C17: 121 | D17: 101 | E17: 98 | F17: =IF(COUNT(C17:E17)<1," ",IF(AND(C17>M16,D17>M16,E17>M16,COUNT($C$6:E16)>=12),"*"," ")) ->  | G17: =IF(COUNT(C17:E17)<1," ",IF(AND(C17>M15,D17>M15,E17>M15,COUNT($C$6:E15)>=12),"*"," ")) ->  | H17: 320 | I17: 106 | J17: =_xlfn.IFS(SUM(C17:E17)<1,"",SUM(C17:E17)>=1,SUM($C$6:E17)) -> 1963 | K17: =_xlfn.IFS(COUNT(C17:E17)<1,"",COUNT($C$6:E17)>=1,COUNT($C$6:E17)) -> 18 | L17: =_xlfn.IFS(COUNT(C17:E17)<1,"",AND(COUNT($C$6:E17)<=9,$C$4>1),$C$4,COUNT(C17:E17)>=1,M17) -> 109 | M17: =IF(COUNT($C$6:E17)>=1,TRUNC(SUM($C$6:E17)/COUNT($C$6:E17)),0) -> 109 | N17: =IF(COUNT($C$6:E17)<=6,0,TRUNC((230-M16)*0.9)) -> 108 | O17: =_xlfn.IFS(SUM(C17:E17)<1,"",COUNT($C$6:E17)>9,TRUNC((230-M16)*(0.9)),COUNT($C$6:E17)<=9,0) -> 108 | P17: =_xlfn.IFS(SUM(C17:E17)<1,"",COUNT($C$6:E17)>9,N17*3+H17,COUNT($C$6:E17)<=9,0) -> 644 | S17: =IF(COUNT($C$6:E17)>9,IF(P17=MAX($P$6:$P$35),P17," "),"") ->  | V17: =IF(COUNT(C17:E17)<1,0,IF(COUNT($C$6:E17)>9,C17+N17,0)) -> 229 | W17: =IF(COUNT(C17:E17)<1,0,IF(COUNT($C$6:E17)>9,D17+N17,0)) -> 209 | X17: =IF(COUNT(C17:E17)<1,0,IF(COUNT($C$6:E17)>9,E17+N17,0)) -> 206 | AA17: 0 | AB17: 12 | AC17: 12
A18: wk13 | B18: =Calendar!B18 -> 2019-12-11 | C18: 110 | D18: 102 | E18: 94 | F18: =IF(COUNT(C18:E18)<1," ",IF(AND(C18>M17,D18>M17,E18>M17,COUNT($C$6:E17)>=12),"*"," ")) ->  | G18: =IF(COUNT(C18:E18)<1," ",IF(AND(C18>M16,D18>M16,E18>M16,COUNT($C$6:E16)>=12),"*"," ")) ->  | H18: 306 | I18: 102 | J18: =_xlfn.IFS(SUM(C18:E18)<1,"",SUM(C18:E18)>=1,SUM($C$6:E18)) -> 2269 | K18: =_xlfn.IFS(COUNT(C18:E18)<1,"",COUNT($C$6:E18)>=1,COUNT($C$6:E18)) -> 21 | L18: =_xlfn.IFS(COUNT(C18:E18)<1,"",AND(COUNT($C$6:E18)<=9,$C$4>1),$C$4,COUNT(C18:E18)>=1,M18) -> 108 | M18: =IF(COUNT($C$6:E18)>=1,TRUNC(SUM($C$6:E18)/COUNT($C$6:E18)),0) -> 108 | N18: =IF(COUNT($C$6:E18)<=6,0,TRUNC((230-M17)*0.9)) -> 108 | O18: =_xlfn.IFS(SUM(C18:E18)<1,"",COUNT($C$6:E18)>9,TRUNC((230-M17)*(0.9)),COUNT($C$6:E18)<=9,0) -> 108 | P18: =_xlfn.IFS(SUM(C18:E18)<1,"",COUNT($C$6:E18)>9,N18*3+H18,COUNT($C$6:E18)<=9,0) -> 630 | S18: =IF(COUNT($C$6:E18)>9,IF(P18=MAX($P$6:$P$35),P18," "),"") ->  | V18: =IF(COUNT(C18:E18)<1,0,IF(COUNT($C$6:E18)>9,C18+N18,0)) -> 218 | W18: =IF(COUNT(C18:E18)<1,0,IF(COUNT($C$6:E18)>9,D18+N18,0)) -> 210 | X18: =IF(COUNT(C18:E18)<1,0,IF(COUNT($C$6:E18)>9,E18+N18,0)) -> 202 | AA18: 0 | AB18: 13 | AC18: 13
A19: wk14 | B19: =Calendar!B19 -> 2019-12-18 | C19: 137 | D19: 134 | E19: 130 | F19: =IF(COUNT(C19:E19)<1," ",IF(AND(C19>M18,D19>M18,E19>M18,COUNT($C$6:E18)>=12),"*"," ")) -> * | G19: =IF(COUNT(C19:E19)<1," ",IF(AND(C19>M17,D19>M17,E19>M17,COUNT($C$6:E17)>=12),"*"," ")) -> * | H19: 401 | I19: 133 | J19: =_xlfn.IFS(SUM(C19:E19)<1,"",SUM(C19:E19)>=1,SUM($C$6:E19)) -> 2670 | K19: =_xlfn.IFS(COUNT(C19:E19)<1,"",COUNT($C$6:E19)>=1,COUNT($C$6:E19)) -> 24 | L19: =_xlfn.IFS(COUNT(C19:E19)<1,"",AND(COUNT($C$6:E19)<=9,$C$4>1),$C$4,COUNT(C19:E19)>=1,M19) -> 111 | M19: =IF(COUNT($C$6:E19)>=1,TRUNC(SUM($C$6:E19)/COUNT($C$6:E19)),0) -> 111 | N19: =IF(COUNT($C$6:E19)<=6,0,TRUNC((230-M18)*0.9)) -> 109 | O19: =_xlfn.IFS(SUM(C19:E19)<1,"",COUNT($C$6:E19)>9,TRUNC((230-M18)*(0.9)),COUNT($C$6:E19)<=9,0) -> 109 | P19: =_xlfn.IFS(SUM(C19:E19)<1,"",COUNT($C$6:E19)>9,N19*3+H19,COUNT($C$6:E19)<=9,0) -> 728 | Q19: 401 | S19: =IF(COUNT($C$6:E19)>9,IF(P19=MAX($P$6:$P$35),P19," "),"") -> 728 | V19: =IF(COUNT(C19:E19)<1,0,IF(COUNT($C$6:E19)>9,C19+N19,0)) -> 246 | W19: =IF(COUNT(C19:E19)<1,0,IF(COUNT($C$6:E19)>9,D19+N19,0)) -> 243 | X19: =IF(COUNT(C19:E19)<1,0,IF(COUNT($C$6:E19)>9,E19+N19,0)) -> 239 | AA19: 0 | AB19: 14 | AC19: 14
A20: wk15 | B20: =Calendar!B20 -> 2020-01-08 | F20: =IF(COUNT(C20:E20)<1," ",IF(AND(C20>M19,D20>M19,E20>M19,COUNT($C$6:E19)>=12),"*"," ")) ->  | G20: =IF(COUNT(C20:E20)<1," ",IF(AND(C20>M18,D20>M18,E20>M18,COUNT($C$6:E18)>=12),"*"," ")) ->  | J20: =_xlfn.IFS(SUM(C20:E20)<1,"",SUM(C20:E20)>=1,SUM($C$6:E20)) ->  | K20: =_xlfn.IFS(COUNT(C20:E20)<1,"",COUNT($C$6:E20)>=1,COUNT($C$6:E20)) ->  | L20: =_xlfn.IFS(COUNT(C20:E20)<1,"",AND(COUNT($C$6:E20)<=9,$C$4>1),$C$4,COUNT(C20:E20)>=1,M20) ->  | M20: =IF(COUNT($C$6:E20)>=1,TRUNC(SUM($C$6:E20)/COUNT($C$6:E20)),0) -> 111 | N20: =IF(COUNT($C$6:E20)<=6,0,TRUNC((230-M19)*0.9)) -> 107 | O20: =_xlfn.IFS(SUM(C20:E20)<1,"",COUNT($C$6:E20)>9,TRUNC((230-M19)*(0.9)),COUNT($C$6:E20)<=9,0) ->  | P20: =_xlfn.IFS(SUM(C20:E20)<1,"",COUNT($C$6:E20)>9,N20*3+H20,COUNT($C$6:E20)<=9,0) ->  | S20: =IF(COUNT($C$6:E20)>9,IF(P20=MAX($P$6:$P$35),P20," "),"") ->  | V20: =IF(COUNT(C20:E20)<1,0,IF(COUNT($C$6:E20)>9,C20+N20,0)) -> 0 | W20: =IF(COUNT(C20:E20)<1,0,IF(COUNT($C$6:E20)>9,D20+N20,0)) -> 0 | X20: =IF(COUNT(C20:E20)<1,0,IF(COUNT($C$6:E20)>9,E20+N20,0)) -> 0 | AA20: 1 | AB20: 0 | AC20: 15
A21: wk16 | B21: =Calendar!B21 -> 2020-01-15 | C21: 112 | D21: 96 | E21: 110 | F21: =IF(COUNT(C21:E21)<1," ",IF(AND(C21>M20,D21>M20,E21>M20,COUNT($C$6:E20)>=12),"*"," ")) ->  | G21: =IF(COUNT(C21:E21)<1," ",IF(AND(C21>M19,D21>M19,E21>M19,COUNT($C$6:E19)>=12),"*"," ")) ->  | H21: 318 | I21: 106 | J21: =_xlfn.IFS(SUM(C21:E21)<1,"",SUM(C21:E21)>=1,SUM($C$6:E21)) -> 2988 | K21: =_xlfn.IFS(COUNT(C21:E21)<1,"",COUNT($C$6:E21)>=1,COUNT($C$6:E21)) -> 27 | L21: =_xlfn.IFS(COUNT(C21:E21)<1,"",AND(COUNT($C$6:E21)<=9,$C$4>1),$C$4,COUNT(C21:E21)>=1,M21) -> 110 | M21: =IF(COUNT($C$6:E21)>=1,TRUNC(SUM($C$6:E21)/COUNT($C$6:E21)),0) -> 110 | N21: =IF(COUNT($C$6:E21)<=6,0,TRUNC((230-M20)*0.9)) -> 107 | O21: =_xlfn.IFS(SUM(C21:E21)<1,"",COUNT($C$6:E21)>9,TRUNC((230-M20)*(0.9)),COUNT($C$6:E21)<=9,0) -> 107 | P21: =_xlfn.IFS(SUM(C21:E21)<1,"",COUNT($C$6:E21)>9,N21*3+H21,COUNT($C$6:E21)<=9,0) -> 639 | S21: =IF(COUNT($C$6:E21)>9,IF(P21=MAX($P$6:$P$35),P21," "),"") ->  | V21: =IF(COUNT(C21:E21)<1,0,IF(COUNT($C$6:E21)>9,C21+N21,0)) -> 219 | W21: =IF(COUNT(C21:E21)<1,0,IF(COUNT($C$6:E21)>9,D21+N21,0)) -> 203 | X21: =IF(COUNT(C21:E21)<1,0,IF(COUNT($C$6:E21)>9,E21+N21,0)) -> 217 | AA21: 0 | AB21: 16 | AC21: 16
A22: wk17 | B22: =Calendar!B22 -> 2020-01-22 | C22: 109 | D22: 99 | E22: 112 | F22: =IF(COUNT(C22:E22)<1," ",IF(AND(C22>M21,D22>M21,E22>M21,COUNT($C$6:E21)>=12),"*"," ")) ->  | G22: =IF(COUNT(C22:E22)<1," ",IF(AND(C22>M20,D22>M20,E22>M20,COUNT($C$6:E20)>=12),"*"," ")) ->  | H22: 320 | I22: 106 | J22: =_xlfn.IFS(SUM(C22:E22)<1,"",SUM(C22:E22)>=1,SUM($C$6:E22)) -> 3308 | K22: =_xlfn.IFS(COUNT(C22:E22)<1,"",COUNT($C$6:E22)>=1,COUNT($C$6:E22)) -> 30 | L22: =_xlfn.IFS(COUNT(C22:E22)<1,"",AND(COUNT($C$6:E22)<=9,$C$4>1),$C$4,COUNT(C22:E22)>=1,M22) -> 110 | M22: =IF(COUNT($C$6:E22)>=1,TRUNC(SUM($C$6:E22)/COUNT($C$6:E22)),0) -> 110 | N22: =IF(COUNT($C$6:E22)<=6,0,TRUNC((230-M21)*0.9)) -> 108 | O22: =_xlfn.IFS(SUM(C22:E22)<1,"",COUNT($C$6:E22)>9,TRUNC((230-M21)*(0.9)),COUNT($C$6:E22)<=9,0) -> 108 | P22: =_xlfn.IFS(SUM(C22:E22)<1,"",COUNT($C$6:E22)>9,N22*3+H22,COUNT($C$6:E22)<=9,0) -> 644 | S22: =IF(COUNT($C$6:E22)>9,IF(P22=MAX($P$6:$P$35),P22," "),"") ->  | V22: =IF(COUNT(C22:E22)<1,0,IF(COUNT($C$6:E22)>9,C22+N22,0)) -> 217 | W22: =IF(COUNT(C22:E22)<1,0,IF(COUNT($C$6:E22)>9,D22+N22,0)) -> 207 | X22: =IF(COUNT(C22:E22)<1,0,IF(COUNT($C$6:E22)>9,E22+N22,0)) -> 220 | AA22: 0 | AB22: 17 | AC22: 17
A23: wk18 | B23: =Calendar!B23 -> 2020-01-29 | C23: 124 | D23: 110 | E23: 85 | F23: =IF(COUNT(C23:E23)<1," ",IF(AND(C23>M22,D23>M22,E23>M22,COUNT($C$6:E22)>=12),"*"," ")) ->  | G23: =IF(COUNT(C23:E23)<1," ",IF(AND(C23>M21,D23>M21,E23>M21,COUNT($C$6:E21)>=12),"*"," ")) ->  | H23: 319 | I23: 106 | J23: =_xlfn.IFS(SUM(C23:E23)<1,"",SUM(C23:E23)>=1,SUM($C$6:E23)) -> 3627 | K23: =_xlfn.IFS(COUNT(C23:E23)<1,"",COUNT($C$6:E23)>=1,COUNT($C$6:E23)) -> 33 | L23: =_xlfn.IFS(COUNT(C23:E23)<1,"",AND(COUNT($C$6:E23)<=9,$C$4>1),$C$4,COUNT(C23:E23)>=1,M23) -> 109 | M23: =IF(COUNT($C$6:E23)>=1,TRUNC(SUM($C$6:E23)/COUNT($C$6:E23)),0) -> 109 | N23: =IF(COUNT($C$6:E23)<=6,0,TRUNC((230-M22)*0.9)) -> 108 | O23: =_xlfn.IFS(SUM(C23:E23)<1,"",COUNT($C$6:E23)>9,TRUNC((230-M22)*(0.9)),COUNT($C$6:E23)<=9,0) -> 108 | P23: =_xlfn.IFS(SUM(C23:E23)<1,"",COUNT($C$6:E23)>9,N23*3+H23,COUNT($C$6:E23)<=9,0) -> 643 | S23: =IF(COUNT($C$6:E23)>9,IF(P23=MAX($P$6:$P$35),P23," "),"") ->  | V23: =IF(COUNT(C23:E23)<1,0,IF(COUNT($C$6:E23)>9,C23+N23,0)) -> 232 | W23: =IF(COUNT(C23:E23)<1,0,IF(COUNT($C$6:E23)>9,D23+N23,0)) -> 218 | X23: =IF(COUNT(C23:E23)<1,0,IF(COUNT($C$6:E23)>9,E23+N23,0)) -> 193 | AA23: 0 | AB23: 18 | AC23: 18
A24: wk19 | B24: =Calendar!B24 -> 2020-02-05 | F24: =IF(COUNT(C24:E24)<1," ",IF(AND(C24>M23,D24>M23,E24>M23,COUNT($C$6:E23)>=12),"*"," ")) ->  | G24: =IF(COUNT(C24:E24)<1," ",IF(AND(C24>M22,D24>M22,E24>M22,COUNT($C$6:E22)>=12),"*"," ")) ->  | J24: =_xlfn.IFS(SUM(C24:E24)<1,"",SUM(C24:E24)>=1,SUM($C$6:E24)) ->  | K24: =_xlfn.IFS(COUNT(C24:E24)<1,"",COUNT($C$6:E24)>=1,COUNT($C$6:E24)) ->  | L24: =_xlfn.IFS(COUNT(C24:E24)<1,"",AND(COUNT($C$6:E24)<=9,$C$4>1),$C$4,COUNT(C24:E24)>=1,M24) ->  | M24: =IF(COUNT($C$6:E24)>=1,TRUNC(SUM($C$6:E24)/COUNT($C$6:E24)),0) -> 109 | N24: =IF(COUNT($C$6:E24)<=6,0,TRUNC((230-M23)*0.9)) -> 108 | O24: =_xlfn.IFS(SUM(C24:E24)<1,"",COUNT($C$6:E24)>9,TRUNC((230-M23)*(0.9)),COUNT($C$6:E24)<=9,0) ->  | P24: =_xlfn.IFS(SUM(C24:E24)<1,"",COUNT($C$6:E24)>9,N24*3+H24,COUNT($C$6:E24)<=9,0) ->  | S24: =IF(COUNT($C$6:E24)>9,IF(P24=MAX($P$6:$P$35),P24," "),"") ->  | V24: =IF(COUNT(C24:E24)<1,0,IF(COUNT($C$6:E24)>9,C24+N24,0)) -> 0 | W24: =IF(COUNT(C24:E24)<1,0,IF(COUNT($C$6:E24)>9,D24+N24,0)) -> 0 | X24: =IF(COUNT(C24:E24)<1,0,IF(COUNT($C$6:E24)>9,E24+N24,0)) -> 0 | AA24: 1 | AB24: 0 | AC24: 19
A25: wk20 | B25: =Calendar!B25 -> 2020-02-12 | C25: 120 | D25: 122 | E25: 140 | F25: =IF(COUNT(C25:E25)<1," ",IF(AND(C25>M24,D25>M24,E25>M24,COUNT($C$6:E24)>=12),"*"," ")) -> * | G25: =IF(COUNT(C25:E25)<1," ",IF(AND(C25>M23,D25>M23,E25>M23,COUNT($C$6:E23)>=12),"*"," ")) -> * | H25: 382 | I25: 127 | J25: =_xlfn.IFS(SUM(C25:E25)<1,"",SUM(C25:E25)>=1,SUM($C$6:E25)) -> 4009 | K25: =_xlfn.IFS(COUNT(C25:E25)<1,"",COUNT($C$6:E25)>=1,COUNT($C$6:E25)) -> 36 | L25: =_xlfn.IFS(COUNT(C25:E25)<1,"",AND(COUNT($C$6:E25)<=9,$C$4>1),$C$4,COUNT(C25:E25)>=1,M25) -> 111 | M25: =IF(COUNT($C$6:E25)>=1,TRUNC(SUM($C$6:E25)/COUNT($C$6:E25)),0) -> 111 | N25: =IF(COUNT($C$6:E25)<=6,0,TRUNC((230-M24)*0.9)) -> 108 | O25: =_xlfn.IFS(SUM(C25:E25)<1,"",COUNT($C$6:E25)>9,TRUNC((230-M24)*(0.9)),COUNT($C$6:E25)<=9,0) -> 108 | P25: =_xlfn.IFS(SUM(C25:E25)<1,"",COUNT($C$6:E25)>9,N25*3+H25,COUNT($C$6:E25)<=9,0) -> 706 | S25: =IF(COUNT($C$6:E25)>9,IF(P25=MAX($P$6:$P$35),P25," "),"") ->  | T25: 248 | V25: =IF(COUNT(C25:E25)<1,0,IF(COUNT($C$6:E25)>9,C25+N25,0)) -> 228 | W25: =IF(COUNT(C25:E25)<1,0,IF(COUNT($C$6:E25)>9,D25+N25,0)) -> 230 | X25: =IF(COUNT(C25:E25)<1,0,IF(COUNT($C$6:E25)>9,E25+N25,0)) -> 248 | AA25: 0 | AB25: 20 | AC25: 20
A26: wk21 | B26: =Calendar!B26 -> 2020-02-19 | C26: 110 | D26: 108 | E26: 102 | F26: =IF(COUNT(C26:E26)<1," ",IF(AND(C26>M25,D26>M25,E26>M25,COUNT($C$6:E25)>=12),"*"," ")) ->  | G26: =IF(COUNT(C26:E26)<1," ",IF(AND(C26>M24,D26>M24,E26>M24,COUNT($C$6:E24)>=12),"*"," ")) ->  | H26: 320 | I26: 106 | J26: =_xlfn.IFS(SUM(C26:E26)<1,"",SUM(C26:E26)>=1,SUM($C$6:E26)) -> 4329 | K26: =_xlfn.IFS(COUNT(C26:E26)<1,"",COUNT($C$6:E26)>=1,COUNT($C$6:E26)) -> 39 | L26: =_xlfn.IFS(COUNT(C26:E26)<1,"",AND(COUNT($C$6:E26)<=9,$C$4>1),$C$4,COUNT(C26:E26)>=1,M26) -> 111 | M26: =IF(COUNT($C$6:E26)>=1,TRUNC(SUM($C$6:E26)/COUNT($C$6:E26)),0) -> 111 | N26: =IF(COUNT($C$6:E26)<=6,0,TRUNC((230-M25)*0.9)) -> 107 | O26: =_xlfn.IFS(SUM(C26:E26)<1,"",COUNT($C$6:E26)>9,TRUNC((230-M25)*(0.9)),COUNT($C$6:E26)<=9,0) -> 107 | P26: =_xlfn.IFS(SUM(C26:E26)<1,"",COUNT($C$6:E26)>9,N26*3+H26,COUNT($C$6:E26)<=9,0) -> 641 | S26: =IF(COUNT($C$6:E26)>9,IF(P26=MAX($P$6:$P$35),P26," "),"") ->  | V26: =IF(COUNT(C26:E26)<1,0,IF(COUNT($C$6:E26)>9,C26+N26,0)) -> 217 | W26: =IF(COUNT(C26:E26)<1,0,IF(COUNT($C$6:E26)>9,D26+N26,0)) -> 215 | X26: =IF(COUNT(C26:E26)<1,0,IF(COUNT($C$6:E26)>9,E26+N26,0)) -> 209 | AA26: 0 | AB26: 21 | AC26: 21
A27: wk22 | B27: =Calendar!B27 -> 2020-02-16 | F27: =IF(COUNT(C27:E27)<1," ",IF(AND(C27>M26,D27>M26,E27>M26,COUNT($C$6:E26)>=12),"*"," ")) ->  | G27: =IF(COUNT(C27:E27)<1," ",IF(AND(C27>M25,D27>M25,E27>M25,COUNT($C$6:E25)>=12),"*"," ")) ->  | J27: =_xlfn.IFS(SUM(C27:E27)<1,"",SUM(C27:E27)>=1,SUM($C$6:E27)) ->  | K27: =_xlfn.IFS(COUNT(C27:E27)<1,"",COUNT($C$6:E27)>=1,COUNT($C$6:E27)) ->  | L27: =_xlfn.IFS(COUNT(C27:E27)<1,"",AND(COUNT($C$6:E27)<=9,$C$4>1),$C$4,COUNT(C27:E27)>=1,M27) ->  | M27: =IF(COUNT($C$6:E27)>=1,TRUNC(SUM($C$6:E27)/COUNT($C$6:E27)),0) -> 111 | N27: =IF(COUNT($C$6:E27)<=6,0,TRUNC((230-M26)*0.9)) -> 107 | O27: =_xlfn.IFS(SUM(C27:E27)<1,"",COUNT($C$6:E27)>9,TRUNC((230-M26)*(0.9)),COUNT($C$6:E27)<=9,0) ->  | P27: =_xlfn.IFS(SUM(C27:E27)<1,"",COUNT($C$6:E27)>9,N27*3+H27,COUNT($C$6:E27)<=9,0) ->  | S27: =IF(COUNT($C$6:E27)>9,IF(P27=MAX($P$6:$P$35),P27," "),"") ->  | V27: =IF(COUNT(C27:E27)<1,0,IF(COUNT($C$6:E27)>9,C27+N27,0)) -> 0 | W27: =IF(COUNT(C27:E27)<1,0,IF(COUNT($C$6:E27)>9,D27+N27,0)) -> 0 | X27: =IF(COUNT(C27:E27)<1,0,IF(COUNT($C$6:E27)>9,E27+N27,0)) -> 0 | AA27: 1 | AB27: 0 | AC27: 22
A28: wk23 | B28: =Calendar!B28 -> 2020-03-04 | C28: 89 | D28: 97 | E28: 115 | F28: =IF(COUNT(C28:E28)<1," ",IF(AND(C28>M27,D28>M27,E28>M27,COUNT($C$6:E27)>=12),"*"," ")) ->  | G28: =IF(COUNT(C28:E28)<1," ",IF(AND(C28>M26,D28>M26,E28>M26,COUNT($C$6:E26)>=12),"*"," ")) ->  | H28: 301 | I28: 100 | J28: =_xlfn.IFS(SUM(C28:E28)<1,"",SUM(C28:E28)>=1,SUM($C$6:E28)) -> 4630 | K28: =_xlfn.IFS(COUNT(C28:E28)<1,"",COUNT($C$6:E28)>=1,COUNT($C$6:E28)) -> 42 | L28: =_xlfn.IFS(COUNT(C28:E28)<1,"",AND(COUNT($C$6:E28)<=9,$C$4>1),$C$4,COUNT(C28:E28)>=1,M28) -> 110 | M28: =IF(COUNT($C$6:E28)>=1,TRUNC(SUM($C$6:E28)/COUNT($C$6:E28)),0) -> 110 | N28: =IF(COUNT($C$6:E28)<=6,0,TRUNC((230-M27)*0.9)) -> 107 | O28: =_xlfn.IFS(SUM(C28:E28)<1,"",COUNT($C$6:E28)>9,TRUNC((230-M27)*(0.9)),COUNT($C$6:E28)<=9,0) -> 107 | P28: =_xlfn.IFS(SUM(C28:E28)<1,"",COUNT($C$6:E28)>9,N28*3+H28,COUNT($C$6:E28)<=9,0) -> 622 | S28: =IF(COUNT($C$6:E28)>9,IF(P28=MAX($P$6:$P$35),P28," "),"") ->  | V28: =IF(COUNT(C28:E28)<1,0,IF(COUNT($C$6:E28)>9,C28+N28,0)) -> 196 | W28: =IF(COUNT(C28:E28)<1,0,IF(COUNT($C$6:E28)>9,D28+N28,0)) -> 204 | X28: =IF(COUNT(C28:E28)<1,0,IF(COUNT($C$6:E28)>9,E28+N28,0)) -> 222 | AA28: 0 | AB28: 23 | AC28: 23
A29: wk24 | B29: =Calendar!B29 -> 2020-03-11 | C29: 87 | D29: 103 | E29: 125 | F29: =IF(COUNT(C29:E29)<1," ",IF(AND(C29>M28,D29>M28,E29>M28,COUNT($C$6:E28)>=12),"*"," ")) ->  | G29: =IF(COUNT(C29:E29)<1," ",IF(AND(C29>M27,D29>M27,E29>M27,COUNT($C$6:E27)>=12),"*"," ")) ->  | H29: 315 | I29: 105 | J29: =_xlfn.IFS(SUM(C29:E29)<1,"",SUM(C29:E29)>=1,SUM($C$6:E29)) -> 4945 | K29: =_xlfn.IFS(COUNT(C29:E29)<1,"",COUNT($C$6:E29)>=1,COUNT($C$6:E29)) -> 45 | L29: =_xlfn.IFS(COUNT(C29:E29)<1,"",AND(COUNT($C$6:E29)<=9,$C$4>1),$C$4,COUNT(C29:E29)>=1,M29) -> 109 | M29: =IF(COUNT($C$6:E29)>=1,TRUNC(SUM($C$6:E29)/COUNT($C$6:E29)),0) -> 109 | N29: =IF(COUNT($C$6:E29)<=6,0,TRUNC((230-M28)*0.9)) -> 108 | O29: =_xlfn.IFS(SUM(C29:E29)<1,"",COUNT($C$6:E29)>9,TRUNC((230-M28)*(0.9)),COUNT($C$6:E29)<=9,0) -> 108 | P29: =_xlfn.IFS(SUM(C29:E29)<1,"",COUNT($C$6:E29)>9,N29*3+H29,COUNT($C$6:E29)<=9,0) -> 639 | S29: =IF(COUNT($C$6:E29)>9,IF(P29=MAX($P$6:$P$35),P29," "),"") ->  | V29: =IF(COUNT(C29:E29)<1,0,IF(COUNT($C$6:E29)>9,C29+N29,0)) -> 195 | W29: =IF(COUNT(C29:E29)<1,0,IF(COUNT($C$6:E29)>9,D29+N29,0)) -> 211 | X29: =IF(COUNT(C29:E29)<1,0,IF(COUNT($C$6:E29)>9,E29+N29,0)) -> 233 | AA29: 0 | AB29: 24 | AC29: 24
A30: wk25 | B30: =Calendar!B30 -> 2020-03-18 | F30: =IF(COUNT(C30:E30)<1," ",IF(AND(C30>M29,D30>M29,E30>M29,COUNT($C$6:E29)>=12),"*"," ")) ->  | G30: =IF(COUNT(C30:E30)<1," ",IF(AND(C30>M28,D30>M28,E30>M28,COUNT($C$6:E28)>=12),"*"," ")) ->  | J30: =_xlfn.IFS(SUM(C30:E30)<1,"",SUM(C30:E30)>=1,SUM($C$6:E30)) ->  | K30: =_xlfn.IFS(COUNT(C30:E30)<1,"",COUNT($C$6:E30)>=1,COUNT($C$6:E30)) ->  | L30: =_xlfn.IFS(COUNT(C30:E30)<1,"",AND(COUNT($C$6:E30)<=9,$C$4>1),$C$4,COUNT(C30:E30)>=1,M30) ->  | M30: =IF(COUNT($C$6:E30)>=1,TRUNC(SUM($C$6:E30)/COUNT($C$6:E30)),0) -> 109 | N30: =IF(COUNT($C$6:E30)<=6,0,TRUNC((230-M29)*0.9)) -> 108 | O30: =_xlfn.IFS(SUM(C30:E30)<1,"",COUNT($C$6:E30)>9,TRUNC((230-M29)*(0.9)),COUNT($C$6:E30)<=9,0) ->  | P30: =_xlfn.IFS(SUM(C30:E30)<1,"",COUNT($C$6:E30)>9,N30*3+H30,COUNT($C$6:E30)<=9,0) ->  | S30: =IF(COUNT($C$6:E30)>9,IF(P30=MAX($P$6:$P$35),P30," "),"") ->  | V30: =IF(COUNT(C30:E30)<1,0,IF(COUNT($C$6:E30)>9,C30+N30,0)) -> 0 | W30: =IF(COUNT(C30:E30)<1,0,IF(COUNT($C$6:E30)>9,D30+N30,0)) -> 0 | X30: =IF(COUNT(C30:E30)<1,0,IF(COUNT($C$6:E30)>9,E30+N30,0)) -> 0 | AA30: 0 | AB30: 0 | AC30: 25
A31: wk26 | B31: =Calendar!B31 -> 2020-03-25 | F31: =IF(COUNT(C31:E31)<1," ",IF(AND(C31>M30,D31>M30,E31>M30,COUNT($C$6:E30)>=12),"*"," ")) ->  | G31: =IF(COUNT(C31:E31)<1," ",IF(AND(C31>M29,D31>M29,E31>M29,COUNT($C$6:E29)>=12),"*"," ")) ->  | J31: =_xlfn.IFS(SUM(C31:E31)<1,"",SUM(C31:E31)>=1,SUM($C$6:E31)) ->  | K31: =_xlfn.IFS(COUNT(C31:E31)<1,"",COUNT($C$6:E31)>=1,COUNT($C$6:E31)) ->  | L31: =_xlfn.IFS(COUNT(C31:E31)<1,"",AND(COUNT($C$6:E31)<=9,$C$4>1),$C$4,COUNT(C31:E31)>=1,M31) ->  | M31: =IF(COUNT($C$6:E31)>=1,TRUNC(SUM($C$6:E31)/COUNT($C$6:E31)),0) -> 109 | N31: =IF(COUNT($C$6:E31)<=6,0,TRUNC((230-M30)*0.9)) -> 108 | O31: =_xlfn.IFS(SUM(C31:E31)<1,"",COUNT($C$6:E31)>9,TRUNC((230-M30)*(0.9)),COUNT($C$6:E31)<=9,0) ->  | P31: =_xlfn.IFS(SUM(C31:E31)<1,"",COUNT($C$6:E31)>9,N31*3+H31,COUNT($C$6:E31)<=9,0) ->  | S31: =IF(COUNT($C$6:E31)>9,IF(P31=MAX($P$6:$P$35),P31," "),"") ->  | V31: =IF(COUNT(C31:E31)<1,0,IF(COUNT($C$6:E31)>9,C31+N31,0)) -> 0 | W31: =IF(COUNT(C31:E31)<1,0,IF(COUNT($C$6:E31)>9,D31+N31,0)) -> 0 | X31: =IF(COUNT(C31:E31)<1,0,IF(COUNT($C$6:E31)>9,E31+N31,0)) -> 0 | AA31: 0 | AB31: 0 | AC31: 26
A32: wk27 | B32: =Calendar!B32 -> 2020-04-01 | F32: =IF(COUNT(C32:E32)<1," ",IF(AND(C32>M31,D32>M31,E32>M31,COUNT($C$6:E31)>=12),"*"," ")) ->  | G32: =IF(COUNT(C32:E32)<1," ",IF(AND(C32>M30,D32>M30,E32>M30,COUNT($C$6:E30)>=12),"*"," ")) ->  | J32: =_xlfn.IFS(SUM(C32:E32)<1,"",SUM(C32:E32)>=1,SUM($C$6:E32)) ->  | K32: =_xlfn.IFS(COUNT(C32:E32)<1,"",COUNT($C$6:E32)>=1,COUNT($C$6:E32)) ->  | L32: =_xlfn.IFS(COUNT(C32:E32)<1,"",AND(COUNT($C$6:E32)<=9,$C$4>1),$C$4,COUNT(C32:E32)>=1,M32) ->  | M32: =IF(COUNT($C$6:E32)>=1,TRUNC(SUM($C$6:E32)/COUNT($C$6:E32)),0) -> 109 | N32: =IF(COUNT($C$6:E32)<=6,0,TRUNC((230-M31)*0.9)) -> 108 | O32: =_xlfn.IFS(SUM(C32:E32)<1,"",COUNT($C$6:E32)>9,TRUNC((230-M31)*(0.9)),COUNT($C$6:E32)<=9,0) ->  | P32: =_xlfn.IFS(SUM(C32:E32)<1,"",COUNT($C$6:E32)>9,N32*3+H32,COUNT($C$6:E32)<=9,0) ->  | S32: =IF(COUNT($C$6:E32)>9,IF(P32=MAX($P$6:$P$35),P32," "),"") ->  | V32: =IF(COUNT(C32:E32)<1,0,IF(COUNT($C$6:E32)>9,C32+N32,0)) -> 0 | W32: =IF(COUNT(C32:E32)<1,0,IF(COUNT($C$6:E32)>9,D32+N32,0)) -> 0 | X32: =IF(COUNT(C32:E32)<1,0,IF(COUNT($C$6:E32)>9,E32+N32,0)) -> 0 | AA32: 0 | AB32: 0 | AC32: 27
A33: wk28 | B33: =Calendar!B33 -> 2020-04-08 | F33: =IF(COUNT(C33:E33)<1," ",IF(AND(C33>M32,D33>M32,E33>M32,COUNT($C$6:E32)>=12),"*"," ")) ->  | G33: =IF(COUNT(C33:E33)<1," ",IF(AND(C33>M31,D33>M31,E33>M31,COUNT($C$6:E31)>=12),"*"," ")) ->  | J33: =_xlfn.IFS(SUM(C33:E33)<1,"",SUM(C33:E33)>=1,SUM($C$6:E33)) ->  | K33: =_xlfn.IFS(COUNT(C33:E33)<1,"",COUNT($C$6:E33)>=1,COUNT($C$6:E33)) ->  | L33: =_xlfn.IFS(COUNT(C33:E33)<1,"",AND(COUNT($C$6:E33)<=9,$C$4>1),$C$4,COUNT(C33:E33)>=1,M33) ->  | M33: =IF(COUNT($C$6:E33)>=1,TRUNC(SUM($C$6:E33)/COUNT($C$6:E33)),0) -> 109 | N33: =IF(COUNT($C$6:E33)<=6,0,TRUNC((230-M32)*0.9)) -> 108 | O33: =_xlfn.IFS(SUM(C33:E33)<1,"",COUNT($C$6:E33)>9,TRUNC((230-M32)*(0.9)),COUNT($C$6:E33)<=9,0) ->  | P33: =_xlfn.IFS(SUM(C33:E33)<1,"",COUNT($C$6:E33)>9,N33*3+H33,COUNT($C$6:E33)<=9,0) ->  | S33: =IF(COUNT($C$6:E33)>9,IF(P33=MAX($P$6:$P$35),P33," "),"") ->  | V33: =IF(COUNT(C33:E33)<1,0,IF(COUNT($C$6:E33)>9,C33+N33,0)) -> 0 | W33: =IF(COUNT(C33:E33)<1,0,IF(COUNT($C$6:E33)>9,D33+N33,0)) -> 0 | X33: =IF(COUNT(C33:E33)<1,0,IF(COUNT($C$6:E33)>9,E33+N33,0)) -> 0 | AA33: 0 | AB33: 0 | AC33: 28
A34: wk29 | B34: =Calendar!B34 -> 2020-04-15 | F34: =IF(COUNT(C34:E34)<1," ",IF(AND(C34>M33,D34>M33,E34>M33,COUNT($C$6:E33)>=12),"*"," ")) ->  | G34: =IF(COUNT(C34:E34)<1," ",IF(AND(C34>M32,D34>M32,E34>M32,COUNT($C$6:E32)>=12),"*"," ")) ->  | J34: =_xlfn.IFS(SUM(C34:E34)<1,"",SUM(C34:E34)>=1,SUM($C$6:E34)) ->  | K34: =_xlfn.IFS(COUNT(C34:E34)<1,"",COUNT($C$6:E34)>=1,COUNT($C$6:E34)) ->  | L34: =_xlfn.IFS(COUNT(C34:E34)<1,"",AND(COUNT($C$6:E34)<=9,$C$4>1),$C$4,COUNT(C34:E34)>=1,M34) ->  | M34: =IF(COUNT($C$6:E34)>=1,TRUNC(SUM($C$6:E34)/COUNT($C$6:E34)),0) -> 109 | N34: =IF(COUNT($C$6:E34)<=6,0,TRUNC((230-M33)*0.9)) -> 108 | O34: =_xlfn.IFS(SUM(C34:E34)<1,"",COUNT($C$6:E34)>9,TRUNC((230-M33)*(0.9)),COUNT($C$6:E34)<=9,0) ->  | P34: =_xlfn.IFS(SUM(C34:E34)<1,"",COUNT($C$6:E34)>9,N34*3+H34,COUNT($C$6:E34)<=9,0) ->  | S34: =IF(COUNT($C$6:E34)>9,IF(P34=MAX($P$6:$P$35),P34," "),"") ->  | V34: =IF(COUNT(C34:E34)<1,0,IF(COUNT($C$6:E34)>9,C34+N34,0)) -> 0 | W34: =IF(COUNT(C34:E34)<1,0,IF(COUNT($C$6:E34)>9,D34+N34,0)) -> 0 | X34: =IF(COUNT(C34:E34)<1,0,IF(COUNT($C$6:E34)>9,E34+N34,0)) -> 0 | AA34: 0 | AB34: 0 | AC34: 29
A35: wk30 | B35: =Calendar!B35 -> 2020-04-22 | F35: =IF(COUNT(C35:E35)<1," ",IF(AND(C35>M34,D35>M34,E35>M34,COUNT($C$6:E34)>=12),"*"," ")) ->  | G35: =IF(COUNT(C35:E35)<1," ",IF(AND(C35>M33,D35>M33,E35>M33,COUNT($C$6:E33)>=12),"*"," ")) ->  | J35: =_xlfn.IFS(SUM(C35:E35)<1,"",SUM(C35:E35)>=1,SUM($C$6:E35)) ->  | K35: =_xlfn.IFS(COUNT(C35:E35)<1,"",COUNT($C$6:E35)>=1,COUNT($C$6:E35)) ->  | L35: =_xlfn.IFS(COUNT(C35:E35)<1,"",AND(COUNT($C$6:E35)<=9,$C$4>1),$C$4,COUNT(C35:E35)>=1,M35) ->  | M35: =IF(COUNT($C$6:E35)>=1,TRUNC(SUM($C$6:E35)/COUNT($C$6:E35)),0) -> 109 | N35: =IF(COUNT($C$6:E35)<=6,0,TRUNC((230-M34)*0.9)) -> 108 | O35: =_xlfn.IFS(SUM(C35:E35)<1,"",COUNT($C$6:E35)>9,TRUNC((230-M34)*(0.9)),COUNT($C$6:E35)<=9,0) ->  | P35: =_xlfn.IFS(SUM(C35:E35)<1,"",COUNT($C$6:E35)>9,N35*3+H35,COUNT($C$6:E35)<=9,0) ->  | S35: =IF(COUNT($C$6:E35)>9,IF(P35=MAX($P$6:$P$35),P35," "),"") ->  | V35: =IF(COUNT(C35:E35)<1,0,IF(COUNT($C$6:E35)>9,C35+N35,0)) -> 0 | W35: =IF(COUNT(C35:E35)<1,0,IF(COUNT($C$6:E35)>9,D35+N35,0)) -> 0 | X35: =IF(COUNT(C35:E35)<1,0,IF(COUNT($C$6:E35)>9,E35+N35,0)) -> 0 | AA35: 0 | AB35: 0 | AC35: 30
C36: =(IF(COUNT(C6:C35)=0," ",(SUM(C6:C35))/COUNT(C6:C35))) -> 111.73 | D36: =(IF(COUNT(D6:D35)=0," ",(SUM(D6:D35))/COUNT(D6:D35))) -> 106.07 | E36: =(IF(COUNT(E6:E35)=0," ",(SUM(E6:E35))/COUNT(E6:E35))) -> 111.87

Sheet COrcutt
H1: =Calendar!H1 -> Wednesday Fun Fours 2019/20 season | R1: 6-over wk:
A2: wk# | B2: =MAX(AB6:AB35) -> 24 | R2: 0
A3: Name: | B3: Carolyn Orcutt | I3: Perfect Attendance: | K3: =IF(SUM(AA6:AA35)<0.5,"Yes","No") -> Yes | L3: =_xlfn.IFS(AND(B2=30,K3="Yes"),"good",AND(B2<>30,K3="Yes"),"So Far",AND(B2<>30,K3="No")," ") -> So Far
A4: book average: | C4: 96 | H4: wky | I4: wky | J4: cumulative | L4: cumulative | P4: hdcp | Q4: high | R4: high | S4: high hcp | T4: high hcp
C5: g1 | D5: g2 | E5: g3 | H5: series | I5: average | J5: score | K5: games | L5: average | O5: hdcp | P5: series | Q5: series | R5: game | S5: series | T5: game | V5: =MAX(C6:E35) -> 136 | W5: =MAX(V6:X35) -> 257
A6: wk1 | B6: =Calendar!B6 -> 2019-09-04 | C6: 93 | D6: 103 | E6: 95 | H6: =IF(COUNT(C6:E6)<1," ",SUM(C6:E6)) -> 291 | I6: =IF(COUNT(C6:E6)<1," ",TRUNC(H6/COUNT(C6:E6))) -> 97 | J6: =_xlfn.IFS(SUM(C6:E6)<1,"",SUM(C6:E6)>=1,SUM($C$6:E6)) -> 291 | K6: =_xlfn.IFS(COUNT(C6:E6)<1,"",COUNT($C$6:E6)>=1,COUNT($C$6:E6)) -> 3 | L6: =_xlfn.IFS(COUNT(C6:E6)<1,"",AND(COUNT($C$6:E6)<=9,$C$4>1),$C$4,COUNT(C6:E6)>=1,M6) -> 96 | M6: =IF(COUNT($C$6:E6)>=1,TRUNC(SUM($C$6:E6)/COUNT($C$6:E6)),0) -> 97 | N6: =IF(COUNT($C$6:E6)<=6,0,TRUNC((230-M5)*0.9)) -> 0 | O6: =_xlfn.IFS(SUM(C6:E6)<1,"",COUNT($C$6:E6)>9,TRUNC((230-M5)*(0.9)),COUNT($C$6:E6)<=9,0) -> 0 | P6: =_xlfn.IFS(SUM(C6:E6)<1,"",COUNT($C$6:E6)>9,N6*3+H6,COUNT($C$6:E6)<=9,0) -> 0 | Q6: =IF(H6=(MAX($H$6:$H$35)),H6," ") ->  | R6: =IF((OR(C6=$V$5,D6=$V$5,E6=$V$5)),$V$5," ") ->  | S6: =IF(COUNT($C$6:E6)>9,IF(P6=MAX($P$6:$P$35),P6," "),"") ->  | T6: =IF(OR(V6=$W$5,W6=$W$5,X6=$W$5),$W$5," ") ->  | V6: =IF(COUNT(C6:E6)<1,0,IF(COUNT($C$6:E6)>9,C6+N6,0)) -> 0 | W6: =IF(COUNT(C6:E6)<1,0,IF(COUNT($C$6:E6)>9,D6+N6,0)) -> 0 | X6: =IF(COUNT(C6:E6)<1,0,IF(COUNT($C$6:E6)>9,E6+N6,0)) -> 0 | AA6: =IF((MAX($AB$6:$AB$35))<AC6,0,IF(AB6=AC6,0,1)) -> 0 | AB6: =IF(COUNT(C6:E6)>0,AC6,0) -> 1 | AC6: 1
A7: wk2 | B7: =Calendar!B7 -> 2019-09-11 | C7: 102 | D7: 98 | E7: 64 | H7: 264 | I7: =IF(COUNT(C7:E7)<1," ",TRUNC(H7/COUNT(C7:E7))) -> 88 | J7: =_xlfn.IFS(SUM(C7:E7)<1,"",SUM(C7:E7)>=1,SUM($C$6:E7)) -> 555 | K7: =_xlfn.IFS(COUNT(C7:E7)<1,"",COUNT($C$6:E7)>=1,COUNT($C$6:E7)) -> 6 | L7: =_xlfn.IFS(COUNT(C7:E7)<1,"",AND(COUNT($C$6:E7)<=9,$C$4>1),$C$4,COUNT(C7:E7)>=1,M7) -> 96 | M7: =IF(COUNT($C$6:E7)>=1,TRUNC(SUM($C$6:E7)/COUNT($C$6:E7)),0) -> 92 | N7: =IF(COUNT($C$6:E7)<=6,0,TRUNC((230-M6)*0.9)) -> 0 | O7: =_xlfn.IFS(SUM(C7:E7)<1,"",COUNT($C$6:E7)>9,TRUNC((230-M6)*(0.9)),COUNT($C$6:E7)<=9,0) -> 0 | P7: =_xlfn.IFS(SUM(C7:E7)<1,"",COUNT($C$6:E7)>9,N7*3+H7,COUNT($C$6:E7)<=9,0) -> 0 | S7: =IF(COUNT($C$6:E7)>9,IF(P7=MAX($P$6:$P$35),P7," "),"") ->  | V7: =IF(COUNT(C7:E7)<1,0,IF(COUNT($C$6:E7)>9,C7+N7,0)) -> 0 | W7: =IF(COUNT(C7:E7)<1,0,IF(COUNT($C$6:E7)>9,D7+N7,0)) -> 0 | X7: =IF(COUNT(C7:E7)<1,0,IF(COUNT($C$6:E7)>9,E7+N7,0)) -> 0 | AA7: 0 | AB7: =IF(COUNT(C7:E7)>0,AC7,0) -> 2 | AC7: 2
A8: wk3 | B8: =Calendar!B8 -> 2019-09-18 | C8: 64 | D8: 136 | E8: 94 | H8: 294 | I8: 98 | J8: =_xlfn.IFS(SUM(C8:E8)<1,"",SUM(C8:E8)>=1,SUM($C$6:E8)) -> 849 | K8: =_xlfn.IFS(COUNT(C8:E8)<1,"",COUNT($C$6:E8)>=1,COUNT($C$6:E8)) -> 9 | L8: =_xlfn.IFS(COUNT(C8:E8)<1,"",AND(COUNT($C$6:E8)<=9,$C$4>1),$C$4,COUNT(C8:E8)>=1,M8) -> 96 | M8: =IF(COUNT($C$6:E8)>=1,TRUNC(SUM($C$6:E8)/COUNT($C$6:E8)),0) -> 94 | N8: =IF(COUNT($C$6:E8)<=6,0,TRUNC((230-M7)*0.9)) -> 124 | O8: =_xlfn.IFS(SUM(C8:E8)<1,"",COUNT($C$6:E8)>9,TRUNC((230-M7)*(0.9)),COUNT($C$6:E8)<=9,0) -> 0 | P8: =_xlfn.IFS(SUM(C8:E8)<1,"",COUNT($C$6:E8)>9,N8*3+H8,COUNT($C$6:E8)<=9,0) -> 0 | R8: 136 | S8: =IF(COUNT($C$6:E8)>9,IF(P8=MAX($P$6:$P$35),P8," "),"") ->  | V8: =IF(COUNT(C8:E8)<1,0,IF(COUNT($C$6:E8)>9,C8+N8,0)) -> 0 | W8: =IF(COUNT(C8:E8)<1,0,IF(COUNT($C$6:E8)>9,D8+N8,0)) -> 0 | X8: =IF(COUNT(C8:E8)<1,0,IF(COUNT($C$6:E8)>9,E8+N8,0)) -> 0 | AA8: 0 | AB8: 3 | AC8: 3
A9: wk4 | B9: =Calendar!B9 -> 2019-09-25 | C9: 107 | D9: 107 | E9: 82 | H9: 296 | I9: 98 | J9: =_xlfn.IFS(SUM(C9:E9)<1,"",SUM(C9:E9)>=1,SUM($C$6:E9)) -> 1145 | K9: =_xlfn.IFS(COUNT(C9:E9)<1,"",COUNT($C$6:E9)>=1,COUNT($C$6:E9)) -> 12 | L9: =_xlfn.IFS(COUNT(C9:E9)<1,"",AND(COUNT($C$6:E9)<=9,$C$4>1),$C$4,COUNT(C9:E9)>=1,M9) -> 95 | M9: =IF(COUNT($C$6:E9)>=1,TRUNC(SUM($C$6:E9)/COUNT($C$6:E9)),0) -> 95 | N9: =IF(COUNT($C$6:E9)<=6,0,TRUNC((230-M8)*0.9)) -> 122 | O9: =_xlfn.IFS(SUM(C9:E9)<1,"",COUNT($C$6:E9)>9,TRUNC((230-M8)*(0.9)),COUNT($C$6:E9)<=9,0) -> 122 | P9: =_xlfn.IFS(SUM(C9:E9)<1,"",COUNT($C$6:E9)>9,N9*3+H9,COUNT($C$6:E9)<=9,0) -> 662 | S9: =IF(COUNT($C$6:E9)>9,IF(P9=MAX($P$6:$P$35),P9," "),"") ->  | V9: =IF(COUNT(C9:E9)<1,0,IF(COUNT($C$6:E9)>9,C9+N9,0)) -> 229 | W9: =IF(COUNT(C9:E9)<1,0,IF(COUNT($C$6:E9)>9,D9+N9,0)) -> 229 | X9: =IF(COUNT(C9:E9)<1,0,IF(COUNT($C$6:E9)>9,E9+N9,0)) -> 204 | AA9: 0 | AB9: 4 | AC9: 4
A10: wk5 | B10: =Calendar!B10 -> 2019-10-02 | C10: 113 | D10: 96 | E10: 82 | F10: =IF(COUNT(C10:E10)<1," ",IF(AND(C10>M9,D10>M9,E10>M9,COUNT($C$6:E9)>=12),"*"," ")) ->  | H10: 291 | I10: 97 | J10: =_xlfn.IFS(SUM(C10:E10)<1,"",SUM(C10:E10)>=1,SUM($C$6:E10)) -> 1436 | K10: =_xlfn.IFS(COUNT(C10:E10)<1,"",COUNT($C$6:E10)>=1,COUNT($C$6:E10)) -> 15 | L10: =_xlfn.IFS(COUNT(C10:E10)<1,"",AND(COUNT($C$6:E10)<=9,$C$4>1),$C$4,COUNT(C10:E10)>=1,M10) -> 95 | M10: =IF(COUNT($C$6:E10)>=1,TRUNC(SUM($C$6:E10)/COUNT($C$6:E10)),0) -> 95 | N10: =IF(COUNT($C$6:E10)<=6,0,TRUNC((230-M9)*0.9)) -> 121 | O10: =_xlfn.IFS(SUM(C10:E10)<1,"",COUNT($C$6:E10)>9,TRUNC((230-M9)*(0.9)),COUNT($C$6:E10)<=9,0) -> 121 | P10: =_xlfn.IFS(SUM(C10:E10)<1,"",COUNT($C$6:E10)>9,N10*3+H10,COUNT($C$6:E10)<=9,0) -> 654 | S10: =IF(COUNT($C$6:E10)>9,IF(P10=MAX($P$6:$P$35),P10," "),"") ->  | V10: =IF(COUNT(C10:E10)<1,0,IF(COUNT($C$6:E10)>9,C10+N10,0)) -> 234 | W10: =IF(COUNT(C10:E10)<1,0,IF(COUNT($C$6:E10)>9,D10+N10,0)) -> 217 | X10: =IF(COUNT(C10:E10)<1,0,IF(COUNT($C$6:E10)>9,E10+N10,0)) -> 203 | AA10: 0 | AB10: 5 | AC10: 5
A11: wk6 | B11: =Calendar!B11 -> 2019-10-09 | C11: 91 | D11: 63 | E11: 82 | F11: =IF(COUNT(C11:E11)<1," ",IF(AND(C11>M10,D11>M10,E11>M10,COUNT($C$6:E10)>=12),"*"," ")) ->  | G11: =IF(COUNT(C11:E11)<1," ",IF(AND(C11>M9,D11>M9,E11>M9,COUNT($C$6:E9)>=12),"*"," ")) ->  | H11: 236 | I11: 78 | J11: =_xlfn.IFS(SUM(C11:E11)<1,"",SUM(C11:E11)>=1,SUM($C$6:E11)) -> 1672 | K11: =_xlfn.IFS(COUNT(C11:E11)<1,"",COUNT($C$6:E11)>=1,COUNT($C$6:E11)) -> 18 | L11: =_xlfn.IFS(COUNT(C11:E11)<1,"",AND(COUNT($C$6:E11)<=9,$C$4>1),$C$4,COUNT(C11:E11)>=1,M11) -> 92 | M11: =IF(COUNT($C$6:E11)>=1,TRUNC(SUM($C$6:E11)/COUNT($C$6:E11)),0) -> 92 | N11: =IF(COUNT($C$6:E11)<=6,0,TRUNC((230-M10)*0.9)) -> 121 | O11: =_xlfn.IFS(SUM(C11:E11)<1,"",COUNT($C$6:E11)>9,TRUNC((230-M10)*(0.9)),COUNT($C$6:E11)<=9,0) -> 121 | P11: =_xlfn.IFS(SUM(C11:E11)<1,"",COUNT($C$6:E11)>9,N11*3+H11,COUNT($C$6:E11)<=9,0) -> 599 | S11: =IF(COUNT($C$6:E11)>9,IF(P11=MAX($P$6:$P$35),P11," "),"") ->  | V11: =IF(COUNT(C11:E11)<1,0,IF(COUNT($C$6:E11)>9,C11+N11,0)) -> 212 | W11: =IF(COUNT(C11:E11)<1,0,IF(COUNT($C$6:E11)>9,D11+N11,0)) -> 184 | X11: =IF(COUNT(C11:E11)<1,0,IF(COUNT($C$6:E11)>9,E11+N11,0)) -> 203 | AA11: 0 | AB11: 6 | AC11: 6
A12: wk7 | B12: =Calendar!B12 -> 2019-10-16 | C12: 107 | D12: 84 | E12: 71 | F12: =IF(COUNT(C12:E12)<1," ",IF(AND(C12>M11,D12>M11,E12>M11,COUNT($C$6:E11)>=12),"*"," ")) ->  | G12: =IF(COUNT(C12:E12)<1," ",IF(AND(C12>M10,D12>M10,E12>M10,COUNT($C$6:E10)>=12),"*"," ")) ->  | H12: 262 | I12: 87 | J12: =_xlfn.IFS(SUM(C12:E12)<1,"",SUM(C12:E12)>=1,SUM($C$6:E12)) -> 1934 | K12: =_xlfn.IFS(COUNT(C12:E12)<1,"",COUNT($C$6:E12)>=1,COUNT($C$6:E12)) -> 21 | L12: =_xlfn.IFS(COUNT(C12:E12)<1,"",AND(COUNT($C$6:E12)<=9,$C$4>1),$C$4,COUNT(C12:E12)>=1,M12) -> 92 | M12: =IF(COUNT($C$6:E12)>=1,TRUNC(SUM($C$6:E12)/COUNT($C$6:E12)),0) -> 92 | N12: =IF(COUNT($C$6:E12)<=6,0,TRUNC((230-M11)*0.9)) -> 124 | O12: =_xlfn.IFS(SUM(C12:E12)<1,"",COUNT($C$6:E12)>9,TRUNC((230-M11)*(0.9)),COUNT($C$6:E12)<=9,0) -> 124 | P12: =_xlfn.IFS(SUM(C12:E12)<1,"",COUNT($C$6:E12)>9,N12*3+H12,COUNT($C$6:E12)<=9,0) -> 634 | S12: =IF(COUNT($C$6:E12)>9,IF(P12=MAX($P$6:$P$35),P12," "),"") ->  | V12: =IF(COUNT(C12:E12)<1,0,IF(COUNT($C$6:E12)>9,C12+N12,0)) -> 231 | W12: =IF(COUNT(C12:E12)<1,0,IF(COUNT($C$6:E12)>9,D12+N12,0)) -> 208 | X12: =IF(COUNT(C12:E12)<1,0,IF(COUNT($C$6:E12)>9,E12+N12,0)) -> 195 | AA12: 0 | AB12: 7 | AC12: 7
A13: wk8 | B13: =Calendar!B13 -> 2020-10-23 | C13: 73 | D13: 114 | E13: 78 | F13: =IF(COUNT(C13:E13)<1," ",IF(AND(C13>M12,D13>M12,E13>M12,COUNT($C$6:E12)>=12),"*"," ")) ->  | G13: =IF(COUNT(C13:E13)<1," ",IF(AND(C13>M11,D13>M11,E13>M11,COUNT($C$6:E11)>=12),"*"," ")) ->  | H13: 265 | I13: 88 | J13: =_xlfn.IFS(SUM(C13:E13)<1,"",SUM(C13:E13)>=1,SUM($C$6:E13)) -> 2199 | K13: =_xlfn.IFS(COUNT(C13:E13)<1,"",COUNT($C$6:E13)>=1,COUNT($C$6:E13)) -> 24 | L13: =_xlfn.IFS(COUNT(C13:E13)<1,"",AND(COUNT($C$6:E13)<=9,$C$4>1),$C$4,COUNT(C13:E13)>=1,M13) -> 91 | M13: =IF(COUNT($C$6:E13)>=1,TRUNC(SUM($C$6:E13)/COUNT($C$6:E13)),0) -> 91 | N13: =IF(COUNT($C$6:E13)<=6,0,TRUNC((230-M12)*0.9)) -> 124 | O13: =_xlfn.IFS(SUM(C13:E13)<1,"",COUNT($C$6:E13)>9,TRUNC((230-M12)*(0.9)),COUNT($C$6:E13)<=9,0) -> 124 | P13: =_xlfn.IFS(SUM(C13:E13)<1,"",COUNT($C$6:E13)>9,N13*3+H13,COUNT($C$6:E13)<=9,0) -> 637 | S13: =IF(COUNT($C$6:E13)>9,IF(P13=MAX($P$6:$P$35),P13," "),"") ->  | V13: =IF(COUNT(C13:E13)<1,0,IF(COUNT($C$6:E13)>9,C13+N13,0)) -> 197 | W13: =IF(COUNT(C13:E13)<1,0,IF(COUNT($C$6:E13)>9,D13+N13,0)) -> 238 | X13: =IF(COUNT(C13:E13)<1,0,IF(COUNT($C$6:E13)>9,E13+N13,0)) -> 202 | AA13: 0 | AB13: 8 | AC13: 8
A14: wk9 | B14: =Calendar!B14 -> 2019-11-06 | C14: 92 | D14: 90 | E14: 115 | F14: =IF(COUNT(C14:E14)<1," ",IF(AND(C14>M13,D14>M13,E14>M13,COUNT($C$6:E13)>=12),"*"," ")) ->  | G14: =IF(COUNT(C14:E14)<1," ",IF(AND(C14>M12,D14>M12,E14>M12,COUNT($C$6:E12)>=12),"*"," ")) ->  | H14: 297 | I14: 99 | J14: =_xlfn.IFS(SUM(C14:E14)<1,"",SUM(C14:E14)>=1,SUM($C$6:E14)) -> 2496 | K14: =_xlfn.IFS(COUNT(C14:E14)<1,"",COUNT($C$6:E14)>=1,COUNT($C$6:E14)) -> 27 | L14: =_xlfn.IFS(COUNT(C14:E14)<1,"",AND(COUNT($C$6:E14)<=9,$C$4>1),$C$4,COUNT(C14:E14)>=1,M14) -> 92 | M14: =IF(COUNT($C$6:E14)>=1,TRUNC(SUM($C$6:E14)/COUNT($C$6:E14)),0) -> 92 | N14: =IF(COUNT($C$6:E14)<=6,0,TRUNC((230-M13)*0.9)) -> 125 | O14: =_xlfn.IFS(SUM(C14:E14)<1,"",COUNT($C$6:E14)>9,TRUNC((230-M13)*(0.9)),COUNT($C$6:E14)<=9,0) -> 125 | P14: =_xlfn.IFS(SUM(C14:E14)<1,"",COUNT($C$6:E14)>9,N14*3+H14,COUNT($C$6:E14)<=9,0) -> 672 | S14: =IF(COUNT($C$6:E14)>9,IF(P14=MAX($P$6:$P$35),P14," "),"") ->  | V14: =IF(COUNT(C14:E14)<1,0,IF(COUNT($C$6:E14)>9,C14+N14,0)) -> 217 | W14: =IF(COUNT(C14:E14)<1,0,IF(COUNT($C$6:E14)>9,D14+N14,0)) -> 215 | X14: =IF(COUNT(C14:E14)<1,0,IF(COUNT($C$6:E14)>9,E14+N14,0)) -> 240 | AA14: 0 | AB14: 9 | AC14: 9
A15: wk10 | B15: =Calendar!B15 -> 2019-11-13 | C15: 78 | D15: 80 | E15: 104 | F15: =IF(COUNT(C15:E15)<1," ",IF(AND(C15>M14,D15>M14,E15>M14,COUNT($C$6:E14)>=12),"*"," ")) ->  | G15: =IF(COUNT(C15:E15)<1," ",IF(AND(C15>M13,D15>M13,E15>M13,COUNT($C$6:E13)>=12),"*"," ")) ->  | H15: 262 | I15: 87 | J15: =_xlfn.IFS(SUM(C15:E15)<1,"",SUM(C15:E15)>=1,SUM($C$6:E15)) -> 2758 | K15: =_xlfn.IFS(COUNT(C15:E15)<1,"",COUNT($C$6:E15)>=1,COUNT($C$6:E15)) -> 30 | L15: =_xlfn.IFS(COUNT(C15:E15)<1,"",AND(COUNT($C$6:E15)<=9,$C$4>1),$C$4,COUNT(C15:E15)>=1,M15) -> 91 | M15: =IF(COUNT($C$6:E15)>=1,TRUNC(SUM($C$6:E15)/COUNT($C$6:E15)),0) -> 91 | N15: =IF(COUNT($C$6:E15)<=6,0,TRUNC((230-M14)*0.9)) -> 124 | O15: =_xlfn.IFS(SUM(C15:E15)<1,"",COUNT($C$6:E15)>9,TRUNC((230-M14)*(0.9)),COUNT($C$6:E15)<=9,0) -> 124 | P15: =_xlfn.IFS(SUM(C15:E15)<1,"",COUNT($C$6:E15)>9,N15*3+H15,COUNT($C$6:E15)<=9,0) -> 634 | S15: =IF(COUNT($C$6:E15)>9,IF(P15=MAX($P$6:$P$35),P15," "),"") ->  | V15: =IF(COUNT(C15:E15)<1,0,IF(COUNT($C$6:E15)>9,C15+N15,0)) -> 202 | W15: =IF(COUNT(C15:E15)<1,0,IF(COUNT($C$6:E15)>9,D15+N15,0)) -> 204 | X15: =IF(COUNT(C15:E15)<1,0,IF(COUNT($C$6:E15)>9,E15+N15,0)) -> 228 | AA15: 0 | AB15: 10 | AC15: 10
A16: wk11 | B16: =Calendar!B16 -> 2019-11-20 | C16: 112 | D16: 91 | E16: 132 | F16: =IF(COUNT(C16:E16)<1," ",IF(AND(C16>M15,D16>M15,E16>M15,COUNT($C$6:E15)>=12),"*"," ")) ->  | G16: =IF(COUNT(C16:E16)<1," ",IF(AND(C16>M14,D16>M14,E16>M14,COUNT($C$6:E14)>=12),"*"," ")) ->  | H16: 335 | I16: 111 | J16: =_xlfn.IFS(SUM(C16:E16)<1,"",SUM(C16:E16)>=1,SUM($C$6:E16)) -> 3093 | K16: =_xlfn.IFS(COUNT(C16:E16)<1,"",COUNT($C$6:E16)>=1,COUNT($C$6:E16)) -> 33 | L16: =_xlfn.IFS(COUNT(C16:E16)<1,"",AND(COUNT($C$6:E16)<=9,$C$4>1),$C$4,COUNT(C16:E16)>=1,M16) -> 93 | M16: =IF(COUNT($C$6:E16)>=1,TRUNC(SUM($C$6:E16)/COUNT($C$6:E16)),0) -> 93 | N16: =IF(COUNT($C$6:E16)<=6,0,TRUNC((230-M15)*0.9)) -> 125 | O16: =_xlfn.IFS(SUM(C16:E16)<1,"",COUNT($C$6:E16)>9,TRUNC((230-M15)*(0.9)),COUNT($C$6:E16)<=9,0) -> 125 | P16: =_xlfn.IFS(SUM(C16:E16)<1,"",COUNT($C$6:E16)>9,N16*3+H16,COUNT($C$6:E16)<=9,0) -> 710 | Q16: 335 | S16: =IF(COUNT($C$6:E16)>9,IF(P16=MAX($P$6:$P$35),P16," "),"") -> 710 | T16: 257 | V16: =IF(COUNT(C16:E16)<1,0,IF(COUNT($C$6:E16)>9,C16+N16,0)) -> 237 | W16: =IF(COUNT(C16:E16)<1,0,IF(COUNT($C$6:E16)>9,D16+N16,0)) -> 216 | X16: =IF(COUNT(C16:E16)<1,0,IF(COUNT($C$6:E16)>9,E16+N16,0)) -> 257 | AA16: 0 | AB16: 11 | AC16: 11
A17: wk12 | B17: =Calendar!B17 -> 2019-12-04 | C17: 116 | D17: 89 | E17: 95 | F17: =IF(COUNT(C17:E17)<1," ",IF(AND(C17>M16,D17>M16,E17>M16,COUNT($C$6:E16)>=12),"*"," ")) ->  | G17: =IF(COUNT(C17:E17)<1," ",IF(AND(C17>M15,D17>M15,E17>M15,COUNT($C$6:E15)>=12),"*"," ")) ->  | H17: 300 | I17: 100 | J17: =_xlfn.IFS(SUM(C17:E17)<1,"",SUM(C17:E17)>=1,SUM($C$6:E17)) -> 3393 | K17: =_xlfn.IFS(COUNT(C17:E17)<1,"",COUNT($C$6:E17)>=1,COUNT($C$6:E17)) -> 36 | L17: =_xlfn.IFS(COUNT(C17:E17)<1,"",AND(COUNT($C$6:E17)<=9,$C$4>1),$C$4,COUNT(C17:E17)>=1,M17) -> 94 | M17: =IF(COUNT($C$6:E17)>=1,TRUNC(SUM($C$6:E17)/COUNT($C$6:E17)),0) -> 94 | N17: =IF(COUNT($C$6:E17)<=6,0,TRUNC((230-M16)*0.9)) -> 123 | O17: =_xlfn.IFS(SUM(C17:E17)<1,"",COUNT($C$6:E17)>9,TRUNC((230-M16)*(0.9)),COUNT($C$6:E17)<=9,0) -> 123 | P17: =_xlfn.IFS(SUM(C17:E17)<1,"",COUNT($C$6:E17)>9,N17*3+H17,COUNT($C$6:E17)<=9,0) -> 669 | S17: =IF(COUNT($C$6:E17)>9,IF(P17=MAX($P$6:$P$35),P17," "),"") ->  | V17: =IF(COUNT(C17:E17)<1,0,IF(COUNT($C$6:E17)>9,C17+N17,0)) -> 239 | W17: =IF(COUNT(C17:E17)<1,0,IF(COUNT($C$6:E17)>9,D17+N17,0)) -> 212 | X17: =IF(COUNT(C17:E17)<1,0,IF(COUNT($C$6:E17)>9,E17+N17,0)) -> 218 | AA17: 0 | AB17: 12 | AC17: 12
A18: wk13 | B18: =Calendar!B18 -> 2019-12-11 | C18: 86 | D18: 96 | E18: 87 | F18: =IF(COUNT(C18:E18)<1," ",IF(AND(C18>M17,D18>M17,E18>M17,COUNT($C$6:E17)>=12),"*"," ")) ->  | G18: =IF(COUNT(C18:E18)<1," ",IF(AND(C18>M16,D18>M16,E18>M16,COUNT($C$6:E16)>=12),"*"," ")) ->  | H18: 269 | I18: 89 | J18: =_xlfn.IFS(SUM(C18:E18)<1,"",SUM(C18:E18)>=1,SUM($C$6:E18)) -> 3662 | K18: =_xlfn.IFS(COUNT(C18:E18)<1,"",COUNT($C$6:E18)>=1,COUNT($C$6:E18)) -> 39 | L18: =_xlfn.IFS(COUNT(C18:E18)<1,"",AND(COUNT($C$6:E18)<=9,$C$4>1),$C$4,COUNT(C18:E18)>=1,M18) -> 93 | M18: =IF(COUNT($C$6:E18)>=1,TRUNC(SUM($C$6:E18)/COUNT($C$6:E18)),0) -> 93 | N18: =IF(COUNT($C$6:E18)<=6,0,TRUNC((230-M17)*0.9)) -> 122 | O18: =_xlfn.IFS(SUM(C18:E18)<1,"",COUNT($C$6:E18)>9,TRUNC((230-M17)*(0.9)),COUNT($C$6:E18)<=9,0) -> 122 | P18: =_xlfn.IFS(SUM(C18:E18)<1,"",COUNT($C$6:E18)>9,N18*3+H18,COUNT($C$6:E18)<=9,0) -> 635 | S18: =IF(COUNT($C$6:E18)>9,IF(P18=MAX($P$6:$P$35),P18," "),"") ->  | V18: =IF(COUNT(C18:E18)<1,0,IF(COUNT($C$6:E18)>9,C18+N18,0)) -> 208 | W18: =IF(COUNT(C18:E18)<1,0,IF(COUNT($C$6:E18)>9,D18+N18,0)) -> 218 | X18: =IF(COUNT(C18:E18)<1,0,IF(COUNT($C$6:E18)>9,E18+N18,0)) -> 209 | AA18: 0 | AB18: 13 | AC18: 13
A19: wk14 | B19: =Calendar!B19 -> 2019-12-18 | C19: 73 | D19: 70 | E19: 86 | F19: =IF(COUNT(C19:E19)<1," ",IF(AND(C19>M18,D19>M18,E19>M18,COUNT($C$6:E18)>=12),"*"," ")) ->  | G19: =IF(COUNT(C19:E19)<1," ",IF(AND(C19>M17,D19>M17,E19>M17,COUNT($C$6:E17)>=12),"*"," ")) ->  | H19: 229 | I19: 76 | J19: =_xlfn.IFS(SUM(C19:E19)<1,"",SUM(C19:E19)>=1,SUM($C$6:E19)) -> 3891 | K19: =_xlfn.IFS(COUNT(C19:E19)<1,"",COUNT($C$6:E19)>=1,COUNT($C$6:E19)) -> 42 | L19: =_xlfn.IFS(COUNT(C19:E19)<1,"",AND(COUNT($C$6:E19)<=9,$C$4>1),$C$4,COUNT(C19:E19)>=1,M19) -> 92 | M19: =IF(COUNT($C$6:E19)>=1,TRUNC(SUM($C$6:E19)/COUNT($C$6:E19)),0) -> 92 | N19: =IF(COUNT($C$6:E19)<=6,0,TRUNC((230-M18)*0.9)) -> 123 | O19: =_xlfn.IFS(SUM(C19:E19)<1,"",COUNT($C$6:E19)>9,TRUNC((230-M18)*(0.9)),COUNT($C$6:E19)<=9,0) -> 123 | P19: =_xlfn.IFS(SUM(C19:E19)<1,"",COUNT($C$6:E19)>9,N19*3+H19,COUNT($C$6:E19)<=9,0) -> 598 | S19: =IF(COUNT($C$6:E19)>9,IF(P19=MAX($P$6:$P$35),P19," "),"") ->  | V19: =IF(COUNT(C19:E19)<1,0,IF(COUNT($C$6:E19)>9,C19+N19,0)) -> 196 | W19: =IF(COUNT(C19:E19)<1,0,IF(COUNT($C$6:E19)>9,D19+N19,0)) -> 193 | X19: =IF(COUNT(C19:E19)<1,0,IF(COUNT($C$6:E19)>9,E19+N19,0)) -> 209 | AA19: 0 | AB19: 14 | AC19: 14
A20: wk15 | B20: =Calendar!B20 -> 2020-01-08 | C20: 92 | D20: 92 | E20: 93 | F20: =IF(COUNT(C20:E20)<1," ",IF(AND(C20>M19,D20>M19,E20>M19,COUNT($C$6:E19)>=12),"*"," ")) ->  | G20: =IF(COUNT(C20:E20)<1," ",IF(AND(C20>M18,D20>M18,E20>M18,COUNT($C$6:E18)>=12),"*"," ")) ->  | H20: 277 | I20: 92 | J20: =_xlfn.IFS(SUM(C20:E20)<1,"",SUM(C20:E20)>=1,SUM($C$6:E20)) -> 4168 | K20: =_xlfn.IFS(COUNT(C20:E20)<1,"",COUNT($C$6:E20)>=1,COUNT($C$6:E20)) -> 45 | L20: =_xlfn.IFS(COUNT(C20:E20)<1,"",AND(COUNT($C$6:E20)<=9,$C$4>1),$C$4,COUNT(C20:E20)>=1,M20) -> 92 | M20: =IF(COUNT($C$6:E20)>=1,TRUNC(SUM($C$6:E20)/COUNT($C$6:E20)),0) -> 92 | N20: =IF(COUNT($C$6:E20)<=6,0,TRUNC((230-M19)*0.9)) -> 124 | O20: =_xlfn.IFS(SUM(C20:E20)<1,"",COUNT($C$6:E20)>9,TRUNC((230-M19)*(0.9)),COUNT($C$6:E20)<=9,0) -> 124 | P20: =_xlfn.IFS(SUM(C20:E20)<1,"",COUNT($C$6:E20)>9,N20*3+H20,COUNT($C$6:E20)<=9,0) -> 649 | S20: =IF(COUNT($C$6:E20)>9,IF(P20=MAX($P$6:$P$35),P20," "),"") ->  | V20: =IF(COUNT(C20:E20)<1,0,IF(COUNT($C$6:E20)>9,C20+N20,0)) -> 216 | W20: =IF(COUNT(C20:E20)<1,0,IF(COUNT($C$6:E20)>9,D20+N20,0)) -> 216 | X20: =IF(COUNT(C20:E20)<1,0,IF(COUNT($C$6:E20)>9,E20+N20,0)) -> 217 | AA20: 0 | AB20: 15 | AC20: 15
A21: wk16 | B21: =Calendar!B21 -> 2020-01-15 | C21: 82 | D21: 100 | E21: 114 | F21: =IF(COUNT(C21:E21)<1," ",IF(AND(C21>M20,D21>M20,E21>M20,COUNT($C$6:E20)>=12),"*"," ")) ->  | G21: =IF(COUNT(C21:E21)<1," ",IF(AND(C21>M19,D21>M19,E21>M19,COUNT($C$6:E19)>=12),"*"," ")) ->  | H21: 296 | I21: 98 | J21: =_xlfn.IFS(SUM(C21:E21)<1,"",SUM(C21:E21)>=1,SUM($C$6:E21)) -> 4464 | K21: =_xlfn.IFS(COUNT(C21:E21)<1,"",COUNT($C$6:E21)>=1,COUNT($C$6:E21)) -> 48 | L21: =_xlfn.IFS(COUNT(C21:E21)<1,"",AND(COUNT($C$6:E21)<=9,$C$4>1),$C$4,COUNT(C21:E21)>=1,M21) -> 93 | M21: =IF(COUNT($C$6:E21)>=1,TRUNC(SUM($C$6:E21)/COUNT($C$6:E21)),0) -> 93 | N21: =IF(COUNT($C$6:E21)<=6,0,TRUNC((230-M20)*0.9)) -> 124 | O21: =_xlfn.IFS(SUM(C21:E21)<1,"",COUNT($C$6:E21)>9,TRUNC((230-M20)*(0.9)),COUNT($C$6:E21)<=9,0) -> 124 | P21: =_xlfn.IFS(SUM(C21:E21)<1,"",COUNT($C$6:E21)>9,N21*3+H21,COUNT($C$6:E21)<=9,0) -> 668 | S21: =IF(COUNT($C$6:E21)>9,IF(P21=MAX($P$6:$P$35),P21," "),"") ->  | V21: =IF(COUNT(C21:E21)<1,0,IF(COUNT($C$6:E21)>9,C21+N21,0)) -> 206 | W21: =IF(COUNT(C21:E21)<1,0,IF(COUNT($C$6:E21)>9,D21+N21,0)) -> 224 | X21: =IF(COUNT(C21:E21)<1,0,IF(COUNT($C$6:E21)>9,E21+N21,0)) -> 238 | AA21: 0 | AB21: 16 | AC21: 16
A22: wk17 | B22: =Calendar!B22 -> 2020-01-22 | C22: 76 | D22: 94 | E22: 89 | F22: =IF(COUNT(C22:E22)<1," ",IF(AND(C22>M21,D22>M21,E22>M21,COUNT($C$6:E21)>=12),"*"," ")) ->  | G22: =IF(COUNT(C22:E22)<1," ",IF(AND(C22>M20,D22>M20,E22>M20,COUNT($C$6:E20)>=12),"*"," ")) ->  | H22: 259 | I22: 86 | J22: =_xlfn.IFS(SUM(C22:E22)<1,"",SUM(C22:E22)>=1,SUM($C$6:E22)) -> 4723 | K22: =_xlfn.IFS(COUNT(C22:E22)<1,"",COUNT($C$6:E22)>=1,COUNT($C$6:E22)) -> 51 | L22: =_xlfn.IFS(COUNT(C22:E22)<1,"",AND(COUNT($C$6:E22)<=9,$C$4>1),$C$4,COUNT(C22:E22)>=1,M22) -> 92 | M22: =IF(COUNT($C$6:E22)>=1,TRUNC(SUM($C$6:E22)/COUNT($C$6:E22)),0) -> 92 | N22: =IF(COUNT($C$6:E22)<=6,0,TRUNC((230-M21)*0.9)) -> 123 | O22: =_xlfn.IFS(SUM(C22:E22)<1,"",COUNT($C$6:E22)>9,TRUNC((230-M21)*(0.9)),COUNT($C$6:E22)<=9,0) -> 123 | P22: =_xlfn.IFS(SUM(C22:E22)<1,"",COUNT($C$6:E22)>9,N22*3+H22,COUNT($C$6:E22)<=9,0) -> 628 | S22: =IF(COUNT($C$6:E22)>9,IF(P22=MAX($P$6:$P$35),P22," "),"") ->  | V22: =IF(COUNT(C22:E22)<1,0,IF(COUNT($C$6:E22)>9,C22+N22,0)) -> 199 | W22: =IF(COUNT(C22:E22)<1,0,IF(COUNT($C$6:E22)>9,D22+N22,0)) -> 217 | X22: =IF(COUNT(C22:E22)<1,0,IF(COUNT($C$6:E22)>9,E22+N22,0)) -> 212 | AA22: 0 | AB22: 17 | AC22: 17
A23: wk18 | B23: =Calendar!B23 -> 2020-01-29 | C23: 77 | D23: 68 | E23: 94 | F23: =IF(COUNT(C23:E23)<1," ",IF(AND(C23>M22,D23>M22,E23>M22,COUNT($C$6:E22)>=12),"*"," ")) ->  | G23: =IF(COUNT(C23:E23)<1," ",IF(AND(C23>M21,D23>M21,E23>M21,COUNT($C$6:E21)>=12),"*"," ")) ->  | H23: 239 | I23: 79 | J23: =_xlfn.IFS(SUM(C23:E23)<1,"",SUM(C23:E23)>=1,SUM($C$6:E23)) -> 4962 | K23: =_xlfn.IFS(COUNT(C23:E23)<1,"",COUNT($C$6:E23)>=1,COUNT($C$6:E23)) -> 54 | L23: =_xlfn.IFS(COUNT(C23:E23)<1,"",AND(COUNT($C$6:E23)<=9,$C$4>1),$C$4,COUNT(C23:E23)>=1,M23) -> 91 | M23: =IF(COUNT($C$6:E23)>=1,TRUNC(SUM($C$6:E23)/COUNT($C$6:E23)),0) -> 91 | N23: =IF(COUNT($C$6:E23)<=6,0,TRUNC((230-M22)*0.9)) -> 124 | O23: =_xlfn.IFS(SUM(C23:E23)<1,"",COUNT($C$6:E23)>9,TRUNC((230-M22)*(0.9)),COUNT($C$6:E23)<=9,0) -> 124 | P23: =_xlfn.IFS(SUM(C23:E23)<1,"",COUNT($C$6:E23)>9,N23*3+H23,COUNT($C$6:E23)<=9,0) -> 611 | S23: =IF(COUNT($C$6:E23)>9,IF(P23=MAX($P$6:$P$35),P23," "),"") ->  | V23: =IF(COUNT(C23:E23)<1,0,IF(COUNT($C$6:E23)>9,C23+N23,0)) -> 201 | W23: =IF(COUNT(C23:E23)<1,0,IF(COUNT($C$6:E23)>9,D23+N23,0)) -> 192 | X23: =IF(COUNT(C23:E23)<1,0,IF(COUNT($C$6:E23)>9,E23+N23,0)) -> 218 | AA23: 0 | AB23: 18 | AC23: 18
A24: wk19 | B24: =Calendar!B24 -> 2020-02-05 | C24: 76 | D24: 79 | E24: 92 | F24: =IF(COUNT(C24:E24)<1," ",IF(AND(C24>M23,D24>M23,E24>M23,COUNT($C$6:E23)>=12),"*"," ")) ->  | G24: =IF(COUNT(C24:E24)<1," ",IF(AND(C24>M22,D24>M22,E24>M22,COUNT($C$6:E22)>=12),"*"," ")) ->  | H24: 247 | I24: 82 | J24: =_xlfn.IFS(SUM(C24:E24)<1,"",SUM(C24:E24)>=1,SUM($C$6:E24)) -> 5209 | K24: =_xlfn.IFS(COUNT(C24:E24)<1,"",COUNT($C$6:E24)>=1,COUNT($C$6:E24)) -> 57 | L24: =_xlfn.IFS(COUNT(C24:E24)<1,"",AND(COUNT($C$6:E24)<=9,$C$4>1),$C$4,COUNT(C24:E24)>=1,M24) -> 91 | M24: =IF(COUNT($C$6:E24)>=1,TRUNC(SUM($C$6:E24)/COUNT($C$6:E24)),0) -> 91 | N24: =IF(COUNT($C$6:E24)<=6,0,TRUNC((230-M23)*0.9)) -> 125 | O24: =_xlfn.IFS(SUM(C24:E24)<1,"",COUNT($C$6:E24)>9,TRUNC((230-M23)*(0.9)),COUNT($C$6:E24)<=9,0) -> 125 | P24: =_xlfn.IFS(SUM(C24:E24)<1,"",COUNT($C$6:E24)>9,N24*3+H24,COUNT($C$6:E24)<=9,0) -> 622 | S24: =IF(COUNT($C$6:E24)>9,IF(P24=MAX($P$6:$P$35),P24," "),"") ->  | V24: =IF(COUNT(C24:E24)<1,0,IF(COUNT($C$6:E24)>9,C24+N24,0)) -> 201 | W24: =IF(COUNT(C24:E24)<1,0,IF(COUNT($C$6:E24)>9,D24+N24,0)) -> 204 | X24: =IF(COUNT(C24:E24)<1,0,IF(COUNT($C$6:E24)>9,E24+N24,0)) -> 217 | AA24: 0 | AB24: 19 | AC24: 19
A25: wk20 | B25: =Calendar!B25 -> 2020-02-12 | C25: 117 | D25: 117 | E25: 91 | F25: =IF(COUNT(C25:E25)<1," ",IF(AND(C25>M24,D25>M24,E25>M24,COUNT($C$6:E24)>=12),"*"," ")) ->  | G25: =IF(COUNT(C25:E25)<1," ",IF(AND(C25>M23,D25>M23,E25>M23,COUNT($C$6:E23)>=12),"*"," ")) ->  | H25: 325 | I25: 108 | J25: =_xlfn.IFS(SUM(C25:E25)<1,"",SUM(C25:E25)>=1,SUM($C$6:E25)) -> 5534 | K25: =_xlfn.IFS(COUNT(C25:E25)<1,"",COUNT($C$6:E25)>=1,COUNT($C$6:E25)) -> 60 | L25: =_xlfn.IFS(COUNT(C25:E25)<1,"",AND(COUNT($C$6:E25)<=9,$C$4>1),$C$4,COUNT(C25:E25)>=1,M25) -> 92 | M25: =IF(COUNT($C$6:E25)>=1,TRUNC(SUM($C$6:E25)/COUNT($C$6:E25)),0) -> 92 | N25: =IF(COUNT($C$6:E25)<=6,0,TRUNC((230-M24)*0.9)) -> 125 | O25: =_xlfn.IFS(SUM(C25:E25)<1,"",COUNT($C$6:E25)>9,TRUNC((230-M24)*(0.9)),COUNT($C$6:E25)<=9,0) -> 125 | P25: =_xlfn.IFS(SUM(C25:E25)<1,"",COUNT($C$6:E25)>9,N25*3+H25,COUNT($C$6:E25)<=9,0) -> 700 | S25: =IF(COUNT($C$6:E25)>9,IF(P25=MAX($P$6:$P$35),P25," "),"") ->  | V25: =IF(COUNT(C25:E25)<1,0,IF(COUNT($C$6:E25)>9,C25+N25,0)) -> 242 | W25: =IF(COUNT(C25:E25)<1,0,IF(COUNT($C$6:E25)>9,D25+N25,0)) -> 242 | X25: =IF(COUNT(C25:E25)<1,0,IF(COUNT($C$6:E25)>9,E25+N25,0)) -> 216 | AA25: 0 | AB25: 20 | AC25: 20
A26: wk21 | B26: =Calendar!B26 -> 2020-02-19 | C26: 73 | D26: 81 | E26: 114 | F26: =IF(COUNT(C26:E26)<1," ",IF(AND(C26>M25,D26>M25,E26>M25,COUNT($C$6:E25)>=12),"*"," ")) ->  | G26: =IF(COUNT(C26:E26)<1," ",IF(AND(C26>M24,D26>M24,E26>M24,COUNT($C$6:E24)>=12),"*"," ")) ->  | H26: 268 | I26: 89 | J26: =_xlfn.IFS(SUM(C26:E26)<1,"",SUM(C26:E26)>=1,SUM($C$6:E26)) -> 5802 | K26: =_xlfn.IFS(COUNT(C26:E26)<1,"",COUNT($C$6:E26)>=1,COUNT($C$6:E26)) -> 63 | L26: =_xlfn.IFS(COUNT(C26:E26)<1,"",AND(COUNT($C$6:E26)<=9,$C$4>1),$C$4,COUNT(C26:E26)>=1,M26) -> 92 | M26: =IF(COUNT($C$6:E26)>=1,TRUNC(SUM($C$6:E26)/COUNT($C$6:E26)),0) -> 92 | N26: =IF(COUNT($C$6:E26)<=6,0,TRUNC((230-M25)*0.9)) -> 124 | O26: =_xlfn.IFS(SUM(C26:E26)<1,"",COUNT($C$6:E26)>9,TRUNC((230-M25)*(0.9)),COUNT($C$6:E26)<=9,0) -> 124 | P26: =_xlfn.IFS(SUM(C26:E26)<1,"",COUNT($C$6:E26)>9,N26*3+H26,COUNT($C$6:E26)<=9,0) -> 640 | S26: =IF(COUNT($C$6:E26)>9,IF(P26=MAX($P$6:$P$35),P26," "),"") ->  | V26: =IF(COUNT(C26:E26)<1,0,IF(COUNT($C$6:E26)>9,C26+N26,0)) -> 197 | W26: =IF(COUNT(C26:E26)<1,0,IF(COUNT($C$6:E26)>9,D26+N26,0)) -> 205 | X26: =IF(COUNT(C26:E26)<1,0,IF(COUNT($C$6:E26)>9,E26+N26,0)) -> 238 | AA26: 0 | AB26: 21 | AC26: 21
A27: wk22 | B27: =Calendar!B27 -> 2020-02-16 | C27: 98 | D27: 114 | E27: 106 | F27: =IF(COUNT(C27:E27)<1," ",IF(AND(C27>M26,D27>M26,E27>M26,COUNT($C$6:E26)>=12),"*"," ")) -> * | G27: =IF(COUNT(C27:E27)<1," ",IF(AND(C27>M25,D27>M25,E27>M25,COUNT($C$6:E25)>=12),"*"," ")) -> * | H27: 318 | I27: 106 | J27: =_xlfn.IFS(SUM(C27:E27)<1,"",SUM(C27:E27)>=1,SUM($C$6:E27)) -> 6120 | K27: =_xlfn.IFS(COUNT(C27:E27)<1,"",COUNT($C$6:E27)>=1,COUNT($C$6:E27)) -> 66 | L27: =_xlfn.IFS(COUNT(C27:E27)<1,"",AND(COUNT($C$6:E27)<=9,$C$4>1),$C$4,COUNT(C27:E27)>=1,M27) -> 92 | M27: =IF(COUNT($C$6:E27)>=1,TRUNC(SUM($C$6:E27)/COUNT($C$6:E27)),0) -> 92 | N27: =IF(COUNT($C$6:E27)<=6,0,TRUNC((230-M26)*0.9)) -> 124 | O27: =_xlfn.IFS(SUM(C27:E27)<1,"",COUNT($C$6:E27)>9,TRUNC((230-M26)*(0.9)),COUNT($C$6:E27)<=9,0) -> 124 | P27: =_xlfn.IFS(SUM(C27:E27)<1,"",COUNT($C$6:E27)>9,N27*3+H27,COUNT($C$6:E27)<=9,0) -> 690 | S27: =IF(COUNT($C$6:E27)>9,IF(P27=MAX($P$6:$P$35),P27," "),"") ->  | V27: =IF(COUNT(C27:E27)<1,0,IF(COUNT($C$6:E27)>9,C27+N27,0)) -> 222 | W27: =IF(COUNT(C27:E27)<1,0,IF(COUNT($C$6:E27)>9,D27+N27,0)) -> 238 | X27: =IF(COUNT(C27:E27)<1,0,IF(COUNT($C$6:E27)>9,E27+N27,0)) -> 230 | AA27: 0 | AB27: 22 | AC27: 22
A28: wk23 | B28: =Calendar!B28 -> 2020-03-04 | C28: 76 | D28: 82 | E28: 129 | F28: =IF(COUNT(C28:E28)<1," ",IF(AND(C28>M27,D28>M27,E28>M27,COUNT($C$6:E27)>=12),"*"," ")) ->  | G28: =IF(COUNT(C28:E28)<1," ",IF(AND(C28>M26,D28>M26,E28>M26,COUNT($C$6:E26)>=12),"*"," ")) ->  | H28: 287 | I28: 95 | J28: =_xlfn.IFS(SUM(C28:E28)<1,"",SUM(C28:E28)>=1,SUM($C$6:E28)) -> 6407 | K28: =_xlfn.IFS(COUNT(C28:E28)<1,"",COUNT($C$6:E28)>=1,COUNT($C$6:E28)) -> 69 | L28: =_xlfn.IFS(COUNT(C28:E28)<1,"",AND(COUNT($C$6:E28)<=9,$C$4>1),$C$4,COUNT(C28:E28)>=1,M28) -> 92 | M28: =IF(COUNT($C$6:E28)>=1,TRUNC(SUM($C$6:E28)/COUNT($C$6:E28)),0) -> 92 | N28: =IF(COUNT($C$6:E28)<=6,0,TRUNC((230-M27)*0.9)) -> 124 | O28: =_xlfn.IFS(SUM(C28:E28)<1,"",COUNT($C$6:E28)>9,TRUNC((230-M27)*(0.9)),COUNT($C$6:E28)<=9,0) -> 124 | P28: =_xlfn.IFS(SUM(C28:E28)<1,"",COUNT($C$6:E28)>9,N28*3+H28,COUNT($C$6:E28)<=9,0) -> 659 | S28: =IF(COUNT($C$6:E28)>9,IF(P28=MAX($P$6:$P$35),P28," "),"") ->  | V28: =IF(COUNT(C28:E28)<1,0,IF(COUNT($C$6:E28)>9,C28+N28,0)) -> 200 | W28: =IF(COUNT(C28:E28)<1,0,IF(COUNT($C$6:E28)>9,D28+N28,0)) -> 206 | X28: =IF(COUNT(C28:E28)<1,0,IF(COUNT($C$6:E28)>9,E28+N28,0)) -> 253 | AA28: 0 | AB28: 23 | AC28: 23
A29: wk24 | B29: =Calendar!B29 -> 2020-03-11 | C29: 97 | D29: 70 | E29: 102 | F29: =IF(COUNT(C29:E29)<1," ",IF(AND(C29>M28,D29>M28,E29>M28,COUNT($C$6:E28)>=12),"*"," ")) ->  | G29: =IF(COUNT(C29:E29)<1," ",IF(AND(C29>M27,D29>M27,E29>M27,COUNT($C$6:E27)>=12),"*"," ")) ->  | H29: 269 | I29: 89 | J29: =_xlfn.IFS(SUM(C29:E29)<1,"",SUM(C29:E29)>=1,SUM($C$6:E29)) -> 6676 | K29: =_xlfn.IFS(COUNT(C29:E29)<1,"",COUNT($C$6:E29)>=1,COUNT($C$6:E29)) -> 72 | L29: =_xlfn.IFS(COUNT(C29:E29)<1,"",AND(COUNT($C$6:E29)<=9,$C$4>1),$C$4,COUNT(C29:E29)>=1,M29) -> 92 | M29: =IF(COUNT($C$6:E29)>=1,TRUNC(SUM($C$6:E29)/COUNT($C$6:E29)),0) -> 92 | N29: =IF(COUNT($C$6:E29)<=6,0,TRUNC((230-M28)*0.9)) -> 124 | O29: =_xlfn.IFS(SUM(C29:E29)<1,"",COUNT($C$6:E29)>9,TRUNC((230-M28)*(0.9)),COUNT($C$6:E29)<=9,0) -> 124 | P29: =_xlfn.IFS(SUM(C29:E29)<1,"",COUNT($C$6:E29)>9,N29*3+H29,COUNT($C$6:E29)<=9,0) -> 641 | S29: =IF(COUNT($C$6:E29)>9,IF(P29=MAX($P$6:$P$35),P29," "),"") ->  | V29: =IF(COUNT(C29:E29)<1,0,IF(COUNT($C$6:E29)>9,C29+N29,0)) -> 221 | W29: =IF(COUNT(C29:E29)<1,0,IF(COUNT($C$6:E29)>9,D29+N29,0)) -> 194 | X29: =IF(COUNT(C29:E29)<1,0,IF(COUNT($C$6:E29)>9,E29+N29,0)) -> 226 | AA29: 0 | AB29: 24 | AC29: 24
A30: wk25 | B30: =Calendar!B30 -> 2020-03-18 | F30: =IF(COUNT(C30:E30)<1," ",IF(AND(C30>M29,D30>M29,E30>M29,COUNT($C$6:E29)>=12),"*"," ")) ->  | G30: =IF(COUNT(C30:E30)<1," ",IF(AND(C30>M28,D30>M28,E30>M28,COUNT($C$6:E28)>=12),"*"," ")) ->  | J30: =_xlfn.IFS(SUM(C30:E30)<1,"",SUM(C30:E30)>=1,SUM($C$6:E30)) ->  | K30: =_xlfn.IFS(COUNT(C30:E30)<1,"",COUNT($C$6:E30)>=1,COUNT($C$6:E30)) ->  | L30: =_xlfn.IFS(COUNT(C30:E30)<1,"",AND(COUNT($C$6:E30)<=9,$C$4>1),$C$4,COUNT(C30:E30)>=1,M30) ->  | M30: =IF(COUNT($C$6:E30)>=1,TRUNC(SUM($C$6:E30)/COUNT($C$6:E30)),0) -> 92 | N30: =IF(COUNT($C$6:E30)<=6,0,TRUNC((230-M29)*0.9)) -> 124 | O30: =_xlfn.IFS(SUM(C30:E30)<1,"",COUNT($C$6:E30)>9,TRUNC((230-M29)*(0.9)),COUNT($C$6:E30)<=9,0) ->  | P30: =_xlfn.IFS(SUM(C30:E30)<1,"",COUNT($C$6:E30)>9,N30*3+H30,COUNT($C$6:E30)<=9,0) ->  | S30: =IF(COUNT($C$6:E30)>9,IF(P30=MAX($P$6:$P$35),P30," "),"") ->  | V30: =IF(COUNT(C30:E30)<1,0,IF(COUNT($C$6:E30)>9,C30+N30,0)) -> 0 | W30: =IF(COUNT(C30:E30)<1,0,IF(COUNT($C$6:E30)>9,D30+N30,0)) -> 0 | X30: =IF(COUNT(C30:E30)<1,0,IF(COUNT($C$6:E30)>9,E30+N30,0)) -> 0 | AA30: 0 | AB30: 0 | AC30: 25
A31: wk26 | B31: =Calendar!B31 -> 2020-03-25 | F31: =IF(COUNT(C31:E31)<1," ",IF(AND(C31>M30,D31>M30,E31>M30,COUNT($C$6:E30)>=12),"*"," ")) ->  | G31: =IF(COUNT(C31:E31)<1," ",IF(AND(C31>M29,D31>M29,E31>M29,COUNT($C$6:E29)>=12),"*"," ")) ->  | J31: =_xlfn.IFS(SUM(C31:E31)<1,"",SUM(C31:E31)>=1,SUM($C$6:E31)) ->  | K31: =_xlfn.IFS(COUNT(C31:E31)<1,"",COUNT($C$6:E31)>=1,COUNT($C$6:E31)) ->  | L31: =_xlfn.IFS(COUNT(C31:E31)<1,"",AND(COUNT($C$6:E31)<=9,$C$4>1),$C$4,COUNT(C31:E31)>=1,M31) ->  | M31: =IF(COUNT($C$6:E31)>=1,TRUNC(SUM($C$6:E31)/COUNT($C$6:E31)),0) -> 92 | N31: =IF(COUNT($C$6:E31)<=6,0,TRUNC((230-M30)*0.9)) -> 124 | O31: =_xlfn.IFS(SUM(C31:E31)<1,"",COUNT($C$6:E31)>9,TRUNC((230-M30)*(0.9)),COUNT($C$6:E31)<=9,0) ->  | P31: =_xlfn.IFS(SUM(C31:E31)<1,"",COUNT($C$6:E31)>9,N31*3+H31,COUNT($C$6:E31)<=9,0) ->  | S31: =IF(COUNT($C$6:E31)>9,IF(P31=MAX($P$6:$P$35),P31," "),"") ->  | V31: =IF(COUNT(C31:E31)<1,0,IF(COUNT($C$6:E31)>9,C31+N31,0)) -> 0 | W31: =IF(COUNT(C31:E31)<1,0,IF(COUNT($C$6:E31)>9,D31+N31,0)) -> 0 | X31: =IF(COUNT(C31:E31)<1,0,IF(COUNT($C$6:E31)>9,E31+N31,0)) -> 0 | AA31: 0 | AB31: 0 | AC31: 26
A32: wk27 | B32: =Calendar!B32 -> 2020-04-01 | F32: =IF(COUNT(C32:E32)<1," ",IF(AND(C32>M31,D32>M31,E32>M31,COUNT($C$6:E31)>=12),"*"," ")) ->  | G32: =IF(COUNT(C32:E32)<1," ",IF(AND(C32>M30,D32>M30,E32>M30,COUNT($C$6:E30)>=12),"*"," ")) ->  | J32: =_xlfn.IFS(SUM(C32:E32)<1,"",SUM(C32:E32)>=1,SUM($C$6:E32)) ->  | K32: =_xlfn.IFS(COUNT(C32:E32)<1,"",COUNT($C$6:E32)>=1,COUNT($C$6:E32)) ->  | L32: =_xlfn.IFS(COUNT(C32:E32)<1,"",AND(COUNT($C$6:E32)<=9,$C$4>1),$C$4,COUNT(C32:E32)>=1,M32) ->  | M32: =IF(COUNT($C$6:E32)>=1,TRUNC(SUM($C$6:E32)/COUNT($C$6:E32)),0) -> 92 | N32: =IF(COUNT($C$6:E32)<=6,0,TRUNC((230-M31)*0.9)) -> 124 | O32: =_xlfn.IFS(SUM(C32:E32)<1,"",COUNT($C$6:E32)>9,TRUNC((230-M31)*(0.9)),COUNT($C$6:E32)<=9,0) ->  | P32: =_xlfn.IFS(SUM(C32:E32)<1,"",COUNT($C$6:E32)>9,N32*3+H32,COUNT($C$6:E32)<=9,0) ->  | S32: =IF(COUNT($C$6:E32)>9,IF(P32=MAX($P$6:$P$35),P32," "),"") ->  | V32: =IF(COUNT(C32:E32)<1,0,IF(COUNT($C$6:E32)>9,C32+N32,0)) -> 0 | W32: =IF(COUNT(C32:E32)<1,0,IF(COUNT($C$6:E32)>9,D32+N32,0)) -> 0 | X32: =IF(COUNT(C32:E32)<1,0,IF(COUNT($C$6:E32)>9,E32+N32,0)) -> 0 | AA32: 0 | AB32: 0 | AC32: 27
A33: wk28 | B33: =Calendar!B33 -> 2020-04-08 | F33: =IF(COUNT(C33:E33)<1," ",IF(AND(C33>M32,D33>M32,E33>M32,COUNT($C$6:E32)>=12),"*"," ")) ->  | G33: =IF(COUNT(C33:E33)<1," ",IF(AND(C33>M31,D33>M31,E33>M31,COUNT($C$6:E31)>=12),"*"," ")) ->  | J33: =_xlfn.IFS(SUM(C33:E33)<1,"",SUM(C33:E33)>=1,SUM($C$6:E33)) ->  | K33: =_xlfn.IFS(COUNT(C33:E33)<1,"",COUNT($C$6:E33)>=1,COUNT($C$6:E33)) ->  | L33: =_xlfn.IFS(COUNT(C33:E33)<1,"",AND(COUNT($C$6:E33)<=9,$C$4>1),$C$4,COUNT(C33:E33)>=1,M33) ->  | M33: =IF(COUNT($C$6:E33)>=1,TRUNC(SUM($C$6:E33)/COUNT($C$6:E33)),0) -> 92 | N33: =IF(COUNT($C$6:E33)<=6,0,TRUNC((230-M32)*0.9)) -> 124 | O33: =_xlfn.IFS(SUM(C33:E33)<1,"",COUNT($C$6:E33)>9,TRUNC((230-M32)*(0.9)),COUNT($C$6:E33)<=9,0) ->  | P33: =_xlfn.IFS(SUM(C33:E33)<1,"",COUNT($C$6:E33)>9,N33*3+H33,COUNT($C$6:E33)<=9,0) ->  | S33: =IF(COUNT($C$6:E33)>9,IF(P33=MAX($P$6:$P$35),P33," "),"") ->  | V33: =IF(COUNT(C33:E33)<1,0,IF(COUNT($C$6:E33)>9,C33+N33,0)) -> 0 | W33: =IF(COUNT(C33:E33)<1,0,IF(COUNT($C$6:E33)>9,D33+N33,0)) -> 0 | X33: =IF(COUNT(C33:E33)<1,0,IF(COUNT($C$6:E33)>9,E33+N33,0)) -> 0 | AA33: 0 | AB33: 0 | AC33: 28
A34: wk29 | B34: =Calendar!B34 -> 2020-04-15 | F34: =IF(COUNT(C34:E34)<1," ",IF(AND(C34>M33,D34>M33,E34>M33,COUNT($C$6:E33)>=12),"*"," ")) ->  | G34: =IF(COUNT(C34:E34)<1," ",IF(AND(C34>M32,D34>M32,E34>M32,COUNT($C$6:E32)>=12),"*"," ")) ->  | J34: =_xlfn.IFS(SUM(C34:E34)<1,"",SUM(C34:E34)>=1,SUM($C$6:E34)) ->  | K34: =_xlfn.IFS(COUNT(C34:E34)<1,"",COUNT($C$6:E34)>=1,COUNT($C$6:E34)) ->  | L34: =_xlfn.IFS(COUNT(C34:E34)<1,"",AND(COUNT($C$6:E34)<=9,$C$4>1),$C$4,COUNT(C34:E34)>=1,M34) ->  | M34: =IF(COUNT($C$6:E34)>=1,TRUNC(SUM($C$6:E34)/COUNT($C$6:E34)),0) -> 92 | N34: =IF(COUNT($C$6:E34)<=6,0,TRUNC((230-M33)*0.9)) -> 124 | O34: =_xlfn.IFS(SUM(C34:E34)<1,"",COUNT($C$6:E34)>9,TRUNC((230-M33)*(0.9)),COUNT($C$6:E34)<=9,0) ->  | P34: =_xlfn.IFS(SUM(C34:E34)<1,"",COUNT($C$6:E34)>9,N34*3+H34,COUNT($C$6:E34)<=9,0) ->  | S34: =IF(COUNT($C$6:E34)>9,IF(P34=MAX($P$6:$P$35),P34," "),"") ->  | V34: =IF(COUNT(C34:E34)<1,0,IF(COUNT($C$6:E34)>9,C34+N34,0)) -> 0 | W34: =IF(COUNT(C34:E34)<1,0,IF(COUNT($C$6:E34)>9,D34+N34,0)) -> 0 | X34: =IF(COUNT(C34:E34)<1,0,IF(COUNT($C$6:E34)>9,E34+N34,0)) -> 0 | AA34: 0 | AB34: 0 | AC34: 29
A35: wk30 | B35: =Calendar!B35 -> 2020-04-22 | F35: =IF(COUNT(C35:E35)<1," ",IF(AND(C35>M34,D35>M34,E35>M34,COUNT($C$6:E34)>=12),"*"," ")) ->  | G35: =IF(COUNT(C35:E35)<1," ",IF(AND(C35>M33,D35>M33,E35>M33,COUNT($C$6:E33)>=12),"*"," ")) ->  | J35: =_xlfn.IFS(SUM(C35:E35)<1,"",SUM(C35:E35)>=1,SUM($C$6:E35)) ->  | K35: =_xlfn.IFS(COUNT(C35:E35)<1,"",COUNT($C$6:E35)>=1,COUNT($C$6:E35)) ->  | L35: =_xlfn.IFS(COUNT(C35:E35)<1,"",AND(COUNT($C$6:E35)<=9,$C$4>1),$C$4,COUNT(C35:E35)>=1,M35) ->  | M35: =IF(COUNT($C$6:E35)>=1,TRUNC(SUM($C$6:E35)/COUNT($C$6:E35)),0) -> 92 | N35: =IF(COUNT($C$6:E35)<=6,0,TRUNC((230-M34)*0.9)) -> 124 | O35: =_xlfn.IFS(SUM(C35:E35)<1,"",COUNT($C$6:E35)>9,TRUNC((230-M34)*(0.9)),COUNT($C$6:E35)<=9,0) ->  | P35: =_xlfn.IFS(SUM(C35:E35)<1,"",COUNT($C$6:E35)>9,N35*3+H35,COUNT($C$6:E35)<=9,0) ->  | S35: =IF(COUNT($C$6:E35)>9,IF(P35=MAX($P$6:$P$35),P35," "),"") ->  | V35: =IF(COUNT(C35:E35)<1,0,IF(COUNT($C$6:E35)>9,C35+N35,0)) -> 0 | W35: =IF(COUNT(C35:E35)<1,0,IF(COUNT($C$6:E35)>9,D35+N35,0)) -> 0 | X35: =IF(COUNT(C35:E35)<1,0,IF(COUNT($C$6:E35)>9,E35+N35,0)) -> 0 | AA35: 0 | AB35: 0 | AC35: 30
C36: =(IF(COUNT(C6:C35)=0," ",(SUM(C6:C35))/COUNT(C6:C35))) -> 90.46 | D36: =(IF(COUNT(D6:D35)=0," ",(SUM(D6:D35))/COUNT(D6:D35))) -> 92.25 | E36: =(IF(COUNT(E6:E35)=0," ",(SUM(E6:E35))/COUNT(E6:E35))) -> 95.46

Sheet JNorberg
H1: =Calendar!H1 -> Wednesday Fun Fours 2019/20 season | R1: 6-over wk:
A2: wk# | B2: =MAX(AB6:AB35) -> 24 | R2: 0
A3: Name: | B3: Jodi Norberg | I3: Perfect Attendance: | K3: =IF(SUM(AA6:AA35)<0.5,"Yes","No") -> No | L3: =_xlfn.IFS(AND(B2=30,K3="Yes"),"good",AND(B2<>30,K3="Yes"),"So Far",AND(B2<>30,K3="No")," ") -> 
A4: book average: | H4: wky | I4: wky | J4: cumulative | L4: cumulative | P4: hdcp | Q4: high | R4: high | S4: high hcp | T4: high hcp
C5: g1 | D5: g2 | E5: g3 | H5: series | I5: average | J5: score | K5: games | L5: average | O5: hdcp | P5: series | Q5: series | R5: game | S5: series | T5: game | V5: =MAX(C6:E35) -> 175 | W5: =MAX(V6:X35) -> 265
A6: wk1 | B6: =Calendar!B6 -> 2019-09-04 | H6: =IF(COUNT(C6:E6)<1," ",SUM(C6:E6)) ->  | I6: =IF(COUNT(C6:E6)<1," ",TRUNC(H6/COUNT(C6:E6))) ->  | J6: =_xlfn.IFS(SUM(C6:E6)<1,"",SUM(C6:E6)>=1,SUM($C$6:E6)) ->  | K6: =_xlfn.IFS(COUNT(C6:E6)<1,"",COUNT($C$6:E6)>=1,COUNT($C$6:E6)) ->  | L6: =_xlfn.IFS(COUNT(C6:E6)<1,"",AND(COUNT($C$6:E6)<=9,$C$4>1),$C$4,COUNT(C6:E6)>=1,M6) ->  | M6: =IF(COUNT($C$6:E6)>=1,TRUNC(SUM($C$6:E6)/COUNT($C$6:E6)),0) -> 0 | N6: =IF(COUNT($C$6:E6)<=6,0,TRUNC((230-M5)*0.9)) -> 0 | O6: =_xlfn.IFS(SUM(C6:E6)<1,"",COUNT($C$6:E6)>9,TRUNC((230-M5)*(0.9)),COUNT($C$6:E6)<=9,0) ->  | P6: =_xlfn.IFS(SUM(C6:E6)<1,"",COUNT($C$6:E6)>9,N6*3+H6,COUNT($C$6:E6)<=9,0) ->  | Q6: =IF(H6=(MAX($H$6:$H$35)),H6," ") ->  | R6: =IF((OR(C6=$V$5,D6=$V$5,E6=$V$5)),$V$5," ") ->  | S6: =IF(COUNT($C$6:E6)>9,IF(P6=MAX($P$6:$P$35),P6," "),"") ->  | T6: =IF(OR(V6=$W$5,W6=$W$5,X6=$W$5),$W$5," ") ->  | V6: =IF(COUNT(C6:E6)<1,0,IF(COUNT($C$6:E6)>9,C6+N6,0)) -> 0 | W6: =IF(COUNT(C6:E6)<1,0,IF(COUNT($C$6:E6)>9,D6+N6,0)) -> 0 | X6: =IF(COUNT(C6:E6)<1,0,IF(COUNT($C$6:E6)>9,E6+N6,0)) -> 0 | AA6: =IF((MAX($AB$6:$AB$35))<AC6,0,IF(AB6=AC6,0,1)) -> 1 | AB6: =IF(COUNT(C6:E6)>0,AC6,0) -> 0 | AC6: 1
A7: wk2 | B7: =Calendar!B7 -> 2019-09-11 | I7: =IF(COUNT(C7:E7)<1," ",TRUNC(H7/COUNT(C7:E7))) ->  | J7: =_xlfn.IFS(SUM(C7:E7)<1,"",SUM(C7:E7)>=1,SUM($C$6:E7)) ->  | K7: =_xlfn.IFS(COUNT(C7:E7)<1,"",COUNT($C$6:E7)>=1,COUNT($C$6:E7)) ->  | L7: =_xlfn.IFS(COUNT(C7:E7)<1,"",AND(COUNT($C$6:E7)<=9,$C$4>1),$C$4,COUNT(C7:E7)>=1,M7) ->  | M7: =IF(COUNT($C$6:E7)>=1,TRUNC(SUM($C$6:E7)/COUNT($C$6:E7)),0) -> 0 | N7: =IF(COUNT($C$6:E7)<=6,0,TRUNC((230-M6)*0.9)) -> 0 | O7: =_xlfn.IFS(SUM(C7:E7)<1,"",COUNT($C$6:E7)>9,TRUNC((230-M6)*(0.9)),COUNT($C$6:E7)<=9,0) ->  | P7: =_xlfn.IFS(SUM(C7:E7)<1,"",COUNT($C$6:E7)>9,N7*3+H7,COUNT($C$6:E7)<=9,0) ->  | S7: =IF(COUNT($C$6:E7)>9,IF(P7=MAX($P$6:$P$35),P7," "),"") ->  | V7: =IF(COUNT(C7:E7)<1,0,IF(COUNT($C$6:E7)>9,C7+N7,0)) -> 0 | W7: =IF(COUNT(C7:E7)<1,0,IF(COUNT($C$6:E7)>9,D7+N7,0)) -> 0 | X7: =IF(COUNT(C7:E7)<1,0,IF(COUNT($C$6:E7)>9,E7+N7,0)) -> 0 | AA7: 1 | AB7: =IF(COUNT(C7:E7)>0,AC7,0) -> 0 | AC7: 2
A8: wk3 | B8: =Calendar!B8 -> 2019-09-18 | J8: =_xlfn.IFS(SUM(C8:E8)<1,"",SUM(C8:E8)>=1,SUM($C$6:E8)) ->  | K8: =_xlfn.IFS(COUNT(C8:E8)<1,"",COUNT($C$6:E8)>=1,COUNT($C$6:E8)) ->  | L8: =_xlfn.IFS(COUNT(C8:E8)<1,"",AND(COUNT($C$6:E8)<=9,$C$4>1),$C$4,COUNT(C8:E8)>=1,M8) ->  | M8: =IF(COUNT($C$6:E8)>=1,TRUNC(SUM($C$6:E8)/COUNT($C$6:E8)),0) -> 0 | N8: =IF(COUNT($C$6:E8)<=6,0,TRUNC((230-M7)*0.9)) -> 0 | O8: =_xlfn.IFS(SUM(C8:E8)<1,"",COUNT($C$6:E8)>9,TRUNC((230-M7)*(0.9)),COUNT($C$6:E8)<=9,0) ->  | P8: =_xlfn.IFS(SUM(C8:E8)<1,"",COUNT($C$6:E8)>9,N8*3+H8,COUNT($C$6:E8)<=9,0) ->  | S8: =IF(COUNT($C$6:E8)>9,IF(P8=MAX($P$6:$P$35),P8," "),"") ->  | V8: =IF(COUNT(C8:E8)<1,0,IF(COUNT($C$6:E8)>9,C8+N8,0)) -> 0 | W8: =IF(COUNT(C8:E8)<1,0,IF(COUNT($C$6:E8)>9,D8+N8,0)) -> 0 | X8: =IF(COUNT(C8:E8)<1,0,IF(COUNT($C$6:E8)>9,E8+N8,0)) -> 0 | AA8: 1 | AB8: 0 | AC8: 3
A9: wk4 | B9: =Calendar!B9 -> 2019-09-25 | C9: 96 | D9: 136 | E9: 166 | H9: 398 | I9: 132 | J9: =_xlfn.IFS(SUM(C9:E9)<1,"",SUM(C9:E9)>=1,SUM($C$6:E9)) -> 398 | K9: =_xlfn.IFS(COUNT(C9:E9)<1,"",COUNT($C$6:E9)>=1,COUNT($C$6:E9)) -> 3 | L9: =_xlfn.IFS(COUNT(C9:E9)<1,"",AND(COUNT($C$6:E9)<=9,$C$4>1),$C$4,COUNT(C9:E9)>=1,M9) -> 132 | M9: =IF(COUNT($C$6:E9)>=1,TRUNC(SUM($C$6:E9)/COUNT($C$6:E9)),0) -> 132 | N9: =IF(COUNT($C$6:E9)<=6,0,TRUNC((230-M8)*0.9)) -> 0 | O9: =_xlfn.IFS(SUM(C9:E9)<1,"",COUNT($C$6:E9)>9,TRUNC((230-M8)*(0.9)),COUNT($C$6:E9)<=9,0) -> 0 | P9: =_xlfn.IFS(SUM(C9:E9)<1,"",COUNT($C$6:E9)>9,N9*3+H9,COUNT($C$6:E9)<=9,0) -> 0 | S9: =IF(COUNT($C$6:E9)>9,IF(P9=MAX($P$6:$P$35),P9," "),"") ->  | V9: =IF(COUNT(C9:E9)<1,0,IF(COUNT($C$6:E9)>9,C9+N9,0)) -> 0 | W9: =IF(COUNT(C9:E9)<1,0,IF(COUNT($C$6:E9)>9,D9+N9,0)) -> 0 | X9: =IF(COUNT(C9:E9)<1,0,IF(COUNT($C$6:E9)>9,E9+N9,0)) -> 0 | AA9: 0 | AB9: 4 | AC9: 4
A10: wk5 | B10: =Calendar!B10 -> 2019-10-02 | F10: =IF(COUNT(C10:E10)<1," ",IF(AND(C10>M9,D10>M9,E10>M9,COUNT($C$6:E9)>=12),"*"," ")) ->  | J10: =_xlfn.IFS(SUM(C10:E10)<1,"",SUM(C10:E10)>=1,SUM($C$6:E10)) ->  | K10: =_xlfn.IFS(COUNT(C10:E10)<1,"",COUNT($C$6:E10)>=1,COUNT($C$6:E10)) ->  | L10: =_xlfn.IFS(COUNT(C10:E10)<1,"",AND(COUNT($C$6:E10)<=9,$C$4>1),$C$4,COUNT(C10:E10)>=1,M10) ->  | M10: =IF(COUNT($C$6:E10)>=1,TRUNC(SUM($C$6:E10)/COUNT($C$6:E10)),0) -> 132 | N10: =IF(COUNT($C$6:E10)<=6,0,TRUNC((230-M9)*0.9)) -> 0 | O10: =_xlfn.IFS(SUM(C10:E10)<1,"",COUNT($C$6:E10)>9,TRUNC((230-M9)*(0.9)),COUNT($C$6:E10)<=9,0) ->  | P10: =_xlfn.IFS(SUM(C10:E10)<1,"",COUNT($C$6:E10)>9,N10*3+H10,COUNT($C$6:E10)<=9,0) ->  | S10: =IF(COUNT($C$6:E10)>9,IF(P10=MAX($P$6:$P$35),P10," "),"") ->  | V10: =IF(COUNT(C10:E10)<1,0,IF(COUNT($C$6:E10)>9,C10+N10,0)) -> 0 | W10: =IF(COUNT(C10:E10)<1,0,IF(COUNT($C$6:E10)>9,D10+N10,0)) -> 0 | X10: =IF(COUNT(C10:E10)<1,0,IF(COUNT($C$6:E10)>9,E10+N10,0)) -> 0 | AA10: 1 | AB10: 0 | AC10: 5
A11: wk6 | B11: =Calendar!B11 -> 2019-10-09 | F11: =IF(COUNT(C11:E11)<1," ",IF(AND(C11>M10,D11>M10,E11>M10,COUNT($C$6:E10)>=12),"*"," ")) ->  | G11: =IF(COUNT(C11:E11)<1," ",IF(AND(C11>M9,D11>M9,E11>M9,COUNT($C$6:E9)>=12),"*"," ")) ->  | J11: =_xlfn.IFS(SUM(C11:E11)<1,"",SUM(C11:E11)>=1,SUM($C$6:E11)) ->  | K11: =_xlfn.IFS(COUNT(C11:E11)<1,"",COUNT($C$6:E11)>=1,COUNT($C$6:E11)) ->  | L11: =_xlfn.IFS(COUNT(C11:E11)<1,"",AND(COUNT($C$6:E11)<=9,$C$4>1),$C$4,COUNT(C11:E11)>=1,M11) ->  | M11: =IF(COUNT($C$6:E11)>=1,TRUNC(SUM($C$6:E11)/COUNT($C$6:E11)),0) -> 132 | N11: =IF(COUNT($C$6:E11)<=6,0,TRUNC((230-M10)*0.9)) -> 0 | O11: =_xlfn.IFS(SUM(C11:E11)<1,"",COUNT($C$6:E11)>9,TRUNC((230-M10)*(0.9)),COUNT($C$6:E11)<=9,0) ->  | P11: =_xlfn.IFS(SUM(C11:E11)<1,"",COUNT($C$6:E11)>9,N11*3+H11,COUNT($C$6:E11)<=9,0) ->  | S11: =IF(COUNT($C$6:E11)>9,IF(P11=MAX($P$6:$P$35),P11," "),"") ->  | V11: =IF(COUNT(C11:E11)<1,0,IF(COUNT($C$6:E11)>9,C11+N11,0)) -> 0 | W11: =IF(COUNT(C11:E11)<1,0,IF(COUNT($C$6:E11)>9,D11+N11,0)) -> 0 | X11: =IF(COUNT(C11:E11)<1,0,IF(COUNT($C$6:E11)>9,E11+N11,0)) -> 0 | AA11: 1 | AB11: 0 | AC11: 6
A12: wk7 | B12: =Calendar!B12 -> 2019-10-16 | F12: =IF(COUNT(C12:E12)<1," ",IF(AND(C12>M11,D12>M11,E12>M11,COUNT($C$6:E11)>=12),"*"," ")) ->  | G12: =IF(COUNT(C12:E12)<1," ",IF(AND(C12>M10,D12>M10,E12>M10,COUNT($C$6:E10)>=12),"*"," ")) ->  | J12: =_xlfn.IFS(SUM(C12:E12)<1,"",SUM(C12:E12)>=1,SUM($C$6:E12)) ->  | K12: =_xlfn.IFS(COUNT(C12:E12)<1,"",COUNT($C$6:E12)>=1,COUNT($C$6:E12)) ->  | L12: =_xlfn.IFS(COUNT(C12:E12)<1,"",AND(COUNT($C$6:E12)<=9,$C$4>1),$C$4,COUNT(C12:E12)>=1,M12) ->  | M12: =IF(COUNT($C$6:E12)>=1,TRUNC(SUM($C$6:E12)/COUNT($C$6:E12)),0) -> 132 | N12: =IF(COUNT($C$6:E12)<=6,0,TRUNC((230-M11)*0.9)) -> 0 | O12: =_xlfn.IFS(SUM(C12:E12)<1,"",COUNT($C$6:E12)>9,TRUNC((230-M11)*(0.9)),COUNT($C$6:E12)<=9,0) ->  | P12: =_xlfn.IFS(SUM(C12:E12)<1,"",COUNT($C$6:E12)>9,N12*3+H12,COUNT($C$6:E12)<=9,0) ->  | S12: =IF(COUNT($C$6:E12)>9,IF(P12=MAX($P$6:$P$35),P12," "),"") ->  | V12: =IF(COUNT(C12:E12)<1,0,IF(COUNT($C$6:E12)>9,C12+N12,0)) -> 0 | W12: =IF(COUNT(C12:E12)<1,0,IF(COUNT($C$6:E12)>9,D12+N12,0)) -> 0 | X12: =IF(COUNT(C12:E12)<1,0,IF(COUNT($C$6:E12)>9,E12+N12,0)) -> 0 | AA12: 1 | AB12: 0 | AC12: 7
A13: wk8 | B13: =Calendar!B13 -> 2020-10-23 | F13: =IF(COUNT(C13:E13)<1," ",IF(AND(C13>M12,D13>M12,E13>M12,COUNT($C$6:E12)>=12),"*"," ")) ->  | G13: =IF(COUNT(C13:E13)<1," ",IF(AND(C13>M11,D13>M11,E13>M11,COUNT($C$6:E11)>=12),"*"," ")) ->  | J13: =_xlfn.IFS(SUM(C13:E13)<1,"",SUM(C13:E13)>=1,SUM($C$6:E13)) ->  | K13: =_xlfn.IFS(COUNT(C13:E13)<1,"",COUNT($C$6:E13)>=1,COUNT($C$6:E13)) ->  | L13: =_xlfn.IFS(COUNT(C13:E13)<1,"",AND(COUNT($C$6:E13)<=9,$C$4>1),$C$4,COUNT(C13:E13)>=1,M13) ->  | M13: =IF(COUNT($C$6:E13)>=1,TRUNC(SUM($C$6:E13)/COUNT($C$6:E13)),0) -> 132 | N13: =IF(COUNT($C$6:E13)<=6,0,TRUNC((230-M12)*0.9)) -> 0 | O13: =_xlfn.IFS(SUM(C13:E13)<1,"",COUNT($C$6:E13)>9,TRUNC((230-M12)*(0.9)),COUNT($C$6:E13)<=9,0) ->  | P13: =_xlfn.IFS(SUM(C13:E13)<1,"",COUNT($C$6:E13)>9,N13*3+H13,COUNT($C$6:E13)<=9,0) ->  | S13: =IF(COUNT($C$6:E13)>9,IF(P13=MAX($P$6:$P$35),P13," "),"") ->  | V13: =IF(COUNT(C13:E13)<1,0,IF(COUNT($C$6:E13)>9,C13+N13,0)) -> 0 | W13: =IF(COUNT(C13:E13)<1,0,IF(COUNT($C$6:E13)>9,D13+N13,0)) -> 0 | X13: =IF(COUNT(C13:E13)<1,0,IF(COUNT($C$6:E13)>9,E13+N13,0)) -> 0 | AA13: 1 | AB13: 0 | AC13: 8
A14: wk9 | B14: =Calendar!B14 -> 2019-11-06 | C14: 108 | D14: 131 | E14: 138 | F14: =IF(COUNT(C14:E14)<1," ",IF(AND(C14>M13,D14>M13,E14>M13,COUNT($C$6:E13)>=12),"*"," ")) ->  | G14: =IF(COUNT(C14:E14)<1," ",IF(AND(C14>M12,D14>M12,E14>M12,COUNT($C$6:E12)>=12),"*"," ")) ->  | H14: 377 | I14: 125 | J14: =_xlfn.IFS(SUM(C14:E14)<1,"",SUM(C14:E14)>=1,SUM($C$6:E14)) -> 775 | K14: =_xlfn.IFS(COUNT(C14:E14)<1,"",COUNT($C$6:E14)>=1,COUNT($C$6:E14)) -> 6 | L14: =_xlfn.IFS(COUNT(C14:E14)<1,"",AND(COUNT($C$6:E14)<=9,$C$4>1),$C$4,COUNT(C14:E14)>=1,M14) -> 129 | M14: =IF(COUNT($C$6:E14)>=1,TRUNC(SUM($C$6:E14)/COUNT($C$6:E14)),0) -> 129 | N14: =IF(COUNT($C$6:E14)<=6,0,TRUNC((230-M13)*0.9)) -> 0 | O14: =_xlfn.IFS(SUM(C14:E14)<1,"",COUNT($C$6:E14)>9,TRUNC((230-M13)*(0.9)),COUNT($C$6:E14)<=9,0) -> 0 | P14: =_xlfn.IFS(SUM(C14:E14)<1,"",COUNT($C$6:E14)>9,N14*3+H14,COUNT($C$6:E14)<=9,0) -> 0 | S14: =IF(COUNT($C$6:E14)>9,IF(P14=MAX($P$6:$P$35),P14," "),"") ->  | V14: =IF(COUNT(C14:E14)<1,0,IF(COUNT($C$6:E14)>9,C14+N14,0)) -> 0 | W14: =IF(COUNT(C14:E14)<1,0,IF(COUNT($C$6:E14)>9,D14+N14,0)) -> 0 | X14: =IF(COUNT(C14:E14)<1,0,IF(COUNT($C$6:E14)>9,E14+N14,0)) -> 0 | AA14: 0 | AB14: 9 | AC14: 9
A15: wk10 | B15: =Calendar!B15 -> 2019-11-13 | C15: 127 | D15: 140 | E15: 152 | F15: =IF(COUNT(C15:E15)<1," ",IF(AND(C15>M14,D15>M14,E15>M14,COUNT($C$6:E14)>=12),"*"," ")) ->  | G15: =IF(COUNT(C15:E15)<1," ",IF(AND(C15>M13,D15>M13,E15>M13,COUNT($C$6:E13)>=12),"*"," ")) ->  | H15: 419 | I15: 139 | J15: =_xlfn.IFS(SUM(C15:E15)<1,"",SUM(C15:E15)>=1,SUM($C$6:E15)) -> 1194 | K15: =_xlfn.IFS(COUNT(C15:E15)<1,"",COUNT($C$6:E15)>=1,COUNT($C$6:E15)) -> 9 | L15: =_xlfn.IFS(COUNT(C15:E15)<1,"",AND(COUNT($C$6:E15)<=9,$C$4>1),$C$4,COUNT(C15:E15)>=1,M15) -> 132 | M15: =IF(COUNT($C$6:E15)>=1,TRUNC(SUM($C$6:E15)/COUNT($C$6:E15)),0) -> 132 | N15: =IF(COUNT($C$6:E15)<=6,0,TRUNC((230-M14)*0.9)) -> 90 | O15: =_xlfn.IFS(SUM(C15:E15)<1,"",COUNT($C$6:E15)>9,TRUNC((230-M14)*(0.9)),COUNT($C$6:E15)<=9,0) -> 0 | P15: =_xlfn.IFS(SUM(C15:E15)<1,"",COUNT($C$6:E15)>9,N15*3+H15,COUNT($C$6:E15)<=9,0) -> 0 | S15: =IF(COUNT($C$6:E15)>9,IF(P15=MAX($P$6:$P$35),P15," "),"") ->  | V15: =IF(COUNT(C15:E15)<1,0,IF(COUNT($C$6:E15)>9,C15+N15,0)) -> 0 | W15: =IF(COUNT(C15:E15)<1,0,IF(COUNT($C$6:E15)>9,D15+N15,0)) -> 0 | X15: =IF(COUNT(C15:E15)<1,0,IF(COUNT($C$6:E15)>9,E15+N15,0)) -> 0 | AA15: 0 | AB15: 10 | AC15: 10
A16: wk11 | B16: =Calendar!B16 -> 2019-11-20 | C16: 124 | D16: 121 | E16: 129 | F16: =IF(COUNT(C16:E16)<1," ",IF(AND(C16>M15,D16>M15,E16>M15,COUNT($C$6:E15)>=12),"*"," ")) ->  | G16: =IF(COUNT(C16:E16)<1," ",IF(AND(C16>M14,D16>M14,E16>M14,COUNT($C$6:E14)>=12),"*"," ")) ->  | H16: 374 | I16: 124 | J16: =_xlfn.IFS(SUM(C16:E16)<1,"",SUM(C16:E16)>=1,SUM($C$6:E16)) -> 1568 | K16: =_xlfn.IFS(COUNT(C16:E16)<1,"",COUNT($C$6:E16)>=1,COUNT($C$6:E16)) -> 12 | L16: =_xlfn.IFS(COUNT(C16:E16)<1,"",AND(COUNT($C$6:E16)<=9,$C$4>1),$C$4,COUNT(C16:E16)>=1,M16) -> 130 | M16: =IF(COUNT($C$6:E16)>=1,TRUNC(SUM($C$6:E16)/COUNT($C$6:E16)),0) -> 130 | N16: =IF(COUNT($C$6:E16)<=6,0,TRUNC((230-M15)*0.9)) -> 88 | O16: =_xlfn.IFS(SUM(C16:E16)<1,"",COUNT($C$6:E16)>9,TRUNC((230-M15)*(0.9)),COUNT($C$6:E16)<=9,0) -> 88 | P16: =_xlfn.IFS(SUM(C16:E16)<1,"",COUNT($C$6:E16)>9,N16*3+H16,COUNT($C$6:E16)<=9,0) -> 638 | S16: =IF(COUNT($C$6:E16)>9,IF(P16=MAX($P$6:$P$35),P16," "),"") ->  | V16: =IF(COUNT(C16:E16)<1,0,IF(COUNT($C$6:E16)>9,C16+N16,0)) -> 212 | W16: =IF(COUNT(C16:E16)<1,0,IF(COUNT($C$6:E16)>9,D16+N16,0)) -> 209 | X16: =IF(COUNT(C16:E16)<1,0,IF(COUNT($C$6:E16)>9,E16+N16,0)) -> 217 | AA16: 0 | AB16: 11 | AC16: 11
A17: wk12 | B17: =Calendar!B17 -> 2019-12-04 | C17: 125 | D17: 170 | E17: 133 | F17: =IF(COUNT(C17:E17)<1," ",IF(AND(C17>M16,D17>M16,E17>M16,COUNT($C$6:E16)>=12),"*"," ")) ->  | G17: =IF(COUNT(C17:E17)<1," ",IF(AND(C17>M15,D17>M15,E17>M15,COUNT($C$6:E15)>=12),"*"," ")) ->  | H17: 428 | I17: 142 | J17: =_xlfn.IFS(SUM(C17:E17)<1,"",SUM(C17:E17)>=1,SUM($C$6:E17)) -> 1996 | K17: =_xlfn.IFS(COUNT(C17:E17)<1,"",COUNT($C$6:E17)>=1,COUNT($C$6:E17)) -> 15 | L17: =_xlfn.IFS(COUNT(C17:E17)<1,"",AND(COUNT($C$6:E17)<=9,$C$4>1),$C$4,COUNT(C17:E17)>=1,M17) -> 133 | M17: =IF(COUNT($C$6:E17)>=1,TRUNC(SUM($C$6:E17)/COUNT($C$6:E17)),0) -> 133 | N17: =IF(COUNT($C$6:E17)<=6,0,TRUNC((230-M16)*0.9)) -> 90 | O17: =_xlfn.IFS(SUM(C17:E17)<1,"",COUNT($C$6:E17)>9,TRUNC((230-M16)*(0.9)),COUNT($C$6:E17)<=9,0) -> 90 | P17: =_xlfn.IFS(SUM(C17:E17)<1,"",COUNT($C$6:E17)>9,N17*3+H17,COUNT($C$6:E17)<=9,0) -> 698 | S17: =IF(COUNT($C$6:E17)>9,IF(P17=MAX($P$6:$P$35),P17," "),"") ->  | V17: =IF(COUNT(C17:E17)<1,0,IF(COUNT($C$6:E17)>9,C17+N17,0)) -> 215 | W17: =IF(COUNT(C17:E17)<1,0,IF(COUNT($C$6:E17)>9,D17+N17,0)) -> 260 | X17: =IF(COUNT(C17:E17)<1,0,IF(COUNT($C$6:E17)>9,E17+N17,0)) -> 223 | AA17: 0 | AB17: 12 | AC17: 12
A18: wk13 | B18: =Calendar!B18 -> 2019-12-11 | C18: 131 | D18: 103 | E18: 119 | F18: =IF(COUNT(C18:E18)<1," ",IF(AND(C18>M17,D18>M17,E18>M17,COUNT($C$6:E17)>=12),"*"," ")) ->  | G18: =IF(COUNT(C18:E18)<1," ",IF(AND(C18>M16,D18>M16,E18>M16,COUNT($C$6:E16)>=12),"*"," ")) ->  | H18: 353 | I18: 117 | J18: =_xlfn.IFS(SUM(C18:E18)<1,"",SUM(C18:E18)>=1,SUM($C$6:E18)) -> 2349 | K18: =_xlfn.IFS(COUNT(C18:E18)<1,"",COUNT($C$6:E18)>=1,COUNT($C$6:E18)) -> 18 | L18: =_xlfn.IFS(COUNT(C18:E18)<1,"",AND(COUNT($C$6:E18)<=9,$C$4>1),$C$4,COUNT(C18:E18)>=1,M18) -> 130 | M18: =IF(COUNT($C$6:E18)>=1,TRUNC(SUM($C$6:E18)/COUNT($C$6:E18)),0) -> 130 | N18: =IF(COUNT($C$6:E18)<=6,0,TRUNC((230-M17)*0.9)) -> 87 | O18: =_xlfn.IFS(SUM(C18:E18)<1,"",COUNT($C$6:E18)>9,TRUNC((230-M17)*(0.9)),COUNT($C$6:E18)<=9,0) -> 87 | P18: =_xlfn.IFS(SUM(C18:E18)<1,"",COUNT($C$6:E18)>9,N18*3+H18,COUNT($C$6:E18)<=9,0) -> 614 | S18: =IF(COUNT($C$6:E18)>9,IF(P18=MAX($P$6:$P$35),P18," "),"") ->  | V18: =IF(COUNT(C18:E18)<1,0,IF(COUNT($C$6:E18)>9,C18+N18,0)) -> 218 | W18: =IF(COUNT(C18:E18)<1,0,IF(COUNT($C$6:E18)>9,D18+N18,0)) -> 190 | X18: =IF(COUNT(C18:E18)<1,0,IF(COUNT($C$6:E18)>9,E18+N18,0)) -> 206 | AA18: 0 | AB18: 13 | AC18: 13
A19: wk14 | B19: =Calendar!B19 -> 2019-12-18 | C19: 123 | D19: 105 | E19: 111 | F19: =IF(COUNT(C19:E19)<1," ",IF(AND(C19>M18,D19>M18,E19>M18,COUNT($C$6:E18)>=12),"*"," ")) ->  | G19: =IF(COUNT(C19:E19)<1," ",IF(AND(C19>M17,D19>M17,E19>M17,COUNT($C$6:E17)>=12),"*"," ")) ->  | H19: 339 | I19: 113 | J19: =_xlfn.IFS(SUM(C19:E19)<1,"",SUM(C19:E19)>=1,SUM($C$6:E19)) -> 2688 | K19: =_xlfn.IFS(COUNT(C19:E19)<1,"",COUNT($C$6:E19)>=1,COUNT($C$6:E19)) -> 21 | L19: =_xlfn.IFS(COUNT(C19:E19)<1,"",AND(COUNT($C$6:E19)<=9,$C$4>1),$C$4,COUNT(C19:E19)>=1,M19) -> 128 | M19: =IF(COUNT($C$6:E19)>=1,TRUNC(SUM($C$6:E19)/COUNT($C$6:E19)),0) -> 128 | N19: =IF(COUNT($C$6:E19)<=6,0,TRUNC((230-M18)*0.9)) -> 90 | O19: =_xlfn.IFS(SUM(C19:E19)<1,"",COUNT($C$6:E19)>9,TRUNC((230-M18)*(0.9)),COUNT($C$6:E19)<=9,0) -> 90 | P19: =_xlfn.IFS(SUM(C19:E19)<1,"",COUNT($C$6:E19)>9,N19*3+H19,COUNT($C$6:E19)<=9,0) -> 609 | S19: =IF(COUNT($C$6:E19)>9,IF(P19=MAX($P$6:$P$35),P19," "),"") ->  | V19: =IF(COUNT(C19:E19)<1,0,IF(COUNT($C$6:E19)>9,C19+N19,0)) -> 213 | W19: =IF(COUNT(C19:E19)<1,0,IF(COUNT($C$6:E19)>9,D19+N19,0)) -> 195 | X19: =IF(COUNT(C19:E19)<1,0,IF(COUNT($C$6:E19)>9,E19+N19,0)) -> 201 | AA19: 0 | AB19: 14 | AC19: 14
A20: wk15 | B20: =Calendar!B20 -> 2020-01-08 | C20: 152 | D20: 124 | E20: 149 | F20: =IF(COUNT(C20:E20)<1," ",IF(AND(C20>M19,D20>M19,E20>M19,COUNT($C$6:E19)>=12),"*"," ")) ->  | G20: =IF(COUNT(C20:E20)<1," ",IF(AND(C20>M18,D20>M18,E20>M18,COUNT($C$6:E18)>=12),"*"," ")) ->  | H20: 425 | I20: 141 | J20: =_xlfn.IFS(SUM(C20:E20)<1,"",SUM(C20:E20)>=1,SUM($C$6:E20)) -> 3113 | K20: =_xlfn.IFS(COUNT(C20:E20)<1,"",COUNT($C$6:E20)>=1,COUNT($C$6:E20)) -> 24 | L20: =_xlfn.IFS(COUNT(C20:E20)<1,"",AND(COUNT($C$6:E20)<=9,$C$4>1),$C$4,COUNT(C20:E20)>=1,M20) -> 129 | M20: =IF(COUNT($C$6:E20)>=1,TRUNC(SUM($C$6:E20)/COUNT($C$6:E20)),0) -> 129 | N20: =IF(COUNT($C$6:E20)<=6,0,TRUNC((230-M19)*0.9)) -> 91 | O20: =_xlfn.IFS(SUM(C20:E20)<1,"",COUNT($C$6:E20)>9,TRUNC((230-M19)*(0.9)),COUNT($C$6:E20)<=9,0) -> 91 | P20: =_xlfn.IFS(SUM(C20:E20)<1,"",COUNT($C$6:E20)>9,N20*3+H20,COUNT($C$6:E20)<=9,0) -> 698 | S20: =IF(COUNT($C$6:E20)>9,IF(P20=MAX($P$6:$P$35),P20," "),"") ->  | V20: =IF(COUNT(C20:E20)<1,0,IF(COUNT($C$6:E20)>9,C20+N20,0)) -> 243 | W20: =IF(COUNT(C20:E20)<1,0,IF(COUNT($C$6:E20)>9,D20+N20,0)) -> 215 | X20: =IF(COUNT(C20:E20)<1,0,IF(COUNT($C$6:E20)>9,E20+N20,0)) -> 240 | AA20: 0 | AB20: 15 | AC20: 15
A21: wk16 | B21: =Calendar!B21 -> 2020-01-15 | C21: 129 | D21: 126 | E21: 148 | F21: =IF(COUNT(C21:E21)<1," ",IF(AND(C21>M20,D21>M20,E21>M20,COUNT($C$6:E20)>=12),"*"," ")) ->  | G21: =IF(COUNT(C21:E21)<1," ",IF(AND(C21>M19,D21>M19,E21>M19,COUNT($C$6:E19)>=12),"*"," ")) ->  | H21: 403 | I21: 134 | J21: =_xlfn.IFS(SUM(C21:E21)<1,"",SUM(C21:E21)>=1,SUM($C$6:E21)) -> 3516 | K21: =_xlfn.IFS(COUNT(C21:E21)<1,"",COUNT($C$6:E21)>=1,COUNT($C$6:E21)) -> 27 | L21: =_xlfn.IFS(COUNT(C21:E21)<1,"",AND(COUNT($C$6:E21)<=9,$C$4>1),$C$4,COUNT(C21:E21)>=1,M21) -> 130 | M21: =IF(COUNT($C$6:E21)>=1,TRUNC(SUM($C$6:E21)/COUNT($C$6:E21)),0) -> 130 | N21: =IF(COUNT($C$6:E21)<=6,0,TRUNC((230-M20)*0.9)) -> 90 | O21: =_xlfn.IFS(SUM(C21:E21)<1,"",COUNT($C$6:E21)>9,TRUNC((230-M20)*(0.9)),COUNT($C$6:E21)<=9,0) -> 90 | P21: =_xlfn.IFS(SUM(C21:E21)<1,"",COUNT($C$6:E21)>9,N21*3+H21,COUNT($C$6:E21)<=9,0) -> 673 | S21: =IF(COUNT($C$6:E21)>9,IF(P21=MAX($P$6:$P$35),P21," "),"") ->  | V21: =IF(COUNT(C21:E21)<1,0,IF(COUNT($C$6:E21)>9,C21+N21,0)) -> 219 | W21: =IF(COUNT(C21:E21)<1,0,IF(COUNT($C$6:E21)>9,D21+N21,0)) -> 216 | X21: =IF(COUNT(C21:E21)<1,0,IF(COUNT($C$6:E21)>9,E21+N21,0)) -> 238 | AA21: 0 | AB21: 16 | AC21: 16
A22: wk17 | B22: =Calendar!B22 -> 2020-01-22 | C22: 139 | D22: 151 | E22: 166 | F22: =IF(COUNT(C22:E22)<1," ",IF(AND(C22>M21,D22>M21,E22>M21,COUNT($C$6:E21)>=12),"*"," ")) -> * | G22: =IF(COUNT(C22:E22)<1," ",IF(AND(C22>M20,D22>M20,E22>M20,COUNT($C$6:E20)>=12),"*"," ")) -> * | H22: 456 | I22: 152 | J22: =_xlfn.IFS(SUM(C22:E22)<1,"",SUM(C22:E22)>=1,SUM($C$6:E22)) -> 3972 | K22: =_xlfn.IFS(COUNT(C22:E22)<1,"",COUNT($C$6:E22)>=1,COUNT($C$6:E22)) -> 30 | L22: =_xlfn.IFS(COUNT(C22:E22)<1,"",AND(COUNT($C$6:E22)<=9,$C$4>1),$C$4,COUNT(C22:E22)>=1,M22) -> 132 | M22: =IF(COUNT($C$6:E22)>=1,TRUNC(SUM($C$6:E22)/COUNT($C$6:E22)),0) -> 132 | N22: =IF(COUNT($C$6:E22)<=6,0,TRUNC((230-M21)*0.9)) -> 90 | O22: =_xlfn.IFS(SUM(C22:E22)<1,"",COUNT($C$6:E22)>9,TRUNC((230-M21)*(0.9)),COUNT($C$6:E22)<=9,0) -> 90 | P22: =_xlfn.IFS(SUM(C22:E22)<1,"",COUNT($C$6:E22)>9,N22*3+H22,COUNT($C$6:E22)<=9,0) -> 726 | Q22: 456 | S22: =IF(COUNT($C$6:E22)>9,IF(P22=MAX($P$6:$P$35),P22," "),"") -> 726 | V22: =IF(COUNT(C22:E22)<1,0,IF(COUNT($C$6:E22)>9,C22+N22,0)) -> 229 | W22: =IF(COUNT(C22:E22)<1,0,IF(COUNT($C$6:E22)>9,D22+N22,0)) -> 241 | X22: =IF(COUNT(C22:E22)<1,0,IF(COUNT($C$6:E22)>9,E22+N22,0)) -> 256 | AA22: 0 | AB22: 17 | AC22: 17
A23: wk18 | B23: =Calendar!B23 -> 2020-01-29 | C23: 120 | D23: 116 | E23: 173 | F23: =IF(COUNT(C23:E23)<1," ",IF(AND(C23>M22,D23>M22,E23>M22,COUNT($C$6:E22)>=12),"*"," ")) ->  | G23: =IF(COUNT(C23:E23)<1," ",IF(AND(C23>M21,D23>M21,E23>M21,COUNT($C$6:E21)>=12),"*"," ")) ->  | H23: 409 | I23: 136 | J23: =_xlfn.IFS(SUM(C23:E23)<1,"",SUM(C23:E23)>=1,SUM($C$6:E23)) -> 4381 | K23: =_xlfn.IFS(COUNT(C23:E23)<1,"",COUNT($C$6:E23)>=1,COUNT($C$6:E23)) -> 33 | L23: =_xlfn.IFS(COUNT(C23:E23)<1,"",AND(COUNT($C$6:E23)<=9,$C$4>1),$C$4,COUNT(C23:E23)>=1,M23) -> 132 | M23: =IF(COUNT($C$6:E23)>=1,TRUNC(SUM($C$6:E23)/COUNT($C$6:E23)),0) -> 132 | N23: =IF(COUNT($C$6:E23)<=6,0,TRUNC((230-M22)*0.9)) -> 88 | O23: =_xlfn.IFS(SUM(C23:E23)<1,"",COUNT($C$6:E23)>9,TRUNC((230-M22)*(0.9)),COUNT($C$6:E23)<=9,0) -> 88 | P23: =_xlfn.IFS(SUM(C23:E23)<1,"",COUNT($C$6:E23)>9,N23*3+H23,COUNT($C$6:E23)<=9,0) -> 673 | S23: =IF(COUNT($C$6:E23)>9,IF(P23=MAX($P$6:$P$35),P23," "),"") ->  | V23: =IF(COUNT(C23:E23)<1,0,IF(COUNT($C$6:E23)>9,C23+N23,0)) -> 208 | W23: =IF(COUNT(C23:E23)<1,0,IF(COUNT($C$6:E23)>9,D23+N23,0)) -> 204 | X23: =IF(COUNT(C23:E23)<1,0,IF(COUNT($C$6:E23)>9,E23+N23,0)) -> 261 | AA23: 0 | AB23: 18 | AC23: 18
A24: wk19 | B24: =Calendar!B24 -> 2020-02-05 | C24: 91 | D24: 131 | E24: 145 | F24: =IF(COUNT(C24:E24)<1," ",IF(AND(C24>M23,D24>M23,E24>M23,COUNT($C$6:E23)>=12),"*"," ")) ->  | G24: =IF(COUNT(C24:E24)<1," ",IF(AND(C24>M22,D24>M22,E24>M22,COUNT($C$6:E22)>=12),"*"," ")) ->  | H24: 367 | I24: 122 | J24: =_xlfn.IFS(SUM(C24:E24)<1,"",SUM(C24:E24)>=1,SUM($C$6:E24)) -> 4748 | K24: =_xlfn.IFS(COUNT(C24:E24)<1,"",COUNT($C$6:E24)>=1,COUNT($C$6:E24)) -> 36 | L24: =_xlfn.IFS(COUNT(C24:E24)<1,"",AND(COUNT($C$6:E24)<=9,$C$4>1),$C$4,COUNT(C24:E24)>=1,M24) -> 131 | M24: =IF(COUNT($C$6:E24)>=1,TRUNC(SUM($C$6:E24)/COUNT($C$6:E24)),0) -> 131 | N24: =IF(COUNT($C$6:E24)<=6,0,TRUNC((230-M23)*0.9)) -> 88 | O24: =_xlfn.IFS(SUM(C24:E24)<1,"",COUNT($C$6:E24)>9,TRUNC((230-M23)*(0.9)),COUNT($C$6:E24)<=9,0) -> 88 | P24: =_xlfn.IFS(SUM(C24:E24)<1,"",COUNT($C$6:E24)>9,N24*3+H24,COUNT($C$6:E24)<=9,0) -> 631 | S24: =IF(COUNT($C$6:E24)>9,IF(P24=MAX($P$6:$P$35),P24," "),"") ->  | V24: =IF(COUNT(C24:E24)<1,0,IF(COUNT($C$6:E24)>9,C24+N24,0)) -> 179 | W24: =IF(COUNT(C24:E24)<1,0,IF(COUNT($C$6:E24)>9,D24+N24,0)) -> 219 | X24: =IF(COUNT(C24:E24)<1,0,IF(COUNT($C$6:E24)>9,E24+N24,0)) -> 233 | AA24: 0 | AB24: 19 | AC24: 19
A25: wk20 | B25: =Calendar!B25 -> 2020-02-12 | C25: 122 | D25: 133 | E25: 95 | F25: =IF(COUNT(C25:E25)<1," ",IF(AND(C25>M24,D25>M24,E25>M24,COUNT($C$6:E24)>=12),"*"," ")) ->  | G25: =IF(COUNT(C25:E25)<1," ",IF(AND(C25>M23,D25>M23,E25>M23,COUNT($C$6:E23)>=12),"*"," ")) ->  | H25: 350 | I25: 116 | J25: =_xlfn.IFS(SUM(C25:E25)<1,"",SUM(C25:E25)>=1,SUM($C$6:E25)) -> 5098 | K25: =_xlfn.IFS(COUNT(C25:E25)<1,"",COUNT($C$6:E25)>=1,COUNT($C$6:E25)) -> 39 | L25: =_xlfn.IFS(COUNT(C25:E25)<1,"",AND(COUNT($C$6:E25)<=9,$C$4>1),$C$4,COUNT(C25:E25)>=1,M25) -> 130 | M25: =IF(COUNT($C$6:E25)>=1,TRUNC(SUM($C$6:E25)/COUNT($C$6:E25)),0) -> 130 | N25: =IF(COUNT($C$6:E25)<=6,0,TRUNC((230-M24)*0.9)) -> 89 | O25: =_xlfn.IFS(SUM(C25:E25)<1,"",COUNT($C$6:E25)>9,TRUNC((230-M24)*(0.9)),COUNT($C$6:E25)<=9,0) -> 89 | P25: =_xlfn.IFS(SUM(C25:E25)<1,"",COUNT($C$6:E25)>9,N25*3+H25,COUNT($C$6:E25)<=9,0) -> 617 | S25: =IF(COUNT($C$6:E25)>9,IF(P25=MAX($P$6:$P$35),P25," "),"") ->  | V25: =IF(COUNT(C25:E25)<1,0,IF(COUNT($C$6:E25)>9,C25+N25,0)) -> 211 | W25: =IF(COUNT(C25:E25)<1,0,IF(COUNT($C$6:E25)>9,D25+N25,0)) -> 222 | X25: =IF(COUNT(C25:E25)<1,0,IF(COUNT($C$6:E25)>9,E25+N25,0)) -> 184 | AA25: 0 | AB25: 20 | AC25: 20
A26: wk21 | B26: =Calendar!B26 -> 2020-02-19 | C26: 125 | D26: 123 | E26: 129 | F26: =IF(COUNT(C26:E26)<1," ",IF(AND(C26>M25,D26>M25,E26>M25,COUNT($C$6:E25)>=12),"*"," ")) ->  | G26: =IF(COUNT(C26:E26)<1," ",IF(AND(C26>M24,D26>M24,E26>M24,COUNT($C$6:E24)>=12),"*"," ")) ->  | H26: 377 | I26: 125 | J26: =_xlfn.IFS(SUM(C26:E26)<1,"",SUM(C26:E26)>=1,SUM($C$6:E26)) -> 5475 | K26: =_xlfn.IFS(COUNT(C26:E26)<1,"",COUNT($C$6:E26)>=1,COUNT($C$6:E26)) -> 42 | L26: =_xlfn.IFS(COUNT(C26:E26)<1,"",AND(COUNT($C$6:E26)<=9,$C$4>1),$C$4,COUNT(C26:E26)>=1,M26) -> 130 | M26: =IF(COUNT($C$6:E26)>=1,TRUNC(SUM($C$6:E26)/COUNT($C$6:E26)),0) -> 130 | N26: =IF(COUNT($C$6:E26)<=6,0,TRUNC((230-M25)*0.9)) -> 90 | O26: =_xlfn.IFS(SUM(C26:E26)<1,"",COUNT($C$6:E26)>9,TRUNC((230-M25)*(0.9)),COUNT($C$6:E26)<=9,0) -> 90 | P26: =_xlfn.IFS(SUM(C26:E26)<1,"",COUNT($C$6:E26)>9,N26*3+H26,COUNT($C$6:E26)<=9,0) -> 647 | S26: =IF(COUNT($C$6:E26)>9,IF(P26=MAX($P$6:$P$35),P26," "),"") ->  | V26: =IF(COUNT(C26:E26)<1,0,IF(COUNT($C$6:E26)>9,C26+N26,0)) -> 215 | W26: =IF(COUNT(C26:E26)<1,0,IF(COUNT($C$6:E26)>9,D26+N26,0)) -> 213 | X26: =IF(COUNT(C26:E26)<1,0,IF(COUNT($C$6:E26)>9,E26+N26,0)) -> 219 | AA26: 0 | AB26: 21 | AC26: 21
A27: wk22 | B27: =Calendar!B27 -> 2020-02-16 | C27: 146 | D27: 130 | E27: 116 | F27: =IF(COUNT(C27:E27)<1," ",IF(AND(C27>M26,D27>M26,E27>M26,COUNT($C$6:E26)>=12),"*"," ")) ->  | G27: =IF(COUNT(C27:E27)<1," ",IF(AND(C27>M25,D27>M25,E27>M25,COUNT($C$6:E25)>=12),"*"," ")) ->  | H27: 392 | I27: 130 | J27: =_xlfn.IFS(SUM(C27:E27)<1,"",SUM(C27:E27)>=1,SUM($C$6:E27)) -> 5867 | K27: =_xlfn.IFS(COUNT(C27:E27)<1,"",COUNT($C$6:E27)>=1,COUNT($C$6:E27)) -> 45 | L27: =_xlfn.IFS(COUNT(C27:E27)<1,"",AND(COUNT($C$6:E27)<=9,$C$4>1),$C$4,COUNT(C27:E27)>=1,M27) -> 130 | M27: =IF(COUNT($C$6:E27)>=1,TRUNC(SUM($C$6:E27)/COUNT($C$6:E27)),0) -> 130 | N27: =IF(COUNT($C$6:E27)<=6,0,TRUNC((230-M26)*0.9)) -> 90 | O27: =_xlfn.IFS(SUM(C27:E27)<1,"",COUNT($C$6:E27)>9,TRUNC((230-M26)*(0.9)),COUNT($C$6:E27)<=9,0) -> 90 | P27: =_xlfn.IFS(SUM(C27:E27)<1,"",COUNT($C$6:E27)>9,N27*3+H27,COUNT($C$6:E27)<=9,0) -> 662 | S27: =IF(COUNT($C$6:E27)>9,IF(P27=MAX($P$6:$P$35),P27," "),"") ->  | V27: =IF(COUNT(C27:E27)<1,0,IF(COUNT($C$6:E27)>9,C27+N27,0)) -> 236 | W27: =IF(COUNT(C27:E27)<1,0,IF(COUNT($C$6:E27)>9,D27+N27,0)) -> 220 | X27: =IF(COUNT(C27:E27)<1,0,IF(COUNT($C$6:E27)>9,E27+N27,0)) -> 206 | AA27: 0 | AB27: 22 | AC27: 22
A28: wk23 | B28: =Calendar!B28 -> 2020-03-04 | C28: 131 | D28: 116 | E28: 145 | F28: =IF(COUNT(C28:E28)<1," ",IF(AND(C28>M27,D28>M27,E28>M27,COUNT($C$6:E27)>=12),"*"," ")) ->  | G28: =IF(COUNT(C28:E28)<1," ",IF(AND(C28>M26,D28>M26,E28>M26,COUNT($C$6:E26)>=12),"*"," ")) ->  | H28: 392 | I28: 130 | J28: =_xlfn.IFS(SUM(C28:E28)<1,"",SUM(C28:E28)>=1,SUM($C$6:E28)) -> 6259 | K28: =_xlfn.IFS(COUNT(C28:E28)<1,"",COUNT($C$6:E28)>=1,COUNT($C$6:E28)) -> 48 | L28: =_xlfn.IFS(COUNT(C28:E28)<1,"",AND(COUNT($C$6:E28)<=9,$C$4>1),$C$4,COUNT(C28:E28)>=1,M28) -> 130 | M28: =IF(COUNT($C$6:E28)>=1,TRUNC(SUM($C$6:E28)/COUNT($C$6:E28)),0) -> 130 | N28: =IF(COUNT($C$6:E28)<=6,0,TRUNC((230-M27)*0.9)) -> 90 | O28: =_xlfn.IFS(SUM(C28:E28)<1,"",COUNT($C$6:E28)>9,TRUNC((230-M27)*(0.9)),COUNT($C$6:E28)<=9,0) -> 90 | P28: =_xlfn.IFS(SUM(C28:E28)<1,"",COUNT($C$6:E28)>9,N28*3+H28,COUNT($C$6:E28)<=9,0) -> 662 | S28: =IF(COUNT($C$6:E28)>9,IF(P28=MAX($P$6:$P$35),P28," "),"") ->  | V28: =IF(COUNT(C28:E28)<1,0,IF(COUNT($C$6:E28)>9,C28+N28,0)) -> 221 | W28: =IF(COUNT(C28:E28)<1,0,IF(COUNT($C$6:E28)>9,D28+N28,0)) -> 206 | X28: =IF(COUNT(C28:E28)<1,0,IF(COUNT($C$6:E28)>9,E28+N28,0)) -> 235 | AA28: 0 | AB28: 23 | AC28: 23
A29: wk24 | B29: =Calendar!B29 -> 2020-03-11 | C29: 152 | D29: 175 | E29: 128 | F29: =IF(COUNT(C29:E29)<1," ",IF(AND(C29>M28,D29>M28,E29>M28,COUNT($C$6:E28)>=12),"*"," ")) ->  | G29: =IF(COUNT(C29:E29)<1," ",IF(AND(C29>M27,D29>M27,E29>M27,COUNT($C$6:E27)>=12),"*"," ")) ->  | H29: 455 | I29: 151 | J29: =_xlfn.IFS(SUM(C29:E29)<1,"",SUM(C29:E29)>=1,SUM($C$6:E29)) -> 6714 | K29: =_xlfn.IFS(COUNT(C29:E29)<1,"",COUNT($C$6:E29)>=1,COUNT($C$6:E29)) -> 51 | L29: =_xlfn.IFS(COUNT(C29:E29)<1,"",AND(COUNT($C$6:E29)<=9,$C$4>1),$C$4,COUNT(C29:E29)>=1,M29) -> 131 | M29: =IF(COUNT($C$6:E29)>=1,TRUNC(SUM($C$6:E29)/COUNT($C$6:E29)),0) -> 131 | N29: =IF(COUNT($C$6:E29)<=6,0,TRUNC((230-M28)*0.9)) -> 90 | O29: =_xlfn.IFS(SUM(C29:E29)<1,"",COUNT($C$6:E29)>9,TRUNC((230-M28)*(0.9)),COUNT($C$6:E29)<=9,0) -> 90 | P29: =_xlfn.IFS(SUM(C29:E29)<1,"",COUNT($C$6:E29)>9,N29*3+H29,COUNT($C$6:E29)<=9,0) -> 725 | R29: 175 | S29: =IF(COUNT($C$6:E29)>9,IF(P29=MAX($P$6:$P$35),P29," "),"") ->  | T29: 265 | V29: =IF(COUNT(C29:E29)<1,0,IF(COUNT($C$6:E29)>9,C29+N29,0)) -> 242 | W29: =IF(COUNT(C29:E29)<1,0,IF(COUNT($C$6:E29)>9,D29+N29,0)) -> 265 | X29: =IF(COUNT(C29:E29)<1,0,IF(COUNT($C$6:E29)>9,E29+N29,0)) -> 218 | AA29: 0 | AB29: 24 | AC29: 24
A30: wk25 | B30: =Calendar!B30 -> 2020-03-18 | F30: =IF(COUNT(C30:E30)<1," ",IF(AND(C30>M29,D30>M29,E30>M29,COUNT($C$6:E29)>=12),"*"," ")) ->  | G30: =IF(COUNT(C30:E30)<1," ",IF(AND(C30>M28,D30>M28,E30>M28,COUNT($C$6:E28)>=12),"*"," ")) ->  | J30: =_xlfn.IFS(SUM(C30:E30)<1,"",SUM(C30:E30)>=1,SUM($C$6:E30)) ->  | K30: =_xlfn.IFS(COUNT(C30:E30)<1,"",COUNT($C$6:E30)>=1,COUNT($C$6:E30)) ->  | L30: =_xlfn.IFS(COUNT(C30:E30)<1,"",AND(COUNT($C$6:E30)<=9,$C$4>1),$C$4,COUNT(C30:E30)>=1,M30) ->  | M30: =IF(COUNT($C$6:E30)>=1,TRUNC(SUM($C$6:E30)/COUNT($C$6:E30)),0) -> 131 | N30: =IF(COUNT($C$6:E30)<=6,0,TRUNC((230-M29)*0.9)) -> 89 | O30: =_xlfn.IFS(SUM(C30:E30)<1,"",COUNT($C$6:E30)>9,TRUNC((230-M29)*(0.9)),COUNT($C$6:E30)<=9,0) ->  | P30: =_xlfn.IFS(SUM(C30:E30)<1,"",COUNT($C$6:E30)>9,N30*3+H30,COUNT($C$6:E30)<=9,0) ->  | S30: =IF(COUNT($C$6:E30)>9,IF(P30=MAX($P$6:$P$35),P30," "),"") ->  | V30: =IF(COUNT(C30:E30)<1,0,IF(COUNT($C$6:E30)>9,C30+N30,0)) -> 0 | W30: =IF(COUNT(C30:E30)<1,0,IF(COUNT($C$6:E30)>9,D30+N30,0)) -> 0 | X30: =IF(COUNT(C30:E30)<1,0,IF(COUNT($C$6:E30)>9,E30+N30,0)) -> 0 | AA30: 0 | AB30: 0 | AC30: 25
A31: wk26 | B31: =Calendar!B31 -> 2020-03-25 | F31: =IF(COUNT(C31:E31)<1," ",IF(AND(C31>M30,D31>M30,E31>M30,COUNT($C$6:E30)>=12),"*"," ")) ->  | G31: =IF(COUNT(C31:E31)<1," ",IF(AND(C31>M29,D31>M29,E31>M29,COUNT($C$6:E29)>=12),"*"," ")) ->  | J31: =_xlfn.IFS(SUM(C31:E31)<1,"",SUM(C31:E31)>=1,SUM($C$6:E31)) ->  | K31: =_xlfn.IFS(COUNT(C31:E31)<1,"",COUNT($C$6:E31)>=1,COUNT($C$6:E31)) ->  | L31: =_xlfn.IFS(COUNT(C31:E31)<1,"",AND(COUNT($C$6:E31)<=9,$C$4>1),$C$4,COUNT(C31:E31)>=1,M31) ->  | M31: =IF(COUNT($C$6:E31)>=1,TRUNC(SUM($C$6:E31)/COUNT($C$6:E31)),0) -> 131 | N31: =IF(COUNT($C$6:E31)<=6,0,TRUNC((230-M30)*0.9)) -> 89 | O31: =_xlfn.IFS(SUM(C31:E31)<1,"",COUNT($C$6:E31)>9,TRUNC((230-M30)*(0.9)),COUNT($C$6:E31)<=9,0) ->  | P31: =_xlfn.IFS(SUM(C31:E31)<1,"",COUNT($C$6:E31)>9,N31*3+H31,COUNT($C$6:E31)<=9,0) ->  | S31: =IF(COUNT($C$6:E31)>9,IF(P31=MAX($P$6:$P$35),P31," "),"") ->  | V31: =IF(COUNT(C31:E31)<1,0,IF(COUNT($C$6:E31)>9,C31+N31,0)) -> 0 | W31: =IF(COUNT(C31:E31)<1,0,IF(COUNT($C$6:E31)>9,D31+N31,0)) -> 0 | X31: =IF(COUNT(C31:E31)<1,0,IF(COUNT($C$6:E31)>9,E31+N31,0)) -> 0 | AA31: 0 | AB31: 0 | AC31: 26
A32: wk27 | B32: =Calendar!B32 -> 2020-04-01 | F32: =IF(COUNT(C32:E32)<1," ",IF(AND(C32>M31,D32>M31,E32>M31,COUNT($C$6:E31)>=12),"*"," ")) ->  | G32: =IF(COUNT(C32:E32)<1," ",IF(AND(C32>M30,D32>M30,E32>M30,COUNT($C$6:E30)>=12),"*"," ")) ->  | J32: =_xlfn.IFS(SUM(C32:E32)<1,"",SUM(C32:E32)>=1,SUM($C$6:E32)) ->  | K32: =_xlfn.IFS(COUNT(C32:E32)<1,"",COUNT($C$6:E32)>=1,COUNT($C$6:E32)) ->  | L32: =_xlfn.IFS(COUNT(C32:E32)<1,"",AND(COUNT($C$6:E32)<=9,$C$4>1),$C$4,COUNT(C32:E32)>=1,M32) ->  | M32: =IF(COUNT($C$6:E32)>=1,TRUNC(SUM($C$6:E32)/COUNT($C$6:E32)),0) -> 131 | N32: =IF(COUNT($C$6:E32)<=6,0,TRUNC((230-M31)*0.9)) -> 89 | O32: =_xlfn.IFS(SUM(C32:E32)<1,"",COUNT($C$6:E32)>9,TRUNC((230-M31)*(0.9)),COUNT($C$6:E32)<=9,0) ->  | P32: =_xlfn.IFS(SUM(C32:E32)<1,"",COUNT($C$6:E32)>9,N32*3+H32,COUNT($C$6:E32)<=9,0) ->  | S32: =IF(COUNT($C$6:E32)>9,IF(P32=MAX($P$6:$P$35),P32," "),"") ->  | V32: =IF(COUNT(C32:E32)<1,0,IF(COUNT($C$6:E32)>9,C32+N32,0)) -> 0 | W32: =IF(COUNT(C32:E32)<1,0,IF(COUNT($C$6:E32)>9,D32+N32,0)) -> 0 | X32: =IF(COUNT(C32:E32)<1,0,IF(COUNT($C$6:E32)>9,E32+N32,0)) -> 0 | AA32: 0 | AB32: 0 | AC32: 27
A33: wk28 | B33: =Calendar!B33 -> 2020-04-08 | F33: =IF(COUNT(C33:E33)<1," ",IF(AND(C33>M32,D33>M32,E33>M32,COUNT($C$6:E32)>=12),"*"," ")) ->  | G33: =IF(COUNT(C33:E33)<1," ",IF(AND(C33>M31,D33>M31,E33>M31,COUNT($C$6:E31)>=12),"*"," ")) ->  | J33: =_xlfn.IFS(SUM(C33:E33)<1,"",SUM(C33:E33)>=1,SUM($C$6:E33)) ->  | K33: =_xlfn.IFS(COUNT(C33:E33)<1,"",COUNT($C$6:E33)>=1,COUNT($C$6:E33)) ->  | L33: =_xlfn.IFS(COUNT(C33:E33)<1,"",AND(COUNT($C$6:E33)<=9,$C$4>1),$C$4,COUNT(C33:E33)>=1,M33) ->  | M33: =IF(COUNT($C$6:E33)>=1,TRUNC(SUM($C$6:E33)/COUNT($C$6:E33)),0) -> 131 | N33: =IF(COUNT($C$6:E33)<=6,0,TRUNC((230-M32)*0.9)) -> 89 | O33: =_xlfn.IFS(SUM(C33:E33)<1,"",COUNT($C$6:E33)>9,TRUNC((230-M32)*(0.9)),COUNT($C$6:E33)<=9,0) ->  | P33: =_xlfn.IFS(SUM(C33:E33)<1,"",COUNT($C$6:E33)>9,N33*3+H33,COUNT($C$6:E33)<=9,0) ->  | S33: =IF(COUNT($C$6:E33)>9,IF(P33=MAX($P$6:$P$35),P33," "),"") ->  | V33: =IF(COUNT(C33:E33)<1,0,IF(COUNT($C$6:E33)>9,C33+N33,0)) -> 0 | W33: =IF(COUNT(C33:E33)<1,0,IF(COUNT($C$6:E33)>9,D33+N33,0)) -> 0 | X33: =IF(COUNT(C33:E33)<1,0,IF(COUNT($C$6:E33)>9,E33+N33,0)) -> 0 | AA33: 0 | AB33: 0 | AC33: 28
A34: wk29 | B34: =Calendar!B34 -> 2020-04-15 | F34: =IF(COUNT(C34:E34)<1," ",IF(AND(C34>M33,D34>M33,E34>M33,COUNT($C$6:E33)>=12),"*"," ")) ->  | G34: =IF(COUNT(C34:E34)<1," ",IF(AND(C34>M32,D34>M32,E34>M32,COUNT($C$6:E32)>=12),"*"," ")) ->  | J34: =_xlfn.IFS(SUM(C34:E34)<1,"",SUM(C34:E34)>=1,SUM($C$6:E34)) ->  | K34: =_xlfn.IFS(COUNT(C34:E34)<1,"",COUNT($C$6:E34)>=1,COUNT($C$6:E34)) ->  | L34: =_xlfn.IFS(COUNT(C34:E34)<1,"",AND(COUNT($C$6:E34)<=9,$C$4>1),$C$4,COUNT(C34:E34)>=1,M34) ->  | M34: =IF(COUNT($C$6:E34)>=1,TRUNC(SUM($C$6:E34)/COUNT($C$6:E34)),0) -> 131 | N34: =IF(COUNT($C$6:E34)<=6,0,TRUNC((230-M33)*0.9)) -> 89 | O34: =_xlfn.IFS(SUM(C34:E34)<1,"",COUNT($C$6:E34)>9,TRUNC((230-M33)*(0.9)),COUNT($C$6:E34)<=9,0) ->  | P34: =_xlfn.IFS(SUM(C34:E34)<1,"",COUNT($C$6:E34)>9,N34*3+H34,COUNT($C$6:E34)<=9,0) ->  | S34: =IF(COUNT($C$6:E34)>9,IF(P34=MAX($P$6:$P$35),P34," "),"") ->  | V34: =IF(COUNT(C34:E34)<1,0,IF(COUNT($C$6:E34)>9,C34+N34,0)) -> 0 | W34: =IF(COUNT(C34:E34)<1,0,IF(COUNT($C$6:E34)>9,D34+N34,0)) -> 0 | X34: =IF(COUNT(C34:E34)<1,0,IF(COUNT($C$6:E34)>9,E34+N34,0)) -> 0 | AA34: 0 | AB34: 0 | AC34: 29
A35: wk30 | B35: =Calendar!B35 -> 2020-04-22 | F35: =IF(COUNT(C35:E35)<1," ",IF(AND(C35>M34,D35>M34,E35>M34,COUNT($C$6:E34)>=12),"*"," ")) ->  | G35: =IF(COUNT(C35:E35)<1," ",IF(AND(C35>M33,D35>M33,E35>M33,COUNT($C$6:E33)>=12),"*"," ")) ->  | J35: =_xlfn.IFS(SUM(C35:E35)<1,"",SUM(C35:E35)>=1,SUM($C$6:E35)) ->  | K35: =_xlfn.IFS(COUNT(C35:E35)<1,"",COUNT($C$6:E35)>=1,COUNT($C$6:E35)) ->  | L35: =_xlfn.IFS(COUNT(C35:E35)<1,"",AND(COUNT($C$6:E35)<=9,$C$4>1),$C$4,COUNT(C35:E35)>=1,M35) ->  | M35: =IF(COUNT($C$6:E35)>=1,TRUNC(SUM($C$6:E35)/COUNT($C$6:E35)),0) -> 131 | N35: =IF(COUNT($C$6:E35)<=6,0,TRUNC((230-M34)*0.9)) -> 89 | O35: =_xlfn.IFS(SUM(C35:E35)<1,"",COUNT($C$6:E35)>9,TRUNC((230-M34)*(0.9)),COUNT($C$6:E35)<=9,0) ->  | P35: =_xlfn.IFS(SUM(C35:E35)<1,"",COUNT($C$6:E35)>9,N35*3+H35,COUNT($C$6:E35)<=9,0) ->  | S35: =IF(COUNT($C$6:E35)>9,IF(P35=MAX($P$6:$P$35),P35," "),"") ->  | V35: =IF(COUNT(C35:E35)<1,0,IF(COUNT($C$6:E35)>9,C35+N35,0)) -> 0 | W35: =IF(COUNT(C35:E35)<1,0,IF(COUNT($C$6:E35)>9,D35+N35,0)) -> 0 | X35: =IF(COUNT(C35:E35)<1,0,IF(COUNT($C$6:E35)>9,E35+N35,0)) -> 0 | AA35: 0 | AB35: 0 | AC35: 30
C36: =(IF(COUNT(C6:C35)=0," ",(SUM(C6:C35))/COUNT(C6:C35))) -> 125.94 | D36: =(IF(COUNT(D6:D35)=0," ",(SUM(D6:D35))/COUNT(D6:D35))) -> 131.24 | E36: =(IF(COUNT(E6:E35)=0," ",(SUM(E6:E35))/COUNT(E6:E35))) -> 137.76

Sheet CRuggiero
H1: =Calendar!H1 -> Wednesday Fun Fours 2019/20 season | R1: 6-over wk:
A2: wk# | B2: =MAX(AB6:AB35) -> 9
A3: Name: | B3: Charlie Ruggiero | I3: Perfect Attendance: | K3: =IF(SUM(AA6:AA35)<0.5,"Yes","No") -> No | L3: =_xlfn.IFS(AND(B2=30,K3="Yes"),"good",AND(B2<>30,K3="Yes"),"So Far",AND(B2<>30,K3="No")," ") -> 
A4: book average: | H4: wky | I4: wky | J4: cumulative | L4: cumulative | P4: hdcp | Q4: high | R4: high | S4: high hcp | T4: high hcp
C5: g1 | D5: g2 | E5: g3 | H5: series | I5: average | J5: score | K5: games | L5: average | O5: hdcp | P5: series | Q5: series | R5: game | S5: series | T5: game | V5: =MAX(C6:E35) -> 188 | W5: =MAX(V6:X35) -> 239
A6: wk1 | B6: =Calendar!B6 -> 2019-09-04 | H6: =IF(COUNT(C6:E6)<1," ",SUM(C6:E6)) ->  | I6: =IF(COUNT(C6:E6)<1," ",TRUNC(H6/COUNT(C6:E6))) ->  | J6: =_xlfn.IFS(SUM(C6:E6)<1,"",SUM(C6:E6)>=1,SUM($C$6:E6)) ->  | K6: =_xlfn.IFS(COUNT(C6:E6)<1,"",COUNT($C$6:E6)>=1,COUNT($C$6:E6)) ->  | L6: =_xlfn.IFS(COUNT(C6:E6)<1,"",AND(COUNT($C$6:E6)<=9,$C$4>1),$C$4,COUNT(C6:E6)>=1,M6) ->  | M6: =IF(COUNT($C$6:E6)>=1,TRUNC(SUM($C$6:E6)/COUNT($C$6:E6)),0) -> 0 | N6: =IF(COUNT($C$6:E6)<=6,0,TRUNC((230-M5)*0.9)) -> 0 | O6: =_xlfn.IFS(SUM(C6:E6)<1,"",COUNT($C$6:E6)>9,TRUNC((230-M5)*(0.9)),COUNT($C$6:E6)<=9,0) ->  | P6: =_xlfn.IFS(SUM(C6:E6)<1,"",COUNT($C$6:E6)>9,N6*3+H6,COUNT($C$6:E6)<=9,0) ->  | Q6: =IF(H6=(MAX($H$6:$H$35)),H6," ") ->  | R6: =IF((OR(C6=$V$5,D6=$V$5,E6=$V$5)),$V$5," ") ->  | S6: =IF(COUNT($C$6:E6)>9,IF(P6=MAX($P$6:$P$35),P6," "),"") ->  | T6: =IF(OR(V6=$W$5,W6=$W$5,X6=$W$5),$W$5," ") ->  | V6: =IF(COUNT(C6:E6)<1,0,IF(COUNT($C$6:E6)>9,C6+N6,0)) -> 0 | W6: =IF(COUNT(C6:E6)<1,0,IF(COUNT($C$6:E6)>9,D6+N6,0)) -> 0 | X6: =IF(COUNT(C6:E6)<1,0,IF(COUNT($C$6:E6)>9,E6+N6,0)) -> 0 | AA6: =IF((MAX($AB$6:$AB$35))<AC6,0,IF(AB6=AC6,0,1)) -> 1 | AB6: =IF(COUNT(C6:E6)>0,AC6,0) -> 0 | AC6: 1
A7: wk2 | B7: =Calendar!B7 -> 2019-09-11 | C7: 119 | D7: 116 | E7: 125 | H7: 360 | I7: =IF(COUNT(C7:E7)<1," ",TRUNC(H7/COUNT(C7:E7))) -> 120 | J7: =_xlfn.IFS(SUM(C7:E7)<1,"",SUM(C7:E7)>=1,SUM($C$6:E7)) -> 360 | K7: =_xlfn.IFS(COUNT(C7:E7)<1,"",COUNT($C$6:E7)>=1,COUNT($C$6:E7)) -> 3 | L7: =_xlfn.IFS(COUNT(C7:E7)<1,"",AND(COUNT($C$6:E7)<=9,$C$4>1),$C$4,COUNT(C7:E7)>=1,M7) -> 120 | M7: =IF(COUNT($C$6:E7)>=1,TRUNC(SUM($C$6:E7)/COUNT($C$6:E7)),0) -> 120 | N7: =IF(COUNT($C$6:E7)<=6,0,TRUNC((230-M6)*0.9)) -> 0 | O7: =_xlfn.IFS(SUM(C7:E7)<1,"",COUNT($C$6:E7)>9,TRUNC((230-M6)*(0.9)),COUNT($C$6:E7)<=9,0) -> 0 | P7: =_xlfn.IFS(SUM(C7:E7)<1,"",COUNT($C$6:E7)>9,N7*3+H7,COUNT($C$6:E7)<=9,0) -> 0 | S7: =IF(COUNT($C$6:E7)>9,IF(P7=MAX($P$6:$P$35),P7," "),"") ->  | V7: =IF(COUNT(C7:E7)<1,0,IF(COUNT($C$6:E7)>9,C7+N7,0)) -> 0 | W7: =IF(COUNT(C7:E7)<1,0,IF(COUNT($C$6:E7)>9,D7+N7,0)) -> 0 | X7: =IF(COUNT(C7:E7)<1,0,IF(COUNT($C$6:E7)>9,E7+N7,0)) -> 0 | AA7: 0 | AB7: =IF(COUNT(C7:E7)>0,AC7,0) -> 2 | AC7: 2
A8: wk3 | B8: =Calendar!B8 -> 2019-09-18 | C8: 132 | D8: 134 | E8: 139 | H8: 405 | I8: 135 | J8: =_xlfn.IFS(SUM(C8:E8)<1,"",SUM(C8:E8)>=1,SUM($C$6:E8)) -> 765 | K8: =_xlfn.IFS(COUNT(C8:E8)<1,"",COUNT($C$6:E8)>=1,COUNT($C$6:E8)) -> 6 | L8: =_xlfn.IFS(COUNT(C8:E8)<1,"",AND(COUNT($C$6:E8)<=9,$C$4>1),$C$4,COUNT(C8:E8)>=1,M8) -> 127 | M8: =IF(COUNT($C$6:E8)>=1,TRUNC(SUM($C$6:E8)/COUNT($C$6:E8)),0) -> 127 | N8: =IF(COUNT($C$6:E8)<=6,0,TRUNC((230-M7)*0.9)) -> 0 | O8: =_xlfn.IFS(SUM(C8:E8)<1,"",COUNT($C$6:E8)>9,TRUNC((230-M7)*(0.9)),COUNT($C$6:E8)<=9,0) -> 0 | P8: =_xlfn.IFS(SUM(C8:E8)<1,"",COUNT($C$6:E8)>9,N8*3+H8,COUNT($C$6:E8)<=9,0) -> 0 | S8: =IF(COUNT($C$6:E8)>9,IF(P8=MAX($P$6:$P$35),P8," "),"") ->  | V8: =IF(COUNT(C8:E8)<1,0,IF(COUNT($C$6:E8)>9,C8+N8,0)) -> 0 | W8: =IF(COUNT(C8:E8)<1,0,IF(COUNT($C$6:E8)>9,D8+N8,0)) -> 0 | X8: =IF(COUNT(C8:E8)<1,0,IF(COUNT($C$6:E8)>9,E8+N8,0)) -> 0 | AA8: 0 | AB8: 3 | AC8: 3
A9: wk4 | B9: =Calendar!B9 -> 2019-09-25 | J9: =_xlfn.IFS(SUM(C9:E9)<1,"",SUM(C9:E9)>=1,SUM($C$6:E9)) ->  | K9: =_xlfn.IFS(COUNT(C9:E9)<1,"",COUNT($C$6:E9)>=1,COUNT($C$6:E9)) ->  | L9: =_xlfn.IFS(COUNT(C9:E9)<1,"",AND(COUNT($C$6:E9)<=9,$C$4>1),$C$4,COUNT(C9:E9)>=1,M9) ->  | M9: =IF(COUNT($C$6:E9)>=1,TRUNC(SUM($C$6:E9)/COUNT($C$6:E9)),0) -> 127 | N9: =IF(COUNT($C$6:E9)<=6,0,TRUNC((230-M8)*0.9)) -> 0 | O9: =_xlfn.IFS(SUM(C9:E9)<1,"",COUNT($C$6:E9)>9,TRUNC((230-M8)*(0.9)),COUNT($C$6:E9)<=9,0) ->  | P9: =_xlfn.IFS(SUM(C9:E9)<1,"",COUNT($C$6:E9)>9,N9*3+H9,COUNT($C$6:E9)<=9,0) ->  | S9: =IF(COUNT($C$6:E9)>9,IF(P9=MAX($P$6:$P$35),P9," "),"") ->  | V9: =IF(COUNT(C9:E9)<1,0,IF(COUNT($C$6:E9)>9,C9+N9,0)) -> 0 | W9: =IF(COUNT(C9:E9)<1,0,IF(COUNT($C$6:E9)>9,D9+N9,0)) -> 0 | X9: =IF(COUNT(C9:E9)<1,0,IF(COUNT($C$6:E9)>9,E9+N9,0)) -> 0 | AA9: 1 | AB9: 0 | AC9: 4
A10: wk5 | B10: =Calendar!B10 -> 2019-10-02 | C10: 147 | D10: 188 | E10: 131 | F10: =IF(COUNT(C10:E10)<1," ",IF(AND(C10>M9,D10>M9,E10>M9,COUNT($C$6:E9)>=12),"*"," ")) ->  | H10: 466 | I10: 155 | J10: =_xlfn.IFS(SUM(C10:E10)<1,"",SUM(C10:E10)>=1,SUM($C$6:E10)) -> 1231 | K10: =_xlfn.IFS(COUNT(C10:E10)<1,"",COUNT($C$6:E10)>=1,COUNT($C$6:E10)) -> 9 | L10: =_xlfn.IFS(COUNT(C10:E10)<1,"",AND(COUNT($C$6:E10)<=9,$C$4>1),$C$4,COUNT(C10:E10)>=1,M10) -> 136 | M10: =IF(COUNT($C$6:E10)>=1,TRUNC(SUM($C$6:E10)/COUNT($C$6:E10)),0) -> 136 | N10: =IF(COUNT($C$6:E10)<=6,0,TRUNC((230-M9)*0.9)) -> 92 | O10: =_xlfn.IFS(SUM(C10:E10)<1,"",COUNT($C$6:E10)>9,TRUNC((230-M9)*(0.9)),COUNT($C$6:E10)<=9,0) -> 0 | P10: =_xlfn.IFS(SUM(C10:E10)<1,"",COUNT($C$6:E10)>9,N10*3+H10,COUNT($C$6:E10)<=9,0) -> 0 | Q10: 466 | R10: 188 | S10: =IF(COUNT($C$6:E10)>9,IF(P10=MAX($P$6:$P$35),P10," "),"") ->  | V10: =IF(COUNT(C10:E10)<1,0,IF(COUNT($C$6:E10)>9,C10+N10,0)) -> 0 | W10: =IF(COUNT(C10:E10)<1,0,IF(COUNT($C$6:E10)>9,D10+N10,0)) -> 0 | X10: =IF(COUNT(C10:E10)<1,0,IF(COUNT($C$6:E10)>9,E10+N10,0)) -> 0 | AA10: 0 | AB10: 5 | AC10: 5
A11: wk6 | B11: =Calendar!B11 -> 2019-10-09 | C11: 142 | D11: 130 | E11: 147 | F11: =IF(COUNT(C11:E11)<1," ",IF(AND(C11>M10,D11>M10,E11>M10,COUNT($C$6:E10)>=12),"*"," ")) ->  | G11: =IF(COUNT(C11:E11)<1," ",IF(AND(C11>M9,D11>M9,E11>M9,COUNT($C$6:E9)>=12),"*"," ")) ->  | H11: 419 | I11: 139 | J11: =_xlfn.IFS(SUM(C11:E11)<1,"",SUM(C11:E11)>=1,SUM($C$6:E11)) -> 1650 | K11: =_xlfn.IFS(COUNT(C11:E11)<1,"",COUNT($C$6:E11)>=1,COUNT($C$6:E11)) -> 12 | L11: =_xlfn.IFS(COUNT(C11:E11)<1,"",AND(COUNT($C$6:E11)<=9,$C$4>1),$C$4,COUNT(C11:E11)>=1,M11) -> 137 | M11: =IF(COUNT($C$6:E11)>=1,TRUNC(SUM($C$6:E11)/COUNT($C$6:E11)),0) -> 137 | N11: =IF(COUNT($C$6:E11)<=6,0,TRUNC((230-M10)*0.9)) -> 84 | O11: =_xlfn.IFS(SUM(C11:E11)<1,"",COUNT($C$6:E11)>9,TRUNC((230-M10)*(0.9)),COUNT($C$6:E11)<=9,0) -> 84 | P11: =_xlfn.IFS(SUM(C11:E11)<1,"",COUNT($C$6:E11)>9,N11*3+H11,COUNT($C$6:E11)<=9,0) -> 671 | S11: =IF(COUNT($C$6:E11)>9,IF(P11=MAX($P$6:$P$35),P11," "),"") -> 671 | V11: =IF(COUNT(C11:E11)<1,0,IF(COUNT($C$6:E11)>9,C11+N11,0)) -> 226 | W11: =IF(COUNT(C11:E11)<1,0,IF(COUNT($C$6:E11)>9,D11+N11,0)) -> 214 | X11: =IF(COUNT(C11:E11)<1,0,IF(COUNT($C$6:E11)>9,E11+N11,0)) -> 231 | AA11: 0 | AB11: 6 | AC11: 6
A12: wk7 | B12: =Calendar!B12 -> 2019-10-16 | C12: 144 | D12: 105 | E12: 111 | F12: =IF(COUNT(C12:E12)<1," ",IF(AND(C12>M11,D12>M11,E12>M11,COUNT($C$6:E11)>=12),"*"," ")) ->  | G12: =IF(COUNT(C12:E12)<1," ",IF(AND(C12>M10,D12>M10,E12>M10,COUNT($C$6:E10)>=12),"*"," ")) ->  | H12: 360 | I12: 120 | J12: =_xlfn.IFS(SUM(C12:E12)<1,"",SUM(C12:E12)>=1,SUM($C$6:E12)) -> 2010 | K12: =_xlfn.IFS(COUNT(C12:E12)<1,"",COUNT($C$6:E12)>=1,COUNT($C$6:E12)) -> 15 | L12: =_xlfn.IFS(COUNT(C12:E12)<1,"",AND(COUNT($C$6:E12)<=9,$C$4>1),$C$4,COUNT(C12:E12)>=1,M12) -> 134 | M12: =IF(COUNT($C$6:E12)>=1,TRUNC(SUM($C$6:E12)/COUNT($C$6:E12)),0) -> 134 | N12: =IF(COUNT($C$6:E12)<=6,0,TRUNC((230-M11)*0.9)) -> 83 | O12: =_xlfn.IFS(SUM(C12:E12)<1,"",COUNT($C$6:E12)>9,TRUNC((230-M11)*(0.9)),COUNT($C$6:E12)<=9,0) -> 83 | P12: =_xlfn.IFS(SUM(C12:E12)<1,"",COUNT($C$6:E12)>9,N12*3+H12,COUNT($C$6:E12)<=9,0) -> 609 | S12: =IF(COUNT($C$6:E12)>9,IF(P12=MAX($P$6:$P$35),P12," "),"") ->  | V12: =IF(COUNT(C12:E12)<1,0,IF(COUNT($C$6:E12)>9,C12+N12,0)) -> 227 | W12: =IF(COUNT(C12:E12)<1,0,IF(COUNT($C$6:E12)>9,D12+N12,0)) -> 188 | X12: =IF(COUNT(C12:E12)<1,0,IF(COUNT($C$6:E12)>9,E12+N12,0)) -> 194 | AA12: 0 | AB12: 7 | AC12: 7
A13: wk8 | B13: =Calendar!B13 -> 2020-10-23 | F13: =IF(COUNT(C13:E13)<1," ",IF(AND(C13>M12,D13>M12,E13>M12,COUNT($C$6:E12)>=12),"*"," ")) ->  | G13: =IF(COUNT(C13:E13)<1," ",IF(AND(C13>M11,D13>M11,E13>M11,COUNT($C$6:E11)>=12),"*"," ")) ->  | J13: =_xlfn.IFS(SUM(C13:E13)<1,"",SUM(C13:E13)>=1,SUM($C$6:E13)) ->  | K13: =_xlfn.IFS(COUNT(C13:E13)<1,"",COUNT($C$6:E13)>=1,COUNT($C$6:E13)) ->  | L13: =_xlfn.IFS(COUNT(C13:E13)<1,"",AND(COUNT($C$6:E13)<=9,$C$4>1),$C$4,COUNT(C13:E13)>=1,M13) ->  | M13: =IF(COUNT($C$6:E13)>=1,TRUNC(SUM($C$6:E13)/COUNT($C$6:E13)),0) -> 134 | N13: =IF(COUNT($C$6:E13)<=6,0,TRUNC((230-M12)*0.9)) -> 86 | O13: =_xlfn.IFS(SUM(C13:E13)<1,"",COUNT($C$6:E13)>9,TRUNC((230-M12)*(0.9)),COUNT($C$6:E13)<=9,0) ->  | P13: =_xlfn.IFS(SUM(C13:E13)<1,"",COUNT($C$6:E13)>9,N13*3+H13,COUNT($C$6:E13)<=9,0) ->  | S13: =IF(COUNT($C$6:E13)>9,IF(P13=MAX($P$6:$P$35),P13," "),"") ->  | V13: =IF(COUNT(C13:E13)<1,0,IF(COUNT($C$6:E13)>9,C13+N13,0)) -> 0 | W13: =IF(COUNT(C13:E13)<1,0,IF(COUNT($C$6:E13)>9,D13+N13,0)) -> 0 | X13: =IF(COUNT(C13:E13)<1,0,IF(COUNT($C$6:E13)>9,E13+N13,0)) -> 0 | AA13: 1 | AB13: 0 | AC13: 8
A14: wk9 | B14: =Calendar!B14 -> 2019-11-06 | C14: 107 | D14: 152 | E14: 153 | F14: =IF(COUNT(C14:E14)<1," ",IF(AND(C14>M13,D14>M13,E14>M13,COUNT($C$6:E13)>=12),"*"," ")) ->  | G14: =IF(COUNT(C14:E14)<1," ",IF(AND(C14>M12,D14>M12,E14>M12,COUNT($C$6:E12)>=12),"*"," ")) ->  | H14: 412 | I14: 137 | J14: =_xlfn.IFS(SUM(C14:E14)<1,"",SUM(C14:E14)>=1,SUM($C$6:E14)) -> 2422 | K14: =_xlfn.IFS(COUNT(C14:E14)<1,"",COUNT($C$6:E14)>=1,COUNT($C$6:E14)) -> 18 | L14: =_xlfn.IFS(COUNT(C14:E14)<1,"",AND(COUNT($C$6:E14)<=9,$C$4>1),$C$4,COUNT(C14:E14)>=1,M14) -> 134 | M14: =IF(COUNT($C$6:E14)>=1,TRUNC(SUM($C$6:E14)/COUNT($C$6:E14)),0) -> 134 | N14: =IF(COUNT($C$6:E14)<=6,0,TRUNC((230-M13)*0.9)) -> 86 | O14: =_xlfn.IFS(SUM(C14:E14)<1,"",COUNT($C$6:E14)>9,TRUNC((230-M13)*(0.9)),COUNT($C$6:E14)<=9,0) -> 86 | P14: =_xlfn.IFS(SUM(C14:E14)<1,"",COUNT($C$6:E14)>9,N14*3+H14,COUNT($C$6:E14)<=9,0) -> 670 | S14: =IF(COUNT($C$6:E14)>9,IF(P14=MAX($P$6:$P$35),P14," "),"") ->  | T14: 239 | V14: =IF(COUNT(C14:E14)<1,0,IF(COUNT($C$6:E14)>9,C14+N14,0)) -> 193 | W14: =IF(COUNT(C14:E14)<1,0,IF(COUNT($C$6:E14)>9,D14+N14,0)) -> 238 | X14: =IF(COUNT(C14:E14)<1,0,IF(COUNT($C$6:E14)>9,E14+N14,0)) -> 239 | AA14: 0 | AB14: 9 | AC14: 9
A15: wk10 | B15: =Calendar!B15 -> 2019-11-13 | F15: =IF(COUNT(C15:E15)<1," ",IF(AND(C15>M14,D15>M14,E15>M14,COUNT($C$6:E14)>=12),"*"," ")) ->  | G15: =IF(COUNT(C15:E15)<1," ",IF(AND(C15>M13,D15>M13,E15>M13,COUNT($C$6:E13)>=12),"*"," ")) ->  | J15: =_xlfn.IFS(SUM(C15:E15)<1,"",SUM(C15:E15)>=1,SUM($C$6:E15)) ->  | K15: =_xlfn.IFS(COUNT(C15:E15)<1,"",COUNT($C$6:E15)>=1,COUNT($C$6:E15)) ->  | L15: =_xlfn.IFS(COUNT(C15:E15)<1,"",AND(COUNT($C$6:E15)<=9,$C$4>1),$C$4,COUNT(C15:E15)>=1,M15) ->  | M15: =IF(COUNT($C$6:E15)>=1,TRUNC(SUM($C$6:E15)/COUNT($C$6:E15)),0) -> 134 | N15: =IF(COUNT($C$6:E15)<=6,0,TRUNC((230-M14)*0.9)) -> 86 | O15: =_xlfn.IFS(SUM(C15:E15)<1,"",COUNT($C$6:E15)>9,TRUNC((230-M14)*(0.9)),COUNT($C$6:E15)<=9,0) ->  | P15: =_xlfn.IFS(SUM(C15:E15)<1,"",COUNT($C$6:E15)>9,N15*3+H15,COUNT($C$6:E15)<=9,0) ->  | S15: =IF(COUNT($C$6:E15)>9,IF(P15=MAX($P$6:$P$35),P15," "),"") ->  | V15: =IF(COUNT(C15:E15)<1,0,IF(COUNT($C$6:E15)>9,C15+N15,0)) -> 0 | W15: =IF(COUNT(C15:E15)<1,0,IF(COUNT($C$6:E15)>9,D15+N15,0)) -> 0 | X15: =IF(COUNT(C15:E15)<1,0,IF(COUNT($C$6:E15)>9,E15+N15,0)) -> 0 | AA15: 0 | AB15: 0 | AC15: 10
A16: wk11 | B16: =Calendar!B16 -> 2019-11-20 | F16: =IF(COUNT(C16:E16)<1," ",IF(AND(C16>M15,D16>M15,E16>M15,COUNT($C$6:E15)>=12),"*"," ")) ->  | G16: =IF(COUNT(C16:E16)<1," ",IF(AND(C16>M14,D16>M14,E16>M14,COUNT($C$6:E14)>=12),"*"," ")) ->  | J16: =_xlfn.IFS(SUM(C16:E16)<1,"",SUM(C16:E16)>=1,SUM($C$6:E16)) ->  | K16: =_xlfn.IFS(COUNT(C16:E16)<1,"",COUNT($C$6:E16)>=1,COUNT($C$6:E16)) ->  | L16: =_xlfn.IFS(COUNT(C16:E16)<1,"",AND(COUNT($C$6:E16)<=9,$C$4>1),$C$4,COUNT(C16:E16)>=1,M16) ->  | M16: =IF(COUNT($C$6:E16)>=1,TRUNC(SUM($C$6:E16)/COUNT($C$6:E16)),0) -> 134 | N16: =IF(COUNT($C$6:E16)<=6,0,TRUNC((230-M15)*0.9)) -> 86 | O16: =_xlfn.IFS(SUM(C16:E16)<1,"",COUNT($C$6:E16)>9,TRUNC((230-M15)*(0.9)),COUNT($C$6:E16)<=9,0) ->  | P16: =_xlfn.IFS(SUM(C16:E16)<1,"",COUNT($C$6:E16)>9,N16*3+H16,COUNT($C$6:E16)<=9,0) ->  | S16: =IF(COUNT($C$6:E16)>9,IF(P16=MAX($P$6:$P$35),P16," "),"") ->  | V16: =IF(COUNT(C16:E16)<1,0,IF(COUNT($C$6:E16)>9,C16+N16,0)) -> 0 | W16: =IF(COUNT(C16:E16)<1,0,IF(COUNT($C$6:E16)>9,D16+N16,0)) -> 0 | X16: =IF(COUNT(C16:E16)<1,0,IF(COUNT($C$6:E16)>9,E16+N16,0)) -> 0 | AA16: 0 | AB16: 0 | AC16: 11
A17: wk12 | B17: =Calendar!B17 -> 2019-12-04 | F17: =IF(COUNT(C17:E17)<1," ",IF(AND(C17>M16,D17>M16,E17>M16,COUNT($C$6:E16)>=12),"*"," ")) ->  | G17: =IF(COUNT(C17:E17)<1," ",IF(AND(C17>M15,D17>M15,E17>M15,COUNT($C$6:E15)>=12),"*"," ")) ->  | J17: =_xlfn.IFS(SUM(C17:E17)<1,"",SUM(C17:E17)>=1,SUM($C$6:E17)) ->  | K17: =_xlfn.IFS(COUNT(C17:E17)<1,"",COUNT($C$6:E17)>=1,COUNT($C$6:E17)) ->  | L17: =_xlfn.IFS(COUNT(C17:E17)<1,"",AND(COUNT($C$6:E17)<=9,$C$4>1),$C$4,COUNT(C17:E17)>=1,M17) ->  | M17: =IF(COUNT($C$6:E17)>=1,TRUNC(SUM($C$6:E17)/COUNT($C$6:E17)),0) -> 134 | N17: =IF(COUNT($C$6:E17)<=6,0,TRUNC((230-M16)*0.9)) -> 86 | O17: =_xlfn.IFS(SUM(C17:E17)<1,"",COUNT($C$6:E17)>9,TRUNC((230-M16)*(0.9)),COUNT($C$6:E17)<=9,0) ->  | P17: =_xlfn.IFS(SUM(C17:E17)<1,"",COUNT($C$6:E17)>9,N17*3+H17,COUNT($C$6:E17)<=9,0) ->  | S17: =IF(COUNT($C$6:E17)>9,IF(P17=MAX($P$6:$P$35),P17," "),"") ->  | V17: =IF(COUNT(C17:E17)<1,0,IF(COUNT($C$6:E17)>9,C17+N17,0)) -> 0 | W17: =IF(COUNT(C17:E17)<1,0,IF(COUNT($C$6:E17)>9,D17+N17,0)) -> 0 | X17: =IF(COUNT(C17:E17)<1,0,IF(COUNT($C$6:E17)>9,E17+N17,0)) -> 0 | AA17: 0 | AB17: 0 | AC17: 12
A18: wk13 | B18: =Calendar!B18 -> 2019-12-11 | F18: =IF(COUNT(C18:E18)<1," ",IF(AND(C18>M17,D18>M17,E18>M17,COUNT($C$6:E17)>=12),"*"," ")) ->  | G18: =IF(COUNT(C18:E18)<1," ",IF(AND(C18>M16,D18>M16,E18>M16,COUNT($C$6:E16)>=12),"*"," ")) ->  | J18: =_xlfn.IFS(SUM(C18:E18)<1,"",SUM(C18:E18)>=1,SUM($C$6:E18)) ->  | K18: =_xlfn.IFS(COUNT(C18:E18)<1,"",COUNT($C$6:E18)>=1,COUNT($C$6:E18)) ->  | L18: =_xlfn.IFS(COUNT(C18:E18)<1,"",AND(COUNT($C$6:E18)<=9,$C$4>1),$C$4,COUNT(C18:E18)>=1,M18) ->  | M18: =IF(COUNT($C$6:E18)>=1,TRUNC(SUM($C$6:E18)/COUNT($C$6:E18)),0) -> 134 | N18: =IF(COUNT($C$6:E18)<=6,0,TRUNC((230-M17)*0.9)) -> 86 | O18: =_xlfn.IFS(SUM(C18:E18)<1,"",COUNT($C$6:E18)>9,TRUNC((230-M17)*(0.9)),COUNT($C$6:E18)<=9,0) ->  | P18: =_xlfn.IFS(SUM(C18:E18)<1,"",COUNT($C$6:E18)>9,N18*3+H18,COUNT($C$6:E18)<=9,0) ->  | S18: =IF(COUNT($C$6:E18)>9,IF(P18=MAX($P$6:$P$35),P18," "),"") ->  | V18: =IF(COUNT(C18:E18)<1,0,IF(COUNT($C$6:E18)>9,C18+N18,0)) -> 0 | W18: =IF(COUNT(C18:E18)<1,0,IF(COUNT($C$6:E18)>9,D18+N18,0)) -> 0 | X18: =IF(COUNT(C18:E18)<1,0,IF(COUNT($C$6:E18)>9,E18+N18,0)) -> 0 | AA18: 0 | AB18: 0 | AC18: 13
A19: wk14 | B19: =Calendar!B19 -> 2019-12-18 | F19: =IF(COUNT(C19:E19)<1," ",IF(AND(C19>M18,D19>M18,E19>M18,COUNT($C$6:E18)>=12),"*"," ")) ->  | G19: =IF(COUNT(C19:E19)<1," ",IF(AND(C19>M17,D19>M17,E19>M17,COUNT($C$6:E17)>=12),"*"," ")) ->  | J19: =_xlfn.IFS(SUM(C19:E19)<1,"",SUM(C19:E19)>=1,SUM($C$6:E19)) ->  | K19: =_xlfn.IFS(COUNT(C19:E19)<1,"",COUNT($C$6:E19)>=1,COUNT($C$6:E19)) ->  | L19: =_xlfn.IFS(COUNT(C19:E19)<1,"",AND(COUNT($C$6:E19)<=9,$C$4>1),$C$4,COUNT(C19:E19)>=1,M19) ->  | M19: =IF(COUNT($C$6:E19)>=1,TRUNC(SUM($C$6:E19)/COUNT($C$6:E19)),0) -> 134 | N19: =IF(COUNT($C$6:E19)<=6,0,TRUNC((230-M18)*0.9)) -> 86 | O19: =_xlfn.IFS(SUM(C19:E19)<1,"",COUNT($C$6:E19)>9,TRUNC((230-M18)*(0.9)),COUNT($C$6:E19)<=9,0) ->  | P19: =_xlfn.IFS(SUM(C19:E19)<1,"",COUNT($C$6:E19)>9,N19*3+H19,COUNT($C$6:E19)<=9,0) ->  | S19: =IF(COUNT($C$6:E19)>9,IF(P19=MAX($P$6:$P$35),P19," "),"") ->  | V19: =IF(COUNT(C19:E19)<1,0,IF(COUNT($C$6:E19)>9,C19+N19,0)) -> 0 | W19: =IF(COUNT(C19:E19)<1,0,IF(COUNT($C$6:E19)>9,D19+N19,0)) -> 0 | X19: =IF(COUNT(C19:E19)<1,0,IF(COUNT($C$6:E19)>9,E19+N19,0)) -> 0 | AA19: 0 | AB19: 0 | AC19: 14
A20: wk15 | B20: =Calendar!B20 -> 2020-01-08 | F20: =IF(COUNT(C20:E20)<1," ",IF(AND(C20>M19,D20>M19,E20>M19,COUNT($C$6:E19)>=12),"*"," ")) ->  | G20: =IF(COUNT(C20:E20)<1," ",IF(AND(C20>M18,D20>M18,E20>M18,COUNT($C$6:E18)>=12),"*"," ")) ->  | J20: =_xlfn.IFS(SUM(C20:E20)<1,"",SUM(C20:E20)>=1,SUM($C$6:E20)) ->  | K20: =_xlfn.IFS(COUNT(C20:E20)<1,"",COUNT($C$6:E20)>=1,COUNT($C$6:E20)) ->  | L20: =_xlfn.IFS(COUNT(C20:E20)<1,"",AND(COUNT($C$6:E20)<=9,$C$4>1),$C$4,COUNT(C20:E20)>=1,M20) ->  | M20: =IF(COUNT($C$6:E20)>=1,TRUNC(SUM($C$6:E20)/COUNT($C$6:E20)),0) -> 134 | N20: =IF(COUNT($C$6:E20)<=6,0,TRUNC((230-M19)*0.9)) -> 86 | O20: =_xlfn.IFS(SUM(C20:E20)<1,"",COUNT($C$6:E20)>9,TRUNC((230-M19)*(0.9)),COUNT($C$6:E20)<=9,0) ->  | P20: =_xlfn.IFS(SUM(C20:E20)<1,"",COUNT($C$6:E20)>9,N20*3+H20,COUNT($C$6:E20)<=9,0) ->  | S20: =IF(COUNT($C$6:E20)>9,IF(P20=MAX($P$6:$P$35),P20," "),"") ->  | V20: =IF(COUNT(C20:E20)<1,0,IF(COUNT($C$6:E20)>9,C20+N20,0)) -> 0 | W20: =IF(COUNT(C20:E20)<1,0,IF(COUNT($C$6:E20)>9,D20+N20,0)) -> 0 | X20: =IF(COUNT(C20:E20)<1,0,IF(COUNT($C$6:E20)>9,E20+N20,0)) -> 0 | AA20: 0 | AB20: 0 | AC20: 15
A21: wk16 | B21: =Calendar!B21 -> 2020-01-15 | F21: =IF(COUNT(C21:E21)<1," ",IF(AND(C21>M20,D21>M20,E21>M20,COUNT($C$6:E20)>=12),"*"," ")) ->  | G21: =IF(COUNT(C21:E21)<1," ",IF(AND(C21>M19,D21>M19,E21>M19,COUNT($C$6:E19)>=12),"*"," ")) ->  | J21: =_xlfn.IFS(SUM(C21:E21)<1,"",SUM(C21:E21)>=1,SUM($C$6:E21)) ->  | K21: =_xlfn.IFS(COUNT(C21:E21)<1,"",COUNT($C$6:E21)>=1,COUNT($C$6:E21)) ->  | L21: =_xlfn.IFS(COUNT(C21:E21)<1,"",AND(COUNT($C$6:E21)<=9,$C$4>1),$C$4,COUNT(C21:E21)>=1,M21) ->  | M21: =IF(COUNT($C$6:E21)>=1,TRUNC(SUM($C$6:E21)/COUNT($C$6:E21)),0) -> 134 | N21: =IF(COUNT($C$6:E21)<=6,0,TRUNC((230-M20)*0.9)) -> 86 | O21: =_xlfn.IFS(SUM(C21:E21)<1,"",COUNT($C$6:E21)>9,TRUNC((230-M20)*(0.9)),COUNT($C$6:E21)<=9,0) ->  | P21: =_xlfn.IFS(SUM(C21:E21)<1,"",COUNT($C$6:E21)>9,N21*3+H21,COUNT($C$6:E21)<=9,0) ->  | S21: =IF(COUNT($C$6:E21)>9,IF(P21=MAX($P$6:$P$35),P21," "),"") ->  | V21: =IF(COUNT(C21:E21)<1,0,IF(COUNT($C$6:E21)>9,C21+N21,0)) -> 0 | W21: =IF(COUNT(C21:E21)<1,0,IF(COUNT($C$6:E21)>9,D21+N21,0)) -> 0 | X21: =IF(COUNT(C21:E21)<1,0,IF(COUNT($C$6:E21)>9,E21+N21,0)) -> 0 | AA21: 0 | AB21: 0 | AC21: 16
A22: wk17 | B22: =Calendar!B22 -> 2020-01-22 | F22: =IF(COUNT(C22:E22)<1," ",IF(AND(C22>M21,D22>M21,E22>M21,COUNT($C$6:E21)>=12),"*"," ")) ->  | G22: =IF(COUNT(C22:E22)<1," ",IF(AND(C22>M20,D22>M20,E22>M20,COUNT($C$6:E20)>=12),"*"," ")) ->  | J22: =_xlfn.IFS(SUM(C22:E22)<1,"",SUM(C22:E22)>=1,SUM($C$6:E22)) ->  | K22: =_xlfn.IFS(COUNT(C22:E22)<1,"",COUNT($C$6:E22)>=1,COUNT($C$6:E22)) ->  | L22: =_xlfn.IFS(COUNT(C22:E22)<1,"",AND(COUNT($C$6:E22)<=9,$C$4>1),$C$4,COUNT(C22:E22)>=1,M22) ->  | M22: =IF(COUNT($C$6:E22)>=1,TRUNC(SUM($C$6:E22)/COUNT($C$6:E22)),0) -> 134 | N22: =IF(COUNT($C$6:E22)<=6,0,TRUNC((230-M21)*0.9)) -> 86 | O22: =_xlfn.IFS(SUM(C22:E22)<1,"",COUNT($C$6:E22)>9,TRUNC((230-M21)*(0.9)),COUNT($C$6:E22)<=9,0) ->  | P22: =_xlfn.IFS(SUM(C22:E22)<1,"",COUNT($C$6:E22)>9,N22*3+H22,COUNT($C$6:E22)<=9,0) ->  | S22: =IF(COUNT($C$6:E22)>9,IF(P22=MAX($P$6:$P$35),P22," "),"") ->  | V22: =IF(COUNT(C22:E22)<1,0,IF(COUNT($C$6:E22)>9,C22+N22,0)) -> 0 | W22: =IF(COUNT(C22:E22)<1,0,IF(COUNT($C$6:E22)>9,D22+N22,0)) -> 0 | X22: =IF(COUNT(C22:E22)<1,0,IF(COUNT($C$6:E22)>9,E22+N22,0)) -> 0 | AA22: 0 | AB22: 0 | AC22: 17
A23: wk18 | B23: =Calendar!B23 -> 2020-01-29 | F23: =IF(COUNT(C23:E23)<1," ",IF(AND(C23>M22,D23>M22,E23>M22,COUNT($C$6:E22)>=12),"*"," ")) ->  | G23: =IF(COUNT(C23:E23)<1," ",IF(AND(C23>M21,D23>M21,E23>M21,COUNT($C$6:E21)>=12),"*"," ")) ->  | J23: =_xlfn.IFS(SUM(C23:E23)<1,"",SUM(C23:E23)>=1,SUM($C$6:E23)) ->  | K23: =_xlfn.IFS(COUNT(C23:E23)<1,"",COUNT($C$6:E23)>=1,COUNT($C$6:E23)) ->  | L23: =_xlfn.IFS(COUNT(C23:E23)<1,"",AND(COUNT($C$6:E23)<=9,$C$4>1),$C$4,COUNT(C23:E23)>=1,M23) ->  | M23: =IF(COUNT($C$6:E23)>=1,TRUNC(SUM($C$6:E23)/COUNT($C$6:E23)),0) -> 134 | N23: =IF(COUNT($C$6:E23)<=6,0,TRUNC((230-M22)*0.9)) -> 86 | O23: =_xlfn.IFS(SUM(C23:E23)<1,"",COUNT($C$6:E23)>9,TRUNC((230-M22)*(0.9)),COUNT($C$6:E23)<=9,0) ->  | P23: =_xlfn.IFS(SUM(C23:E23)<1,"",COUNT($C$6:E23)>9,N23*3+H23,COUNT($C$6:E23)<=9,0) ->  | S23: =IF(COUNT($C$6:E23)>9,IF(P23=MAX($P$6:$P$35),P23," "),"") ->  | V23: =IF(COUNT(C23:E23)<1,0,IF(COUNT($C$6:E23)>9,C23+N23,0)) -> 0 | W23: =IF(COUNT(C23:E23)<1,0,IF(COUNT($C$6:E23)>9,D23+N23,0)) -> 0 | X23: =IF(COUNT(C23:E23)<1,0,IF(COUNT($C$6:E23)>9,E23+N23,0)) -> 0 | AA23: 0 | AB23: 0 | AC23: 18
A24: wk19 | B24: =Calendar!B24 -> 2020-02-05 | F24: =IF(COUNT(C24:E24)<1," ",IF(AND(C24>M23,D24>M23,E24>M23,COUNT($C$6:E23)>=12),"*"," ")) ->  | G24: =IF(COUNT(C24:E24)<1," ",IF(AND(C24>M22,D24>M22,E24>M22,COUNT($C$6:E22)>=12),"*"," ")) ->  | J24: =_xlfn.IFS(SUM(C24:E24)<1,"",SUM(C24:E24)>=1,SUM($C$6:E24)) ->  | K24: =_xlfn.IFS(COUNT(C24:E24)<1,"",COUNT($C$6:E24)>=1,COUNT($C$6:E24)) ->  | L24: =_xlfn.IFS(COUNT(C24:E24)<1,"",AND(COUNT($C$6:E24)<=9,$C$4>1),$C$4,COUNT(C24:E24)>=1,M24) ->  | M24: =IF(COUNT($C$6:E24)>=1,TRUNC(SUM($C$6:E24)/COUNT($C$6:E24)),0) -> 134 | N24: =IF(COUNT($C$6:E24)<=6,0,TRUNC((230-M23)*0.9)) -> 86 | O24: =_xlfn.IFS(SUM(C24:E24)<1,"",COUNT($C$6:E24)>9,TRUNC((230-M23)*(0.9)),COUNT($C$6:E24)<=9,0) ->  | P24: =_xlfn.IFS(SUM(C24:E24)<1,"",COUNT($C$6:E24)>9,N24*3+H24,COUNT($C$6:E24)<=9,0) ->  | S24: =IF(COUNT($C$6:E24)>9,IF(P24=MAX($P$6:$P$35),P24," "),"") ->  | V24: =IF(COUNT(C24:E24)<1,0,IF(COUNT($C$6:E24)>9,C24+N24,0)) -> 0 | W24: =IF(COUNT(C24:E24)<1,0,IF(COUNT($C$6:E24)>9,D24+N24,0)) -> 0 | X24: =IF(COUNT(C24:E24)<1,0,IF(COUNT($C$6:E24)>9,E24+N24,0)) -> 0 | AA24: 0 | AB24: 0 | AC24: 19
A25: wk20 | B25: =Calendar!B25 -> 2020-02-12 | F25: =IF(COUNT(C25:E25)<1," ",IF(AND(C25>M24,D25>M24,E25>M24,COUNT($C$6:E24)>=12),"*"," ")) ->  | G25: =IF(COUNT(C25:E25)<1," ",IF(AND(C25>M23,D25>M23,E25>M23,COUNT($C$6:E23)>=12),"*"," ")) ->  | J25: =_xlfn.IFS(SUM(C25:E25)<1,"",SUM(C25:E25)>=1,SUM($C$6:E25)) ->  | K25: =_xlfn.IFS(COUNT(C25:E25)<1,"",COUNT($C$6:E25)>=1,COUNT($C$6:E25)) ->  | L25: =_xlfn.IFS(COUNT(C25:E25)<1,"",AND(COUNT($C$6:E25)<=9,$C$4>1),$C$4,COUNT(C25:E25)>=1,M25) ->  | M25: =IF(COUNT($C$6:E25)>=1,TRUNC(SUM($C$6:E25)/COUNT($C$6:E25)),0) -> 134 | N25: =IF(COUNT($C$6:E25)<=6,0,TRUNC((230-M24)*0.9)) -> 86 | O25: =_xlfn.IFS(SUM(C25:E25)<1,"",COUNT($C$6:E25)>9,TRUNC((230-M24)*(0.9)),COUNT($C$6:E25)<=9,0) ->  | P25: =_xlfn.IFS(SUM(C25:E25)<1,"",COUNT($C$6:E25)>9,N25*3+H25,COUNT($C$6:E25)<=9,0) ->  | S25: =IF(COUNT($C$6:E25)>9,IF(P25=MAX($P$6:$P$35),P25," "),"") ->  | V25: =IF(COUNT(C25:E25)<1,0,IF(COUNT($C$6:E25)>9,C25+N25,0)) -> 0 | W25: =IF(COUNT(C25:E25)<1,0,IF(COUNT($C$6:E25)>9,D25+N25,0)) -> 0 | X25: =IF(COUNT(C25:E25)<1,0,IF(COUNT($C$6:E25)>9,E25+N25,0)) -> 0 | AA25: 0 | AB25: 0 | AC25: 20
A26: wk21 | B26: =Calendar!B26 -> 2020-02-19 | F26: =IF(COUNT(C26:E26)<1," ",IF(AND(C26>M25,D26>M25,E26>M25,COUNT($C$6:E25)>=12),"*"," ")) ->  | G26: =IF(COUNT(C26:E26)<1," ",IF(AND(C26>M24,D26>M24,E26>M24,COUNT($C$6:E24)>=12),"*"," ")) ->  | J26: =_xlfn.IFS(SUM(C26:E26)<1,"",SUM(C26:E26)>=1,SUM($C$6:E26)) ->  | K26: =_xlfn.IFS(COUNT(C26:E26)<1,"",COUNT($C$6:E26)>=1,COUNT($C$6:E26)) ->  | L26: =_xlfn.IFS(COUNT(C26:E26)<1,"",AND(COUNT($C$6:E26)<=9,$C$4>1),$C$4,COUNT(C26:E26)>=1,M26) ->  | M26: =IF(COUNT($C$6:E26)>=1,TRUNC(SUM($C$6:E26)/COUNT($C$6:E26)),0) -> 134 | N26: =IF(COUNT($C$6:E26)<=6,0,TRUNC((230-M25)*0.9)) -> 86 | O26: =_xlfn.IFS(SUM(C26:E26)<1,"",COUNT($C$6:E26)>9,TRUNC((230-M25)*(0.9)),COUNT($C$6:E26)<=9,0) ->  | P26: =_xlfn.IFS(SUM(C26:E26)<1,"",COUNT($C$6:E26)>9,N26*3+H26,COUNT($C$6:E26)<=9,0) ->  | S26: =IF(COUNT($C$6:E26)>9,IF(P26=MAX($P$6:$P$35),P26," "),"") ->  | V26: =IF(COUNT(C26:E26)<1,0,IF(COUNT($C$6:E26)>9,C26+N26,0)) -> 0 | W26: =IF(COUNT(C26:E26)<1,0,IF(COUNT($C$6:E26)>9,D26+N26,0)) -> 0 | X26: =IF(COUNT(C26:E26)<1,0,IF(COUNT($C$6:E26)>9,E26+N26,0)) -> 0 | AA26: 0 | AB26: 0 | AC26: 21
A27: wk22 | B27: =Calendar!B27 -> 2020-02-16 | F27: =IF(COUNT(C27:E27)<1," ",IF(AND(C27>M26,D27>M26,E27>M26,COUNT($C$6:E26)>=12),"*"," ")) ->  | G27: =IF(COUNT(C27:E27)<1," ",IF(AND(C27>M25,D27>M25,E27>M25,COUNT($C$6:E25)>=12),"*"," ")) ->  | J27: =_xlfn.IFS(SUM(C27:E27)<1,"",SUM(C27:E27)>=1,SUM($C$6:E27)) ->  | K27: =_xlfn.IFS(COUNT(C27:E27)<1,"",COUNT($C$6:E27)>=1,COUNT($C$6:E27)) ->  | L27: =_xlfn.IFS(COUNT(C27:E27)<1,"",AND(COUNT($C$6:E27)<=9,$C$4>1),$C$4,COUNT(C27:E27)>=1,M27) ->  | M27: =IF(COUNT($C$6:E27)>=1,TRUNC(SUM($C$6:E27)/COUNT($C$6:E27)),0) -> 134 | N27: =IF(COUNT($C$6:E27)<=6,0,TRUNC((230-M26)*0.9)) -> 86 | O27: =_xlfn.IFS(SUM(C27:E27)<1,"",COUNT($C$6:E27)>9,TRUNC((230-M26)*(0.9)),COUNT($C$6:E27)<=9,0) ->  | P27: =_xlfn.IFS(SUM(C27:E27)<1,"",COUNT($C$6:E27)>9,N27*3+H27,COUNT($C$6:E27)<=9,0) ->  | S27: =IF(COUNT($C$6:E27)>9,IF(P27=MAX($P$6:$P$35),P27," "),"") ->  | V27: =IF(COUNT(C27:E27)<1,0,IF(COUNT($C$6:E27)>9,C27+N27,0)) -> 0 | W27: =IF(COUNT(C27:E27)<1,0,IF(COUNT($C$6:E27)>9,D27+N27,0)) -> 0 | X27: =IF(COUNT(C27:E27)<1,0,IF(COUNT($C$6:E27)>9,E27+N27,0)) -> 0 | AA27: 0 | AB27: 0 | AC27: 22
A28: wk23 | B28: =Calendar!B28 -> 2020-03-04 | F28: =IF(COUNT(C28:E28)<1," ",IF(AND(C28>M27,D28>M27,E28>M27,COUNT($C$6:E27)>=12),"*"," ")) ->  | G28: =IF(COUNT(C28:E28)<1," ",IF(AND(C28>M26,D28>M26,E28>M26,COUNT($C$6:E26)>=12),"*"," ")) ->  | J28: =_xlfn.IFS(SUM(C28:E28)<1,"",SUM(C28:E28)>=1,SUM($C$6:E28)) ->  | K28: =_xlfn.IFS(COUNT(C28:E28)<1,"",COUNT($C$6:E28)>=1,COUNT($C$6:E28)) ->  | L28: =_xlfn.IFS(COUNT(C28:E28)<1,"",AND(COUNT($C$6:E28)<=9,$C$4>1),$C$4,COUNT(C28:E28)>=1,M28) ->  | M28: =IF(COUNT($C$6:E28)>=1,TRUNC(SUM($C$6:E28)/COUNT($C$6:E28)),0) -> 134 | N28: =IF(COUNT($C$6:E28)<=6,0,TRUNC((230-M27)*0.9)) -> 86 | O28: =_xlfn.IFS(SUM(C28:E28)<1,"",COUNT($C$6:E28)>9,TRUNC((230-M27)*(0.9)),COUNT($C$6:E28)<=9,0) ->  | P28: =_xlfn.IFS(SUM(C28:E28)<1,"",COUNT($C$6:E28)>9,N28*3+H28,COUNT($C$6:E28)<=9,0) ->  | S28: =IF(COUNT($C$6:E28)>9,IF(P28=MAX($P$6:$P$35),P28," "),"") ->  | V28: =IF(COUNT(C28:E28)<1,0,IF(COUNT($C$6:E28)>9,C28+N28,0)) -> 0 | W28: =IF(COUNT(C28:E28)<1,0,IF(COUNT($C$6:E28)>9,D28+N28,0)) -> 0 | X28: =IF(COUNT(C28:E28)<1,0,IF(COUNT($C$6:E28)>9,E28+N28,0)) -> 0 | AA28: 0 | AB28: 0 | AC28: 23
A29: wk24 | B29: =Calendar!B29 -> 2020-03-11 | F29: =IF(COUNT(C29:E29)<1," ",IF(AND(C29>M28,D29>M28,E29>M28,COUNT($C$6:E28)>=12),"*"," ")) ->  | G29: =IF(COUNT(C29:E29)<1," ",IF(AND(C29>M27,D29>M27,E29>M27,COUNT($C$6:E27)>=12),"*"," ")) ->  | J29: =_xlfn.IFS(SUM(C29:E29)<1,"",SUM(C29:E29)>=1,SUM($C$6:E29)) ->  | K29: =_xlfn.IFS(COUNT(C29:E29)<1,"",COUNT($C$6:E29)>=1,COUNT($C$6:E29)) ->  | L29: =_xlfn.IFS(COUNT(C29:E29)<1,"",AND(COUNT($C$6:E29)<=9,$C$4>1),$C$4,COUNT(C29:E29)>=1,M29) ->  | M29: =IF(COUNT($C$6:E29)>=1,TRUNC(SUM($C$6:E29)/COUNT($C$6:E29)),0) -> 134 | N29: =IF(COUNT($C$6:E29)<=6,0,TRUNC((230-M28)*0.9)) -> 86 | O29: =_xlfn.IFS(SUM(C29:E29)<1,"",COUNT($C$6:E29)>9,TRUNC((230-M28)*(0.9)),COUNT($C$6:E29)<=9,0) ->  | P29: =_xlfn.IFS(SUM(C29:E29)<1,"",COUNT($C$6:E29)>9,N29*3+H29,COUNT($C$6:E29)<=9,0) ->  | S29: =IF(COUNT($C$6:E29)>9,IF(P29=MAX($P$6:$P$35),P29," "),"") ->  | V29: =IF(COUNT(C29:E29)<1,0,IF(COUNT($C$6:E29)>9,C29+N29,0)) -> 0 | W29: =IF(COUNT(C29:E29)<1,0,IF(COUNT($C$6:E29)>9,D29+N29,0)) -> 0 | X29: =IF(COUNT(C29:E29)<1,0,IF(COUNT($C$6:E29)>9,E29+N29,0)) -> 0 | AA29: 0 | AB29: 0 | AC29: 24
A30: wk25 | B30: =Calendar!B30 -> 2020-03-18 | F30: =IF(COUNT(C30:E30)<1," ",IF(AND(C30>M29,D30>M29,E30>M29,COUNT($C$6:E29)>=12),"*"," ")) ->  | G30: =IF(COUNT(C30:E30)<1," ",IF(AND(C30>M28,D30>M28,E30>M28,COUNT($C$6:E28)>=12),"*"," ")) ->  | J30: =_xlfn.IFS(SUM(C30:E30)<1,"",SUM(C30:E30)>=1,SUM($C$6:E30)) ->  | K30: =_xlfn.IFS(COUNT(C30:E30)<1,"",COUNT($C$6:E30)>=1,COUNT($C$6:E30)) ->  | L30: =_xlfn.IFS(COUNT(C30:E30)<1,"",AND(COUNT($C$6:E30)<=9,$C$4>1),$C$4,COUNT(C30:E30)>=1,M30) ->  | M30: =IF(COUNT($C$6:E30)>=1,TRUNC(SUM($C$6:E30)/COUNT($C$6:E30)),0) -> 134 | N30: =IF(COUNT($C$6:E30)<=6,0,TRUNC((230-M29)*0.9)) -> 86 | O30: =_xlfn.IFS(SUM(C30:E30)<1,"",COUNT($C$6:E30)>9,TRUNC((230-M29)*(0.9)),COUNT($C$6:E30)<=9,0) ->  | P30: =_xlfn.IFS(SUM(C30:E30)<1,"",COUNT($C$6:E30)>9,N30*3+H30,COUNT($C$6:E30)<=9,0) ->  | S30: =IF(COUNT($C$6:E30)>9,IF(P30=MAX($P$6:$P$35),P30," "),"") ->  | V30: =IF(COUNT(C30:E30)<1,0,IF(COUNT($C$6:E30)>9,C30+N30,0)) -> 0 | W30: =IF(COUNT(C30:E30)<1,0,IF(COUNT($C$6:E30)>9,D30+N30,0)) -> 0 | X30: =IF(COUNT(C30:E30)<1,0,IF(COUNT($C$6:E30)>9,E30+N30,0)) -> 0 | AA30: 0 | AB30: 0 | AC30: 25
A31: wk26 | B31: =Calendar!B31 -> 2020-03-25 | F31: =IF(COUNT(C31:E31)<1," ",IF(AND(C31>M30,D31>M30,E31>M30,COUNT($C$6:E30)>=12),"*"," ")) ->  | G31: =IF(COUNT(C31:E31)<1," ",IF(AND(C31>M29,D31>M29,E31>M29,COUNT($C$6:E29)>=12),"*"," ")) ->  | J31: =_xlfn.IFS(SUM(C31:E31)<1,"",SUM(C31:E31)>=1,SUM($C$6:E31)) ->  | K31: =_xlfn.IFS(COUNT(C31:E31)<1,"",COUNT($C$6:E31)>=1,COUNT($C$6:E31)) ->  | L31: =_xlfn.IFS(COUNT(C31:E31)<1,"",AND(COUNT($C$6:E31)<=9,$C$4>1),$C$4,COUNT(C31:E31)>=1,M31) ->  | M31: =IF(COUNT($C$6:E31)>=1,TRUNC(SUM($C$6:E31)/COUNT($C$6:E31)),0) -> 134 | N31: =IF(COUNT($C$6:E31)<=6,0,TRUNC((230-M30)*0.9)) -> 86 | O31: =_xlfn.IFS(SUM(C31:E31)<1,"",COUNT($C$6:E31)>9,TRUNC((230-M30)*(0.9)),COUNT($C$6:E31)<=9,0) ->  | P31: =_xlfn.IFS(SUM(C31:E31)<1,"",COUNT($C$6:E31)>9,N31*3+H31,COUNT($C$6:E31)<=9,0) ->  | S31: =IF(COUNT($C$6:E31)>9,IF(P31=MAX($P$6:$P$35),P31," "),"") ->  | V31: =IF(COUNT(C31:E31)<1,0,IF(COUNT($C$6:E31)>9,C31+N31,0)) -> 0 | W31: =IF(COUNT(C31:E31)<1,0,IF(COUNT($C$6:E31)>9,D31+N31,0)) -> 0 | X31: =IF(COUNT(C31:E31)<1,0,IF(COUNT($C$6:E31)>9,E31+N31,0)) -> 0 | AA31: 0 | AB31: 0 | AC31: 26
A32: wk27 | B32: =Calendar!B32 -> 2020-04-01 | F32: =IF(COUNT(C32:E32)<1," ",IF(AND(C32>M31,D32>M31,E32>M31,COUNT($C$6:E31)>=12),"*"," ")) ->  | G32: =IF(COUNT(C32:E32)<1," ",IF(AND(C32>M30,D32>M30,E32>M30,COUNT($C$6:E30)>=12),"*"," ")) ->  | J32: =_xlfn.IFS(SUM(C32:E32)<1,"",SUM(C32:E32)>=1,SUM($C$6:E32)) ->  | K32: =_xlfn.IFS(COUNT(C32:E32)<1,"",COUNT($C$6:E32)>=1,COUNT($C$6:E32)) ->  | L32: =_xlfn.IFS(COUNT(C32:E32)<1,"",AND(COUNT($C$6:E32)<=9,$C$4>1),$C$4,COUNT(C32:E32)>=1,M32) ->  | M32: =IF(COUNT($C$6:E32)>=1,TRUNC(SUM($C$6:E32)/COUNT($C$6:E32)),0) -> 134 | N32: =IF(COUNT($C$6:E32)<=6,0,TRUNC((230-M31)*0.9)) -> 86 | O32: =_xlfn.IFS(SUM(C32:E32)<1,"",COUNT($C$6:E32)>9,TRUNC((230-M31)*(0.9)),COUNT($C$6:E32)<=9,0) ->  | P32: =_xlfn.IFS(SUM(C32:E32)<1,"",COUNT($C$6:E32)>9,N32*3+H32,COUNT($C$6:E32)<=9,0) ->  | S32: =IF(COUNT($C$6:E32)>9,IF(P32=MAX($P$6:$P$35),P32," "),"") ->  | V32: =IF(COUNT(C32:E32)<1,0,IF(COUNT($C$6:E32)>9,C32+N32,0)) -> 0 | W32: =IF(COUNT(C32:E32)<1,0,IF(COUNT($C$6:E32)>9,D32+N32,0)) -> 0 | X32: =IF(COUNT(C32:E32)<1,0,IF(COUNT($C$6:E32)>9,E32+N32,0)) -> 0 | AA32: 0 | AB32: 0 | AC32: 27
A33: wk28 | B33: =Calendar!B33 -> 2020-04-08 | F33: =IF(COUNT(C33:E33)<1," ",IF(AND(C33>M32,D33>M32,E33>M32,COUNT($C$6:E32)>=12),"*"," ")) ->  | G33: =IF(COUNT(C33:E33)<1," ",IF(AND(C33>M31,D33>M31,E33>M31,COUNT($C$6:E31)>=12),"*"," ")) ->  | J33: =_xlfn.IFS(SUM(C33:E33)<1,"",SUM(C33:E33)>=1,SUM($C$6:E33)) ->  | K33: =_xlfn.IFS(COUNT(C33:E33)<1,"",COUNT($C$6:E33)>=1,COUNT($C$6:E33)) ->  | L33: =_xlfn.IFS(COUNT(C33:E33)<1,"",AND(COUNT($C$6:E33)<=9,$C$4>1),$C$4,COUNT(C33:E33)>=1,M33) ->  | M33: =IF(COUNT($C$6:E33)>=1,TRUNC(SUM($C$6:E33)/COUNT($C$6:E33)),0) -> 134 | N33: =IF(COUNT($C$6:E33)<=6,0,TRUNC((230-M32)*0.9)) -> 86 | O33: =_xlfn.IFS(SUM(C33:E33)<1,"",COUNT($C$6:E33)>9,TRUNC((230-M32)*(0.9)),COUNT($C$6:E33)<=9,0) ->  | P33: =_xlfn.IFS(SUM(C33:E33)<1,"",COUNT($C$6:E33)>9,N33*3+H33,COUNT($C$6:E33)<=9,0) ->  | S33: =IF(COUNT($C$6:E33)>9,IF(P33=MAX($P$6:$P$35),P33," "),"") ->  | V33: =IF(COUNT(C33:E33)<1,0,IF(COUNT($C$6:E33)>9,C33+N33,0)) -> 0 | W33: =IF(COUNT(C33:E33)<1,0,IF(COUNT($C$6:E33)>9,D33+N33,0)) -> 0 | X33: =IF(COUNT(C33:E33)<1,0,IF(COUNT($C$6:E33)>9,E33+N33,0)) -> 0 | AA33: 0 | AB33: 0 | AC33: 28
A34: wk29 | B34: =Calendar!B34 -> 2020-04-15 | F34: =IF(COUNT(C34:E34)<1," ",IF(AND(C34>M33,D34>M33,E34>M33,COUNT($C$6:E33)>=12),"*"," ")) ->  | G34: =IF(COUNT(C34:E34)<1," ",IF(AND(C34>M32,D34>M32,E34>M32,COUNT($C$6:E32)>=12),"*"," ")) ->  | J34: =_xlfn.IFS(SUM(C34:E34)<1,"",SUM(C34:E34)>=1,SUM($C$6:E34)) ->  | K34: =_xlfn.IFS(COUNT(C34:E34)<1,"",COUNT($C$6:E34)>=1,COUNT($C$6:E34)) ->  | L34: =_xlfn.IFS(COUNT(C34:E34)<1,"",AND(COUNT($C$6:E34)<=9,$C$4>1),$C$4,COUNT(C34:E34)>=1,M34) ->  | M34: =IF(COUNT($C$6:E34)>=1,TRUNC(SUM($C$6:E34)/COUNT($C$6:E34)),0) -> 134 | N34: =IF(COUNT($C$6:E34)<=6,0,TRUNC((230-M33)*0.9)) -> 86 | O34: =_xlfn.IFS(SUM(C34:E34)<1,"",COUNT($C$6:E34)>9,TRUNC((230-M33)*(0.9)),COUNT($C$6:E34)<=9,0) ->  | P34: =_xlfn.IFS(SUM(C34:E34)<1,"",COUNT($C$6:E34)>9,N34*3+H34,COUNT($C$6:E34)<=9,0) ->  | S34: =IF(COUNT($C$6:E34)>9,IF(P34=MAX($P$6:$P$35),P34," "),"") ->  | V34: =IF(COUNT(C34:E34)<1,0,IF(COUNT($C$6:E34)>9,C34+N34,0)) -> 0 | W34: =IF(COUNT(C34:E34)<1,0,IF(COUNT($C$6:E34)>9,D34+N34,0)) -> 0 | X34: =IF(COUNT(C34:E34)<1,0,IF(COUNT($C$6:E34)>9,E34+N34,0)) -> 0 | AA34: 0 | AB34: 0 | AC34: 29
A35: wk30 | B35: =Calendar!B35 -> 2020-04-22 | F35: =IF(COUNT(C35:E35)<1," ",IF(AND(C35>M34,D35>M34,E35>M34,COUNT($C$6:E34)>=12),"*"," ")) ->  | G35: =IF(COUNT(C35:E35)<1," ",IF(AND(C35>M33,D35>M33,E35>M33,COUNT($C$6:E33)>=12),"*"," ")) ->  | J35: =_xlfn.IFS(SUM(C35:E35)<1,"",SUM(C35:E35)>=1,SUM($C$6:E35)) ->  | K35: =_xlfn.IFS(COUNT(C35:E35)<1,"",COUNT($C$6:E35)>=1,COUNT($C$6:E35)) ->  | L35: =_xlfn.IFS(COUNT(C35:E35)<1,"",AND(COUNT($C$6:E35)<=9,$C$4>1),$C$4,COUNT(C35:E35)>=1,M35) ->  | M35: =IF(COUNT($C$6:E35)>=1,TRUNC(SUM($C$6:E35)/COUNT($C$6:E35)),0) -> 134 | N35: =IF(COUNT($C$6:E35)<=6,0,TRUNC((230-M34)*0.9)) -> 86 | O35: =_xlfn.IFS(SUM(C35:E35)<1,"",COUNT($C$6:E35)>9,TRUNC((230-M34)*(0.9)),COUNT($C$6:E35)<=9,0) ->  | P35: =_xlfn.IFS(SUM(C35:E35)<1,"",COUNT($C$6:E35)>9,N35*3+H35,COUNT($C$6:E35)<=9,0) ->  | S35: =IF(COUNT($C$6:E35)>9,IF(P35=MAX($P$6:$P$35),P35," "),"") ->  | V35: =IF(COUNT(C35:E35)<1,0,IF(COUNT($C$6:E35)>9,C35+N35,0)) -> 0 | W35: =IF(COUNT(C35:E35)<1,0,IF(COUNT($C$6:E35)>9,D35+N35,0)) -> 0 | X35: =IF(COUNT(C35:E35)<1,0,IF(COUNT($C$6:E35)>9,E35+N35,0)) -> 0 | AA35: 0 | AB35: 0 | AC35: 30
C36: =(IF(COUNT(C6:C35)=0," ",(SUM(C6:C35))/COUNT(C6:C35))) -> 131.83 | D36: =(IF(COUNT(D6:D35)=0," ",(SUM(D6:D35))/COUNT(D6:D35))) -> 137.50 | E36: =(IF(COUNT(E6:E35)=0," ",(SUM(E6:E35))/COUNT(E6:E35))) -> 134.33

Sheet MThomas
H1: =Calendar!H1 -> Wednesday Fun Fours 2019/20 season | R1: 6-over wk:
A2: wk# | B2: =MAX(AB6:AB35) -> 24
A3: Name: | B3: Morgan Thomas | I3: Perfect Attendance: | K3: =IF(SUM(AA6:AA35)<0.5,"Yes","No") -> Yes | L3: =_xlfn.IFS(AND(B2=30,K3="Yes"),"good",AND(B2<>30,K3="Yes"),"So Far",AND(B2<>30,K3="No")," ") -> So Far
A4: book average: | C4: 180 | H4: wky | I4: wky | J4: cumulative | L4: cumulative | P4: hdcp | Q4: high | R4: high | S4: high hcp | T4: high hcp
C5: g1 | D5: g2 | E5: g3 | H5: series | I5: average | J5: score | K5: games | L5: average | O5: hdcp | P5: series | Q5: series | R5: game | S5: series | T5: game | V5: =MAX(C6:E35) -> 247 | W5: =MAX(V6:X35) -> 282
A6: wk1 | B6: =Calendar!B6 -> 2019-09-04 | C6: 181 | D6: 179 | E6: 167 | H6: =IF(COUNT(C6:E6)<1," ",SUM(C6:E6)) -> 527 | I6: =IF(COUNT(C6:E6)<1," ",TRUNC(H6/COUNT(C6:E6))) -> 175 | J6: =_xlfn.IFS(SUM(C6:E6)<1,"",SUM(C6:E6)>=1,SUM($C$6:E6)) -> 527 | K6: =_xlfn.IFS(COUNT(C6:E6)<1,"",COUNT($C$6:E6)>=1,COUNT($C$6:E6)) -> 3 | L6: =_xlfn.IFS(COUNT(C6:E6)<1,"",AND(COUNT($C$6:E6)<=9,$C$4>1),$C$4,COUNT(C6:E6)>=1,M6) -> 180 | M6: =IF(COUNT($C$6:E6)>=1,TRUNC(SUM($C$6:E6)/COUNT($C$6:E6)),0) -> 175 | N6: =IF(COUNT($C$6:E6)<=6,0,TRUNC((230-M5)*0.9)) -> 0 | O6: =_xlfn.IFS(SUM(C6:E6)<1,"",COUNT($C$6:E6)>9,TRUNC((230-M5)*(0.9)),COUNT($C$6:E6)<=9,0) -> 0 | P6: =_xlfn.IFS(SUM(C6:E6)<1,"",COUNT($C$6:E6)>9,N6*3+H6,COUNT($C$6:E6)<=9,0) -> 0 | Q6: =IF(H6=(MAX($H$6:$H$35)),H6," ") ->  | R6: =IF((OR(C6=$V$5,D6=$V$5,E6=$V$5)),$V$5," ") ->  | S6: =IF(COUNT($C$6:E6)>9,IF(P6=MAX($P$6:$P$35),P6," "),"") ->  | T6: =IF(OR(V6=$W$5,W6=$W$5,X6=$W$5),$W$5," ") ->  | V6: =IF(COUNT(C6:E6)<1,0,IF(COUNT($C$6:E6)>9,C6+N6,0)) -> 0 | W6: =IF(COUNT(C6:E6)<1,0,IF(COUNT($C$6:E6)>9,D6+N6,0)) -> 0 | X6: =IF(COUNT(C6:E6)<1,0,IF(COUNT($C$6:E6)>9,E6+N6,0)) -> 0 | AA6: =IF((MAX($AB$6:$AB$35))<AC6,0,IF(AB6=AC6,0,1)) -> 0 | AB6: =IF(COUNT(C6:E6)>0,AC6,0) -> 1 | AC6: 1
A7: wk2 | B7: =Calendar!B7 -> 2019-09-11 | C7: 192 | D7: 201 | E7: 159 | H7: 552 | I7: =IF(COUNT(C7:E7)<1," ",TRUNC(H7/COUNT(C7:E7))) -> 184 | J7: =_xlfn.IFS(SUM(C7:E7)<1,"",SUM(C7:E7)>=1,SUM($C$6:E7)) -> 1079 | K7: =_xlfn.IFS(COUNT(C7:E7)<1,"",COUNT($C$6:E7)>=1,COUNT($C$6:E7)) -> 6 | L7: =_xlfn.IFS(COUNT(C7:E7)<1,"",AND(COUNT($C$6:E7)<=9,$C$4>1),$C$4,COUNT(C7:E7)>=1,M7) -> 180 | M7: =IF(COUNT($C$6:E7)>=1,TRUNC(SUM($C$6:E7)/COUNT($C$6:E7)),0) -> 179 | N7: =IF(COUNT($C$6:E7)<=6,0,TRUNC((230-M6)*0.9)) -> 0 | O7: =_xlfn.IFS(SUM(C7:E7)<1,"",COUNT($C$6:E7)>9,TRUNC((230-M6)*(0.9)),COUNT($C$6:E7)<=9,0) -> 0 | P7: =_xlfn.IFS(SUM(C7:E7)<1,"",COUNT($C$6:E7)>9,N7*3+H7,COUNT($C$6:E7)<=9,0) -> 0 | S7: =IF(COUNT($C$6:E7)>9,IF(P7=MAX($P$6:$P$35),P7," "),"") ->  | V7: =IF(COUNT(C7:E7)<1,0,IF(COUNT($C$6:E7)>9,C7+N7,0)) -> 0 | W7: =IF(COUNT(C7:E7)<1,0,IF(COUNT($C$6:E7)>9,D7+N7,0)) -> 0 | X7: =IF(COUNT(C7:E7)<1,0,IF(COUNT($C$6:E7)>9,E7+N7,0)) -> 0 | AA7: 0 | AB7: =IF(COUNT(C7:E7)>0,AC7,0) -> 2 | AC7: 2
A8: wk3 | B8: =Calendar!B8 -> 2019-09-18 | C8: 224 | D8: 223 | E8: 244 | H8: 691 | I8: 230 | J8: =_xlfn.IFS(SUM(C8:E8)<1,"",SUM(C8:E8)>=1,SUM($C$6:E8)) -> 1770 | K8: =_xlfn.IFS(COUNT(C8:E8)<1,"",COUNT($C$6:E8)>=1,COUNT($C$6:E8)) -> 9 | L8: =_xlfn.IFS(COUNT(C8:E8)<1,"",AND(COUNT($C$6:E8)<=9,$C$4>1),$C$4,COUNT(C8:E8)>=1,M8) -> 180 | M8: =IF(COUNT($C$6:E8)>=1,TRUNC(SUM($C$6:E8)/COUNT($C$6:E8)),0) -> 196 | N8: =IF(COUNT($C$6:E8)<=6,0,TRUNC((230-M7)*0.9)) -> 45 | O8: =_xlfn.IFS(SUM(C8:E8)<1,"",COUNT($C$6:E8)>9,TRUNC((230-M7)*(0.9)),COUNT($C$6:E8)<=9,0) -> 0 | P8: =_xlfn.IFS(SUM(C8:E8)<1,"",COUNT($C$6:E8)>9,N8*3+H8,COUNT($C$6:E8)<=9,0) -> 0 | Q8: 691 | S8: =IF(COUNT($C$6:E8)>9,IF(P8=MAX($P$6:$P$35),P8," "),"") ->  | V8: =IF(COUNT(C8:E8)<1,0,IF(COUNT($C$6:E8)>9,C8+N8,0)) -> 0 | W8: =IF(COUNT(C8:E8)<1,0,IF(COUNT($C$6:E8)>9,D8+N8,0)) -> 0 | X8: =IF(COUNT(C8:E8)<1,0,IF(COUNT($C$6:E8)>9,E8+N8,0)) -> 0 | AA8: 0 | AB8: 3 | AC8: 3
A9: wk4 | B9: =Calendar!B9 -> 2019-09-25 | C9: 233 | D9: 212 | E9: 225 | H9: 670 | I9: 223 | J9: =_xlfn.IFS(SUM(C9:E9)<1,"",SUM(C9:E9)>=1,SUM($C$6:E9)) -> 2440 | K9: =_xlfn.IFS(COUNT(C9:E9)<1,"",COUNT($C$6:E9)>=1,COUNT($C$6:E9)) -> 12 | L9: =_xlfn.IFS(COUNT(C9:E9)<1,"",AND(COUNT($C$6:E9)<=9,$C$4>1),$C$4,COUNT(C9:E9)>=1,M9) -> 203 | M9: =IF(COUNT($C$6:E9)>=1,TRUNC(SUM($C$6:E9)/COUNT($C$6:E9)),0) -> 203 | N9: =IF(COUNT($C$6:E9)<=6,0,TRUNC((230-M8)*0.9)) -> 30 | O9: =_xlfn.IFS(SUM(C9:E9)<1,"",COUNT($C$6:E9)>9,TRUNC((230-M8)*(0.9)),COUNT($C$6:E9)<=9,0) -> 30 | P9: =_xlfn.IFS(SUM(C9:E9)<1,"",COUNT($C$6:E9)>9,N9*3+H9,COUNT($C$6:E9)<=9,0) -> 760 | S9: =IF(COUNT($C$6:E9)>9,IF(P9=MAX($P$6:$P$35),P9," "),"") ->  | V9: =IF(COUNT(C9:E9)<1,0,IF(COUNT($C$6:E9)>9,C9+N9,0)) -> 263 | W9: =IF(COUNT(C9:E9)<1,0,IF(COUNT($C$6:E9)>9,D9+N9,0)) -> 242 | X9: =IF(COUNT(C9:E9)<1,0,IF(COUNT($C$6:E9)>9,E9+N9,0)) -> 255 | AA9: 0 | AB9: 4 | AC9: 4
A10: wk5 | B10: =Calendar!B10 -> 2019-10-02 | C10: 202 | D10: 210 | E10: 206 | F10: =IF(COUNT(C10:E10)<1," ",IF(AND(C10>M9,D10>M9,E10>M9,COUNT($C$6:E9)>=12),"*"," ")) ->  | H10: 618 | I10: 206 | J10: =_xlfn.IFS(SUM(C10:E10)<1,"",SUM(C10:E10)>=1,SUM($C$6:E10)) -> 3058 | K10: =_xlfn.IFS(COUNT(C10:E10)<1,"",COUNT($C$6:E10)>=1,COUNT($C$6:E10)) -> 15 | L10: =_xlfn.IFS(COUNT(C10:E10)<1,"",AND(COUNT($C$6:E10)<=9,$C$4>1),$C$4,COUNT(C10:E10)>=1,M10) -> 203 | M10: =IF(COUNT($C$6:E10)>=1,TRUNC(SUM($C$6:E10)/COUNT($C$6:E10)),0) -> 203 | N10: =IF(COUNT($C$6:E10)<=6,0,TRUNC((230-M9)*0.9)) -> 24 | O10: =_xlfn.IFS(SUM(C10:E10)<1,"",COUNT($C$6:E10)>9,TRUNC((230-M9)*(0.9)),COUNT($C$6:E10)<=9,0) -> 24 | P10: =_xlfn.IFS(SUM(C10:E10)<1,"",COUNT($C$6:E10)>9,N10*3+H10,COUNT($C$6:E10)<=9,0) -> 690 | S10: =IF(COUNT($C$6:E10)>9,IF(P10=MAX($P$6:$P$35),P10," "),"") ->  | V10: =IF(COUNT(C10:E10)<1,0,IF(COUNT($C$6:E10)>9,C10+N10,0)) -> 226 | W10: =IF(COUNT(C10:E10)<1,0,IF(COUNT($C$6:E10)>9,D10+N10,0)) -> 234 | X10: =IF(COUNT(C10:E10)<1,0,IF(COUNT($C$6:E10)>9,E10+N10,0)) -> 230 | AA10: 0 | AB10: 5 | AC10: 5
A11: wk6 | B11: =Calendar!B11 -> 2019-10-09 | C11: 180 | D11: 203 | E11: 176 | F11: =IF(COUNT(C11:E11)<1," ",IF(AND(C11>M10,D11>M10,E11>M10,COUNT($C$6:E10)>=12),"*"," ")) ->  | G11: =IF(COUNT(C11:E11)<1," ",IF(AND(C11>M9,D11>M9,E11>M9,COUNT($C$6:E9)>=12),"*"," ")) ->  | H11: 559 | I11: 186 | J11: =_xlfn.IFS(SUM(C11:E11)<1,"",SUM(C11:E11)>=1,SUM($C$6:E11)) -> 3617 | K11: =_xlfn.IFS(COUNT(C11:E11)<1,"",COUNT($C$6:E11)>=1,COUNT($C$6:E11)) -> 18 | L11: =_xlfn.IFS(COUNT(C11:E11)<1,"",AND(COUNT($C$6:E11)<=9,$C$4>1),$C$4,COUNT(C11:E11)>=1,M11) -> 200 | M11: =IF(COUNT($C$6:E11)>=1,TRUNC(SUM($C$6:E11)/COUNT($C$6:E11)),0) -> 200 | N11: =IF(COUNT($C$6:E11)<=6,0,TRUNC((230-M10)*0.9)) -> 24 | O11: =_xlfn.IFS(SUM(C11:E11)<1,"",COUNT($C$6:E11)>9,TRUNC((230-M10)*(0.9)),COUNT($C$6:E11)<=9,0) -> 24 | P11: =_xlfn.IFS(SUM(C11:E11)<1,"",COUNT($C$6:E11)>9,N11*3+H11,COUNT($C$6:E11)<=9,0) -> 631 | S11: =IF(COUNT($C$6:E11)>9,IF(P11=MAX($P$6:$P$35),P11," "),"") ->  | V11: =IF(COUNT(C11:E11)<1,0,IF(COUNT($C$6:E11)>9,C11+N11,0)) -> 204 | W11: =IF(COUNT(C11:E11)<1,0,IF(COUNT($C$6:E11)>9,D11+N11,0)) -> 227 | X11: =IF(COUNT(C11:E11)<1,0,IF(COUNT($C$6:E11)>9,E11+N11,0)) -> 200 | AA11: 0 | AB11: 6 | AC11: 6
A12: wk7 | B12: =Calendar!B12 -> 2019-10-16 | C12: 212 | D12: 213 | E12: 188 | F12: =IF(COUNT(C12:E12)<1," ",IF(AND(C12>M11,D12>M11,E12>M11,COUNT($C$6:E11)>=12),"*"," ")) ->  | G12: =IF(COUNT(C12:E12)<1," ",IF(AND(C12>M10,D12>M10,E12>M10,COUNT($C$6:E10)>=12),"*"," ")) ->  | H12: 613 | I12: 204 | J12: =_xlfn.IFS(SUM(C12:E12)<1,"",SUM(C12:E12)>=1,SUM($C$6:E12)) -> 4230 | K12: =_xlfn.IFS(COUNT(C12:E12)<1,"",COUNT($C$6:E12)>=1,COUNT($C$6:E12)) -> 21 | L12: =_xlfn.IFS(COUNT(C12:E12)<1,"",AND(COUNT($C$6:E12)<=9,$C$4>1),$C$4,COUNT(C12:E12)>=1,M12) -> 201 | M12: =IF(COUNT($C$6:E12)>=1,TRUNC(SUM($C$6:E12)/COUNT($C$6:E12)),0) -> 201 | N12: =IF(COUNT($C$6:E12)<=6,0,TRUNC((230-M11)*0.9)) -> 27 | O12: =_xlfn.IFS(SUM(C12:E12)<1,"",COUNT($C$6:E12)>9,TRUNC((230-M11)*(0.9)),COUNT($C$6:E12)<=9,0) -> 27 | P12: =_xlfn.IFS(SUM(C12:E12)<1,"",COUNT($C$6:E12)>9,N12*3+H12,COUNT($C$6:E12)<=9,0) -> 694 | S12: =IF(COUNT($C$6:E12)>9,IF(P12=MAX($P$6:$P$35),P12," "),"") ->  | V12: =IF(COUNT(C12:E12)<1,0,IF(COUNT($C$6:E12)>9,C12+N12,0)) -> 239 | W12: =IF(COUNT(C12:E12)<1,0,IF(COUNT($C$6:E12)>9,D12+N12,0)) -> 240 | X12: =IF(COUNT(C12:E12)<1,0,IF(COUNT($C$6:E12)>9,E12+N12,0)) -> 215 | AA12: 0 | AB12: 7 | AC12: 7
A13: wk8 | B13: =Calendar!B13 -> 2020-10-23 | C13: 221 | D13: 226 | E13: 236 | F13: =IF(COUNT(C13:E13)<1," ",IF(AND(C13>M12,D13>M12,E13>M12,COUNT($C$6:E12)>=12),"*"," ")) -> * | G13: =IF(COUNT(C13:E13)<1," ",IF(AND(C13>M11,D13>M11,E13>M11,COUNT($C$6:E11)>=12),"*"," ")) -> * | H13: 683 | I13: 227 | J13: =_xlfn.IFS(SUM(C13:E13)<1,"",SUM(C13:E13)>=1,SUM($C$6:E13)) -> 4913 | K13: =_xlfn.IFS(COUNT(C13:E13)<1,"",COUNT($C$6:E13)>=1,COUNT($C$6:E13)) -> 24 | L13: =_xlfn.IFS(COUNT(C13:E13)<1,"",AND(COUNT($C$6:E13)<=9,$C$4>1),$C$4,COUNT(C13:E13)>=1,M13) -> 204 | M13: =IF(COUNT($C$6:E13)>=1,TRUNC(SUM($C$6:E13)/COUNT($C$6:E13)),0) -> 204 | N13: =IF(COUNT($C$6:E13)<=6,0,TRUNC((230-M12)*0.9)) -> 26 | O13: =_xlfn.IFS(SUM(C13:E13)<1,"",COUNT($C$6:E13)>9,TRUNC((230-M12)*(0.9)),COUNT($C$6:E13)<=9,0) -> 26 | P13: =_xlfn.IFS(SUM(C13:E13)<1,"",COUNT($C$6:E13)>9,N13*3+H13,COUNT($C$6:E13)<=9,0) -> 761 | S13: =IF(COUNT($C$6:E13)>9,IF(P13=MAX($P$6:$P$35),P13," "),"") ->  | V13: =IF(COUNT(C13:E13)<1,0,IF(COUNT($C$6:E13)>9,C13+N13,0)) -> 247 | W13: =IF(COUNT(C13:E13)<1,0,IF(COUNT($C$6:E13)>9,D13+N13,0)) -> 252 | X13: =IF(COUNT(C13:E13)<1,0,IF(COUNT($C$6:E13)>9,E13+N13,0)) -> 262 | AA13: 0 | AB13: 8 | AC13: 8
A14: wk9 | B14: =Calendar!B14 -> 2019-11-06 | C14: 193 | D14: 181 | E14: 247 | F14: =IF(COUNT(C14:E14)<1," ",IF(AND(C14>M13,D14>M13,E14>M13,COUNT($C$6:E13)>=12),"*"," ")) ->  | G14: =IF(COUNT(C14:E14)<1," ",IF(AND(C14>M12,D14>M12,E14>M12,COUNT($C$6:E12)>=12),"*"," ")) ->  | H14: 621 | I14: 207 | J14: =_xlfn.IFS(SUM(C14:E14)<1,"",SUM(C14:E14)>=1,SUM($C$6:E14)) -> 5534 | K14: =_xlfn.IFS(COUNT(C14:E14)<1,"",COUNT($C$6:E14)>=1,COUNT($C$6:E14)) -> 27 | L14: =_xlfn.IFS(COUNT(C14:E14)<1,"",AND(COUNT($C$6:E14)<=9,$C$4>1),$C$4,COUNT(C14:E14)>=1,M14) -> 204 | M14: =IF(COUNT($C$6:E14)>=1,TRUNC(SUM($C$6:E14)/COUNT($C$6:E14)),0) -> 204 | N14: =IF(COUNT($C$6:E14)<=6,0,TRUNC((230-M13)*0.9)) -> 23 | O14: =_xlfn.IFS(SUM(C14:E14)<1,"",COUNT($C$6:E14)>9,TRUNC((230-M13)*(0.9)),COUNT($C$6:E14)<=9,0) -> 23 | P14: =_xlfn.IFS(SUM(C14:E14)<1,"",COUNT($C$6:E14)>9,N14*3+H14,COUNT($C$6:E14)<=9,0) -> 690 | R14: 247 | S14: =IF(COUNT($C$6:E14)>9,IF(P14=MAX($P$6:$P$35),P14," "),"") ->  | V14: =IF(COUNT(C14:E14)<1,0,IF(COUNT($C$6:E14)>9,C14+N14,0)) -> 216 | W14: =IF(COUNT(C14:E14)<1,0,IF(COUNT($C$6:E14)>9,D14+N14,0)) -> 204 | X14: =IF(COUNT(C14:E14)<1,0,IF(COUNT($C$6:E14)>9,E14+N14,0)) -> 270 | AA14: 0 | AB14: 9 | AC14: 9
A15: wk10 | B15: =Calendar!B15 -> 2019-11-13 | C15: 213 | D15: 190 | E15: 213 | F15: =IF(COUNT(C15:E15)<1," ",IF(AND(C15>M14,D15>M14,E15>M14,COUNT($C$6:E14)>=12),"*"," ")) ->  | G15: =IF(COUNT(C15:E15)<1," ",IF(AND(C15>M13,D15>M13,E15>M13,COUNT($C$6:E13)>=12),"*"," ")) ->  | H15: 616 | I15: 205 | J15: =_xlfn.IFS(SUM(C15:E15)<1,"",SUM(C15:E15)>=1,SUM($C$6:E15)) -> 6150 | K15: =_xlfn.IFS(COUNT(C15:E15)<1,"",COUNT($C$6:E15)>=1,COUNT($C$6:E15)) -> 30 | L15: =_xlfn.IFS(COUNT(C15:E15)<1,"",AND(COUNT($C$6:E15)<=9,$C$4>1),$C$4,COUNT(C15:E15)>=1,M15) -> 205 | M15: =IF(COUNT($C$6:E15)>=1,TRUNC(SUM($C$6:E15)/COUNT($C$6:E15)),0) -> 205 | N15: =IF(COUNT($C$6:E15)<=6,0,TRUNC((230-M14)*0.9)) -> 23 | O15: =_xlfn.IFS(SUM(C15:E15)<1,"",COUNT($C$6:E15)>9,TRUNC((230-M14)*(0.9)),COUNT($C$6:E15)<=9,0) -> 23 | P15: =_xlfn.IFS(SUM(C15:E15)<1,"",COUNT($C$6:E15)>9,N15*3+H15,COUNT($C$6:E15)<=9,0) -> 685 | S15: =IF(COUNT($C$6:E15)>9,IF(P15=MAX($P$6:$P$35),P15," "),"") ->  | V15: =IF(COUNT(C15:E15)<1,0,IF(COUNT($C$6:E15)>9,C15+N15,0)) -> 236 | W15: =IF(COUNT(C15:E15)<1,0,IF(COUNT($C$6:E15)>9,D15+N15,0)) -> 213 | X15: =IF(COUNT(C15:E15)<1,0,IF(COUNT($C$6:E15)>9,E15+N15,0)) -> 236 | AA15: 0 | AB15: 10 | AC15: 10
A16: wk11 | B16: =Calendar!B16 -> 2019-11-20 | C16: 181 | D16: 142 | E16: 176 | F16: =IF(COUNT(C16:E16)<1," ",IF(AND(C16>M15,D16>M15,E16>M15,COUNT($C$6:E15)>=12),"*"," ")) ->  | G16: =IF(COUNT(C16:E16)<1," ",IF(AND(C16>M14,D16>M14,E16>M14,COUNT($C$6:E14)>=12),"*"," ")) ->  | H16: 499 | I16: 166 | J16: =_xlfn.IFS(SUM(C16:E16)<1,"",SUM(C16:E16)>=1,SUM($C$6:E16)) -> 6649 | K16: =_xlfn.IFS(COUNT(C16:E16)<1,"",COUNT($C$6:E16)>=1,COUNT($C$6:E16)) -> 33 | L16: =_xlfn.IFS(COUNT(C16:E16)<1,"",AND(COUNT($C$6:E16)<=9,$C$4>1),$C$4,COUNT(C16:E16)>=1,M16) -> 201 | M16: =IF(COUNT($C$6:E16)>=1,TRUNC(SUM($C$6:E16)/COUNT($C$6:E16)),0) -> 201 | N16: =IF(COUNT($C$6:E16)<=6,0,TRUNC((230-M15)*0.9)) -> 22 | O16: =_xlfn.IFS(SUM(C16:E16)<1,"",COUNT($C$6:E16)>9,TRUNC((230-M15)*(0.9)),COUNT($C$6:E16)<=9,0) -> 22 | P16: =_xlfn.IFS(SUM(C16:E16)<1,"",COUNT($C$6:E16)>9,N16*3+H16,COUNT($C$6:E16)<=9,0) -> 565 | S16: =IF(COUNT($C$6:E16)>9,IF(P16=MAX($P$6:$P$35),P16," "),"") ->  | V16: =IF(COUNT(C16:E16)<1,0,IF(COUNT($C$6:E16)>9,C16+N16,0)) -> 203 | W16: =IF(COUNT(C16:E16)<1,0,IF(COUNT($C$6:E16)>9,D16+N16,0)) -> 164 | X16: =IF(COUNT(C16:E16)<1,0,IF(COUNT($C$6:E16)>9,E16+N16,0)) -> 198 | AA16: 0 | AB16: 11 | AC16: 11
A17: wk12 | B17: =Calendar!B17 -> 2019-12-04 | C17: 172 | D17: 221 | E17: 162 | F17: =IF(COUNT(C17:E17)<1," ",IF(AND(C17>M16,D17>M16,E17>M16,COUNT($C$6:E16)>=12),"*"," ")) ->  | G17: =IF(COUNT(C17:E17)<1," ",IF(AND(C17>M15,D17>M15,E17>M15,COUNT($C$6:E15)>=12),"*"," ")) ->  | H17: 555 | I17: 185 | J17: =_xlfn.IFS(SUM(C17:E17)<1,"",SUM(C17:E17)>=1,SUM($C$6:E17)) -> 7204 | K17: =_xlfn.IFS(COUNT(C17:E17)<1,"",COUNT($C$6:E17)>=1,COUNT($C$6:E17)) -> 36 | L17: =_xlfn.IFS(COUNT(C17:E17)<1,"",AND(COUNT($C$6:E17)<=9,$C$4>1),$C$4,COUNT(C17:E17)>=1,M17) -> 200 | M17: =IF(COUNT($C$6:E17)>=1,TRUNC(SUM($C$6:E17)/COUNT($C$6:E17)),0) -> 200 | N17: =IF(COUNT($C$6:E17)<=6,0,TRUNC((230-M16)*0.9)) -> 26 | O17: =_xlfn.IFS(SUM(C17:E17)<1,"",COUNT($C$6:E17)>9,TRUNC((230-M16)*(0.9)),COUNT($C$6:E17)<=9,0) -> 26 | P17: =_xlfn.IFS(SUM(C17:E17)<1,"",COUNT($C$6:E17)>9,N17*3+H17,COUNT($C$6:E17)<=9,0) -> 633 | S17: =IF(COUNT($C$6:E17)>9,IF(P17=MAX($P$6:$P$35),P17," "),"") ->  | V17: =IF(COUNT(C17:E17)<1,0,IF(COUNT($C$6:E17)>9,C17+N17,0)) -> 198 | W17: =IF(COUNT(C17:E17)<1,0,IF(COUNT($C$6:E17)>9,D17+N17,0)) -> 247 | X17: =IF(COUNT(C17:E17)<1,0,IF(COUNT($C$6:E17)>9,E17+N17,0)) -> 188 | AA17: 0 | AB17: 12 | AC17: 12
A18: wk13 | B18: =Calendar!B18 -> 2019-12-11 | C18: 209 | D18: 179 | E18: 127 | F18: =IF(COUNT(C18:E18)<1," ",IF(AND(C18>M17,D18>M17,E18>M17,COUNT($C$6:E17)>=12),"*"," ")) ->  | G18: =IF(COUNT(C18:E18)<1," ",IF(AND(C18>M16,D18>M16,E18>M16,COUNT($C$6:E16)>=12),"*"," ")) ->  | H18: 515 | I18: 171 | J18: =_xlfn.IFS(SUM(C18:E18)<1,"",SUM(C18:E18)>=1,SUM($C$6:E18)) -> 7719 | K18: =_xlfn.IFS(COUNT(C18:E18)<1,"",COUNT($C$6:E18)>=1,COUNT($C$6:E18)) -> 39 | L18: =_xlfn.IFS(COUNT(C18:E18)<1,"",AND(COUNT($C$6:E18)<=9,$C$4>1),$C$4,COUNT(C18:E18)>=1,M18) -> 197 | M18: =IF(COUNT($C$6:E18)>=1,TRUNC(SUM($C$6:E18)/COUNT($C$6:E18)),0) -> 197 | N18: =IF(COUNT($C$6:E18)<=6,0,TRUNC((230-M17)*0.9)) -> 27 | O18: =_xlfn.IFS(SUM(C18:E18)<1,"",COUNT($C$6:E18)>9,TRUNC((230-M17)*(0.9)),COUNT($C$6:E18)<=9,0) -> 27 | P18: =_xlfn.IFS(SUM(C18:E18)<1,"",COUNT($C$6:E18)>9,N18*3+H18,COUNT($C$6:E18)<=9,0) -> 596 | S18: =IF(COUNT($C$6:E18)>9,IF(P18=MAX($P$6:$P$35),P18," "),"") ->  | V18: =IF(COUNT(C18:E18)<1,0,IF(COUNT($C$6:E18)>9,C18+N18,0)) -> 236 | W18: =IF(COUNT(C18:E18)<1,0,IF(COUNT($C$6:E18)>9,D18+N18,0)) -> 206 | X18: =IF(COUNT(C18:E18)<1,0,IF(COUNT($C$6:E18)>9,E18+N18,0)) -> 154 | AA18: 0 | AB18: 13 | AC18: 13
A19: wk14 | B19: =Calendar!B19 -> 2019-12-18 | C19: 189 | D19: 191 | E19: 126 | F19: =IF(COUNT(C19:E19)<1," ",IF(AND(C19>M18,D19>M18,E19>M18,COUNT($C$6:E18)>=12),"*"," ")) ->  | G19: =IF(COUNT(C19:E19)<1," ",IF(AND(C19>M17,D19>M17,E19>M17,COUNT($C$6:E17)>=12),"*"," ")) ->  | H19: 506 | I19: 168 | J19: =_xlfn.IFS(SUM(C19:E19)<1,"",SUM(C19:E19)>=1,SUM($C$6:E19)) -> 8225 | K19: =_xlfn.IFS(COUNT(C19:E19)<1,"",COUNT($C$6:E19)>=1,COUNT($C$6:E19)) -> 42 | L19: =_xlfn.IFS(COUNT(C19:E19)<1,"",AND(COUNT($C$6:E19)<=9,$C$4>1),$C$4,COUNT(C19:E19)>=1,M19) -> 195 | M19: =IF(COUNT($C$6:E19)>=1,TRUNC(SUM($C$6:E19)/COUNT($C$6:E19)),0) -> 195 | N19: =IF(COUNT($C$6:E19)<=6,0,TRUNC((230-M18)*0.9)) -> 29 | O19: =_xlfn.IFS(SUM(C19:E19)<1,"",COUNT($C$6:E19)>9,TRUNC((230-M18)*(0.9)),COUNT($C$6:E19)<=9,0) -> 29 | P19: =_xlfn.IFS(SUM(C19:E19)<1,"",COUNT($C$6:E19)>9,N19*3+H19,COUNT($C$6:E19)<=9,0) -> 593 | S19: =IF(COUNT($C$6:E19)>9,IF(P19=MAX($P$6:$P$35),P19," "),"") ->  | V19: =IF(COUNT(C19:E19)<1,0,IF(COUNT($C$6:E19)>9,C19+N19,0)) -> 218 | W19: =IF(COUNT(C19:E19)<1,0,IF(COUNT($C$6:E19)>9,D19+N19,0)) -> 220 | X19: =IF(COUNT(C19:E19)<1,0,IF(COUNT($C$6:E19)>9,E19+N19,0)) -> 155 | AA19: 0 | AB19: 14 | AC19: 14
A20: wk15 | B20: =Calendar!B20 -> 2020-01-08 | C20: 213 | D20: 141 | E20: 160 | F20: =IF(COUNT(C20:E20)<1," ",IF(AND(C20>M19,D20>M19,E20>M19,COUNT($C$6:E19)>=12),"*"," ")) ->  | G20: =IF(COUNT(C20:E20)<1," ",IF(AND(C20>M18,D20>M18,E20>M18,COUNT($C$6:E18)>=12),"*"," ")) ->  | H20: 514 | I20: 171 | J20: =_xlfn.IFS(SUM(C20:E20)<1,"",SUM(C20:E20)>=1,SUM($C$6:E20)) -> 8739 | K20: =_xlfn.IFS(COUNT(C20:E20)<1,"",COUNT($C$6:E20)>=1,COUNT($C$6:E20)) -> 45 | L20: =_xlfn.IFS(COUNT(C20:E20)<1,"",AND(COUNT($C$6:E20)<=9,$C$4>1),$C$4,COUNT(C20:E20)>=1,M20) -> 194 | M20: =IF(COUNT($C$6:E20)>=1,TRUNC(SUM($C$6:E20)/COUNT($C$6:E20)),0) -> 194 | N20: =IF(COUNT($C$6:E20)<=6,0,TRUNC((230-M19)*0.9)) -> 31 | O20: =_xlfn.IFS(SUM(C20:E20)<1,"",COUNT($C$6:E20)>9,TRUNC((230-M19)*(0.9)),COUNT($C$6:E20)<=9,0) -> 31 | P20: =_xlfn.IFS(SUM(C20:E20)<1,"",COUNT($C$6:E20)>9,N20*3+H20,COUNT($C$6:E20)<=9,0) -> 607 | S20: =IF(COUNT($C$6:E20)>9,IF(P20=MAX($P$6:$P$35),P20," "),"") ->  | V20: =IF(COUNT(C20:E20)<1,0,IF(COUNT($C$6:E20)>9,C20+N20,0)) -> 244 | W20: =IF(COUNT(C20:E20)<1,0,IF(COUNT($C$6:E20)>9,D20+N20,0)) -> 172 | X20: =IF(COUNT(C20:E20)<1,0,IF(COUNT($C$6:E20)>9,E20+N20,0)) -> 191 | AA20: 0 | AB20: 15 | AC20: 15
A21: wk16 | B21: =Calendar!B21 -> 2020-01-15 | C21: 178 | D21: 147 | E21: 191 | F21: =IF(COUNT(C21:E21)<1," ",IF(AND(C21>M20,D21>M20,E21>M20,COUNT($C$6:E20)>=12),"*"," ")) ->  | G21: =IF(COUNT(C21:E21)<1," ",IF(AND(C21>M19,D21>M19,E21>M19,COUNT($C$6:E19)>=12),"*"," ")) ->  | H21: 516 | I21: 172 | J21: =_xlfn.IFS(SUM(C21:E21)<1,"",SUM(C21:E21)>=1,SUM($C$6:E21)) -> 9255 | K21: =_xlfn.IFS(COUNT(C21:E21)<1,"",COUNT($C$6:E21)>=1,COUNT($C$6:E21)) -> 48 | L21: =_xlfn.IFS(COUNT(C21:E21)<1,"",AND(COUNT($C$6:E21)<=9,$C$4>1),$C$4,COUNT(C21:E21)>=1,M21) -> 192 | M21: =IF(COUNT($C$6:E21)>=1,TRUNC(SUM($C$6:E21)/COUNT($C$6:E21)),0) -> 192 | N21: =IF(COUNT($C$6:E21)<=6,0,TRUNC((230-M20)*0.9)) -> 32 | O21: =_xlfn.IFS(SUM(C21:E21)<1,"",COUNT($C$6:E21)>9,TRUNC((230-M20)*(0.9)),COUNT($C$6:E21)<=9,0) -> 32 | P21: =_xlfn.IFS(SUM(C21:E21)<1,"",COUNT($C$6:E21)>9,N21*3+H21,COUNT($C$6:E21)<=9,0) -> 612 | S21: =IF(COUNT($C$6:E21)>9,IF(P21=MAX($P$6:$P$35),P21," "),"") ->  | V21: =IF(COUNT(C21:E21)<1,0,IF(COUNT($C$6:E21)>9,C21+N21,0)) -> 210 | W21: =IF(COUNT(C21:E21)<1,0,IF(COUNT($C$6:E21)>9,D21+N21,0)) -> 179 | X21: =IF(COUNT(C21:E21)<1,0,IF(COUNT($C$6:E21)>9,E21+N21,0)) -> 223 | AA21: 0 | AB21: 16 | AC21: 16
A22: wk17 | B22: =Calendar!B22 -> 2020-01-22 | C22: 155 | D22: 192 | E22: 229 | F22: =IF(COUNT(C22:E22)<1," ",IF(AND(C22>M21,D22>M21,E22>M21,COUNT($C$6:E21)>=12),"*"," ")) ->  | G22: =IF(COUNT(C22:E22)<1," ",IF(AND(C22>M20,D22>M20,E22>M20,COUNT($C$6:E20)>=12),"*"," ")) ->  | H22: 576 | I22: 192 | J22: =_xlfn.IFS(SUM(C22:E22)<1,"",SUM(C22:E22)>=1,SUM($C$6:E22)) -> 9831 | K22: =_xlfn.IFS(COUNT(C22:E22)<1,"",COUNT($C$6:E22)>=1,COUNT($C$6:E22)) -> 51 | L22: =_xlfn.IFS(COUNT(C22:E22)<1,"",AND(COUNT($C$6:E22)<=9,$C$4>1),$C$4,COUNT(C22:E22)>=1,M22) -> 192 | M22: =IF(COUNT($C$6:E22)>=1,TRUNC(SUM($C$6:E22)/COUNT($C$6:E22)),0) -> 192 | N22: =IF(COUNT($C$6:E22)<=6,0,TRUNC((230-M21)*0.9)) -> 34 | O22: =_xlfn.IFS(SUM(C22:E22)<1,"",COUNT($C$6:E22)>9,TRUNC((230-M21)*(0.9)),COUNT($C$6:E22)<=9,0) -> 34 | P22: =_xlfn.IFS(SUM(C22:E22)<1,"",COUNT($C$6:E22)>9,N22*3+H22,COUNT($C$6:E22)<=9,0) -> 678 | S22: =IF(COUNT($C$6:E22)>9,IF(P22=MAX($P$6:$P$35),P22," "),"") ->  | V22: =IF(COUNT(C22:E22)<1,0,IF(COUNT($C$6:E22)>9,C22+N22,0)) -> 189 | W22: =IF(COUNT(C22:E22)<1,0,IF(COUNT($C$6:E22)>9,D22+N22,0)) -> 226 | X22: =IF(COUNT(C22:E22)<1,0,IF(COUNT($C$6:E22)>9,E22+N22,0)) -> 263 | AA22: 0 | AB22: 17 | AC22: 17
A23: wk18 | B23: =Calendar!B23 -> 2020-01-29 | C23: 153 | D23: 142 | E23: 156 | F23: =IF(COUNT(C23:E23)<1," ",IF(AND(C23>M22,D23>M22,E23>M22,COUNT($C$6:E22)>=12),"*"," ")) ->  | G23: =IF(COUNT(C23:E23)<1," ",IF(AND(C23>M21,D23>M21,E23>M21,COUNT($C$6:E21)>=12),"*"," ")) ->  | H23: 451 | I23: 150 | J23: =_xlfn.IFS(SUM(C23:E23)<1,"",SUM(C23:E23)>=1,SUM($C$6:E23)) -> 10282 | K23: =_xlfn.IFS(COUNT(C23:E23)<1,"",COUNT($C$6:E23)>=1,COUNT($C$6:E23)) -> 54 | L23: =_xlfn.IFS(COUNT(C23:E23)<1,"",AND(COUNT($C$6:E23)<=9,$C$4>1),$C$4,COUNT(C23:E23)>=1,M23) -> 190 | M23: =IF(COUNT($C$6:E23)>=1,TRUNC(SUM($C$6:E23)/COUNT($C$6:E23)),0) -> 190 | N23: =IF(COUNT($C$6:E23)<=6,0,TRUNC((230-M22)*0.9)) -> 34 | O23: =_xlfn.IFS(SUM(C23:E23)<1,"",COUNT($C$6:E23)>9,TRUNC((230-M22)*(0.9)),COUNT($C$6:E23)<=9,0) -> 34 | P23: =_xlfn.IFS(SUM(C23:E23)<1,"",COUNT($C$6:E23)>9,N23*3+H23,COUNT($C$6:E23)<=9,0) -> 553 | S23: =IF(COUNT($C$6:E23)>9,IF(P23=MAX($P$6:$P$35),P23," "),"") ->  | V23: =IF(COUNT(C23:E23)<1,0,IF(COUNT($C$6:E23)>9,C23+N23,0)) -> 187 | W23: =IF(COUNT(C23:E23)<1,0,IF(COUNT($C$6:E23)>9,D23+N23,0)) -> 176 | X23: =IF(COUNT(C23:E23)<1,0,IF(COUNT($C$6:E23)>9,E23+N23,0)) -> 190 | AA23: 0 | AB23: 18 | AC23: 18
A24: wk19 | B24: =Calendar!B24 -> 2020-02-05 | C24: 177 | D24: 185 | E24: 203 | F24: =IF(COUNT(C24:E24)<1," ",IF(AND(C24>M23,D24>M23,E24>M23,COUNT($C$6:E23)>=12),"*"," ")) ->  | G24: =IF(COUNT(C24:E24)<1," ",IF(AND(C24>M22,D24>M22,E24>M22,COUNT($C$6:E22)>=12),"*"," ")) ->  | H24: 565 | I24: 188 | J24: =_xlfn.IFS(SUM(C24:E24)<1,"",SUM(C24:E24)>=1,SUM($C$6:E24)) -> 10847 | K24: =_xlfn.IFS(COUNT(C24:E24)<1,"",COUNT($C$6:E24)>=1,COUNT($C$6:E24)) -> 57 | L24: =_xlfn.IFS(COUNT(C24:E24)<1,"",AND(COUNT($C$6:E24)<=9,$C$4>1),$C$4,COUNT(C24:E24)>=1,M24) -> 190 | M24: =IF(COUNT($C$6:E24)>=1,TRUNC(SUM($C$6:E24)/COUNT($C$6:E24)),0) -> 190 | N24: =IF(COUNT($C$6:E24)<=6,0,TRUNC((230-M23)*0.9)) -> 36 | O24: =_xlfn.IFS(SUM(C24:E24)<1,"",COUNT($C$6:E24)>9,TRUNC((230-M23)*(0.9)),COUNT($C$6:E24)<=9,0) -> 36 | P24: =_xlfn.IFS(SUM(C24:E24)<1,"",COUNT($C$6:E24)>9,N24*3+H24,COUNT($C$6:E24)<=9,0) -> 673 | S24: =IF(COUNT($C$6:E24)>9,IF(P24=MAX($P$6:$P$35),P24," "),"") ->  | V24: =IF(COUNT(C24:E24)<1,0,IF(COUNT($C$6:E24)>9,C24+N24,0)) -> 213 | W24: =IF(COUNT(C24:E24)<1,0,IF(COUNT($C$6:E24)>9,D24+N24,0)) -> 221 | X24: =IF(COUNT(C24:E24)<1,0,IF(COUNT($C$6:E24)>9,E24+N24,0)) -> 239 | AA24: 0 | AB24: 19 | AC24: 19
A25: wk20 | B25: =Calendar!B25 -> 2020-02-12 | C25: 181 | D25: 200 | E25: 151 | F25: =IF(COUNT(C25:E25)<1," ",IF(AND(C25>M24,D25>M24,E25>M24,COUNT($C$6:E24)>=12),"*"," ")) ->  | G25: =IF(COUNT(C25:E25)<1," ",IF(AND(C25>M23,D25>M23,E25>M23,COUNT($C$6:E23)>=12),"*"," ")) ->  | H25: 532 | I25: 177 | J25: =_xlfn.IFS(SUM(C25:E25)<1,"",SUM(C25:E25)>=1,SUM($C$6:E25)) -> 11379 | K25: =_xlfn.IFS(COUNT(C25:E25)<1,"",COUNT($C$6:E25)>=1,COUNT($C$6:E25)) -> 60 | L25: =_xlfn.IFS(COUNT(C25:E25)<1,"",AND(COUNT($C$6:E25)<=9,$C$4>1),$C$4,COUNT(C25:E25)>=1,M25) -> 189 | M25: =IF(COUNT($C$6:E25)>=1,TRUNC(SUM($C$6:E25)/COUNT($C$6:E25)),0) -> 189 | N25: =IF(COUNT($C$6:E25)<=6,0,TRUNC((230-M24)*0.9)) -> 36 | O25: =_xlfn.IFS(SUM(C25:E25)<1,"",COUNT($C$6:E25)>9,TRUNC((230-M24)*(0.9)),COUNT($C$6:E25)<=9,0) -> 36 | P25: =_xlfn.IFS(SUM(C25:E25)<1,"",COUNT($C$6:E25)>9,N25*3+H25,COUNT($C$6:E25)<=9,0) -> 640 | S25: =IF(COUNT($C$6:E25)>9,IF(P25=MAX($P$6:$P$35),P25," "),"") ->  | V25: =IF(COUNT(C25:E25)<1,0,IF(COUNT($C$6:E25)>9,C25+N25,0)) -> 217 | W25: =IF(COUNT(C25:E25)<1,0,IF(COUNT($C$6:E25)>9,D25+N25,0)) -> 236 | X25: =IF(COUNT(C25:E25)<1,0,IF(COUNT($C$6:E25)>9,E25+N25,0)) -> 187 | AA25: 0 | AB25: 20 | AC25: 20
A26: wk21 | B26: =Calendar!B26 -> 2020-02-19 | C26: 223 | D26: 246 | E26: 212 | F26: =IF(COUNT(C26:E26)<1," ",IF(AND(C26>M25,D26>M25,E26>M25,COUNT($C$6:E25)>=12),"*"," ")) -> * | G26: =IF(COUNT(C26:E26)<1," ",IF(AND(C26>M24,D26>M24,E26>M24,COUNT($C$6:E24)>=12),"*"," ")) -> * | H26: 681 | I26: 227 | J26: =_xlfn.IFS(SUM(C26:E26)<1,"",SUM(C26:E26)>=1,SUM($C$6:E26)) -> 12060 | K26: =_xlfn.IFS(COUNT(C26:E26)<1,"",COUNT($C$6:E26)>=1,COUNT($C$6:E26)) -> 63 | L26: =_xlfn.IFS(COUNT(C26:E26)<1,"",AND(COUNT($C$6:E26)<=9,$C$4>1),$C$4,COUNT(C26:E26)>=1,M26) -> 191 | M26: =IF(COUNT($C$6:E26)>=1,TRUNC(SUM($C$6:E26)/COUNT($C$6:E26)),0) -> 191 | N26: =IF(COUNT($C$6:E26)<=6,0,TRUNC((230-M25)*0.9)) -> 36 | O26: =_xlfn.IFS(SUM(C26:E26)<1,"",COUNT($C$6:E26)>9,TRUNC((230-M25)*(0.9)),COUNT($C$6:E26)<=9,0) -> 36 | P26: =_xlfn.IFS(SUM(C26:E26)<1,"",COUNT($C$6:E26)>9,N26*3+H26,COUNT($C$6:E26)<=9,0) -> 789 | S26: =IF(COUNT($C$6:E26)>9,IF(P26=MAX($P$6:$P$35),P26," "),"") -> 789 | T26: 282 | V26: =IF(COUNT(C26:E26)<1,0,IF(COUNT($C$6:E26)>9,C26+N26,0)) -> 259 | W26: =IF(COUNT(C26:E26)<1,0,IF(COUNT($C$6:E26)>9,D26+N26,0)) -> 282 | X26: =IF(COUNT(C26:E26)<1,0,IF(COUNT($C$6:E26)>9,E26+N26,0)) -> 248 | AA26: 0 | AB26: 21 | AC26: 21
A27: wk22 | B27: =Calendar!B27 -> 2020-02-16 | C27: 247 | D27: 156 | E27: 193 | F27: =IF(COUNT(C27:E27)<1," ",IF(AND(C27>M26,D27>M26,E27>M26,COUNT($C$6:E26)>=12),"*"," ")) ->  | G27: =IF(COUNT(C27:E27)<1," ",IF(AND(C27>M25,D27>M25,E27>M25,COUNT($C$6:E25)>=12),"*"," ")) ->  | H27: 596 | I27: 198 | J27: =_xlfn.IFS(SUM(C27:E27)<1,"",SUM(C27:E27)>=1,SUM($C$6:E27)) -> 12656 | K27: =_xlfn.IFS(COUNT(C27:E27)<1,"",COUNT($C$6:E27)>=1,COUNT($C$6:E27)) -> 66 | L27: =_xlfn.IFS(COUNT(C27:E27)<1,"",AND(COUNT($C$6:E27)<=9,$C$4>1),$C$4,COUNT(C27:E27)>=1,M27) -> 191 | M27: =IF(COUNT($C$6:E27)>=1,TRUNC(SUM($C$6:E27)/COUNT($C$6:E27)),0) -> 191 | N27: =IF(COUNT($C$6:E27)<=6,0,TRUNC((230-M26)*0.9)) -> 35 | O27: =_xlfn.IFS(SUM(C27:E27)<1,"",COUNT($C$6:E27)>9,TRUNC((230-M26)*(0.9)),COUNT($C$6:E27)<=9,0) -> 35 | P27: =_xlfn.IFS(SUM(C27:E27)<1,"",COUNT($C$6:E27)>9,N27*3+H27,COUNT($C$6:E27)<=9,0) -> 701 | R27: 247 | S27: =IF(COUNT($C$6:E27)>9,IF(P27=MAX($P$6:$P$35),P27," "),"") ->  | T27: 282 | V27: =IF(COUNT(C27:E27)<1,0,IF(COUNT($C$6:E27)>9,C27+N27,0)) -> 282 | W27: =IF(COUNT(C27:E27)<1,0,IF(COUNT($C$6:E27)>9,D27+N27,0)) -> 191 | X27: =IF(COUNT(C27:E27)<1,0,IF(COUNT($C$6:E27)>9,E27+N27,0)) -> 228 | AA27: 0 | AB27: 22 | AC27: 22
A28: wk23 | B28: =Calendar!B28 -> 2020-03-04 | C28: 227 | D28: 210 | E28: 170 | F28: =IF(COUNT(C28:E28)<1," ",IF(AND(C28>M27,D28>M27,E28>M27,COUNT($C$6:E27)>=12),"*"," ")) ->  | G28: =IF(COUNT(C28:E28)<1," ",IF(AND(C28>M26,D28>M26,E28>M26,COUNT($C$6:E26)>=12),"*"," ")) ->  | H28: 607 | I28: 202 | J28: =_xlfn.IFS(SUM(C28:E28)<1,"",SUM(C28:E28)>=1,SUM($C$6:E28)) -> 13263 | K28: =_xlfn.IFS(COUNT(C28:E28)<1,"",COUNT($C$6:E28)>=1,COUNT($C$6:E28)) -> 69 | L28: =_xlfn.IFS(COUNT(C28:E28)<1,"",AND(COUNT($C$6:E28)<=9,$C$4>1),$C$4,COUNT(C28:E28)>=1,M28) -> 192 | M28: =IF(COUNT($C$6:E28)>=1,TRUNC(SUM($C$6:E28)/COUNT($C$6:E28)),0) -> 192 | N28: =IF(COUNT($C$6:E28)<=6,0,TRUNC((230-M27)*0.9)) -> 35 | O28: =_xlfn.IFS(SUM(C28:E28)<1,"",COUNT($C$6:E28)>9,TRUNC((230-M27)*(0.9)),COUNT($C$6:E28)<=9,0) -> 35 | P28: =_xlfn.IFS(SUM(C28:E28)<1,"",COUNT($C$6:E28)>9,N28*3+H28,COUNT($C$6:E28)<=9,0) -> 712 | S28: =IF(COUNT($C$6:E28)>9,IF(P28=MAX($P$6:$P$35),P28," "),"") ->  | V28: =IF(COUNT(C28:E28)<1,0,IF(COUNT($C$6:E28)>9,C28+N28,0)) -> 262 | W28: =IF(COUNT(C28:E28)<1,0,IF(COUNT($C$6:E28)>9,D28+N28,0)) -> 245 | X28: =IF(COUNT(C28:E28)<1,0,IF(COUNT($C$6:E28)>9,E28+N28,0)) -> 205 | AA28: 0 | AB28: 23 | AC28: 23
A29: wk24 | B29: =Calendar!B29 -> 2020-03-11 | C29: 210 | D29: 190 | E29: 203 | F29: =IF(COUNT(C29:E29)<1," ",IF(AND(C29>M28,D29>M28,E29>M28,COUNT($C$6:E28)>=12),"*"," ")) ->  | G29: =IF(COUNT(C29:E29)<1," ",IF(AND(C29>M27,D29>M27,E29>M27,COUNT($C$6:E27)>=12),"*"," ")) ->  | H29: 603 | I29: 201 | J29: =_xlfn.IFS(SUM(C29:E29)<1,"",SUM(C29:E29)>=1,SUM($C$6:E29)) -> 13866 | K29: =_xlfn.IFS(COUNT(C29:E29)<1,"",COUNT($C$6:E29)>=1,COUNT($C$6:E29)) -> 72 | L29: =_xlfn.IFS(COUNT(C29:E29)<1,"",AND(COUNT($C$6:E29)<=9,$C$4>1),$C$4,COUNT(C29:E29)>=1,M29) -> 192 | M29: =IF(COUNT($C$6:E29)>=1,TRUNC(SUM($C$6:E29)/COUNT($C$6:E29)),0) -> 192 | N29: =IF(COUNT($C$6:E29)<=6,0,TRUNC((230-M28)*0.9)) -> 34 | O29: =_xlfn.IFS(SUM(C29:E29)<1,"",COUNT($C$6:E29)>9,TRUNC((230-M28)*(0.9)),COUNT($C$6:E29)<=9,0) -> 34 | P29: =_xlfn.IFS(SUM(C29:E29)<1,"",COUNT($C$6:E29)>9,N29*3+H29,COUNT($C$6:E29)<=9,0) -> 705 | S29: =IF(COUNT($C$6:E29)>9,IF(P29=MAX($P$6:$P$35),P29," "),"") ->  | V29: =IF(COUNT(C29:E29)<1,0,IF(COUNT($C$6:E29)>9,C29+N29,0)) -> 244 | W29: =IF(COUNT(C29:E29)<1,0,IF(COUNT($C$6:E29)>9,D29+N29,0)) -> 224 | X29: =IF(COUNT(C29:E29)<1,0,IF(COUNT($C$6:E29)>9,E29+N29,0)) -> 237 | AA29: 0 | AB29: 24 | AC29: 24
A30: wk25 | B30: =Calendar!B30 -> 2020-03-18 | F30: =IF(COUNT(C30:E30)<1," ",IF(AND(C30>M29,D30>M29,E30>M29,COUNT($C$6:E29)>=12),"*"," ")) ->  | G30: =IF(COUNT(C30:E30)<1," ",IF(AND(C30>M28,D30>M28,E30>M28,COUNT($C$6:E28)>=12),"*"," ")) ->  | J30: =_xlfn.IFS(SUM(C30:E30)<1,"",SUM(C30:E30)>=1,SUM($C$6:E30)) ->  | K30: =_xlfn.IFS(COUNT(C30:E30)<1,"",COUNT($C$6:E30)>=1,COUNT($C$6:E30)) ->  | L30: =_xlfn.IFS(COUNT(C30:E30)<1,"",AND(COUNT($C$6:E30)<=9,$C$4>1),$C$4,COUNT(C30:E30)>=1,M30) ->  | M30: =IF(COUNT($C$6:E30)>=1,TRUNC(SUM($C$6:E30)/COUNT($C$6:E30)),0) -> 192 | N30: =IF(COUNT($C$6:E30)<=6,0,TRUNC((230-M29)*0.9)) -> 34 | O30: =_xlfn.IFS(SUM(C30:E30)<1,"",COUNT($C$6:E30)>9,TRUNC((230-M29)*(0.9)),COUNT($C$6:E30)<=9,0) ->  | P30: =_xlfn.IFS(SUM(C30:E30)<1,"",COUNT($C$6:E30)>9,N30*3+H30,COUNT($C$6:E30)<=9,0) ->  | S30: =IF(COUNT($C$6:E30)>9,IF(P30=MAX($P$6:$P$35),P30," "),"") ->  | V30: =IF(COUNT(C30:E30)<1,0,IF(COUNT($C$6:E30)>9,C30+N30,0)) -> 0 | W30: =IF(COUNT(C30:E30)<1,0,IF(COUNT($C$6:E30)>9,D30+N30,0)) -> 0 | X30: =IF(COUNT(C30:E30)<1,0,IF(COUNT($C$6:E30)>9,E30+N30,0)) -> 0 | AA30: 0 | AB30: 0 | AC30: 25
A31: wk26 | B31: =Calendar!B31 -> 2020-03-25 | F31: =IF(COUNT(C31:E31)<1," ",IF(AND(C31>M30,D31>M30,E31>M30,COUNT($C$6:E30)>=12),"*"," ")) ->  | G31: =IF(COUNT(C31:E31)<1," ",IF(AND(C31>M29,D31>M29,E31>M29,COUNT($C$6:E29)>=12),"*"," ")) ->  | J31: =_xlfn.IFS(SUM(C31:E31)<1,"",SUM(C31:E31)>=1,SUM($C$6:E31)) ->  | K31: =_xlfn.IFS(COUNT(C31:E31)<1,"",COUNT($C$6:E31)>=1,COUNT($C$6:E31)) ->  | L31: =_xlfn.IFS(COUNT(C31:E31)<1,"",AND(COUNT($C$6:E31)<=9,$C$4>1),$C$4,COUNT(C31:E31)>=1,M31) ->  | M31: =IF(COUNT($C$6:E31)>=1,TRUNC(SUM($C$6:E31)/COUNT($C$6:E31)),0) -> 192 | N31: =IF(COUNT($C$6:E31)<=6,0,TRUNC((230-M30)*0.9)) -> 34 | O31: =_xlfn.IFS(SUM(C31:E31)<1,"",COUNT($C$6:E31)>9,TRUNC((230-M30)*(0.9)),COUNT($C$6:E31)<=9,0) ->  | P31: =_xlfn.IFS(SUM(C31:E31)<1,"",COUNT($C$6:E31)>9,N31*3+H31,COUNT($C$6:E31)<=9,0) ->  | S31: =IF(COUNT($C$6:E31)>9,IF(P31=MAX($P$6:$P$35),P31," "),"") ->  | V31: =IF(COUNT(C31:E31)<1,0,IF(COUNT($C$6:E31)>9,C31+N31,0)) -> 0 | W31: =IF(COUNT(C31:E31)<1,0,IF(COUNT($C$6:E31)>9,D31+N31,0)) -> 0 | X31: =IF(COUNT(C31:E31)<1,0,IF(COUNT($C$6:E31)>9,E31+N31,0)) -> 0 | AA31: 0 | AB31: 0 | AC31: 26
A32: wk27 | B32: =Calendar!B32 -> 2020-04-01 | F32: =IF(COUNT(C32:E32)<1," ",IF(AND(C32>M31,D32>M31,E32>M31,COUNT($C$6:E31)>=12),"*"," ")) ->  | G32: =IF(COUNT(C32:E32)<1," ",IF(AND(C32>M30,D32>M30,E32>M30,COUNT($C$6:E30)>=12),"*"," ")) ->  | J32: =_xlfn.IFS(SUM(C32:E32)<1,"",SUM(C32:E32)>=1,SUM($C$6:E32)) ->  | K32: =_xlfn.IFS(COUNT(C32:E32)<1,"",COUNT($C$6:E32)>=1,COUNT($C$6:E32)) ->  | L32: =_xlfn.IFS(COUNT(C32:E32)<1,"",AND(COUNT($C$6:E32)<=9,$C$4>1),$C$4,COUNT(C32:E32)>=1,M32) ->  | M32: =IF(COUNT($C$6:E32)>=1,TRUNC(SUM($C$6:E32)/COUNT($C$6:E32)),0) -> 192 | N32: =IF(COUNT($C$6:E32)<=6,0,TRUNC((230-M31)*0.9)) -> 34 | O32: =_xlfn.IFS(SUM(C32:E32)<1,"",COUNT($C$6:E32)>9,TRUNC((230-M31)*(0.9)),COUNT($C$6:E32)<=9,0) ->  | P32: =_xlfn.IFS(SUM(C32:E32)<1,"",COUNT($C$6:E32)>9,N32*3+H32,COUNT($C$6:E32)<=9,0) ->  | S32: =IF(COUNT($C$6:E32)>9,IF(P32=MAX($P$6:$P$35),P32," "),"") ->  | V32: =IF(COUNT(C32:E32)<1,0,IF(COUNT($C$6:E32)>9,C32+N32,0)) -> 0 | W32: =IF(COUNT(C32:E32)<1,0,IF(COUNT($C$6:E32)>9,D32+N32,0)) -> 0 | X32: =IF(COUNT(C32:E32)<1,0,IF(COUNT($C$6:E32)>9,E32+N32,0)) -> 0 | AA32: 0 | AB32: 0 | AC32: 27
A33: wk28 | B33: =Calendar!B33 -> 2020-04-08 | F33: =IF(COUNT(C33:E33)<1," ",IF(AND(C33>M32,D33>M32,E33>M32,COUNT($C$6:E32)>=12),"*"," ")) ->  | G33: =IF(COUNT(C33:E33)<1," ",IF(AND(C33>M31,D33>M31,E33>M31,COUNT($C$6:E31)>=12),"*"," ")) ->  | J33: =_xlfn.IFS(SUM(C33:E33)<1,"",SUM(C33:E33)>=1,SUM($C$6:E33)) ->  | K33: =_xlfn.IFS(COUNT(C33:E33)<1,"",COUNT($C$6:E33)>=1,COUNT($C$6:E33)) ->  | L33: =_xlfn.IFS(COUNT(C33:E33)<1,"",AND(COUNT($C$6:E33)<=9,$C$4>1),$C$4,COUNT(C33:E33)>=1,M33) ->  | M33: =IF(COUNT($C$6:E33)>=1,TRUNC(SUM($C$6:E33)/COUNT($C$6:E33)),0) -> 192 | N33: =IF(COUNT($C$6:E33)<=6,0,TRUNC((230-M32)*0.9)) -> 34 | O33: =_xlfn.IFS(SUM(C33:E33)<1,"",COUNT($C$6:E33)>9,TRUNC((230-M32)*(0.9)),COUNT($C$6:E33)<=9,0) ->  | P33: =_xlfn.IFS(SUM(C33:E33)<1,"",COUNT($C$6:E33)>9,N33*3+H33,COUNT($C$6:E33)<=9,0) ->  | S33: =IF(COUNT($C$6:E33)>9,IF(P33=MAX($P$6:$P$35),P33," "),"") ->  | V33: =IF(COUNT(C33:E33)<1,0,IF(COUNT($C$6:E33)>9,C33+N33,0)) -> 0 | W33: =IF(COUNT(C33:E33)<1,0,IF(COUNT($C$6:E33)>9,D33+N33,0)) -> 0 | X33: =IF(COUNT(C33:E33)<1,0,IF(COUNT($C$6:E33)>9,E33+N33,0)) -> 0 | AA33: 0 | AB33: 0 | AC33: 28
A34: wk29 | B34: =Calendar!B34 -> 2020-04-15 | F34: =IF(COUNT(C34:E34)<1," ",IF(AND(C34>M33,D34>M33,E34>M33,COUNT($C$6:E33)>=12),"*"," ")) ->  | G34: =IF(COUNT(C34:E34)<1," ",IF(AND(C34>M32,D34>M32,E34>M32,COUNT($C$6:E32)>=12),"*"," ")) ->  | J34: =_xlfn.IFS(SUM(C34:E34)<1,"",SUM(C34:E34)>=1,SUM($C$6:E34)) ->  | K34: =_xlfn.IFS(COUNT(C34:E34)<1,"",COUNT($C$6:E34)>=1,COUNT($C$6:E34)) ->  | L34: =_xlfn.IFS(COUNT(C34:E34)<1,"",AND(COUNT($C$6:E34)<=9,$C$4>1),$C$4,COUNT(C34:E34)>=1,M34) ->  | M34: =IF(COUNT($C$6:E34)>=1,TRUNC(SUM($C$6:E34)/COUNT($C$6:E34)),0) -> 192 | N34: =IF(COUNT($C$6:E34)<=6,0,TRUNC((230-M33)*0.9)) -> 34 | O34: =_xlfn.IFS(SUM(C34:E34)<1,"",COUNT($C$6:E34)>9,TRUNC((230-M33)*(0.9)),COUNT($C$6:E34)<=9,0) ->  | P34: =_xlfn.IFS(SUM(C34:E34)<1,"",COUNT($C$6:E34)>9,N34*3+H34,COUNT($C$6:E34)<=9,0) ->  | S34: =IF(COUNT($C$6:E34)>9,IF(P34=MAX($P$6:$P$35),P34," "),"") ->  | V34: =IF(COUNT(C34:E34)<1,0,IF(COUNT($C$6:E34)>9,C34+N34,0)) -> 0 | W34: =IF(COUNT(C34:E34)<1,0,IF(COUNT($C$6:E34)>9,D34+N34,0)) -> 0 | X34: =IF(COUNT(C34:E34)<1,0,IF(COUNT($C$6:E34)>9,E34+N34,0)) -> 0 | AA34: 0 | AB34: 0 | AC34: 29
A35: wk30 | B35: =Calendar!B35 -> 2020-04-22 | F35: =IF(COUNT(C35:E35)<1," ",IF(AND(C35>M34,D35>M34,E35>M34,COUNT($C$6:E34)>=12),"*"," ")) ->  | G35: =IF(COUNT(C35:E35)<1," ",IF(AND(C35>M33,D35>M33,E35>M33,COUNT($C$6:E33)>=12),"*"," ")) ->  | J35: =_xlfn.IFS(SUM(C35:E35)<1,"",SUM(C35:E35)>=1,SUM($C$6:E35)) ->  | K35: =_xlfn.IFS(COUNT(C35:E35)<1,"",COUNT($C$6:E35)>=1,COUNT($C$6:E35)) ->  | L35: =_xlfn.IFS(COUNT(C35:E35)<1,"",AND(COUNT($C$6:E35)<=9,$C$4>1),$C$4,COUNT(C35:E35)>=1,M35) ->  | M35: =IF(COUNT($C$6:E35)>=1,TRUNC(SUM($C$6:E35)/COUNT($C$6:E35)),0) -> 192 | N35: =IF(COUNT($C$6:E35)<=6,0,TRUNC((230-M34)*0.9)) -> 34 | O35: =_xlfn.IFS(SUM(C35:E35)<1,"",COUNT($C$6:E35)>9,TRUNC((230-M34)*(0.9)),COUNT($C$6:E35)<=9,0) ->  | P35: =_xlfn.IFS(SUM(C35:E35)<1,"",COUNT($C$6:E35)>9,N35*3+H35,COUNT($C$6:E35)<=9,0) ->  | S35: =IF(COUNT($C$6:E35)>9,IF(P35=MAX($P$6:$P$35),P35," "),"") ->  | V35: =IF(COUNT(C35:E35)<1,0,IF(COUNT($C$6:E35)>9,C35+N35,0)) -> 0 | W35: =IF(COUNT(C35:E35)<1,0,IF(COUNT($C$6:E35)>9,D35+N35,0)) -> 0 | X35: =IF(COUNT(C35:E35)<1,0,IF(COUNT($C$6:E35)>9,E35+N35,0)) -> 0 | AA35: 0 | AB35: 0 | AC35: 30
C36: =(IF(COUNT(C6:C35)=0," ",(SUM(C6:C35))/COUNT(C6:C35))) -> 198.58 | D36: =(IF(COUNT(D6:D35)=0," ",(SUM(D6:D35))/COUNT(D6:D35))) -> 190.83 | E36: =(IF(COUNT(E6:E35)=0," ",(SUM(E6:E35))/COUNT(E6:E35))) -> 188.33

Sheet MRobles
H1: =Calendar!H1 -> Wednesday Fun Fours 2019/20 season | R1: 6-over wk:
A2: wk# | B2: =MAX(AB6:AB35) -> 15
A3: Name: | B3: Mary Robles | I3: Perfect Attendance: | K3: =IF(SUM(AA6:AA35)<0.5,"Yes","No") -> No | L3: =_xlfn.IFS(AND(B2=30,K3="Yes"),"good",AND(B2<>30,K3="Yes"),"So Far",AND(B2<>30,K3="No")," ") -> 
A4: book average: | C4: 143 | H4: wky | I4: wky | J4: cumulative | L4: cumulative | P4: hdcp | Q4: high | R4: high | S4: high hcp | T4: high hcp
C5: g1 | D5: g2 | E5: g3 | H5: series | I5: average | J5: score | K5: games | L5: average | O5: hdcp | P5: series | Q5: series | R5: game | S5: series | T5: game | V5: =MAX(C6:E35) -> 183 | W5: =MAX(V6:X35) -> 263
A6: wk1 | B6: =Calendar!B6 -> 2019-09-04 | H6: =IF(COUNT(C6:E6)<1," ",SUM(C6:E6)) ->  | I6: =IF(COUNT(C6:E6)<1," ",TRUNC(H6/COUNT(C6:E6))) ->  | J6: =_xlfn.IFS(SUM(C6:E6)<1,"",SUM(C6:E6)>=1,SUM($C$6:E6)) ->  | K6: =_xlfn.IFS(COUNT(C6:E6)<1,"",COUNT($C$6:E6)>=1,COUNT($C$6:E6)) ->  | L6: =_xlfn.IFS(COUNT(C6:E6)<1,"",AND(COUNT($C$6:E6)<=9,$C$4>1),$C$4,COUNT(C6:E6)>=1,M6) ->  | M6: =IF(COUNT($C$6:E6)>=1,TRUNC(SUM($C$6:E6)/COUNT($C$6:E6)),0) -> 0 | N6: =IF(COUNT($C$6:E6)<=6,0,TRUNC((230-M5)*0.9)) -> 0 | O6: =_xlfn.IFS(SUM(C6:E6)<1,"",COUNT($C$6:E6)>9,TRUNC((230-M5)*(0.9)),COUNT($C$6:E6)<=9,0) ->  | P6: =_xlfn.IFS(SUM(C6:E6)<1,"",COUNT($C$6:E6)>9,N6*3+H6,COUNT($C$6:E6)<=9,0) ->  | Q6: =IF(H6=(MAX($H$6:$H$35)),H6," ") ->  | R6: =IF((OR(C6=$V$5,D6=$V$5,E6=$V$5)),$V$5," ") ->  | S6: =IF(COUNT($C$6:E6)>9,IF(P6=MAX($P$6:$P$35),P6," "),"") ->  | T6: =IF(OR(V6=$W$5,W6=$W$5,X6=$W$5),$W$5," ") ->  | V6: =IF(COUNT(C6:E6)<1,0,IF(COUNT($C$6:E6)>9,C6+N6,0)) -> 0 | W6: =IF(COUNT(C6:E6)<1,0,IF(COUNT($C$6:E6)>9,D6+N6,0)) -> 0 | X6: =IF(COUNT(C6:E6)<1,0,IF(COUNT($C$6:E6)>9,E6+N6,0)) -> 0 | AA6: =IF((MAX($AB$6:$AB$35))<AC6,0,IF(AB6=AC6,0,1)) -> 1 | AB6: =IF(COUNT(C6:E6)>0,AC6,0) -> 0 | AC6: 1
A7: wk2 | B7: =Calendar!B7 -> 2019-09-11 | C7: 104 | D7: 92 | E7: 131 | H7: 327 | I7: =IF(COUNT(C7:E7)<1," ",TRUNC(H7/COUNT(C7:E7))) -> 109 | J7: =_xlfn.IFS(SUM(C7:E7)<1,"",SUM(C7:E7)>=1,SUM($C$6:E7)) -> 327 | K7: =_xlfn.IFS(COUNT(C7:E7)<1,"",COUNT($C$6:E7)>=1,COUNT($C$6:E7)) -> 3 | L7: =_xlfn.IFS(COUNT(C7:E7)<1,"",AND(COUNT($C$6:E7)<=9,$C$4>1),$C$4,COUNT(C7:E7)>=1,M7) -> 143 | M7: =IF(COUNT($C$6:E7)>=1,TRUNC(SUM($C$6:E7)/COUNT($C$6:E7)),0) -> 109 | N7: =IF(COUNT($C$6:E7)<=6,0,TRUNC((230-M6)*0.9)) -> 0 | O7: =_xlfn.IFS(SUM(C7:E7)<1,"",COUNT($C$6:E7)>9,TRUNC((230-M6)*(0.9)),COUNT($C$6:E7)<=9,0) -> 0 | P7: =_xlfn.IFS(SUM(C7:E7)<1,"",COUNT($C$6:E7)>9,N7*3+H7,COUNT($C$6:E7)<=9,0) -> 0 | S7: =IF(COUNT($C$6:E7)>9,IF(P7=MAX($P$6:$P$35),P7," "),"") ->  | V7: =IF(COUNT(C7:E7)<1,0,IF(COUNT($C$6:E7)>9,C7+N7,0)) -> 0 | W7: =IF(COUNT(C7:E7)<1,0,IF(COUNT($C$6:E7)>9,D7+N7,0)) -> 0 | X7: =IF(COUNT(C7:E7)<1,0,IF(COUNT($C$6:E7)>9,E7+N7,0)) -> 0 | AA7: 0 | AB7: =IF(COUNT(C7:E7)>0,AC7,0) -> 2 | AC7: 2
A8: wk3 | B8: =Calendar!B8 -> 2019-09-18 | C8: 166 | D8: 132 | E8: 134 | H8: 432 | I8: 144 | J8: =_xlfn.IFS(SUM(C8:E8)<1,"",SUM(C8:E8)>=1,SUM($C$6:E8)) -> 759 | K8: =_xlfn.IFS(COUNT(C8:E8)<1,"",COUNT($C$6:E8)>=1,COUNT($C$6:E8)) -> 6 | L8: =_xlfn.IFS(COUNT(C8:E8)<1,"",AND(COUNT($C$6:E8)<=9,$C$4>1),$C$4,COUNT(C8:E8)>=1,M8) -> 143 | M8: =IF(COUNT($C$6:E8)>=1,TRUNC(SUM($C$6:E8)/COUNT($C$6:E8)),0) -> 126 | N8: =IF(COUNT($C$6:E8)<=6,0,TRUNC((230-M7)*0.9)) -> 0 | O8: =_xlfn.IFS(SUM(C8:E8)<1,"",COUNT($C$6:E8)>9,TRUNC((230-M7)*(0.9)),COUNT($C$6:E8)<=9,0) -> 0 | P8: =_xlfn.IFS(SUM(C8:E8)<1,"",COUNT($C$6:E8)>9,N8*3+H8,COUNT($C$6:E8)<=9,0) -> 0 | S8: =IF(COUNT($C$6:E8)>9,IF(P8=MAX($P$6:$P$35),P8," "),"") ->  | V8: =IF(COUNT(C8:E8)<1,0,IF(COUNT($C$6:E8)>9,C8+N8,0)) -> 0 | W8: =IF(COUNT(C8:E8)<1,0,IF(COUNT($C$6:E8)>9,D8+N8,0)) -> 0 | X8: =IF(COUNT(C8:E8)<1,0,IF(COUNT($C$6:E8)>9,E8+N8,0)) -> 0 | AA8: 0 | AB8: 3 | AC8: 3
A9: wk4 | B9: =Calendar!B9 -> 2019-09-25 | C9: 150 | D9: 157 | E9: 175 | H9: 482 | I9: 160 | J9: =_xlfn.IFS(SUM(C9:E9)<1,"",SUM(C9:E9)>=1,SUM($C$6:E9)) -> 1241 | K9: =_xlfn.IFS(COUNT(C9:E9)<1,"",COUNT($C$6:E9)>=1,COUNT($C$6:E9)) -> 9 | L9: =_xlfn.IFS(COUNT(C9:E9)<1,"",AND(COUNT($C$6:E9)<=9,$C$4>1),$C$4,COUNT(C9:E9)>=1,M9) -> 143 | M9: =IF(COUNT($C$6:E9)>=1,TRUNC(SUM($C$6:E9)/COUNT($C$6:E9)),0) -> 137 | N9: =IF(COUNT($C$6:E9)<=6,0,TRUNC((230-M8)*0.9)) -> 93 | O9: =_xlfn.IFS(SUM(C9:E9)<1,"",COUNT($C$6:E9)>9,TRUNC((230-M8)*(0.9)),COUNT($C$6:E9)<=9,0) -> 0 | P9: =_xlfn.IFS(SUM(C9:E9)<1,"",COUNT($C$6:E9)>9,N9*3+H9,COUNT($C$6:E9)<=9,0) -> 0 | S9: =IF(COUNT($C$6:E9)>9,IF(P9=MAX($P$6:$P$35),P9," "),"") ->  | V9: =IF(COUNT(C9:E9)<1,0,IF(COUNT($C$6:E9)>9,C9+N9,0)) -> 0 | W9: =IF(COUNT(C9:E9)<1,0,IF(COUNT($C$6:E9)>9,D9+N9,0)) -> 0 | X9: =IF(COUNT(C9:E9)<1,0,IF(COUNT($C$6:E9)>9,E9+N9,0)) -> 0 | AA9: 0 | AB9: 4 | AC9: 4
A10: wk5 | B10: =Calendar!B10 -> 2019-10-02 | C10: 176 | D10: 145 | E10: 154 | F10: =IF(COUNT(C10:E10)<1," ",IF(AND(C10>M9,D10>M9,E10>M9,COUNT($C$6:E9)>=12),"*"," ")) ->  | H10: 475 | I10: 158 | J10: =_xlfn.IFS(SUM(C10:E10)<1,"",SUM(C10:E10)>=1,SUM($C$6:E10)) -> 1716 | K10: =_xlfn.IFS(COUNT(C10:E10)<1,"",COUNT($C$6:E10)>=1,COUNT($C$6:E10)) -> 12 | L10: =_xlfn.IFS(COUNT(C10:E10)<1,"",AND(COUNT($C$6:E10)<=9,$C$4>1),$C$4,COUNT(C10:E10)>=1,M10) -> 143 | M10: =IF(COUNT($C$6:E10)>=1,TRUNC(SUM($C$6:E10)/COUNT($C$6:E10)),0) -> 143 | N10: =IF(COUNT($C$6:E10)<=6,0,TRUNC((230-M9)*0.9)) -> 83 | O10: =_xlfn.IFS(SUM(C10:E10)<1,"",COUNT($C$6:E10)>9,TRUNC((230-M9)*(0.9)),COUNT($C$6:E10)<=9,0) -> 83 | P10: =_xlfn.IFS(SUM(C10:E10)<1,"",COUNT($C$6:E10)>9,N10*3+H10,COUNT($C$6:E10)<=9,0) -> 724 | S10: =IF(COUNT($C$6:E10)>9,IF(P10=MAX($P$6:$P$35),P10," "),"") ->  | V10: =IF(COUNT(C10:E10)<1,0,IF(COUNT($C$6:E10)>9,C10+N10,0)) -> 259 | W10: =IF(COUNT(C10:E10)<1,0,IF(COUNT($C$6:E10)>9,D10+N10,0)) -> 228 | X10: =IF(COUNT(C10:E10)<1,0,IF(COUNT($C$6:E10)>9,E10+N10,0)) -> 237 | AA10: 0 | AB10: 5 | AC10: 5
A11: wk6 | B11: =Calendar!B11 -> 2019-10-09 | C11: 136 | D11: 167 | E11: 141 | F11: =IF(COUNT(C11:E11)<1," ",IF(AND(C11>M10,D11>M10,E11>M10,COUNT($C$6:E10)>=12),"*"," ")) ->  | G11: =IF(COUNT(C11:E11)<1," ",IF(AND(C11>M9,D11>M9,E11>M9,COUNT($C$6:E9)>=12),"*"," ")) ->  | H11: 444 | I11: 148 | J11: =_xlfn.IFS(SUM(C11:E11)<1,"",SUM(C11:E11)>=1,SUM($C$6:E11)) -> 2160 | K11: =_xlfn.IFS(COUNT(C11:E11)<1,"",COUNT($C$6:E11)>=1,COUNT($C$6:E11)) -> 15 | L11: =_xlfn.IFS(COUNT(C11:E11)<1,"",AND(COUNT($C$6:E11)<=9,$C$4>1),$C$4,COUNT(C11:E11)>=1,M11) -> 144 | M11: =IF(COUNT($C$6:E11)>=1,TRUNC(SUM($C$6:E11)/COUNT($C$6:E11)),0) -> 144 | N11: =IF(COUNT($C$6:E11)<=6,0,TRUNC((230-M10)*0.9)) -> 78 | O11: =_xlfn.IFS(SUM(C11:E11)<1,"",COUNT($C$6:E11)>9,TRUNC((230-M10)*(0.9)),COUNT($C$6:E11)<=9,0) -> 78 | P11: =_xlfn.IFS(SUM(C11:E11)<1,"",COUNT($C$6:E11)>9,N11*3+H11,COUNT($C$6:E11)<=9,0) -> 678 | S11: =IF(COUNT($C$6:E11)>9,IF(P11=MAX($P$6:$P$35),P11," "),"") ->  | V11: =IF(COUNT(C11:E11)<1,0,IF(COUNT($C$6:E11)>9,C11+N11,0)) -> 214 | W11: =IF(COUNT(C11:E11)<1,0,IF(COUNT($C$6:E11)>9,D11+N11,0)) -> 245 | X11: =IF(COUNT(C11:E11)<1,0,IF(COUNT($C$6:E11)>9,E11+N11,0)) -> 219 | AA11: 0 | AB11: 6 | AC11: 6
A12: wk7 | B12: =Calendar!B12 -> 2019-10-16 | C12: 123 | D12: 157 | E12: 146 | F12: =IF(COUNT(C12:E12)<1," ",IF(AND(C12>M11,D12>M11,E12>M11,COUNT($C$6:E11)>=12),"*"," ")) ->  | G12: =IF(COUNT(C12:E12)<1," ",IF(AND(C12>M10,D12>M10,E12>M10,COUNT($C$6:E10)>=12),"*"," ")) ->  | H12: 426 | I12: 142 | J12: =_xlfn.IFS(SUM(C12:E12)<1,"",SUM(C12:E12)>=1,SUM($C$6:E12)) -> 2586 | K12: =_xlfn.IFS(COUNT(C12:E12)<1,"",COUNT($C$6:E12)>=1,COUNT($C$6:E12)) -> 18 | L12: =_xlfn.IFS(COUNT(C12:E12)<1,"",AND(COUNT($C$6:E12)<=9,$C$4>1),$C$4,COUNT(C12:E12)>=1,M12) -> 143 | M12: =IF(COUNT($C$6:E12)>=1,TRUNC(SUM($C$6:E12)/COUNT($C$6:E12)),0) -> 143 | N12: =IF(COUNT($C$6:E12)<=6,0,TRUNC((230-M11)*0.9)) -> 77 | O12: =_xlfn.IFS(SUM(C12:E12)<1,"",COUNT($C$6:E12)>9,TRUNC((230-M11)*(0.9)),COUNT($C$6:E12)<=9,0) -> 77 | P12: =_xlfn.IFS(SUM(C12:E12)<1,"",COUNT($C$6:E12)>9,N12*3+H12,COUNT($C$6:E12)<=9,0) -> 657 | S12: =IF(COUNT($C$6:E12)>9,IF(P12=MAX($P$6:$P$35),P12," "),"") ->  | V12: =IF(COUNT(C12:E12)<1,0,IF(COUNT($C$6:E12)>9,C12+N12,0)) -> 200 | W12: =IF(COUNT(C12:E12)<1,0,IF(COUNT($C$6:E12)>9,D12+N12,0)) -> 234 | X12: =IF(COUNT(C12:E12)<1,0,IF(COUNT($C$6:E12)>9,E12+N12,0)) -> 223 | AA12: 0 | AB12: 7 | AC12: 7
A13: wk8 | B13: =Calendar!B13 -> 2020-10-23 | C13: 119 | D13: 155 | E13: 118 | F13: =IF(COUNT(C13:E13)<1," ",IF(AND(C13>M12,D13>M12,E13>M12,COUNT($C$6:E12)>=12),"*"," ")) ->  | G13: =IF(COUNT(C13:E13)<1," ",IF(AND(C13>M11,D13>M11,E13>M11,COUNT($C$6:E11)>=12),"*"," ")) ->  | H13: 392 | I13: 130 | J13: =_xlfn.IFS(SUM(C13:E13)<1,"",SUM(C13:E13)>=1,SUM($C$6:E13)) -> 2978 | K13: =_xlfn.IFS(COUNT(C13:E13)<1,"",COUNT($C$6:E13)>=1,COUNT($C$6:E13)) -> 21 | L13: =_xlfn.IFS(COUNT(C13:E13)<1,"",AND(COUNT($C$6:E13)<=9,$C$4>1),$C$4,COUNT(C13:E13)>=1,M13) -> 141 | M13: =IF(COUNT($C$6:E13)>=1,TRUNC(SUM($C$6:E13)/COUNT($C$6:E13)),0) -> 141 | N13: =IF(COUNT($C$6:E13)<=6,0,TRUNC((230-M12)*0.9)) -> 78 | O13: =_xlfn.IFS(SUM(C13:E13)<1,"",COUNT($C$6:E13)>9,TRUNC((230-M12)*(0.9)),COUNT($C$6:E13)<=9,0) -> 78 | P13: =_xlfn.IFS(SUM(C13:E13)<1,"",COUNT($C$6:E13)>9,N13*3+H13,COUNT($C$6:E13)<=9,0) -> 626 | S13: =IF(COUNT($C$6:E13)>9,IF(P13=MAX($P$6:$P$35),P13," "),"") ->  | V13: =IF(COUNT(C13:E13)<1,0,IF(COUNT($C$6:E13)>9,C13+N13,0)) -> 197 | W13: =IF(COUNT(C13:E13)<1,0,IF(COUNT($C$6:E13)>9,D13+N13,0)) -> 233 | X13: =IF(COUNT(C13:E13)<1,0,IF(COUNT($C$6:E13)>9,E13+N13,0)) -> 196 | AA13: 0 | AB13: 8 | AC13: 8
A14: wk9 | B14: =Calendar!B14 -> 2019-11-06 | C14: 181 | D14: 183 | E14: 146 | F14: =IF(COUNT(C14:E14)<1," ",IF(AND(C14>M13,D14>M13,E14>M13,COUNT($C$6:E13)>=12),"*"," ")) -> * | G14: =IF(COUNT(C14:E14)<1," ",IF(AND(C14>M12,D14>M12,E14>M12,COUNT($C$6:E12)>=12),"*"," ")) -> * | H14: 510 | I14: 170 | J14: =_xlfn.IFS(SUM(C14:E14)<1,"",SUM(C14:E14)>=1,SUM($C$6:E14)) -> 3488 | K14: =_xlfn.IFS(COUNT(C14:E14)<1,"",COUNT($C$6:E14)>=1,COUNT($C$6:E14)) -> 24 | L14: =_xlfn.IFS(COUNT(C14:E14)<1,"",AND(COUNT($C$6:E14)<=9,$C$4>1),$C$4,COUNT(C14:E14)>=1,M14) -> 145 | M14: =IF(COUNT($C$6:E14)>=1,TRUNC(SUM($C$6:E14)/COUNT($C$6:E14)),0) -> 145 | N14: =IF(COUNT($C$6:E14)<=6,0,TRUNC((230-M13)*0.9)) -> 80 | O14: =_xlfn.IFS(SUM(C14:E14)<1,"",COUNT($C$6:E14)>9,TRUNC((230-M13)*(0.9)),COUNT($C$6:E14)<=9,0) -> 80 | P14: =_xlfn.IFS(SUM(C14:E14)<1,"",COUNT($C$6:E14)>9,N14*3+H14,COUNT($C$6:E14)<=9,0) -> 750 | Q14: 510 | R14: 183 | S14: =IF(COUNT($C$6:E14)>9,IF(P14=MAX($P$6:$P$35),P14," "),"") -> 750 | T14: 263 | V14: =IF(COUNT(C14:E14)<1,0,IF(COUNT($C$6:E14)>9,C14+N14,0)) -> 261 | W14: =IF(COUNT(C14:E14)<1,0,IF(COUNT($C$6:E14)>9,D14+N14,0)) -> 263 | X14: =IF(COUNT(C14:E14)<1,0,IF(COUNT($C$6:E14)>9,E14+N14,0)) -> 226 | AA14: 0 | AB14: 9 | AC14: 9
A15: wk10 | B15: =Calendar!B15 -> 2019-11-13 | C15: 129 | D15: 154 | E15: 125 | F15: =IF(COUNT(C15:E15)<1," ",IF(AND(C15>M14,D15>M14,E15>M14,COUNT($C$6:E14)>=12),"*"," ")) ->  | G15: =IF(COUNT(C15:E15)<1," ",IF(AND(C15>M13,D15>M13,E15>M13,COUNT($C$6:E13)>=12),"*"," ")) ->  | H15: 408 | I15: 136 | J15: =_xlfn.IFS(SUM(C15:E15)<1,"",SUM(C15:E15)>=1,SUM($C$6:E15)) -> 3896 | K15: =_xlfn.IFS(COUNT(C15:E15)<1,"",COUNT($C$6:E15)>=1,COUNT($C$6:E15)) -> 27 | L15: =_xlfn.IFS(COUNT(C15:E15)<1,"",AND(COUNT($C$6:E15)<=9,$C$4>1),$C$4,COUNT(C15:E15)>=1,M15) -> 144 | M15: =IF(COUNT($C$6:E15)>=1,TRUNC(SUM($C$6:E15)/COUNT($C$6:E15)),0) -> 144 | N15: =IF(COUNT($C$6:E15)<=6,0,TRUNC((230-M14)*0.9)) -> 76 | O15: =_xlfn.IFS(SUM(C15:E15)<1,"",COUNT($C$6:E15)>9,TRUNC((230-M14)*(0.9)),COUNT($C$6:E15)<=9,0) -> 76 | P15: =_xlfn.IFS(SUM(C15:E15)<1,"",COUNT($C$6:E15)>9,N15*3+H15,COUNT($C$6:E15)<=9,0) -> 636 | S15: =IF(COUNT($C$6:E15)>9,IF(P15=MAX($P$6:$P$35),P15," "),"") ->  | V15: =IF(COUNT(C15:E15)<1,0,IF(COUNT($C$6:E15)>9,C15+N15,0)) -> 205 | W15: =IF(COUNT(C15:E15)<1,0,IF(COUNT($C$6:E15)>9,D15+N15,0)) -> 230 | X15: =IF(COUNT(C15:E15)<1,0,IF(COUNT($C$6:E15)>9,E15+N15,0)) -> 201 | AA15: 0 | AB15: 10 | AC15: 10
A16: wk11 | B16: =Calendar!B16 -> 2019-11-20 | C16: 180 | D16: 157 | E16: 154 | F16: =IF(COUNT(C16:E16)<1," ",IF(AND(C16>M15,D16>M15,E16>M15,COUNT($C$6:E15)>=12),"*"," ")) -> * | G16: =IF(COUNT(C16:E16)<1," ",IF(AND(C16>M14,D16>M14,E16>M14,COUNT($C$6:E14)>=12),"*"," ")) -> * | H16: 491 | I16: 163 | J16: =_xlfn.IFS(SUM(C16:E16)<1,"",SUM(C16:E16)>=1,SUM($C$6:E16)) -> 4387 | K16: =_xlfn.IFS(COUNT(C16:E16)<1,"",COUNT($C$6:E16)>=1,COUNT($C$6:E16)) -> 30 | L16: =_xlfn.IFS(COUNT(C16:E16)<1,"",AND(COUNT($C$6:E16)<=9,$C$4>1),$C$4,COUNT(C16:E16)>=1,M16) -> 146 | M16: =IF(COUNT($C$6:E16)>=1,TRUNC(SUM($C$6:E16)/COUNT($C$6:E16)),0) -> 146 | N16: =IF(COUNT($C$6:E16)<=6,0,TRUNC((230-M15)*0.9)) -> 77 | O16: =_xlfn.IFS(SUM(C16:E16)<1,"",COUNT($C$6:E16)>9,TRUNC((230-M15)*(0.9)),COUNT($C$6:E16)<=9,0) -> 77 | P16: =_xlfn.IFS(SUM(C16:E16)<1,"",COUNT($C$6:E16)>9,N16*3+H16,COUNT($C$6:E16)<=9,0) -> 722 | S16: =IF(COUNT($C$6:E16)>9,IF(P16=MAX($P$6:$P$35),P16," "),"") ->  | V16: =IF(COUNT(C16:E16)<1,0,IF(COUNT($C$6:E16)>9,C16+N16,0)) -> 257 | W16: =IF(COUNT(C16:E16)<1,0,IF(COUNT($C$6:E16)>9,D16+N16,0)) -> 234 | X16: =IF(COUNT(C16:E16)<1,0,IF(COUNT($C$6:E16)>9,E16+N16,0)) -> 231 | AA16: 0 | AB16: 11 | AC16: 11
A17: wk12 | B17: =Calendar!B17 -> 2019-12-04 | C17: 183 | D17: 112 | E17: 165 | F17: =IF(COUNT(C17:E17)<1," ",IF(AND(C17>M16,D17>M16,E17>M16,COUNT($C$6:E16)>=12),"*"," ")) ->  | G17: =IF(COUNT(C17:E17)<1," ",IF(AND(C17>M15,D17>M15,E17>M15,COUNT($C$6:E15)>=12),"*"," ")) ->  | H17: 460 | I17: 153 | J17: =_xlfn.IFS(SUM(C17:E17)<1,"",SUM(C17:E17)>=1,SUM($C$6:E17)) -> 4847 | K17: =_xlfn.IFS(COUNT(C17:E17)<1,"",COUNT($C$6:E17)>=1,COUNT($C$6:E17)) -> 33 | L17: =_xlfn.IFS(COUNT(C17:E17)<1,"",AND(COUNT($C$6:E17)<=9,$C$4>1),$C$4,COUNT(C17:E17)>=1,M17) -> 146 | M17: =IF(COUNT($C$6:E17)>=1,TRUNC(SUM($C$6:E17)/COUNT($C$6:E17)),0) -> 146 | N17: =IF(COUNT($C$6:E17)<=6,0,TRUNC((230-M16)*0.9)) -> 75 | O17: =_xlfn.IFS(SUM(C17:E17)<1,"",COUNT($C$6:E17)>9,TRUNC((230-M16)*(0.9)),COUNT($C$6:E17)<=9,0) -> 75 | P17: =_xlfn.IFS(SUM(C17:E17)<1,"",COUNT($C$6:E17)>9,N17*3+H17,COUNT($C$6:E17)<=9,0) -> 685 | R17: 183 | S17: =IF(COUNT($C$6:E17)>9,IF(P17=MAX($P$6:$P$35),P17," "),"") ->  | V17: =IF(COUNT(C17:E17)<1,0,IF(COUNT($C$6:E17)>9,C17+N17,0)) -> 258 | W17: =IF(COUNT(C17:E17)<1,0,IF(COUNT($C$6:E17)>9,D17+N17,0)) -> 187 | X17: =IF(COUNT(C17:E17)<1,0,IF(COUNT($C$6:E17)>9,E17+N17,0)) -> 240 | AA17: 0 | AB17: 12 | AC17: 12
A18: wk13 | B18: =Calendar!B18 -> 2019-12-11 | C18: 149 | D18: 156 | E18: 152 | F18: =IF(COUNT(C18:E18)<1," ",IF(AND(C18>M17,D18>M17,E18>M17,COUNT($C$6:E17)>=12),"*"," ")) -> * | G18: =IF(COUNT(C18:E18)<1," ",IF(AND(C18>M16,D18>M16,E18>M16,COUNT($C$6:E16)>=12),"*"," ")) -> * | H18: 457 | I18: 152 | J18: =_xlfn.IFS(SUM(C18:E18)<1,"",SUM(C18:E18)>=1,SUM($C$6:E18)) -> 5304 | K18: =_xlfn.IFS(COUNT(C18:E18)<1,"",COUNT($C$6:E18)>=1,COUNT($C$6:E18)) -> 36 | L18: =_xlfn.IFS(COUNT(C18:E18)<1,"",AND(COUNT($C$6:E18)<=9,$C$4>1),$C$4,COUNT(C18:E18)>=1,M18) -> 147 | M18: =IF(COUNT($C$6:E18)>=1,TRUNC(SUM($C$6:E18)/COUNT($C$6:E18)),0) -> 147 | N18: =IF(COUNT($C$6:E18)<=6,0,TRUNC((230-M17)*0.9)) -> 75 | O18: =_xlfn.IFS(SUM(C18:E18)<1,"",COUNT($C$6:E18)>9,TRUNC((230-M17)*(0.9)),COUNT($C$6:E18)<=9,0) -> 75 | P18: =_xlfn.IFS(SUM(C18:E18)<1,"",COUNT($C$6:E18)>9,N18*3+H18,COUNT($C$6:E18)<=9,0) -> 682 | S18: =IF(COUNT($C$6:E18)>9,IF(P18=MAX($P$6:$P$35),P18," "),"") ->  | V18: =IF(COUNT(C18:E18)<1,0,IF(COUNT($C$6:E18)>9,C18+N18,0)) -> 224 | W18: =IF(COUNT(C18:E18)<1,0,IF(COUNT($C$6:E18)>9,D18+N18,0)) -> 231 | X18: =IF(COUNT(C18:E18)<1,0,IF(COUNT($C$6:E18)>9,E18+N18,0)) -> 227 | AA18: 0 | AB18: 13 | AC18: 13
A19: wk14 | B19: =Calendar!B19 -> 2019-12-18 | C19: 132 | D19: 149 | E19: 141 | F19: =IF(COUNT(C19:E19)<1," ",IF(AND(C19>M18,D19>M18,E19>M18,COUNT($C$6:E18)>=12),"*"," ")) ->  | G19: =IF(COUNT(C19:E19)<1," ",IF(AND(C19>M17,D19>M17,E19>M17,COUNT($C$6:E17)>=12),"*"," ")) ->  | H19: 422 | I19: 140 | J19: =_xlfn.IFS(SUM(C19:E19)<1,"",SUM(C19:E19)>=1,SUM($C$6:E19)) -> 5726 | K19: =_xlfn.IFS(COUNT(C19:E19)<1,"",COUNT($C$6:E19)>=1,COUNT($C$6:E19)) -> 39 | L19: =_xlfn.IFS(COUNT(C19:E19)<1,"",AND(COUNT($C$6:E19)<=9,$C$4>1),$C$4,COUNT(C19:E19)>=1,M19) -> 146 | M19: =IF(COUNT($C$6:E19)>=1,TRUNC(SUM($C$6:E19)/COUNT($C$6:E19)),0) -> 146 | N19: =IF(COUNT($C$6:E19)<=6,0,TRUNC((230-M18)*0.9)) -> 74 | O19: =_xlfn.IFS(SUM(C19:E19)<1,"",COUNT($C$6:E19)>9,TRUNC((230-M18)*(0.9)),COUNT($C$6:E19)<=9,0) -> 74 | P19: =_xlfn.IFS(SUM(C19:E19)<1,"",COUNT($C$6:E19)>9,N19*3+H19,COUNT($C$6:E19)<=9,0) -> 644 | S19: =IF(COUNT($C$6:E19)>9,IF(P19=MAX($P$6:$P$35),P19," "),"") ->  | V19: =IF(COUNT(C19:E19)<1,0,IF(COUNT($C$6:E19)>9,C19+N19,0)) -> 206 | W19: =IF(COUNT(C19:E19)<1,0,IF(COUNT($C$6:E19)>9,D19+N19,0)) -> 223 | X19: =IF(COUNT(C19:E19)<1,0,IF(COUNT($C$6:E19)>9,E19+N19,0)) -> 215 | AA19: 0 | AB19: 14 | AC19: 14
A20: wk15 | B20: =Calendar!B20 -> 2020-01-08 | C20: 126 | D20: 122 | E20: 176 | F20: =IF(COUNT(C20:E20)<1," ",IF(AND(C20>M19,D20>M19,E20>M19,COUNT($C$6:E19)>=12),"*"," ")) ->  | G20: =IF(COUNT(C20:E20)<1," ",IF(AND(C20>M18,D20>M18,E20>M18,COUNT($C$6:E18)>=12),"*"," ")) ->  | H20: 424 | I20: 141 | J20: =_xlfn.IFS(SUM(C20:E20)<1,"",SUM(C20:E20)>=1,SUM($C$6:E20)) -> 6150 | K20: =_xlfn.IFS(COUNT(C20:E20)<1,"",COUNT($C$6:E20)>=1,COUNT($C$6:E20)) -> 42 | L20: =_xlfn.IFS(COUNT(C20:E20)<1,"",AND(COUNT($C$6:E20)<=9,$C$4>1),$C$4,COUNT(C20:E20)>=1,M20) -> 146 | M20: =IF(COUNT($C$6:E20)>=1,TRUNC(SUM($C$6:E20)/COUNT($C$6:E20)),0) -> 146 | N20: =IF(COUNT($C$6:E20)<=6,0,TRUNC((230-M19)*0.9)) -> 75 | O20: =_xlfn.IFS(SUM(C20:E20)<1,"",COUNT($C$6:E20)>9,TRUNC((230-M19)*(0.9)),COUNT($C$6:E20)<=9,0) -> 75 | P20: =_xlfn.IFS(SUM(C20:E20)<1,"",COUNT($C$6:E20)>9,N20*3+H20,COUNT($C$6:E20)<=9,0) -> 649 | S20: =IF(COUNT($C$6:E20)>9,IF(P20=MAX($P$6:$P$35),P20," "),"") ->  | V20: =IF(COUNT(C20:E20)<1,0,IF(COUNT($C$6:E20)>9,C20+N20,0)) -> 201 | W20: =IF(COUNT(C20:E20)<1,0,IF(COUNT($C$6:E20)>9,D20+N20,0)) -> 197 | X20: =IF(COUNT(C20:E20)<1,0,IF(COUNT($C$6:E20)>9,E20+N20,0)) -> 251 | AA20: 0 | AB20: 15 | AC20: 15
A21: wk16 | B21: =Calendar!B21 -> 2020-01-15 | F21: =IF(COUNT(C21:E21)<1," ",IF(AND(C21>M20,D21>M20,E21>M20,COUNT($C$6:E20)>=12),"*"," ")) ->  | G21: =IF(COUNT(C21:E21)<1," ",IF(AND(C21>M19,D21>M19,E21>M19,COUNT($C$6:E19)>=12),"*"," ")) ->  | J21: =_xlfn.IFS(SUM(C21:E21)<1,"",SUM(C21:E21)>=1,SUM($C$6:E21)) ->  | K21: =_xlfn.IFS(COUNT(C21:E21)<1,"",COUNT($C$6:E21)>=1,COUNT($C$6:E21)) ->  | L21: =_xlfn.IFS(COUNT(C21:E21)<1,"",AND(COUNT($C$6:E21)<=9,$C$4>1),$C$4,COUNT(C21:E21)>=1,M21) ->  | M21: =IF(COUNT($C$6:E21)>=1,TRUNC(SUM($C$6:E21)/COUNT($C$6:E21)),0) -> 146 | N21: =IF(COUNT($C$6:E21)<=6,0,TRUNC((230-M20)*0.9)) -> 75 | O21: =_xlfn.IFS(SUM(C21:E21)<1,"",COUNT($C$6:E21)>9,TRUNC((230-M20)*(0.9)),COUNT($C$6:E21)<=9,0) ->  | P21: =_xlfn.IFS(SUM(C21:E21)<1,"",COUNT($C$6:E21)>9,N21*3+H21,COUNT($C$6:E21)<=9,0) ->  | S21: =IF(COUNT($C$6:E21)>9,IF(P21=MAX($P$6:$P$35),P21," "),"") ->  | V21: =IF(COUNT(C21:E21)<1,0,IF(COUNT($C$6:E21)>9,C21+N21,0)) -> 0 | W21: =IF(COUNT(C21:E21)<1,0,IF(COUNT($C$6:E21)>9,D21+N21,0)) -> 0 | X21: =IF(COUNT(C21:E21)<1,0,IF(COUNT($C$6:E21)>9,E21+N21,0)) -> 0 | AA21: 0 | AB21: 0 | AC21: 16
A22: wk17 | B22: =Calendar!B22 -> 2020-01-22 | F22: =IF(COUNT(C22:E22)<1," ",IF(AND(C22>M21,D22>M21,E22>M21,COUNT($C$6:E21)>=12),"*"," ")) ->  | G22: =IF(COUNT(C22:E22)<1," ",IF(AND(C22>M20,D22>M20,E22>M20,COUNT($C$6:E20)>=12),"*"," ")) ->  | J22: =_xlfn.IFS(SUM(C22:E22)<1,"",SUM(C22:E22)>=1,SUM($C$6:E22)) ->  | K22: =_xlfn.IFS(COUNT(C22:E22)<1,"",COUNT($C$6:E22)>=1,COUNT($C$6:E22)) ->  | L22: =_xlfn.IFS(COUNT(C22:E22)<1,"",AND(COUNT($C$6:E22)<=9,$C$4>1),$C$4,COUNT(C22:E22)>=1,M22) ->  | M22: =IF(COUNT($C$6:E22)>=1,TRUNC(SUM($C$6:E22)/COUNT($C$6:E22)),0) -> 146 | N22: =IF(COUNT($C$6:E22)<=6,0,TRUNC((230-M21)*0.9)) -> 75 | O22: =_xlfn.IFS(SUM(C22:E22)<1,"",COUNT($C$6:E22)>9,TRUNC((230-M21)*(0.9)),COUNT($C$6:E22)<=9,0) ->  | P22: =_xlfn.IFS(SUM(C22:E22)<1,"",COUNT($C$6:E22)>9,N22*3+H22,COUNT($C$6:E22)<=9,0) ->  | S22: =IF(COUNT($C$6:E22)>9,IF(P22=MAX($P$6:$P$35),P22," "),"") ->  | V22: =IF(COUNT(C22:E22)<1,0,IF(COUNT($C$6:E22)>9,C22+N22,0)) -> 0 | W22: =IF(COUNT(C22:E22)<1,0,IF(COUNT($C$6:E22)>9,D22+N22,0)) -> 0 | X22: =IF(COUNT(C22:E22)<1,0,IF(COUNT($C$6:E22)>9,E22+N22,0)) -> 0 | AA22: 0 | AB22: 0 | AC22: 17
A23: wk18 | B23: =Calendar!B23 -> 2020-01-29 | F23: =IF(COUNT(C23:E23)<1," ",IF(AND(C23>M22,D23>M22,E23>M22,COUNT($C$6:E22)>=12),"*"," ")) ->  | G23: =IF(COUNT(C23:E23)<1," ",IF(AND(C23>M21,D23>M21,E23>M21,COUNT($C$6:E21)>=12),"*"," ")) ->  | J23: =_xlfn.IFS(SUM(C23:E23)<1,"",SUM(C23:E23)>=1,SUM($C$6:E23)) ->  | K23: =_xlfn.IFS(COUNT(C23:E23)<1,"",COUNT($C$6:E23)>=1,COUNT($C$6:E23)) ->  | L23: =_xlfn.IFS(COUNT(C23:E23)<1,"",AND(COUNT($C$6:E23)<=9,$C$4>1),$C$4,COUNT(C23:E23)>=1,M23) ->  | M23: =IF(COUNT($C$6:E23)>=1,TRUNC(SUM($C$6:E23)/COUNT($C$6:E23)),0) -> 146 | N23: =IF(COUNT($C$6:E23)<=6,0,TRUNC((230-M22)*0.9)) -> 75 | O23: =_xlfn.IFS(SUM(C23:E23)<1,"",COUNT($C$6:E23)>9,TRUNC((230-M22)*(0.9)),COUNT($C$6:E23)<=9,0) ->  | P23: =_xlfn.IFS(SUM(C23:E23)<1,"",COUNT($C$6:E23)>9,N23*3+H23,COUNT($C$6:E23)<=9,0) ->  | S23: =IF(COUNT($C$6:E23)>9,IF(P23=MAX($P$6:$P$35),P23," "),"") ->  | V23: =IF(COUNT(C23:E23)<1,0,IF(COUNT($C$6:E23)>9,C23+N23,0)) -> 0 | W23: =IF(COUNT(C23:E23)<1,0,IF(COUNT($C$6:E23)>9,D23+N23,0)) -> 0 | X23: =IF(COUNT(C23:E23)<1,0,IF(COUNT($C$6:E23)>9,E23+N23,0)) -> 0 | AA23: 0 | AB23: 0 | AC23: 18
A24: wk19 | B24: =Calendar!B24 -> 2020-02-05 | F24: =IF(COUNT(C24:E24)<1," ",IF(AND(C24>M23,D24>M23,E24>M23,COUNT($C$6:E23)>=12),"*"," ")) ->  | G24: =IF(COUNT(C24:E24)<1," ",IF(AND(C24>M22,D24>M22,E24>M22,COUNT($C$6:E22)>=12),"*"," ")) ->  | J24: =_xlfn.IFS(SUM(C24:E24)<1,"",SUM(C24:E24)>=1,SUM($C$6:E24)) ->  | K24: =_xlfn.IFS(COUNT(C24:E24)<1,"",COUNT($C$6:E24)>=1,COUNT($C$6:E24)) ->  | L24: =_xlfn.IFS(COUNT(C24:E24)<1,"",AND(COUNT($C$6:E24)<=9,$C$4>1),$C$4,COUNT(C24:E24)>=1,M24) ->  | M24: =IF(COUNT($C$6:E24)>=1,TRUNC(SUM($C$6:E24)/COUNT($C$6:E24)),0) -> 146 | N24: =IF(COUNT($C$6:E24)<=6,0,TRUNC((230-M23)*0.9)) -> 75 | O24: =_xlfn.IFS(SUM(C24:E24)<1,"",COUNT($C$6:E24)>9,TRUNC((230-M23)*(0.9)),COUNT($C$6:E24)<=9,0) ->  | P24: =_xlfn.IFS(SUM(C24:E24)<1,"",COUNT($C$6:E24)>9,N24*3+H24,COUNT($C$6:E24)<=9,0) ->  | S24: =IF(COUNT($C$6:E24)>9,IF(P24=MAX($P$6:$P$35),P24," "),"") ->  | V24: =IF(COUNT(C24:E24)<1,0,IF(COUNT($C$6:E24)>9,C24+N24,0)) -> 0 | W24: =IF(COUNT(C24:E24)<1,0,IF(COUNT($C$6:E24)>9,D24+N24,0)) -> 0 | X24: =IF(COUNT(C24:E24)<1,0,IF(COUNT($C$6:E24)>9,E24+N24,0)) -> 0 | AA24: 0 | AB24: 0 | AC24: 19
A25: wk20 | B25: =Calendar!B25 -> 2020-02-12 | F25: =IF(COUNT(C25:E25)<1," ",IF(AND(C25>M24,D25>M24,E25>M24,COUNT($C$6:E24)>=12),"*"," ")) ->  | G25: =IF(COUNT(C25:E25)<1," ",IF(AND(C25>M23,D25>M23,E25>M23,COUNT($C$6:E23)>=12),"*"," ")) ->  | J25: =_xlfn.IFS(SUM(C25:E25)<1,"",SUM(C25:E25)>=1,SUM($C$6:E25)) ->  | K25: =_xlfn.IFS(COUNT(C25:E25)<1,"",COUNT($C$6:E25)>=1,COUNT($C$6:E25)) ->  | L25: =_xlfn.IFS(COUNT(C25:E25)<1,"",AND(COUNT($C$6:E25)<=9,$C$4>1),$C$4,COUNT(C25:E25)>=1,M25) ->  | M25: =IF(COUNT($C$6:E25)>=1,TRUNC(SUM($C$6:E25)/COUNT($C$6:E25)),0) -> 146 | N25: =IF(COUNT($C$6:E25)<=6,0,TRUNC((230-M24)*0.9)) -> 75 | O25: =_xlfn.IFS(SUM(C25:E25)<1,"",COUNT($C$6:E25)>9,TRUNC((230-M24)*(0.9)),COUNT($C$6:E25)<=9,0) ->  | P25: =_xlfn.IFS(SUM(C25:E25)<1,"",COUNT($C$6:E25)>9,N25*3+H25,COUNT($C$6:E25)<=9,0) ->  | S25: =IF(COUNT($C$6:E25)>9,IF(P25=MAX($P$6:$P$35),P25," "),"") ->  | V25: =IF(COUNT(C25:E25)<1,0,IF(COUNT($C$6:E25)>9,C25+N25,0)) -> 0 | W25: =IF(COUNT(C25:E25)<1,0,IF(COUNT($C$6:E25)>9,D25+N25,0)) -> 0 | X25: =IF(COUNT(C25:E25)<1,0,IF(COUNT($C$6:E25)>9,E25+N25,0)) -> 0 | AA25: 0 | AB25: 0 | AC25: 20
A26: wk21 | B26: =Calendar!B26 -> 2020-02-19 | F26: =IF(COUNT(C26:E26)<1," ",IF(AND(C26>M25,D26>M25,E26>M25,COUNT($C$6:E25)>=12),"*"," ")) ->  | G26: =IF(COUNT(C26:E26)<1," ",IF(AND(C26>M24,D26>M24,E26>M24,COUNT($C$6:E24)>=12),"*"," ")) ->  | J26: =_xlfn.IFS(SUM(C26:E26)<1,"",SUM(C26:E26)>=1,SUM($C$6:E26)) ->  | K26: =_xlfn.IFS(COUNT(C26:E26)<1,"",COUNT($C$6:E26)>=1,COUNT($C$6:E26)) ->  | L26: =_xlfn.IFS(COUNT(C26:E26)<1,"",AND(COUNT($C$6:E26)<=9,$C$4>1),$C$4,COUNT(C26:E26)>=1,M26) ->  | M26: =IF(COUNT($C$6:E26)>=1,TRUNC(SUM($C$6:E26)/COUNT($C$6:E26)),0) -> 146 | N26: =IF(COUNT($C$6:E26)<=6,0,TRUNC((230-M25)*0.9)) -> 75 | O26: =_xlfn.IFS(SUM(C26:E26)<1,"",COUNT($C$6:E26)>9,TRUNC((230-M25)*(0.9)),COUNT($C$6:E26)<=9,0) ->  | P26: =_xlfn.IFS(SUM(C26:E26)<1,"",COUNT($C$6:E26)>9,N26*3+H26,COUNT($C$6:E26)<=9,0) ->  | S26: =IF(COUNT($C$6:E26)>9,IF(P26=MAX($P$6:$P$35),P26," "),"") ->  | V26: =IF(COUNT(C26:E26)<1,0,IF(COUNT($C$6:E26)>9,C26+N26,0)) -> 0 | W26: =IF(COUNT(C26:E26)<1,0,IF(COUNT($C$6:E26)>9,D26+N26,0)) -> 0 | X26: =IF(COUNT(C26:E26)<1,0,IF(COUNT($C$6:E26)>9,E26+N26,0)) -> 0 | AA26: 0 | AB26: 0 | AC26: 21
A27: wk22 | B27: =Calendar!B27 -> 2020-02-16 | F27: =IF(COUNT(C27:E27)<1," ",IF(AND(C27>M26,D27>M26,E27>M26,COUNT($C$6:E26)>=12),"*"," ")) ->  | G27: =IF(COUNT(C27:E27)<1," ",IF(AND(C27>M25,D27>M25,E27>M25,COUNT($C$6:E25)>=12),"*"," ")) ->  | J27: =_xlfn.IFS(SUM(C27:E27)<1,"",SUM(C27:E27)>=1,SUM($C$6:E27)) ->  | K27: =_xlfn.IFS(COUNT(C27:E27)<1,"",COUNT($C$6:E27)>=1,COUNT($C$6:E27)) ->  | L27: =_xlfn.IFS(COUNT(C27:E27)<1,"",AND(COUNT($C$6:E27)<=9,$C$4>1),$C$4,COUNT(C27:E27)>=1,M27) ->  | M27: =IF(COUNT($C$6:E27)>=1,TRUNC(SUM($C$6:E27)/COUNT($C$6:E27)),0) -> 146 | N27: =IF(COUNT($C$6:E27)<=6,0,TRUNC((230-M26)*0.9)) -> 75 | O27: =_xlfn.IFS(SUM(C27:E27)<1,"",COUNT($C$6:E27)>9,TRUNC((230-M26)*(0.9)),COUNT($C$6:E27)<=9,0) ->  | P27: =_xlfn.IFS(SUM(C27:E27)<1,"",COUNT($C$6:E27)>9,N27*3+H27,COUNT($C$6:E27)<=9,0) ->  | S27: =IF(COUNT($C$6:E27)>9,IF(P27=MAX($P$6:$P$35),P27," "),"") ->  | V27: =IF(COUNT(C27:E27)<1,0,IF(COUNT($C$6:E27)>9,C27+N27,0)) -> 0 | W27: =IF(COUNT(C27:E27)<1,0,IF(COUNT($C$6:E27)>9,D27+N27,0)) -> 0 | X27: =IF(COUNT(C27:E27)<1,0,IF(COUNT($C$6:E27)>9,E27+N27,0)) -> 0 | AA27: 0 | AB27: 0 | AC27: 22
A28: wk23 | B28: =Calendar!B28 -> 2020-03-04 | F28: =IF(COUNT(C28:E28)<1," ",IF(AND(C28>M27,D28>M27,E28>M27,COUNT($C$6:E27)>=12),"*"," ")) ->  | G28: =IF(COUNT(C28:E28)<1," ",IF(AND(C28>M26,D28>M26,E28>M26,COUNT($C$6:E26)>=12),"*"," ")) ->  | J28: =_xlfn.IFS(SUM(C28:E28)<1,"",SUM(C28:E28)>=1,SUM($C$6:E28)) ->  | K28: =_xlfn.IFS(COUNT(C28:E28)<1,"",COUNT($C$6:E28)>=1,COUNT($C$6:E28)) ->  | L28: =_xlfn.IFS(COUNT(C28:E28)<1,"",AND(COUNT($C$6:E28)<=9,$C$4>1),$C$4,COUNT(C28:E28)>=1,M28) ->  | M28: =IF(COUNT($C$6:E28)>=1,TRUNC(SUM($C$6:E28)/COUNT($C$6:E28)),0) -> 146 | N28: =IF(COUNT($C$6:E28)<=6,0,TRUNC((230-M27)*0.9)) -> 75 | O28: =_xlfn.IFS(SUM(C28:E28)<1,"",COUNT($C$6:E28)>9,TRUNC((230-M27)*(0.9)),COUNT($C$6:E28)<=9,0) ->  | P28: =_xlfn.IFS(SUM(C28:E28)<1,"",COUNT($C$6:E28)>9,N28*3+H28,COUNT($C$6:E28)<=9,0) ->  | S28: =IF(COUNT($C$6:E28)>9,IF(P28=MAX($P$6:$P$35),P28," "),"") ->  | V28: =IF(COUNT(C28:E28)<1,0,IF(COUNT($C$6:E28)>9,C28+N28,0)) -> 0 | W28: =IF(COUNT(C28:E28)<1,0,IF(COUNT($C$6:E28)>9,D28+N28,0)) -> 0 | X28: =IF(COUNT(C28:E28)<1,0,IF(COUNT($C$6:E28)>9,E28+N28,0)) -> 0 | AA28: 0 | AB28: 0 | AC28: 23
A29: wk24 | B29: =Calendar!B29 -> 2020-03-11 | F29: =IF(COUNT(C29:E29)<1," ",IF(AND(C29>M28,D29>M28,E29>M28,COUNT($C$6:E28)>=12),"*"," ")) ->  | G29: =IF(COUNT(C29:E29)<1," ",IF(AND(C29>M27,D29>M27,E29>M27,COUNT($C$6:E27)>=12),"*"," ")) ->  | J29: =_xlfn.IFS(SUM(C29:E29)<1,"",SUM(C29:E29)>=1,SUM($C$6:E29)) ->  | K29: =_xlfn.IFS(COUNT(C29:E29)<1,"",COUNT($C$6:E29)>=1,COUNT($C$6:E29)) ->  | L29: =_xlfn.IFS(COUNT(C29:E29)<1,"",AND(COUNT($C$6:E29)<=9,$C$4>1),$C$4,COUNT(C29:E29)>=1,M29) ->  | M29: =IF(COUNT($C$6:E29)>=1,TRUNC(SUM($C$6:E29)/COUNT($C$6:E29)),0) -> 146 | N29: =IF(COUNT($C$6:E29)<=6,0,TRUNC((230-M28)*0.9)) -> 75 | O29: =_xlfn.IFS(SUM(C29:E29)<1,"",COUNT($C$6:E29)>9,TRUNC((230-M28)*(0.9)),COUNT($C$6:E29)<=9,0) ->  | P29: =_xlfn.IFS(SUM(C29:E29)<1,"",COUNT($C$6:E29)>9,N29*3+H29,COUNT($C$6:E29)<=9,0) ->  | S29: =IF(COUNT($C$6:E29)>9,IF(P29=MAX($P$6:$P$35),P29," "),"") ->  | V29: =IF(COUNT(C29:E29)<1,0,IF(COUNT($C$6:E29)>9,C29+N29,0)) -> 0 | W29: =IF(COUNT(C29:E29)<1,0,IF(COUNT($C$6:E29)>9,D29+N29,0)) -> 0 | X29: =IF(COUNT(C29:E29)<1,0,IF(COUNT($C$6:E29)>9,E29+N29,0)) -> 0 | AA29: 0 | AB29: 0 | AC29: 24
A30: wk25 | B30: =Calendar!B30 -> 2020-03-18 | F30: =IF(COUNT(C30:E30)<1," ",IF(AND(C30>M29,D30>M29,E30>M29,COUNT($C$6:E29)>=12),"*"," ")) ->  | G30: =IF(COUNT(C30:E30)<1," ",IF(AND(C30>M28,D30>M28,E30>M28,COUNT($C$6:E28)>=12),"*"," ")) ->  | J30: =_xlfn.IFS(SUM(C30:E30)<1,"",SUM(C30:E30)>=1,SUM($C$6:E30)) ->  | K30: =_xlfn.IFS(COUNT(C30:E30)<1,"",COUNT($C$6:E30)>=1,COUNT($C$6:E30)) ->  | L30: =_xlfn.IFS(COUNT(C30:E30)<1,"",AND(COUNT($C$6:E30)<=9,$C$4>1),$C$4,COUNT(C30:E30)>=1,M30) ->  | M30: =IF(COUNT($C$6:E30)>=1,TRUNC(SUM($C$6:E30)/COUNT($C$6:E30)),0) -> 146 | N30: =IF(COUNT($C$6:E30)<=6,0,TRUNC((230-M29)*0.9)) -> 75 | O30: =_xlfn.IFS(SUM(C30:E30)<1,"",COUNT($C$6:E30)>9,TRUNC((230-M29)*(0.9)),COUNT($C$6:E30)<=9,0) ->  | P30: =_xlfn.IFS(SUM(C30:E30)<1,"",COUNT($C$6:E30)>9,N30*3+H30,COUNT($C$6:E30)<=9,0) ->  | S30: =IF(COUNT($C$6:E30)>9,IF(P30=MAX($P$6:$P$35),P30," "),"") ->  | V30: =IF(COUNT(C30:E30)<1,0,IF(COUNT($C$6:E30)>9,C30+N30,0)) -> 0 | W30: =IF(COUNT(C30:E30)<1,0,IF(COUNT($C$6:E30)>9,D30+N30,0)) -> 0 | X30: =IF(COUNT(C30:E30)<1,0,IF(COUNT($C$6:E30)>9,E30+N30,0)) -> 0 | AA30: 0 | AB30: 0 | AC30: 25
A31: wk26 | B31: =Calendar!B31 -> 2020-03-25 | F31: =IF(COUNT(C31:E31)<1," ",IF(AND(C31>M30,D31>M30,E31>M30,COUNT($C$6:E30)>=12),"*"," ")) ->  | G31: =IF(COUNT(C31:E31)<1," ",IF(AND(C31>M29,D31>M29,E31>M29,COUNT($C$6:E29)>=12),"*"," ")) ->  | J31: =_xlfn.IFS(SUM(C31:E31)<1,"",SUM(C31:E31)>=1,SUM($C$6:E31)) ->  | K31: =_xlfn.IFS(COUNT(C31:E31)<1,"",COUNT($C$6:E31)>=1,COUNT($C$6:E31)) ->  | L31: =_xlfn.IFS(COUNT(C31:E31)<1,"",AND(COUNT($C$6:E31)<=9,$C$4>1),$C$4,COUNT(C31:E31)>=1,M31) ->  | M31: =IF(COUNT($C$6:E31)>=1,TRUNC(SUM($C$6:E31)/COUNT($C$6:E31)),0) -> 146 | N31: =IF(COUNT($C$6:E31)<=6,0,TRUNC((230-M30)*0.9)) -> 75 | O31: =_xlfn.IFS(SUM(C31:E31)<1,"",COUNT($C$6:E31)>9,TRUNC((230-M30)*(0.9)),COUNT($C$6:E31)<=9,0) ->  | P31: =_xlfn.IFS(SUM(C31:E31)<1,"",COUNT($C$6:E31)>9,N31*3+H31,COUNT($C$6:E31)<=9,0) ->  | S31: =IF(COUNT($C$6:E31)>9,IF(P31=MAX($P$6:$P$35),P31," "),"") ->  | V31: =IF(COUNT(C31:E31)<1,0,IF(COUNT($C$6:E31)>9,C31+N31,0)) -> 0 | W31: =IF(COUNT(C31:E31)<1,0,IF(COUNT($C$6:E31)>9,D31+N31,0)) -> 0 | X31: =IF(COUNT(C31:E31)<1,0,IF(COUNT($C$6:E31)>9,E31+N31,0)) -> 0 | AA31: 0 | AB31: 0 | AC31: 26
A32: wk27 | B32: =Calendar!B32 -> 2020-04-01 | F32: =IF(COUNT(C32:E32)<1," ",IF(AND(C32>M31,D32>M31,E32>M31,COUNT($C$6:E31)>=12),"*"," ")) ->  | G32: =IF(COUNT(C32:E32)<1," ",IF(AND(C32>M30,D32>M30,E32>M30,COUNT($C$6:E30)>=12),"*"," ")) ->  | J32: =_xlfn.IFS(SUM(C32:E32)<1,"",SUM(C32:E32)>=1,SUM($C$6:E32)) ->  | K32: =_xlfn.IFS(COUNT(C32:E32)<1,"",COUNT($C$6:E32)>=1,COUNT($C$6:E32)) ->  | L32: =_xlfn.IFS(COUNT(C32:E32)<1,"",AND(COUNT($C$6:E32)<=9,$C$4>1),$C$4,COUNT(C32:E32)>=1,M32) ->  | M32: =IF(COUNT($C$6:E32)>=1,TRUNC(SUM($C$6:E32)/COUNT($C$6:E32)),0) -> 146 | N32: =IF(COUNT($C$6:E32)<=6,0,TRUNC((230-M31)*0.9)) -> 75 | O32: =_xlfn.IFS(SUM(C32:E32)<1,"",COUNT($C$6:E32)>9,TRUNC((230-M31)*(0.9)),COUNT($C$6:E32)<=9,0) ->  | P32: =_xlfn.IFS(SUM(C32:E32)<1,"",COUNT($C$6:E32)>9,N32*3+H32,COUNT($C$6:E32)<=9,0) ->  | S32: =IF(COUNT($C$6:E32)>9,IF(P32=MAX($P$6:$P$35),P32," "),"") ->  | V32: =IF(COUNT(C32:E32)<1,0,IF(COUNT($C$6:E32)>9,C32+N32,0)) -> 0 | W32: =IF(COUNT(C32:E32)<1,0,IF(COUNT($C$6:E32)>9,D32+N32,0)) -> 0 | X32: =IF(COUNT(C32:E32)<1,0,IF(COUNT($C$6:E32)>9,E32+N32,0)) -> 0 | AA32: 0 | AB32: 0 | AC32: 27
A33: wk28 | B33: =Calendar!B33 -> 2020-04-08 | F33: =IF(COUNT(C33:E33)<1," ",IF(AND(C33>M32,D33>M32,E33>M32,COUNT($C$6:E32)>=12),"*"," ")) ->  | G33: =IF(COUNT(C33:E33)<1," ",IF(AND(C33>M31,D33>M31,E33>M31,COUNT($C$6:E31)>=12),"*"," ")) ->  | J33: =_xlfn.IFS(SUM(C33:E33)<1,"",SUM(C33:E33)>=1,SUM($C$6:E33)) ->  | K33: =_xlfn.IFS(COUNT(C33:E33)<1,"",COUNT($C$6:E33)>=1,COUNT($C$6:E33)) ->  | L33: =_xlfn.IFS(COUNT(C33:E33)<1,"",AND(COUNT($C$6:E33)<=9,$C$4>1),$C$4,COUNT(C33:E33)>=1,M33) ->  | M33: =IF(COUNT($C$6:E33)>=1,TRUNC(SUM($C$6:E33)/COUNT($C$6:E33)),0) -> 146 | N33: =IF(COUNT($C$6:E33)<=6,0,TRUNC((230-M32)*0.9)) -> 75 | O33: =_xlfn.IFS(SUM(C33:E33)<1,"",COUNT($C$6:E33)>9,TRUNC((230-M32)*(0.9)),COUNT($C$6:E33)<=9,0) ->  | P33: =_xlfn.IFS(SUM(C33:E33)<1,"",COUNT($C$6:E33)>9,N33*3+H33,COUNT($C$6:E33)<=9,0) ->  | S33: =IF(COUNT($C$6:E33)>9,IF(P33=MAX($P$6:$P$35),P33," "),"") ->  | V33: =IF(COUNT(C33:E33)<1,0,IF(COUNT($C$6:E33)>9,C33+N33,0)) -> 0 | W33: =IF(COUNT(C33:E33)<1,0,IF(COUNT($C$6:E33)>9,D33+N33,0)) -> 0 | X33: =IF(COUNT(C33:E33)<1,0,IF(COUNT($C$6:E33)>9,E33+N33,0)) -> 0 | AA33: 0 | AB33: 0 | AC33: 28
A34: wk29 | B34: =Calendar!B34 -> 2020-04-15 | F34: =IF(COUNT(C34:E34)<1," ",IF(AND(C34>M33,D34>M33,E34>M33,COUNT($C$6:E33)>=12),"*"," ")) ->  | G34: =IF(COUNT(C34:E34)<1," ",IF(AND(C34>M32,D34>M32,E34>M32,COUNT($C$6:E32)>=12),"*"," ")) ->  | J34: =_xlfn.IFS(SUM(C34:E34)<1,"",SUM(C34:E34)>=1,SUM($C$6:E34)) ->  | K34: =_xlfn.IFS(COUNT(C34:E34)<1,"",COUNT($C$6:E34)>=1,COUNT($C$6:E34)) ->  | L34: =_xlfn.IFS(COUNT(C34:E34)<1,"",AND(COUNT($C$6:E34)<=9,$C$4>1),$C$4,COUNT(C34:E34)>=1,M34) ->  | M34: =IF(COUNT($C$6:E34)>=1,TRUNC(SUM($C$6:E34)/COUNT($C$6:E34)),0) -> 146 | N34: =IF(COUNT($C$6:E34)<=6,0,TRUNC((230-M33)*0.9)) -> 75 | O34: =_xlfn.IFS(SUM(C34:E34)<1,"",COUNT($C$6:E34)>9,TRUNC((230-M33)*(0.9)),COUNT($C$6:E34)<=9,0) ->  | P34: =_xlfn.IFS(SUM(C34:E34)<1,"",COUNT($C$6:E34)>9,N34*3+H34,COUNT($C$6:E34)<=9,0) ->  | S34: =IF(COUNT($C$6:E34)>9,IF(P34=MAX($P$6:$P$35),P34," "),"") ->  | V34: =IF(COUNT(C34:E34)<1,0,IF(COUNT($C$6:E34)>9,C34+N34,0)) -> 0 | W34: =IF(COUNT(C34:E34)<1,0,IF(COUNT($C$6:E34)>9,D34+N34,0)) -> 0 | X34: =IF(COUNT(C34:E34)<1,0,IF(COUNT($C$6:E34)>9,E34+N34,0)) -> 0 | AA34: 0 | AB34: 0 | AC34: 29
A35: wk30 | B35: =Calendar!B35 -> 2020-04-22 | F35: =IF(COUNT(C35:E35)<1," ",IF(AND(C35>M34,D35>M34,E35>M34,COUNT($C$6:E34)>=12),"*"," ")) ->  | G35: =IF(COUNT(C35:E35)<1," ",IF(AND(C35>M33,D35>M33,E35>M33,COUNT($C$6:E33)>=12),"*"," ")) ->  | J35: =_xlfn.IFS(SUM(C35:E35)<1,"",SUM(C35:E35)>=1,SUM($C$6:E35)) ->  | K35: =_xlfn.IFS(COUNT(C35:E35)<1,"",COUNT($C$6:E35)>=1,COUNT($C$6:E35)) ->  | L35: =_xlfn.IFS(COUNT(C35:E35)<1,"",AND(COUNT($C$6:E35)<=9,$C$4>1),$C$4,COUNT(C35:E35)>=1,M35) ->  | M35: =IF(COUNT($C$6:E35)>=1,TRUNC(SUM($C$6:E35)/COUNT($C$6:E35)),0) -> 146 | N35: =IF(COUNT($C$6:E35)<=6,0,TRUNC((230-M34)*0.9)) -> 75 | O35: =_xlfn.IFS(SUM(C35:E35)<1,"",COUNT($C$6:E35)>9,TRUNC((230-M34)*(0.9)),COUNT($C$6:E35)<=9,0) ->  | P35: =_xlfn.IFS(SUM(C35:E35)<1,"",COUNT($C$6:E35)>9,N35*3+H35,COUNT($C$6:E35)<=9,0) ->  | S35: =IF(COUNT($C$6:E35)>9,IF(P35=MAX($P$6:$P$35),P35," "),"") ->  | V35: =IF(COUNT(C35:E35)<1,0,IF(COUNT($C$6:E35)>9,C35+N35,0)) -> 0 | W35: =IF(COUNT(C35:E35)<1,0,IF(COUNT($C$6:E35)>9,D35+N35,0)) -> 0 | X35: =IF(COUNT(C35:E35)<1,0,IF(COUNT($C$6:E35)>9,E35+N35,0)) -> 0 | AA35: 0 | AB35: 0 | AC35: 30
C36: =(IF(COUNT(C6:C35)=0," ",(SUM(C6:C35))/COUNT(C6:C35))) -> 146.71 | D36: =(IF(COUNT(D6:D35)=0," ",(SUM(D6:D35))/COUNT(D6:D35))) -> 145.57 | E36: =(IF(COUNT(E6:E35)=0," ",(SUM(E6:E35))/COUNT(E6:E35))) -> 147.00

Sheet MSlinsen
H1: =Calendar!H1 -> Wednesday Fun Fours 2019/20 season | R1: 6-over wk:
A2: wk# | B2: =MAX(AB6:AB35) -> 24 | R2: 0
A3: Name: | B3: Michael Slinsen | I3: Perfect Attendance: | K3: =IF(SUM(AA6:AA35)<0.5,"Yes","No") -> No | L3: =_xlfn.IFS(AND(B2=30,K3="Yes"),"good",AND(B2<>30,K3="Yes"),"So Far",AND(B2<>30,K3="No")," ") -> 
A4: book average: | H4: wky | I4: wky | J4: cumulative | L4: cumulative | P4: hdcp | Q4: high | R4: high | S4: high hcp | T4: high hcp
C5: g1 | D5: g2 | E5: g3 | H5: series | I5: average | J5: score | K5: games | L5: average | O5: hdcp | P5: series | Q5: series | R5: game | S5: series | T5: game | V5: =MAX(C6:E35) -> 188 | W5: =MAX(V6:X35) -> 268
A6: wk1 | B6: =Calendar!B6 -> 2019-09-04 | H6: =IF(COUNT(C6:E6)<1," ",SUM(C6:E6)) ->  | I6: =IF(COUNT(C6:E6)<1," ",TRUNC(H6/COUNT(C6:E6))) ->  | J6: =_xlfn.IFS(SUM(C6:E6)<1,"",SUM(C6:E6)>=1,SUM($C$6:E6)) ->  | K6: =_xlfn.IFS(COUNT(C6:E6)<1,"",COUNT($C$6:E6)>=1,COUNT($C$6:E6)) ->  | L6: =_xlfn.IFS(COUNT(C6:E6)<1,"",AND(COUNT($C$6:E6)<=9,$C$4>1),$C$4,COUNT(C6:E6)>=1,M6) ->  | M6: =IF(COUNT($C$6:E6)>=1,TRUNC(SUM($C$6:E6)/COUNT($C$6:E6)),0) -> 0 | N6: =IF(COUNT($C$6:E6)<=6,0,TRUNC((230-M5)*0.9)) -> 0 | O6: =_xlfn.IFS(SUM(C6:E6)<1,"",COUNT($C$6:E6)>9,TRUNC((230-M5)*(0.9)),COUNT($C$6:E6)<=9,0) ->  | P6: =_xlfn.IFS(SUM(C6:E6)<1,"",COUNT($C$6:E6)>9,N6*3+H6,COUNT($C$6:E6)<=9,0) ->  | Q6: =IF(H6=(MAX($H$6:$H$35)),H6," ") ->  | R6: =IF((OR(C6=$V$5,D6=$V$5,E6=$V$5)),$V$5," ") ->  | S6: =IF(COUNT($C$6:E6)>9,IF(P6=MAX($P$6:$P$35),P6," "),"") ->  | T6: =IF(OR(V6=$W$5,W6=$W$5,X6=$W$5),$W$5," ") ->  | V6: =IF(COUNT(C6:E6)<1,0,IF(COUNT($C$6:E6)>9,C6+N6,0)) -> 0 | W6: =IF(COUNT(C6:E6)<1,0,IF(COUNT($C$6:E6)>9,D6+N6,0)) -> 0 | X6: =IF(COUNT(C6:E6)<1,0,IF(COUNT($C$6:E6)>9,E6+N6,0)) -> 0 | AA6: =IF((MAX($AB$6:$AB$35))<AC6,0,IF(AB6=AC6,0,1)) -> 1 | AB6: =IF(COUNT(C6:E6)>0,AC6,0) -> 0 | AC6: 1
A7: wk2 | B7: =Calendar!B7 -> 2019-09-11 | I7: =IF(COUNT(C7:E7)<1," ",TRUNC(H7/COUNT(C7:E7))) ->  | J7: =_xlfn.IFS(SUM(C7:E7)<1,"",SUM(C7:E7)>=1,SUM($C$6:E7)) ->  | K7: =_xlfn.IFS(COUNT(C7:E7)<1,"",COUNT($C$6:E7)>=1,COUNT($C$6:E7)) ->  | L7: =_xlfn.IFS(COUNT(C7:E7)<1,"",AND(COUNT($C$6:E7)<=9,$C$4>1),$C$4,COUNT(C7:E7)>=1,M7) ->  | M7: =IF(COUNT($C$6:E7)>=1,TRUNC(SUM($C$6:E7)/COUNT($C$6:E7)),0) -> 0 | N7: =IF(COUNT($C$6:E7)<=6,0,TRUNC((230-M6)*0.9)) -> 0 | O7: =_xlfn.IFS(SUM(C7:E7)<1,"",COUNT($C$6:E7)>9,TRUNC((230-M6)*(0.9)),COUNT($C$6:E7)<=9,0) ->  | P7: =_xlfn.IFS(SUM(C7:E7)<1,"",COUNT($C$6:E7)>9,N7*3+H7,COUNT($C$6:E7)<=9,0) ->  | S7: =IF(COUNT($C$6:E7)>9,IF(P7=MAX($P$6:$P$35),P7," "),"") ->  | V7: =IF(COUNT(C7:E7)<1,0,IF(COUNT($C$6:E7)>9,C7+N7,0)) -> 0 | W7: =IF(COUNT(C7:E7)<1,0,IF(COUNT($C$6:E7)>9,D7+N7,0)) -> 0 | X7: =IF(COUNT(C7:E7)<1,0,IF(COUNT($C$6:E7)>9,E7+N7,0)) -> 0 | AA7: 1 | AB7: =IF(COUNT(C7:E7)>0,AC7,0) -> 0 | AC7: 2
A8: wk3 | B8: =Calendar!B8 -> 2019-09-18 | J8: =_xlfn.IFS(SUM(C8:E8)<1,"",SUM(C8:E8)>=1,SUM($C$6:E8)) ->  | K8: =_xlfn.IFS(COUNT(C8:E8)<1,"",COUNT($C$6:E8)>=1,COUNT($C$6:E8)) ->  | L8: =_xlfn.IFS(COUNT(C8:E8)<1,"",AND(COUNT($C$6:E8)<=9,$C$4>1),$C$4,COUNT(C8:E8)>=1,M8) ->  | M8: =IF(COUNT($C$6:E8)>=1,TRUNC(SUM($C$6:E8)/COUNT($C$6:E8)),0) -> 0 | N8: =IF(COUNT($C$6:E8)<=6,0,TRUNC((230-M7)*0.9)) -> 0 | O8: =_xlfn.IFS(SUM(C8:E8)<1,"",COUNT($C$6:E8)>9,TRUNC((230-M7)*(0.9)),COUNT($C$6:E8)<=9,0) ->  | P8: =_xlfn.IFS(SUM(C8:E8)<1,"",COUNT($C$6:E8)>9,N8*3+H8,COUNT($C$6:E8)<=9,0) ->  | S8: =IF(COUNT($C$6:E8)>9,IF(P8=MAX($P$6:$P$35),P8," "),"") ->  | V8: =IF(COUNT(C8:E8)<1,0,IF(COUNT($C$6:E8)>9,C8+N8,0)) -> 0 | W8: =IF(COUNT(C8:E8)<1,0,IF(COUNT($C$6:E8)>9,D8+N8,0)) -> 0 | X8: =IF(COUNT(C8:E8)<1,0,IF(COUNT($C$6:E8)>9,E8+N8,0)) -> 0 | AA8: 1 | AB8: 0 | AC8: 3
A9: wk4 | B9: =Calendar!B9 -> 2019-09-25 | C9: 122 | D9: 130 | E9: 156 | H9: 408 | I9: 136 | J9: =_xlfn.IFS(SUM(C9:E9)<1,"",SUM(C9:E9)>=1,SUM($C$6:E9)) -> 408 | K9: =_xlfn.IFS(COUNT(C9:E9)<1,"",COUNT($C$6:E9)>=1,COUNT($C$6:E9)) -> 3 | L9: =_xlfn.IFS(COUNT(C9:E9)<1,"",AND(COUNT($C$6:E9)<=9,$C$4>1),$C$4,COUNT(C9:E9)>=1,M9) -> 136 | M9: =IF(COUNT($C$6:E9)>=1,TRUNC(SUM($C$6:E9)/COUNT($C$6:E9)),0) -> 136 | N9: =IF(COUNT($C$6:E9)<=6,0,TRUNC((230-M8)*0.9)) -> 0 | O9: =_xlfn.IFS(SUM(C9:E9)<1,"",COUNT($C$6:E9)>9,TRUNC((230-M8)*(0.9)),COUNT($C$6:E9)<=9,0) -> 0 | P9: =_xlfn.IFS(SUM(C9:E9)<1,"",COUNT($C$6:E9)>9,N9*3+H9,COUNT($C$6:E9)<=9,0) -> 0 | S9: =IF(COUNT($C$6:E9)>9,IF(P9=MAX($P$6:$P$35),P9," "),"") ->  | V9: =IF(COUNT(C9:E9)<1,0,IF(COUNT($C$6:E9)>9,C9+N9,0)) -> 0 | W9: =IF(COUNT(C9:E9)<1,0,IF(COUNT($C$6:E9)>9,D9+N9,0)) -> 0 | X9: =IF(COUNT(C9:E9)<1,0,IF(COUNT($C$6:E9)>9,E9+N9,0)) -> 0 | AA9: 0 | AB9: 4 | AC9: 4
A10: wk5 | B10: =Calendar!B10 -> 2019-10-02 | F10: =IF(COUNT(C10:E10)<1," ",IF(AND(C10>M9,D10>M9,E10>M9,COUNT($C$6:E9)>=12),"*"," ")) ->  | J10: =_xlfn.IFS(SUM(C10:E10)<1,"",SUM(C10:E10)>=1,SUM($C$6:E10)) ->  | K10: =_xlfn.IFS(COUNT(C10:E10)<1,"",COUNT($C$6:E10)>=1,COUNT($C$6:E10)) ->  | L10: =_xlfn.IFS(COUNT(C10:E10)<1,"",AND(COUNT($C$6:E10)<=9,$C$4>1),$C$4,COUNT(C10:E10)>=1,M10) ->  | M10: =IF(COUNT($C$6:E10)>=1,TRUNC(SUM($C$6:E10)/COUNT($C$6:E10)),0) -> 136 | N10: =IF(COUNT($C$6:E10)<=6,0,TRUNC((230-M9)*0.9)) -> 0 | O10: =_xlfn.IFS(SUM(C10:E10)<1,"",COUNT($C$6:E10)>9,TRUNC((230-M9)*(0.9)),COUNT($C$6:E10)<=9,0) ->  | P10: =_xlfn.IFS(SUM(C10:E10)<1,"",COUNT($C$6:E10)>9,N10*3+H10,COUNT($C$6:E10)<=9,0) ->  | S10: =IF(COUNT($C$6:E10)>9,IF(P10=MAX($P$6:$P$35),P10," "),"") ->  | V10: =IF(COUNT(C10:E10)<1,0,IF(COUNT($C$6:E10)>9,C10+N10,0)) -> 0 | W10: =IF(COUNT(C10:E10)<1,0,IF(COUNT($C$6:E10)>9,D10+N10,0)) -> 0 | X10: =IF(COUNT(C10:E10)<1,0,IF(COUNT($C$6:E10)>9,E10+N10,0)) -> 0 | AA10: 1 | AB10: 0 | AC10: 5
A11: wk6 | B11: =Calendar!B11 -> 2019-10-09 | C11: 188 | D11: 139 | E11: 143 | F11: =IF(COUNT(C11:E11)<1," ",IF(AND(C11>M10,D11>M10,E11>M10,COUNT($C$6:E10)>=12),"*"," ")) ->  | G11: =IF(COUNT(C11:E11)<1," ",IF(AND(C11>M9,D11>M9,E11>M9,COUNT($C$6:E9)>=12),"*"," ")) ->  | H11: 470 | I11: 156 | J11: =_xlfn.IFS(SUM(C11:E11)<1,"",SUM(C11:E11)>=1,SUM($C$6:E11)) -> 878 | K11: =_xlfn.IFS(COUNT(C11:E11)<1,"",COUNT($C$6:E11)>=1,COUNT($C$6:E11)) -> 6 | L11: =_xlfn.IFS(COUNT(C11:E11)<1,"",AND(COUNT($C$6:E11)<=9,$C$4>1),$C$4,COUNT(C11:E11)>=1,M11) -> 146 | M11: =IF(COUNT($C$6:E11)>=1,TRUNC(SUM($C$6:E11)/COUNT($C$6:E11)),0) -> 146 | N11: =IF(COUNT($C$6:E11)<=6,0,TRUNC((230-M10)*0.9)) -> 0 | O11: =_xlfn.IFS(SUM(C11:E11)<1,"",COUNT($C$6:E11)>9,TRUNC((230-M10)*(0.9)),COUNT($C$6:E11)<=9,0) -> 0 | P11: =_xlfn.IFS(SUM(C11:E11)<1,"",COUNT($C$6:E11)>9,N11*3+H11,COUNT($C$6:E11)<=9,0) -> 0 | Q11: 470 | R11: 188 | S11: =IF(COUNT($C$6:E11)>9,IF(P11=MAX($P$6:$P$35),P11," "),"") ->  | V11: =IF(COUNT(C11:E11)<1,0,IF(COUNT($C$6:E11)>9,C11+N11,0)) -> 0 | W11: =IF(COUNT(C11:E11)<1,0,IF(COUNT($C$6:E11)>9,D11+N11,0)) -> 0 | X11: =IF(COUNT(C11:E11)<1,0,IF(COUNT($C$6:E11)>9,E11+N11,0)) -> 0 | AA11: 0 | AB11: 6 | AC11: 6
A12: wk7 | B12: =Calendar!B12 -> 2019-10-16 | F12: =IF(COUNT(C12:E12)<1," ",IF(AND(C12>M11,D12>M11,E12>M11,COUNT($C$6:E11)>=12),"*"," ")) ->  | G12: =IF(COUNT(C12:E12)<1," ",IF(AND(C12>M10,D12>M10,E12>M10,COUNT($C$6:E10)>=12),"*"," ")) ->  | J12: =_xlfn.IFS(SUM(C12:E12)<1,"",SUM(C12:E12)>=1,SUM($C$6:E12)) ->  | K12: =_xlfn.IFS(COUNT(C12:E12)<1,"",COUNT($C$6:E12)>=1,COUNT($C$6:E12)) ->  | L12: =_xlfn.IFS(COUNT(C12:E12)<1,"",AND(COUNT($C$6:E12)<=9,$C$4>1),$C$4,COUNT(C12:E12)>=1,M12) ->  | M12: =IF(COUNT($C$6:E12)>=1,TRUNC(SUM($C$6:E12)/COUNT($C$6:E12)),0) -> 146 | N12: =IF(COUNT($C$6:E12)<=6,0,TRUNC((230-M11)*0.9)) -> 0 | O12: =_xlfn.IFS(SUM(C12:E12)<1,"",COUNT($C$6:E12)>9,TRUNC((230-M11)*(0.9)),COUNT($C$6:E12)<=9,0) ->  | P12: =_xlfn.IFS(SUM(C12:E12)<1,"",COUNT($C$6:E12)>9,N12*3+H12,COUNT($C$6:E12)<=9,0) ->  | S12: =IF(COUNT($C$6:E12)>9,IF(P12=MAX($P$6:$P$35),P12," "),"") ->  | V12: =IF(COUNT(C12:E12)<1,0,IF(COUNT($C$6:E12)>9,C12+N12,0)) -> 0 | W12: =IF(COUNT(C12:E12)<1,0,IF(COUNT($C$6:E12)>9,D12+N12,0)) -> 0 | X12: =IF(COUNT(C12:E12)<1,0,IF(COUNT($C$6:E12)>9,E12+N12,0)) -> 0 | AA12: 1 | AB12: 0 | AC12: 7
A13: wk8 | B13: =Calendar!B13 -> 2020-10-23 | C13: 108 | D13: 186 | E13: 146 | F13: =IF(COUNT(C13:E13)<1," ",IF(AND(C13>M12,D13>M12,E13>M12,COUNT($C$6:E12)>=12),"*"," ")) ->  | G13: =IF(COUNT(C13:E13)<1," ",IF(AND(C13>M11,D13>M11,E13>M11,COUNT($C$6:E11)>=12),"*"," ")) ->  | H13: 440 | I13: 146 | J13: =_xlfn.IFS(SUM(C13:E13)<1,"",SUM(C13:E13)>=1,SUM($C$6:E13)) -> 1318 | K13: =_xlfn.IFS(COUNT(C13:E13)<1,"",COUNT($C$6:E13)>=1,COUNT($C$6:E13)) -> 9 | L13: =_xlfn.IFS(COUNT(C13:E13)<1,"",AND(COUNT($C$6:E13)<=9,$C$4>1),$C$4,COUNT(C13:E13)>=1,M13) -> 146 | M13: =IF(COUNT($C$6:E13)>=1,TRUNC(SUM($C$6:E13)/COUNT($C$6:E13)),0) -> 146 | N13: =IF(COUNT($C$6:E13)<=6,0,TRUNC((230-M12)*0.9)) -> 75 | O13: =_xlfn.IFS(SUM(C13:E13)<1,"",COUNT($C$6:E13)>9,TRUNC((230-M12)*(0.9)),COUNT($C$6:E13)<=9,0) -> 0 | P13: =_xlfn.IFS(SUM(C13:E13)<1,"",COUNT($C$6:E13)>9,N13*3+H13,COUNT($C$6:E13)<=9,0) -> 0 | S13: =IF(COUNT($C$6:E13)>9,IF(P13=MAX($P$6:$P$35),P13," "),"") ->  | V13: =IF(COUNT(C13:E13)<1,0,IF(COUNT($C$6:E13)>9,C13+N13,0)) -> 0 | W13: =IF(COUNT(C13:E13)<1,0,IF(COUNT($C$6:E13)>9,D13+N13,0)) -> 0 | X13: =IF(COUNT(C13:E13)<1,0,IF(COUNT($C$6:E13)>9,E13+N13,0)) -> 0 | AA13: 0 | AB13: 8 | AC13: 8
A14: wk9 | B14: =Calendar!B14 -> 2019-11-06 | C14: 146 | D14: 153 | E14: 170 | F14: =IF(COUNT(C14:E14)<1," ",IF(AND(C14>M13,D14>M13,E14>M13,COUNT($C$6:E13)>=12),"*"," ")) ->  | G14: =IF(COUNT(C14:E14)<1," ",IF(AND(C14>M12,D14>M12,E14>M12,COUNT($C$6:E12)>=12),"*"," ")) ->  | H14: 469 | I14: 156 | J14: =_xlfn.IFS(SUM(C14:E14)<1,"",SUM(C14:E14)>=1,SUM($C$6:E14)) -> 1787 | K14: =_xlfn.IFS(COUNT(C14:E14)<1,"",COUNT($C$6:E14)>=1,COUNT($C$6:E14)) -> 12 | L14: =_xlfn.IFS(COUNT(C14:E14)<1,"",AND(COUNT($C$6:E14)<=9,$C$4>1),$C$4,COUNT(C14:E14)>=1,M14) -> 148 | M14: =IF(COUNT($C$6:E14)>=1,TRUNC(SUM($C$6:E14)/COUNT($C$6:E14)),0) -> 148 | N14: =IF(COUNT($C$6:E14)<=6,0,TRUNC((230-M13)*0.9)) -> 75 | O14: =_xlfn.IFS(SUM(C14:E14)<1,"",COUNT($C$6:E14)>9,TRUNC((230-M13)*(0.9)),COUNT($C$6:E14)<=9,0) -> 75 | P14: =_xlfn.IFS(SUM(C14:E14)<1,"",COUNT($C$6:E14)>9,N14*3+H14,COUNT($C$6:E14)<=9,0) -> 694 | S14: =IF(COUNT($C$6:E14)>9,IF(P14=MAX($P$6:$P$35),P14," "),"") -> 694 | V14: =IF(COUNT(C14:E14)<1,0,IF(COUNT($C$6:E14)>9,C14+N14,0)) -> 221 | W14: =IF(COUNT(C14:E14)<1,0,IF(COUNT($C$6:E14)>9,D14+N14,0)) -> 228 | X14: =IF(COUNT(C14:E14)<1,0,IF(COUNT($C$6:E14)>9,E14+N14,0)) -> 245 | AA14: 0 | AB14: 9 | AC14: 9
A15: wk10 | B15: =Calendar!B15 -> 2019-11-13 | F15: =IF(COUNT(C15:E15)<1," ",IF(AND(C15>M14,D15>M14,E15>M14,COUNT($C$6:E14)>=12),"*"," ")) ->  | G15: =IF(COUNT(C15:E15)<1," ",IF(AND(C15>M13,D15>M13,E15>M13,COUNT($C$6:E13)>=12),"*"," ")) ->  | J15: =_xlfn.IFS(SUM(C15:E15)<1,"",SUM(C15:E15)>=1,SUM($C$6:E15)) ->  | K15: =_xlfn.IFS(COUNT(C15:E15)<1,"",COUNT($C$6:E15)>=1,COUNT($C$6:E15)) ->  | L15: =_xlfn.IFS(COUNT(C15:E15)<1,"",AND(COUNT($C$6:E15)<=9,$C$4>1),$C$4,COUNT(C15:E15)>=1,M15) ->  | M15: =IF(COUNT($C$6:E15)>=1,TRUNC(SUM($C$6:E15)/COUNT($C$6:E15)),0) -> 148 | N15: =IF(COUNT($C$6:E15)<=6,0,TRUNC((230-M14)*0.9)) -> 73 | O15: =_xlfn.IFS(SUM(C15:E15)<1,"",COUNT($C$6:E15)>9,TRUNC((230-M14)*(0.9)),COUNT($C$6:E15)<=9,0) ->  | P15: =_xlfn.IFS(SUM(C15:E15)<1,"",COUNT($C$6:E15)>9,N15*3+H15,COUNT($C$6:E15)<=9,0) ->  | S15: =IF(COUNT($C$6:E15)>9,IF(P15=MAX($P$6:$P$35),P15," "),"") ->  | V15: =IF(COUNT(C15:E15)<1,0,IF(COUNT($C$6:E15)>9,C15+N15,0)) -> 0 | W15: =IF(COUNT(C15:E15)<1,0,IF(COUNT($C$6:E15)>9,D15+N15,0)) -> 0 | X15: =IF(COUNT(C15:E15)<1,0,IF(COUNT($C$6:E15)>9,E15+N15,0)) -> 0 | AA15: 1 | AB15: 0 | AC15: 10
A16: wk11 | B16: =Calendar!B16 -> 2019-11-20 | F16: =IF(COUNT(C16:E16)<1," ",IF(AND(C16>M15,D16>M15,E16>M15,COUNT($C$6:E15)>=12),"*"," ")) ->  | G16: =IF(COUNT(C16:E16)<1," ",IF(AND(C16>M14,D16>M14,E16>M14,COUNT($C$6:E14)>=12),"*"," ")) ->  | J16: =_xlfn.IFS(SUM(C16:E16)<1,"",SUM(C16:E16)>=1,SUM($C$6:E16)) ->  | K16: =_xlfn.IFS(COUNT(C16:E16)<1,"",COUNT($C$6:E16)>=1,COUNT($C$6:E16)) ->  | L16: =_xlfn.IFS(COUNT(C16:E16)<1,"",AND(COUNT($C$6:E16)<=9,$C$4>1),$C$4,COUNT(C16:E16)>=1,M16) ->  | M16: =IF(COUNT($C$6:E16)>=1,TRUNC(SUM($C$6:E16)/COUNT($C$6:E16)),0) -> 148 | N16: =IF(COUNT($C$6:E16)<=6,0,TRUNC((230-M15)*0.9)) -> 73 | O16: =_xlfn.IFS(SUM(C16:E16)<1,"",COUNT($C$6:E16)>9,TRUNC((230-M15)*(0.9)),COUNT($C$6:E16)<=9,0) ->  | P16: =_xlfn.IFS(SUM(C16:E16)<1,"",COUNT($C$6:E16)>9,N16*3+H16,COUNT($C$6:E16)<=9,0) ->  | S16: =IF(COUNT($C$6:E16)>9,IF(P16=MAX($P$6:$P$35),P16," "),"") ->  | V16: =IF(COUNT(C16:E16)<1,0,IF(COUNT($C$6:E16)>9,C16+N16,0)) -> 0 | W16: =IF(COUNT(C16:E16)<1,0,IF(COUNT($C$6:E16)>9,D16+N16,0)) -> 0 | X16: =IF(COUNT(C16:E16)<1,0,IF(COUNT($C$6:E16)>9,E16+N16,0)) -> 0 | AA16: 1 | AB16: 0 | AC16: 11
A17: wk12 | B17: =Calendar!B17 -> 2019-12-04 | C17: 146 | D17: 129 | E17: 130 | F17: =IF(COUNT(C17:E17)<1," ",IF(AND(C17>M16,D17>M16,E17>M16,COUNT($C$6:E16)>=12),"*"," ")) ->  | G17: =IF(COUNT(C17:E17)<1," ",IF(AND(C17>M15,D17>M15,E17>M15,COUNT($C$6:E15)>=12),"*"," ")) ->  | H17: 405 | I17: 135 | J17: =_xlfn.IFS(SUM(C17:E17)<1,"",SUM(C17:E17)>=1,SUM($C$6:E17)) -> 2192 | K17: =_xlfn.IFS(COUNT(C17:E17)<1,"",COUNT($C$6:E17)>=1,COUNT($C$6:E17)) -> 15 | L17: =_xlfn.IFS(COUNT(C17:E17)<1,"",AND(COUNT($C$6:E17)<=9,$C$4>1),$C$4,COUNT(C17:E17)>=1,M17) -> 146 | M17: =IF(COUNT($C$6:E17)>=1,TRUNC(SUM($C$6:E17)/COUNT($C$6:E17)),0) -> 146 | N17: =IF(COUNT($C$6:E17)<=6,0,TRUNC((230-M16)*0.9)) -> 73 | O17: =_xlfn.IFS(SUM(C17:E17)<1,"",COUNT($C$6:E17)>9,TRUNC((230-M16)*(0.9)),COUNT($C$6:E17)<=9,0) -> 73 | P17: =_xlfn.IFS(SUM(C17:E17)<1,"",COUNT($C$6:E17)>9,N17*3+H17,COUNT($C$6:E17)<=9,0) -> 624 | S17: =IF(COUNT($C$6:E17)>9,IF(P17=MAX($P$6:$P$35),P17," "),"") ->  | V17: =IF(COUNT(C17:E17)<1,0,IF(COUNT($C$6:E17)>9,C17+N17,0)) -> 219 | W17: =IF(COUNT(C17:E17)<1,0,IF(COUNT($C$6:E17)>9,D17+N17,0)) -> 202 | X17: =IF(COUNT(C17:E17)<1,0,IF(COUNT($C$6:E17)>9,E17+N17,0)) -> 203 | AA17: 0 | AB17: 12 | AC17: 12
A18: wk13 | B18: =Calendar!B18 -> 2019-12-11 | C18: 133 | D18: 100 | E18: 121 | F18: =IF(COUNT(C18:E18)<1," ",IF(AND(C18>M17,D18>M17,E18>M17,COUNT($C$6:E17)>=12),"*"," ")) ->  | G18: =IF(COUNT(C18:E18)<1," ",IF(AND(C18>M16,D18>M16,E18>M16,COUNT($C$6:E16)>=12),"*"," ")) ->  | H18: 354 | I18: 118 | J18: =_xlfn.IFS(SUM(C18:E18)<1,"",SUM(C18:E18)>=1,SUM($C$6:E18)) -> 2546 | K18: =_xlfn.IFS(COUNT(C18:E18)<1,"",COUNT($C$6:E18)>=1,COUNT($C$6:E18)) -> 18 | L18: =_xlfn.IFS(COUNT(C18:E18)<1,"",AND(COUNT($C$6:E18)<=9,$C$4>1),$C$4,COUNT(C18:E18)>=1,M18) -> 141 | M18: =IF(COUNT($C$6:E18)>=1,TRUNC(SUM($C$6:E18)/COUNT($C$6:E18)),0) -> 141 | N18: =IF(COUNT($C$6:E18)<=6,0,TRUNC((230-M17)*0.9)) -> 75 | O18: =_xlfn.IFS(SUM(C18:E18)<1,"",COUNT($C$6:E18)>9,TRUNC((230-M17)*(0.9)),COUNT($C$6:E18)<=9,0) -> 75 | P18: =_xlfn.IFS(SUM(C18:E18)<1,"",COUNT($C$6:E18)>9,N18*3+H18,COUNT($C$6:E18)<=9,0) -> 579 | S18: =IF(COUNT($C$6:E18)>9,IF(P18=MAX($P$6:$P$35),P18," "),"") ->  | V18: =IF(COUNT(C18:E18)<1,0,IF(COUNT($C$6:E18)>9,C18+N18,0)) -> 208 | W18: =IF(COUNT(C18:E18)<1,0,IF(COUNT($C$6:E18)>9,D18+N18,0)) -> 175 | X18: =IF(COUNT(C18:E18)<1,0,IF(COUNT($C$6:E18)>9,E18+N18,0)) -> 196 | AA18: 0 | AB18: 13 | AC18: 13
A19: wk14 | B19: =Calendar!B19 -> 2019-12-18 | C19: 110 | D19: 107 | E19: 107 | F19: =IF(COUNT(C19:E19)<1," ",IF(AND(C19>M18,D19>M18,E19>M18,COUNT($C$6:E18)>=12),"*"," ")) ->  | G19: =IF(COUNT(C19:E19)<1," ",IF(AND(C19>M17,D19>M17,E19>M17,COUNT($C$6:E17)>=12),"*"," ")) ->  | H19: 324 | I19: 108 | J19: =_xlfn.IFS(SUM(C19:E19)<1,"",SUM(C19:E19)>=1,SUM($C$6:E19)) -> 2870 | K19: =_xlfn.IFS(COUNT(C19:E19)<1,"",COUNT($C$6:E19)>=1,COUNT($C$6:E19)) -> 21 | L19: =_xlfn.IFS(COUNT(C19:E19)<1,"",AND(COUNT($C$6:E19)<=9,$C$4>1),$C$4,COUNT(C19:E19)>=1,M19) -> 136 | M19: =IF(COUNT($C$6:E19)>=1,TRUNC(SUM($C$6:E19)/COUNT($C$6:E19)),0) -> 136 | N19: =IF(COUNT($C$6:E19)<=6,0,TRUNC((230-M18)*0.9)) -> 80 | O19: =_xlfn.IFS(SUM(C19:E19)<1,"",COUNT($C$6:E19)>9,TRUNC((230-M18)*(0.9)),COUNT($C$6:E19)<=9,0) -> 80 | P19: =_xlfn.IFS(SUM(C19:E19)<1,"",COUNT($C$6:E19)>9,N19*3+H19,COUNT($C$6:E19)<=9,0) -> 564 | S19: =IF(COUNT($C$6:E19)>9,IF(P19=MAX($P$6:$P$35),P19," "),"") ->  | V19: =IF(COUNT(C19:E19)<1,0,IF(COUNT($C$6:E19)>9,C19+N19,0)) -> 190 | W19: =IF(COUNT(C19:E19)<1,0,IF(COUNT($C$6:E19)>9,D19+N19,0)) -> 187 | X19: =IF(COUNT(C19:E19)<1,0,IF(COUNT($C$6:E19)>9,E19+N19,0)) -> 187 | AA19: 0 | AB19: 14 | AC19: 14
A20: wk15 | B20: =Calendar!B20 -> 2020-01-08 | C20: 184 | D20: 95 | E20: 148 | F20: =IF(COUNT(C20:E20)<1," ",IF(AND(C20>M19,D20>M19,E20>M19,COUNT($C$6:E19)>=12),"*"," ")) ->  | G20: =IF(COUNT(C20:E20)<1," ",IF(AND(C20>M18,D20>M18,E20>M18,COUNT($C$6:E18)>=12),"*"," ")) ->  | H20: 427 | I20: 142 | J20: =_xlfn.IFS(SUM(C20:E20)<1,"",SUM(C20:E20)>=1,SUM($C$6:E20)) -> 3297 | K20: =_xlfn.IFS(COUNT(C20:E20)<1,"",COUNT($C$6:E20)>=1,COUNT($C$6:E20)) -> 24 | L20: =_xlfn.IFS(COUNT(C20:E20)<1,"",AND(COUNT($C$6:E20)<=9,$C$4>1),$C$4,COUNT(C20:E20)>=1,M20) -> 137 | M20: =IF(COUNT($C$6:E20)>=1,TRUNC(SUM($C$6:E20)/COUNT($C$6:E20)),0) -> 137 | N20: =IF(COUNT($C$6:E20)<=6,0,TRUNC((230-M19)*0.9)) -> 84 | O20: =_xlfn.IFS(SUM(C20:E20)<1,"",COUNT($C$6:E20)>9,TRUNC((230-M19)*(0.9)),COUNT($C$6:E20)<=9,0) -> 84 | P20: =_xlfn.IFS(SUM(C20:E20)<1,"",COUNT($C$6:E20)>9,N20*3+H20,COUNT($C$6:E20)<=9,0) -> 679 | S20: =IF(COUNT($C$6:E20)>9,IF(P20=MAX($P$6:$P$35),P20," "),"") ->  | T20: 268 | V20: =IF(COUNT(C20:E20)<1,0,IF(COUNT($C$6:E20)>9,C20+N20,0)) -> 268 | W20: =IF(COUNT(C20:E20)<1,0,IF(COUNT($C$6:E20)>9,D20+N20,0)) -> 179 | X20: =IF(COUNT(C20:E20)<1,0,IF(COUNT($C$6:E20)>9,E20+N20,0)) -> 232 | AA20: 0 | AB20: 15 | AC20: 15
A21: wk16 | B21: =Calendar!B21 -> 2020-01-15 | C21: 135 | D21: 150 | E21: 137 | F21: =IF(COUNT(C21:E21)<1," ",IF(AND(C21>M20,D21>M20,E21>M20,COUNT($C$6:E20)>=12),"*"," ")) ->  | G21: =IF(COUNT(C21:E21)<1," ",IF(AND(C21>M19,D21>M19,E21>M19,COUNT($C$6:E19)>=12),"*"," ")) ->  | H21: 422 | I21: 140 | J21: =_xlfn.IFS(SUM(C21:E21)<1,"",SUM(C21:E21)>=1,SUM($C$6:E21)) -> 3719 | K21: =_xlfn.IFS(COUNT(C21:E21)<1,"",COUNT($C$6:E21)>=1,COUNT($C$6:E21)) -> 27 | L21: =_xlfn.IFS(COUNT(C21:E21)<1,"",AND(COUNT($C$6:E21)<=9,$C$4>1),$C$4,COUNT(C21:E21)>=1,M21) -> 137 | M21: =IF(COUNT($C$6:E21)>=1,TRUNC(SUM($C$6:E21)/COUNT($C$6:E21)),0) -> 137 | N21: =IF(COUNT($C$6:E21)<=6,0,TRUNC((230-M20)*0.9)) -> 83 | O21: =_xlfn.IFS(SUM(C21:E21)<1,"",COUNT($C$6:E21)>9,TRUNC((230-M20)*(0.9)),COUNT($C$6:E21)<=9,0) -> 83 | P21: =_xlfn.IFS(SUM(C21:E21)<1,"",COUNT($C$6:E21)>9,N21*3+H21,COUNT($C$6:E21)<=9,0) -> 671 | S21: =IF(COUNT($C$6:E21)>9,IF(P21=MAX($P$6:$P$35),P21," "),"") ->  | V21: =IF(COUNT(C21:E21)<1,0,IF(COUNT($C$6:E21)>9,C21+N21,0)) -> 218 | W21: =IF(COUNT(C21:E21)<1,0,IF(COUNT($C$6:E21)>9,D21+N21,0)) -> 233 | X21: =IF(COUNT(C21:E21)<1,0,IF(COUNT($C$6:E21)>9,E21+N21,0)) -> 220 | AA21: 0 | AB21: 16 | AC21: 16
A22: wk17 | B22: =Calendar!B22 -> 2020-01-22 | C22: 99 | D22: 87 | E22: 134 | F22: =IF(COUNT(C22:E22)<1," ",IF(AND(C22>M21,D22>M21,E22>M21,COUNT($C$6:E21)>=12),"*"," ")) ->  | G22: =IF(COUNT(C22:E22)<1," ",IF(AND(C22>M20,D22>M20,E22>M20,COUNT($C$6:E20)>=12),"*"," ")) ->  | H22: 320 | I22: 106 | J22: =_xlfn.IFS(SUM(C22:E22)<1,"",SUM(C22:E22)>=1,SUM($C$6:E22)) -> 4039 | K22: =_xlfn.IFS(COUNT(C22:E22)<1,"",COUNT($C$6:E22)>=1,COUNT($C$6:E22)) -> 30 | L22: =_xlfn.IFS(COUNT(C22:E22)<1,"",AND(COUNT($C$6:E22)<=9,$C$4>1),$C$4,COUNT(C22:E22)>=1,M22) -> 134 | M22: =IF(COUNT($C$6:E22)>=1,TRUNC(SUM($C$6:E22)/COUNT($C$6:E22)),0) -> 134 | N22: =IF(COUNT($C$6:E22)<=6,0,TRUNC((230-M21)*0.9)) -> 83 | O22: =_xlfn.IFS(SUM(C22:E22)<1,"",COUNT($C$6:E22)>9,TRUNC((230-M21)*(0.9)),COUNT($C$6:E22)<=9,0) -> 83 | P22: =_xlfn.IFS(SUM(C22:E22)<1,"",COUNT($C$6:E22)>9,N22*3+H22,COUNT($C$6:E22)<=9,0) -> 569 | S22: =IF(COUNT($C$6:E22)>9,IF(P22=MAX($P$6:$P$35),P22," "),"") ->  | V22: =IF(COUNT(C22:E22)<1,0,IF(COUNT($C$6:E22)>9,C22+N22,0)) -> 182 | W22: =IF(COUNT(C22:E22)<1,0,IF(COUNT($C$6:E22)>9,D22+N22,0)) -> 170 | X22: =IF(COUNT(C22:E22)<1,0,IF(COUNT($C$6:E22)>9,E22+N22,0)) -> 217 | AA22: 0 | AB22: 17 | AC22: 17
A23: wk18 | B23: =Calendar!B23 -> 2020-01-29 | F23: =IF(COUNT(C23:E23)<1," ",IF(AND(C23>M22,D23>M22,E23>M22,COUNT($C$6:E22)>=12),"*"," ")) ->  | G23: =IF(COUNT(C23:E23)<1," ",IF(AND(C23>M21,D23>M21,E23>M21,COUNT($C$6:E21)>=12),"*"," ")) ->  | J23: =_xlfn.IFS(SUM(C23:E23)<1,"",SUM(C23:E23)>=1,SUM($C$6:E23)) ->  | K23: =_xlfn.IFS(COUNT(C23:E23)<1,"",COUNT($C$6:E23)>=1,COUNT($C$6:E23)) ->  | L23: =_xlfn.IFS(COUNT(C23:E23)<1,"",AND(COUNT($C$6:E23)<=9,$C$4>1),$C$4,COUNT(C23:E23)>=1,M23) ->  | M23: =IF(COUNT($C$6:E23)>=1,TRUNC(SUM($C$6:E23)/COUNT($C$6:E23)),0) -> 134 | N23: =IF(COUNT($C$6:E23)<=6,0,TRUNC((230-M22)*0.9)) -> 86 | O23: =_xlfn.IFS(SUM(C23:E23)<1,"",COUNT($C$6:E23)>9,TRUNC((230-M22)*(0.9)),COUNT($C$6:E23)<=9,0) ->  | P23: =_xlfn.IFS(SUM(C23:E23)<1,"",COUNT($C$6:E23)>9,N23*3+H23,COUNT($C$6:E23)<=9,0) ->  | S23: =IF(COUNT($C$6:E23)>9,IF(P23=MAX($P$6:$P$35),P23," "),"") ->  | V23: =IF(COUNT(C23:E23)<1,0,IF(COUNT($C$6:E23)>9,C23+N23,0)) -> 0 | W23: =IF(COUNT(C23:E23)<1,0,IF(COUNT($C$6:E23)>9,D23+N23,0)) -> 0 | X23: =IF(COUNT(C23:E23)<1,0,IF(COUNT($C$6:E23)>9,E23+N23,0)) -> 0 | AA23: 1 | AB23: 0 | AC23: 18
A24: wk19 | B24: =Calendar!B24 -> 2020-02-05 | C24: 118 | D24: 138 | E24: 143 | F24: =IF(COUNT(C24:E24)<1," ",IF(AND(C24>M23,D24>M23,E24>M23,COUNT($C$6:E23)>=12),"*"," ")) ->  | G24: =IF(COUNT(C24:E24)<1," ",IF(AND(C24>M22,D24>M22,E24>M22,COUNT($C$6:E22)>=12),"*"," ")) ->  | H24: 399 | I24: 133 | J24: =_xlfn.IFS(SUM(C24:E24)<1,"",SUM(C24:E24)>=1,SUM($C$6:E24)) -> 4438 | K24: =_xlfn.IFS(COUNT(C24:E24)<1,"",COUNT($C$6:E24)>=1,COUNT($C$6:E24)) -> 33 | L24: =_xlfn.IFS(COUNT(C24:E24)<1,"",AND(COUNT($C$6:E24)<=9,$C$4>1),$C$4,COUNT(C24:E24)>=1,M24) -> 134 | M24: =IF(COUNT($C$6:E24)>=1,TRUNC(SUM($C$6:E24)/COUNT($C$6:E24)),0) -> 134 | N24: =IF(COUNT($C$6:E24)<=6,0,TRUNC((230-M23)*0.9)) -> 86 | O24: =_xlfn.IFS(SUM(C24:E24)<1,"",COUNT($C$6:E24)>9,TRUNC((230-M23)*(0.9)),COUNT($C$6:E24)<=9,0) -> 86 | P24: =_xlfn.IFS(SUM(C24:E24)<1,"",COUNT($C$6:E24)>9,N24*3+H24,COUNT($C$6:E24)<=9,0) -> 657 | S24: =IF(COUNT($C$6:E24)>9,IF(P24=MAX($P$6:$P$35),P24," "),"") ->  | V24: =IF(COUNT(C24:E24)<1,0,IF(COUNT($C$6:E24)>9,C24+N24,0)) -> 204 | W24: =IF(COUNT(C24:E24)<1,0,IF(COUNT($C$6:E24)>9,D24+N24,0)) -> 224 | X24: =IF(COUNT(C24:E24)<1,0,IF(COUNT($C$6:E24)>9,E24+N24,0)) -> 229 | AA24: 0 | AB24: 19 | AC24: 19
A25: wk20 | B25: =Calendar!B25 -> 2020-02-12 | C25: 108 | D25: 121 | E25: 112 | F25: =IF(COUNT(C25:E25)<1," ",IF(AND(C25>M24,D25>M24,E25>M24,COUNT($C$6:E24)>=12),"*"," ")) ->  | G25: =IF(COUNT(C25:E25)<1," ",IF(AND(C25>M23,D25>M23,E25>M23,COUNT($C$6:E23)>=12),"*"," ")) ->  | H25: 341 | I25: 113 | J25: =_xlfn.IFS(SUM(C25:E25)<1,"",SUM(C25:E25)>=1,SUM($C$6:E25)) -> 4779 | K25: =_xlfn.IFS(COUNT(C25:E25)<1,"",COUNT($C$6:E25)>=1,COUNT($C$6:E25)) -> 36 | L25: =_xlfn.IFS(COUNT(C25:E25)<1,"",AND(COUNT($C$6:E25)<=9,$C$4>1),$C$4,COUNT(C25:E25)>=1,M25) -> 132 | M25: =IF(COUNT($C$6:E25)>=1,TRUNC(SUM($C$6:E25)/COUNT($C$6:E25)),0) -> 132 | N25: =IF(COUNT($C$6:E25)<=6,0,TRUNC((230-M24)*0.9)) -> 86 | O25: =_xlfn.IFS(SUM(C25:E25)<1,"",COUNT($C$6:E25)>9,TRUNC((230-M24)*(0.9)),COUNT($C$6:E25)<=9,0) -> 86 | P25: =_xlfn.IFS(SUM(C25:E25)<1,"",COUNT($C$6:E25)>9,N25*3+H25,COUNT($C$6:E25)<=9,0) -> 599 | S25: =IF(COUNT($C$6:E25)>9,IF(P25=MAX($P$6:$P$35),P25," "),"") ->  | V25: =IF(COUNT(C25:E25)<1,0,IF(COUNT($C$6:E25)>9,C25+N25,0)) -> 194 | W25: =IF(COUNT(C25:E25)<1,0,IF(COUNT($C$6:E25)>9,D25+N25,0)) -> 207 | X25: =IF(COUNT(C25:E25)<1,0,IF(COUNT($C$6:E25)>9,E25+N25,0)) -> 198 | AA25: 0 | AB25: 20 | AC25: 20
A26: wk21 | B26: =Calendar!B26 -> 2020-02-19 | C26: 122 | D26: 125 | E26: 141 | F26: =IF(COUNT(C26:E26)<1," ",IF(AND(C26>M25,D26>M25,E26>M25,COUNT($C$6:E25)>=12),"*"," ")) ->  | G26: =IF(COUNT(C26:E26)<1," ",IF(AND(C26>M24,D26>M24,E26>M24,COUNT($C$6:E24)>=12),"*"," ")) ->  | H26: 388 | I26: 129 | J26: =_xlfn.IFS(SUM(C26:E26)<1,"",SUM(C26:E26)>=1,SUM($C$6:E26)) -> 5167 | K26: =_xlfn.IFS(COUNT(C26:E26)<1,"",COUNT($C$6:E26)>=1,COUNT($C$6:E26)) -> 39 | L26: =_xlfn.IFS(COUNT(C26:E26)<1,"",AND(COUNT($C$6:E26)<=9,$C$4>1),$C$4,COUNT(C26:E26)>=1,M26) -> 132 | M26: =IF(COUNT($C$6:E26)>=1,TRUNC(SUM($C$6:E26)/COUNT($C$6:E26)),0) -> 132 | N26: =IF(COUNT($C$6:E26)<=6,0,TRUNC((230-M25)*0.9)) -> 88 | O26: =_xlfn.IFS(SUM(C26:E26)<1,"",COUNT($C$6:E26)>9,TRUNC((230-M25)*(0.9)),COUNT($C$6:E26)<=9,0) -> 88 | P26: =_xlfn.IFS(SUM(C26:E26)<1,"",COUNT($C$6:E26)>9,N26*3+H26,COUNT($C$6:E26)<=9,0) -> 652 | S26: =IF(COUNT($C$6:E26)>9,IF(P26=MAX($P$6:$P$35),P26," "),"") ->  | V26: =IF(COUNT(C26:E26)<1,0,IF(COUNT($C$6:E26)>9,C26+N26,0)) -> 210 | W26: =IF(COUNT(C26:E26)<1,0,IF(COUNT($C$6:E26)>9,D26+N26,0)) -> 213 | X26: =IF(COUNT(C26:E26)<1,0,IF(COUNT($C$6:E26)>9,E26+N26,0)) -> 229 | AA26: 0 | AB26: 21 | AC26: 21
A27: wk22 | B27: =Calendar!B27 -> 2020-02-16 | F27: =IF(COUNT(C27:E27)<1," ",IF(AND(C27>M26,D27>M26,E27>M26,COUNT($C$6:E26)>=12),"*"," ")) ->  | G27: =IF(COUNT(C27:E27)<1," ",IF(AND(C27>M25,D27>M25,E27>M25,COUNT($C$6:E25)>=12),"*"," ")) ->  | J27: =_xlfn.IFS(SUM(C27:E27)<1,"",SUM(C27:E27)>=1,SUM($C$6:E27)) ->  | K27: =_xlfn.IFS(COUNT(C27:E27)<1,"",COUNT($C$6:E27)>=1,COUNT($C$6:E27)) ->  | L27: =_xlfn.IFS(COUNT(C27:E27)<1,"",AND(COUNT($C$6:E27)<=9,$C$4>1),$C$4,COUNT(C27:E27)>=1,M27) ->  | M27: =IF(COUNT($C$6:E27)>=1,TRUNC(SUM($C$6:E27)/COUNT($C$6:E27)),0) -> 132 | N27: =IF(COUNT($C$6:E27)<=6,0,TRUNC((230-M26)*0.9)) -> 88 | O27: =_xlfn.IFS(SUM(C27:E27)<1,"",COUNT($C$6:E27)>9,TRUNC((230-M26)*(0.9)),COUNT($C$6:E27)<=9,0) ->  | P27: =_xlfn.IFS(SUM(C27:E27)<1,"",COUNT($C$6:E27)>9,N27*3+H27,COUNT($C$6:E27)<=9,0) ->  | S27: =IF(COUNT($C$6:E27)>9,IF(P27=MAX($P$6:$P$35),P27," "),"") ->  | V27: =IF(COUNT(C27:E27)<1,0,IF(COUNT($C$6:E27)>9,C27+N27,0)) -> 0 | W27: =IF(COUNT(C27:E27)<1,0,IF(COUNT($C$6:E27)>9,D27+N27,0)) -> 0 | X27: =IF(COUNT(C27:E27)<1,0,IF(COUNT($C$6:E27)>9,E27+N27,0)) -> 0 | AA27: 1 | AB27: 0 | AC27: 22
A28: wk23 | B28: =Calendar!B28 -> 2020-03-04 | F28: =IF(COUNT(C28:E28)<1," ",IF(AND(C28>M27,D28>M27,E28>M27,COUNT($C$6:E27)>=12),"*"," ")) ->  | G28: =IF(COUNT(C28:E28)<1," ",IF(AND(C28>M26,D28>M26,E28>M26,COUNT($C$6:E26)>=12),"*"," ")) ->  | J28: =_xlfn.IFS(SUM(C28:E28)<1,"",SUM(C28:E28)>=1,SUM($C$6:E28)) ->  | K28: =_xlfn.IFS(COUNT(C28:E28)<1,"",COUNT($C$6:E28)>=1,COUNT($C$6:E28)) ->  | L28: =_xlfn.IFS(COUNT(C28:E28)<1,"",AND(COUNT($C$6:E28)<=9,$C$4>1),$C$4,COUNT(C28:E28)>=1,M28) ->  | M28: =IF(COUNT($C$6:E28)>=1,TRUNC(SUM($C$6:E28)/COUNT($C$6:E28)),0) -> 132 | N28: =IF(COUNT($C$6:E28)<=6,0,TRUNC((230-M27)*0.9)) -> 88 | O28: =_xlfn.IFS(SUM(C28:E28)<1,"",COUNT($C$6:E28)>9,TRUNC((230-M27)*(0.9)),COUNT($C$6:E28)<=9,0) ->  | P28: =_xlfn.IFS(SUM(C28:E28)<1,"",COUNT($C$6:E28)>9,N28*3+H28,COUNT($C$6:E28)<=9,0) ->  | S28: =IF(COUNT($C$6:E28)>9,IF(P28=MAX($P$6:$P$35),P28," "),"") ->  | V28: =IF(COUNT(C28:E28)<1,0,IF(COUNT($C$6:E28)>9,C28+N28,0)) -> 0 | W28: =IF(COUNT(C28:E28)<1,0,IF(COUNT($C$6:E28)>9,D28+N28,0)) -> 0 | X28: =IF(COUNT(C28:E28)<1,0,IF(COUNT($C$6:E28)>9,E28+N28,0)) -> 0 | AA28: 1 | AB28: 0 | AC28: 23
A29: wk24 | B29: =Calendar!B29 -> 2020-03-11 | C29: 136 | D29: 114 | E29: 151 | F29: =IF(COUNT(C29:E29)<1," ",IF(AND(C29>M28,D29>M28,E29>M28,COUNT($C$6:E28)>=12),"*"," ")) ->  | G29: =IF(COUNT(C29:E29)<1," ",IF(AND(C29>M27,D29>M27,E29>M27,COUNT($C$6:E27)>=12),"*"," ")) ->  | H29: 401 | I29: 133 | J29: =_xlfn.IFS(SUM(C29:E29)<1,"",SUM(C29:E29)>=1,SUM($C$6:E29)) -> 5568 | K29: =_xlfn.IFS(COUNT(C29:E29)<1,"",COUNT($C$6:E29)>=1,COUNT($C$6:E29)) -> 42 | L29: =_xlfn.IFS(COUNT(C29:E29)<1,"",AND(COUNT($C$6:E29)<=9,$C$4>1),$C$4,COUNT(C29:E29)>=1,M29) -> 132 | M29: =IF(COUNT($C$6:E29)>=1,TRUNC(SUM($C$6:E29)/COUNT($C$6:E29)),0) -> 132 | N29: =IF(COUNT($C$6:E29)<=6,0,TRUNC((230-M28)*0.9)) -> 88 | O29: =_xlfn.IFS(SUM(C29:E29)<1,"",COUNT($C$6:E29)>9,TRUNC((230-M28)*(0.9)),COUNT($C$6:E29)<=9,0) -> 88 | P29: =_xlfn.IFS(SUM(C29:E29)<1,"",COUNT($C$6:E29)>9,N29*3+H29,COUNT($C$6:E29)<=9,0) -> 665 | S29: =IF(COUNT($C$6:E29)>9,IF(P29=MAX($P$6:$P$35),P29," "),"") ->  | V29: =IF(COUNT(C29:E29)<1,0,IF(COUNT($C$6:E29)>9,C29+N29,0)) -> 224 | W29: =IF(COUNT(C29:E29)<1,0,IF(COUNT($C$6:E29)>9,D29+N29,0)) -> 202 | X29: =IF(COUNT(C29:E29)<1,0,IF(COUNT($C$6:E29)>9,E29+N29,0)) -> 239 | AA29: 0 | AB29: 24 | AC29: 24
A30: wk25 | B30: =Calendar!B30 -> 2020-03-18 | F30: =IF(COUNT(C30:E30)<1," ",IF(AND(C30>M29,D30>M29,E30>M29,COUNT($C$6:E29)>=12),"*"," ")) ->  | G30: =IF(COUNT(C30:E30)<1," ",IF(AND(C30>M28,D30>M28,E30>M28,COUNT($C$6:E28)>=12),"*"," ")) ->  | J30: =_xlfn.IFS(SUM(C30:E30)<1,"",SUM(C30:E30)>=1,SUM($C$6:E30)) ->  | K30: =_xlfn.IFS(COUNT(C30:E30)<1,"",COUNT($C$6:E30)>=1,COUNT($C$6:E30)) ->  | L30: =_xlfn.IFS(COUNT(C30:E30)<1,"",AND(COUNT($C$6:E30)<=9,$C$4>1),$C$4,COUNT(C30:E30)>=1,M30) ->  | M30: =IF(COUNT($C$6:E30)>=1,TRUNC(SUM($C$6:E30)/COUNT($C$6:E30)),0) -> 132 | N30: =IF(COUNT($C$6:E30)<=6,0,TRUNC((230-M29)*0.9)) -> 88 | O30: =_xlfn.IFS(SUM(C30:E30)<1,"",COUNT($C$6:E30)>9,TRUNC((230-M29)*(0.9)),COUNT($C$6:E30)<=9,0) ->  | P30: =_xlfn.IFS(SUM(C30:E30)<1,"",COUNT($C$6:E30)>9,N30*3+H30,COUNT($C$6:E30)<=9,0) ->  | S30: =IF(COUNT($C$6:E30)>9,IF(P30=MAX($P$6:$P$35),P30," "),"") ->  | V30: =IF(COUNT(C30:E30)<1,0,IF(COUNT($C$6:E30)>9,C30+N30,0)) -> 0 | W30: =IF(COUNT(C30:E30)<1,0,IF(COUNT($C$6:E30)>9,D30+N30,0)) -> 0 | X30: =IF(COUNT(C30:E30)<1,0,IF(COUNT($C$6:E30)>9,E30+N30,0)) -> 0 | AA30: 0 | AB30: 0 | AC30: 25
A31: wk26 | B31: =Calendar!B31 -> 2020-03-25 | F31: =IF(COUNT(C31:E31)<1," ",IF(AND(C31>M30,D31>M30,E31>M30,COUNT($C$6:E30)>=12),"*"," ")) ->  | G31: =IF(COUNT(C31:E31)<1," ",IF(AND(C31>M29,D31>M29,E31>M29,COUNT($C$6:E29)>=12),"*"," ")) ->  | J31: =_xlfn.IFS(SUM(C31:E31)<1,"",SUM(C31:E31)>=1,SUM($C$6:E31)) ->  | K31: =_xlfn.IFS(COUNT(C31:E31)<1,"",COUNT($C$6:E31)>=1,COUNT($C$6:E31)) ->  | L31: =_xlfn.IFS(COUNT(C31:E31)<1,"",AND(COUNT($C$6:E31)<=9,$C$4>1),$C$4,COUNT(C31:E31)>=1,M31) ->  | M31: =IF(COUNT($C$6:E31)>=1,TRUNC(SUM($C$6:E31)/COUNT($C$6:E31)),0) -> 132 | N31: =IF(COUNT($C$6:E31)<=6,0,TRUNC((230-M30)*0.9)) -> 88 | O31: =_xlfn.IFS(SUM(C31:E31)<1,"",COUNT($C$6:E31)>9,TRUNC((230-M30)*(0.9)),COUNT($C$6:E31)<=9,0) ->  | P31: =_xlfn.IFS(SUM(C31:E31)<1,"",COUNT($C$6:E31)>9,N31*3+H31,COUNT($C$6:E31)<=9,0) ->  | S31: =IF(COUNT($C$6:E31)>9,IF(P31=MAX($P$6:$P$35),P31," "),"") ->  | V31: =IF(COUNT(C31:E31)<1,0,IF(COUNT($C$6:E31)>9,C31+N31,0)) -> 0 | W31: =IF(COUNT(C31:E31)<1,0,IF(COUNT($C$6:E31)>9,D31+N31,0)) -> 0 | X31: =IF(COUNT(C31:E31)<1,0,IF(COUNT($C$6:E31)>9,E31+N31,0)) -> 0 | AA31: 0 | AB31: 0 | AC31: 26
A32: wk27 | B32: =Calendar!B32 -> 2020-04-01 | F32: =IF(COUNT(C32:E32)<1," ",IF(AND(C32>M31,D32>M31,E32>M31,COUNT($C$6:E31)>=12),"*"," ")) ->  | G32: =IF(COUNT(C32:E32)<1," ",IF(AND(C32>M30,D32>M30,E32>M30,COUNT($C$6:E30)>=12),"*"," ")) ->  | J32: =_xlfn.IFS(SUM(C32:E32)<1,"",SUM(C32:E32)>=1,SUM($C$6:E32)) ->  | K32: =_xlfn.IFS(COUNT(C32:E32)<1,"",COUNT($C$6:E32)>=1,COUNT($C$6:E32)) ->  | L32: =_xlfn.IFS(COUNT(C32:E32)<1,"",AND(COUNT($C$6:E32)<=9,$C$4>1),$C$4,COUNT(C32:E32)>=1,M32) ->  | M32: =IF(COUNT($C$6:E32)>=1,TRUNC(SUM($C$6:E32)/COUNT($C$6:E32)),0) -> 132 | N32: =IF(COUNT($C$6:E32)<=6,0,TRUNC((230-M31)*0.9)) -> 88 | O32: =_xlfn.IFS(SUM(C32:E32)<1,"",COUNT($C$6:E32)>9,TRUNC((230-M31)*(0.9)),COUNT($C$6:E32)<=9,0) ->  | P32: =_xlfn.IFS(SUM(C32:E32)<1,"",COUNT($C$6:E32)>9,N32*3+H32,COUNT($C$6:E32)<=9,0) ->  | S32: =IF(COUNT($C$6:E32)>9,IF(P32=MAX($P$6:$P$35),P32," "),"") ->  | V32: =IF(COUNT(C32:E32)<1,0,IF(COUNT($C$6:E32)>9,C32+N32,0)) -> 0 | W32: =IF(COUNT(C32:E32)<1,0,IF(COUNT($C$6:E32)>9,D32+N32,0)) -> 0 | X32: =IF(COUNT(C32:E32)<1,0,IF(COUNT($C$6:E32)>9,E32+N32,0)) -> 0 | AA32: 0 | AB32: 0 | AC32: 27
A33: wk28 | B33: =Calendar!B33 -> 2020-04-08 | F33: =IF(COUNT(C33:E33)<1," ",IF(AND(C33>M32,D33>M32,E33>M32,COUNT($C$6:E32)>=12),"*"," ")) ->  | G33: =IF(COUNT(C33:E33)<1," ",IF(AND(C33>M31,D33>M31,E33>M31,COUNT($C$6:E31)>=12),"*"," ")) ->  | J33: =_xlfn.IFS(SUM(C33:E33)<1,"",SUM(C33:E33)>=1,SUM($C$6:E33)) ->  | K33: =_xlfn.IFS(COUNT(C33:E33)<1,"",COUNT($C$6:E33)>=1,COUNT($C$6:E33)) ->  | L33: =_xlfn.IFS(COUNT(C33:E33)<1,"",AND(COUNT($C$6:E33)<=9,$C$4>1),$C$4,COUNT(C33:E33)>=1,M33) ->  | M33: =IF(COUNT($C$6:E33)>=1,TRUNC(SUM($C$6:E33)/COUNT($C$6:E33)),0) -> 132 | N33: =IF(COUNT($C$6:E33)<=6,0,TRUNC((230-M32)*0.9)) -> 88 | O33: =_xlfn.IFS(SUM(C33:E33)<1,"",COUNT($C$6:E33)>9,TRUNC((230-M32)*(0.9)),COUNT($C$6:E33)<=9,0) ->  | P33: =_xlfn.IFS(SUM(C33:E33)<1,"",COUNT($C$6:E33)>9,N33*3+H33,COUNT($C$6:E33)<=9,0) ->  | S33: =IF(COUNT($C$6:E33)>9,IF(P33=MAX($P$6:$P$35),P33," "),"") ->  | V33: =IF(COUNT(C33:E33)<1,0,IF(COUNT($C$6:E33)>9,C33+N33,0)) -> 0 | W33: =IF(COUNT(C33:E33)<1,0,IF(COUNT($C$6:E33)>9,D33+N33,0)) -> 0 | X33: =IF(COUNT(C33:E33)<1,0,IF(COUNT($C$6:E33)>9,E33+N33,0)) -> 0 | AA33: 0 | AB33: 0 | AC33: 28
A34: wk29 | B34: =Calendar!B34 -> 2020-04-15 | F34: =IF(COUNT(C34:E34)<1," ",IF(AND(C34>M33,D34>M33,E34>M33,COUNT($C$6:E33)>=12),"*"," ")) ->  | G34: =IF(COUNT(C34:E34)<1," ",IF(AND(C34>M32,D34>M32,E34>M32,COUNT($C$6:E32)>=12),"*"," ")) ->  | J34: =_xlfn.IFS(SUM(C34:E34)<1,"",SUM(C34:E34)>=1,SUM($C$6:E34)) ->  | K34: =_xlfn.IFS(COUNT(C34:E34)<1,"",COUNT($C$6:E34)>=1,COUNT($C$6:E34)) ->  | L34: =_xlfn.IFS(COUNT(C34:E34)<1,"",AND(COUNT($C$6:E34)<=9,$C$4>1),$C$4,COUNT(C34:E34)>=1,M34) ->  | M34: =IF(COUNT($C$6:E34)>=1,TRUNC(SUM($C$6:E34)/COUNT($C$6:E34)),0) -> 132 | N34: =IF(COUNT($C$6:E34)<=6,0,TRUNC((230-M33)*0.9)) -> 88 | O34: =_xlfn.IFS(SUM(C34:E34)<1,"",COUNT($C$6:E34)>9,TRUNC((230-M33)*(0.9)),COUNT($C$6:E34)<=9,0) ->  | P34: =_xlfn.IFS(SUM(C34:E34)<1,"",COUNT($C$6:E34)>9,N34*3+H34,COUNT($C$6:E34)<=9,0) ->  | S34: =IF(COUNT($C$6:E34)>9,IF(P34=MAX($P$6:$P$35),P34," "),"") ->  | V34: =IF(COUNT(C34:E34)<1,0,IF(COUNT($C$6:E34)>9,C34+N34,0)) -> 0 | W34: =IF(COUNT(C34:E34)<1,0,IF(COUNT($C$6:E34)>9,D34+N34,0)) -> 0 | X34: =IF(COUNT(C34:E34)<1,0,IF(COUNT($C$6:E34)>9,E34+N34,0)) -> 0 | AA34: 0 | AB34: 0 | AC34: 29
A35: wk30 | B35: =Calendar!B35 -> 2020-04-22 | F35: =IF(COUNT(C35:E35)<1," ",IF(AND(C35>M34,D35>M34,E35>M34,COUNT($C$6:E34)>=12),"*"," ")) ->  | G35: =IF(COUNT(C35:E35)<1," ",IF(AND(C35>M33,D35>M33,E35>M33,COUNT($C$6:E33)>=12),"*"," ")) ->  | J35: =_xlfn.IFS(SUM(C35:E35)<1,"",SUM(C35:E35)>=1,SUM($C$6:E35)) ->  | K35: =_xlfn.IFS(COUNT(C35:E35)<1,"",COUNT($C$6:E35)>=1,COUNT($C$6:E35)) ->  | L35: =_xlfn.IFS(COUNT(C35:E35)<1,"",AND(COUNT($C$6:E35)<=9,$C$4>1),$C$4,COUNT(C35:E35)>=1,M35) ->  | M35: =IF(COUNT($C$6:E35)>=1,TRUNC(SUM($C$6:E35)/COUNT($C$6:E35)),0) -> 132 | N35: =IF(COUNT($C$6:E35)<=6,0,TRUNC((230-M34)*0.9)) -> 88 | O35: =_xlfn.IFS(SUM(C35:E35)<1,"",COUNT($C$6:E35)>9,TRUNC((230-M34)*(0.9)),COUNT($C$6:E35)<=9,0) ->  | P35: =_xlfn.IFS(SUM(C35:E35)<1,"",COUNT($C$6:E35)>9,N35*3+H35,COUNT($C$6:E35)<=9,0) ->  | S35: =IF(COUNT($C$6:E35)>9,IF(P35=MAX($P$6:$P$35),P35," "),"") ->  | V35: =IF(COUNT(C35:E35)<1,0,IF(COUNT($C$6:E35)>9,C35+N35,0)) -> 0 | W35: =IF(COUNT(C35:E35)<1,0,IF(COUNT($C$6:E35)>9,D35+N35,0)) -> 0 | X35: =IF(COUNT(C35:E35)<1,0,IF(COUNT($C$6:E35)>9,E35+N35,0)) -> 0 | AA35: 0 | AB35: 0 | AC35: 30
C36: =(IF(COUNT(C6:C35)=0," ",(SUM(C6:C35))/COUNT(C6:C35))) -> 132.50 | D36: =(IF(COUNT(D6:D35)=0," ",(SUM(D6:D35))/COUNT(D6:D35))) -> 126.71 | E36: =(IF(COUNT(E6:E35)=0," ",(SUM(E6:E35))/COUNT(E6:E35))) -> 138.50

Sheet SAnderson6
H1: =Calendar!H1 -> Wednesday Fun Fours 2019/20 season | R1: 6-over wk:
A2: wk# | B2: =MAX(AB6:AB35) -> 24 | R2: 19
A3: Name: | B3: Steve Anderson | I3: Perfect Attendance: | K3: =IF(SUM(AA6:AA35)<0.5,"Yes","No") -> No | L3: =_xlfn.IFS(AND(B2=30,K3="Yes"),"good",AND(B2<>30,K3="Yes"),"So Far",AND(B2<>30,K3="No")," ") -> 
A4: book average: | C4: 159 | H4: wky | I4: wky | J4: cumulative | L4: cumulative | P4: hdcp | Q4: high | R4: high | S4: high hcp | T4: high hcp
C5: g1 | D5: g2 | E5: g3 | H5: series | I5: average | J5: score | K5: games | L5: average | O5: hdcp | P5: series | Q5: series | R5: game | S5: series | T5: game | V5: =MAX(C6:E35) -> 226 | W5: =MAX(V6:X35) -> 289
A6: wk1 | B6: =Calendar!B6 -> 2019-09-04 | H6: =IF(COUNT(C6:E6)<1," ",SUM(C6:E6)) ->  | I6: =IF(COUNT(C6:E6)<1," ",TRUNC(H6/COUNT(C6:E6))) ->  | J6: =_xlfn.IFS(SUM(C6:E6)<1,"",SUM(C6:E6)>=1,SUM($C$6:E6)) ->  | K6: =_xlfn.IFS(COUNT(C6:E6)<1,"",COUNT($C$6:E6)>=1,COUNT($C$6:E6)) ->  | L6: =_xlfn.IFS(COUNT(C6:E6)<1,"",AND(COUNT($C$6:E6)<=9,$C$4>1),$C$4,COUNT(C6:E6)>=1,M6) ->  | M6: =IF(COUNT($C$6:E6)>=1,TRUNC(SUM($C$6:E6)/COUNT($C$6:E6)),0) -> 0 | N6: =IF(COUNT($C$6:E6)<=6,0,TRUNC((230-M5)*0.9)) -> 0 | O6: =_xlfn.IFS(SUM(C6:E6)<1,"",COUNT($C$6:E6)>9,TRUNC((230-M5)*(0.9)),COUNT($C$6:E6)<=9,0) ->  | P6: =_xlfn.IFS(SUM(C6:E6)<1,"",COUNT($C$6:E6)>9,N6*3+H6,COUNT($C$6:E6)<=9,0) ->  | Q6: =IF(H6=(MAX($H$6:$H$35)),H6," ") ->  | R6: =IF((OR(C6=$V$5,D6=$V$5,E6=$V$5)),$V$5," ") ->  | S6: =IF(COUNT($C$6:E6)>9,IF(P6=MAX($P$6:$P$35),P6," "),"") ->  | T6: =IF(OR(V6=$W$5,W6=$W$5,X6=$W$5),$W$5," ") ->  | V6: =IF(COUNT(C6:E6)<1,0,IF(COUNT($C$6:E6)>9,C6+N6,0)) -> 0 | W6: =IF(COUNT(C6:E6)<1,0,IF(COUNT($C$6:E6)>9,D6+N6,0)) -> 0 | X6: =IF(COUNT(C6:E6)<1,0,IF(COUNT($C$6:E6)>9,E6+N6,0)) -> 0 | AA6: =IF((MAX($AB$6:$AB$35))<AC6,0,IF(AB6=AC6,0,1)) -> 1 | AB6: =IF(COUNT(C6:E6)>0,AC6,0) -> 0 | AC6: 1
A7: wk2 | B7: =Calendar!B7 -> 2019-09-11 | I7: =IF(COUNT(C7:E7)<1," ",TRUNC(H7/COUNT(C7:E7))) ->  | J7: =_xlfn.IFS(SUM(C7:E7)<1,"",SUM(C7:E7)>=1,SUM($C$6:E7)) ->  | K7: =_xlfn.IFS(COUNT(C7:E7)<1,"",COUNT($C$6:E7)>=1,COUNT($C$6:E7)) ->  | L7: =_xlfn.IFS(COUNT(C7:E7)<1,"",AND(COUNT($C$6:E7)<=9,$C$4>1),$C$4,COUNT(C7:E7)>=1,M7) ->  | M7: =IF(COUNT($C$6:E7)>=1,TRUNC(SUM($C$6:E7)/COUNT($C$6:E7)),0) -> 0 | N7: =IF(COUNT($C$6:E7)<=6,0,TRUNC((230-M6)*0.9)) -> 0 | O7: =_xlfn.IFS(SUM(C7:E7)<1,"",COUNT($C$6:E7)>9,TRUNC((230-M6)*(0.9)),COUNT($C$6:E7)<=9,0) ->  | P7: =_xlfn.IFS(SUM(C7:E7)<1,"",COUNT($C$6:E7)>9,N7*3+H7,COUNT($C$6:E7)<=9,0) ->  | S7: =IF(COUNT($C$6:E7)>9,IF(P7=MAX($P$6:$P$35),P7," "),"") ->  | V7: =IF(COUNT(C7:E7)<1,0,IF(COUNT($C$6:E7)>9,C7+N7,0)) -> 0 | W7: =IF(COUNT(C7:E7)<1,0,IF(COUNT($C$6:E7)>9,D7+N7,0)) -> 0 | X7: =IF(COUNT(C7:E7)<1,0,IF(COUNT($C$6:E7)>9,E7+N7,0)) -> 0 | AA7: 1 | AB7: =IF(COUNT(C7:E7)>0,AC7,0) -> 0 | AC7: 2
A8: wk3 | B8: =Calendar!B8 -> 2019-09-18 | J8: =_xlfn.IFS(SUM(C8:E8)<1,"",SUM(C8:E8)>=1,SUM($C$6:E8)) ->  | K8: =_xlfn.IFS(COUNT(C8:E8)<1,"",COUNT($C$6:E8)>=1,COUNT($C$6:E8)) ->  | L8: =_xlfn.IFS(COUNT(C8:E8)<1,"",AND(COUNT($C$6:E8)<=9,$C$4>1),$C$4,COUNT(C8:E8)>=1,M8) ->  | M8: =IF(COUNT($C$6:E8)>=1,TRUNC(SUM($C$6:E8)/COUNT($C$6:E8)),0) -> 0 | N8: =IF(COUNT($C$6:E8)<=6,0,TRUNC((230-M7)*0.9)) -> 0 | O8: =_xlfn.IFS(SUM(C8:E8)<1,"",COUNT($C$6:E8)>9,TRUNC((230-M7)*(0.9)),COUNT($C$6:E8)<=9,0) ->  | P8: =_xlfn.IFS(SUM(C8:E8)<1,"",COUNT($C$6:E8)>9,N8*3+H8,COUNT($C$6:E8)<=9,0) ->  | S8: =IF(COUNT($C$6:E8)>9,IF(P8=MAX($P$6:$P$35),P8," "),"") ->  | V8: =IF(COUNT(C8:E8)<1,0,IF(COUNT($C$6:E8)>9,C8+N8,0)) -> 0 | W8: =IF(COUNT(C8:E8)<1,0,IF(COUNT($C$6:E8)>9,D8+N8,0)) -> 0 | X8: =IF(COUNT(C8:E8)<1,0,IF(COUNT($C$6:E8)>9,E8+N8,0)) -> 0 | AA8: 1 | AB8: 0 | AC8: 3
A9: wk4 | B9: =Calendar!B9 -> 2019-09-25 | C9: 198 | D9: 154 | E9: 141 | H9: 493 | I9: 164 | J9: =_xlfn.IFS(SUM(C9:E9)<1,"",SUM(C9:E9)>=1,SUM($C$6:E9)) -> 493 | K9: =_xlfn.IFS(COUNT(C9:E9)<1,"",COUNT($C$6:E9)>=1,COUNT($C$6:E9)) -> 3 | L9: =_xlfn.IFS(COUNT(C9:E9)<1,"",AND(COUNT($C$6:E9)<=9,$C$4>1),$C$4,COUNT(C9:E9)>=1,M9) -> 159 | M9: =IF(COUNT($C$6:E9)>=1,TRUNC(SUM($C$6:E9)/COUNT($C$6:E9)),0) -> 164 | N9: =IF(COUNT($C$6:E9)<=6,0,TRUNC((230-M8)*0.9)) -> 0 | O9: =_xlfn.IFS(SUM(C9:E9)<1,"",COUNT($C$6:E9)>9,TRUNC((230-M8)*(0.9)),COUNT($C$6:E9)<=9,0) -> 0 | P9: =_xlfn.IFS(SUM(C9:E9)<1,"",COUNT($C$6:E9)>9,N9*3+H9,COUNT($C$6:E9)<=9,0) -> 0 | S9: =IF(COUNT($C$6:E9)>9,IF(P9=MAX($P$6:$P$35),P9," "),"") ->  | V9: =IF(COUNT(C9:E9)<1,0,IF(COUNT($C$6:E9)>9,C9+N9,0)) -> 0 | W9: =IF(COUNT(C9:E9)<1,0,IF(COUNT($C$6:E9)>9,D9+N9,0)) -> 0 | X9: =IF(COUNT(C9:E9)<1,0,IF(COUNT($C$6:E9)>9,E9+N9,0)) -> 0 | AA9: 0 | AB9: 4 | AC9: 4
A10: wk5 | B10: =Calendar!B10 -> 2019-10-02 | C10: 164 | D10: 156 | E10: 151 | F10: =IF(COUNT(C10:E10)<1," ",IF(AND(C10>M9,D10>M9,E10>M9,COUNT($C$6:E9)>=12),"*"," ")) ->  | H10: 471 | I10: 157 | J10: =_xlfn.IFS(SUM(C10:E10)<1,"",SUM(C10:E10)>=1,SUM($C$6:E10)) -> 964 | K10: =_xlfn.IFS(COUNT(C10:E10)<1,"",COUNT($C$6:E10)>=1,COUNT($C$6:E10)) -> 6 | L10: =_xlfn.IFS(COUNT(C10:E10)<1,"",AND(COUNT($C$6:E10)<=9,$C$4>1),$C$4,COUNT(C10:E10)>=1,M10) -> 159 | M10: =IF(COUNT($C$6:E10)>=1,TRUNC(SUM($C$6:E10)/COUNT($C$6:E10)),0) -> 160 | N10: =IF(COUNT($C$6:E10)<=6,0,TRUNC((230-M9)*0.9)) -> 0 | O10: =_xlfn.IFS(SUM(C10:E10)<1,"",COUNT($C$6:E10)>9,TRUNC((230-M9)*(0.9)),COUNT($C$6:E10)<=9,0) -> 0 | P10: =_xlfn.IFS(SUM(C10:E10)<1,"",COUNT($C$6:E10)>9,N10*3+H10,COUNT($C$6:E10)<=9,0) -> 0 | S10: =IF(COUNT($C$6:E10)>9,IF(P10=MAX($P$6:$P$35),P10," "),"") ->  | V10: =IF(COUNT(C10:E10)<1,0,IF(COUNT($C$6:E10)>9,C10+N10,0)) -> 0 | W10: =IF(COUNT(C10:E10)<1,0,IF(COUNT($C$6:E10)>9,D10+N10,0)) -> 0 | X10: =IF(COUNT(C10:E10)<1,0,IF(COUNT($C$6:E10)>9,E10+N10,0)) -> 0 | AA10: 0 | AB10: 5 | AC10: 5
A11: wk6 | B11: =Calendar!B11 -> 2019-10-09 | C11: 158 | D11: 155 | E11: 199 | F11: =IF(COUNT(C11:E11)<1," ",IF(AND(C11>M10,D11>M10,E11>M10,COUNT($C$6:E10)>=12),"*"," ")) ->  | G11: =IF(COUNT(C11:E11)<1," ",IF(AND(C11>M9,D11>M9,E11>M9,COUNT($C$6:E9)>=12),"*"," ")) ->  | H11: 512 | I11: 170 | J11: =_xlfn.IFS(SUM(C11:E11)<1,"",SUM(C11:E11)>=1,SUM($C$6:E11)) -> 1476 | K11: =_xlfn.IFS(COUNT(C11:E11)<1,"",COUNT($C$6:E11)>=1,COUNT($C$6:E11)) -> 9 | L11: =_xlfn.IFS(COUNT(C11:E11)<1,"",AND(COUNT($C$6:E11)<=9,$C$4>1),$C$4,COUNT(C11:E11)>=1,M11) -> 159 | M11: =IF(COUNT($C$6:E11)>=1,TRUNC(SUM($C$6:E11)/COUNT($C$6:E11)),0) -> 164 | N11: =IF(COUNT($C$6:E11)<=6,0,TRUNC((230-M10)*0.9)) -> 63 | O11: =_xlfn.IFS(SUM(C11:E11)<1,"",COUNT($C$6:E11)>9,TRUNC((230-M10)*(0.9)),COUNT($C$6:E11)<=9,0) -> 0 | P11: =_xlfn.IFS(SUM(C11:E11)<1,"",COUNT($C$6:E11)>9,N11*3+H11,COUNT($C$6:E11)<=9,0) -> 0 | S11: =IF(COUNT($C$6:E11)>9,IF(P11=MAX($P$6:$P$35),P11," "),"") ->  | V11: =IF(COUNT(C11:E11)<1,0,IF(COUNT($C$6:E11)>9,C11+N11,0)) -> 0 | W11: =IF(COUNT(C11:E11)<1,0,IF(COUNT($C$6:E11)>9,D11+N11,0)) -> 0 | X11: =IF(COUNT(C11:E11)<1,0,IF(COUNT($C$6:E11)>9,E11+N11,0)) -> 0 | AA11: 0 | AB11: 6 | AC11: 6
A12: wk7 | B12: =Calendar!B12 -> 2019-10-16 | C12: 143 | D12: 151 | E12: 152 | F12: =IF(COUNT(C12:E12)<1," ",IF(AND(C12>M11,D12>M11,E12>M11,COUNT($C$6:E11)>=12),"*"," ")) ->  | G12: =IF(COUNT(C12:E12)<1," ",IF(AND(C12>M10,D12>M10,E12>M10,COUNT($C$6:E10)>=12),"*"," ")) ->  | H12: 446 | I12: 148 | J12: =_xlfn.IFS(SUM(C12:E12)<1,"",SUM(C12:E12)>=1,SUM($C$6:E12)) -> 1922 | K12: =_xlfn.IFS(COUNT(C12:E12)<1,"",COUNT($C$6:E12)>=1,COUNT($C$6:E12)) -> 12 | L12: =_xlfn.IFS(COUNT(C12:E12)<1,"",AND(COUNT($C$6:E12)<=9,$C$4>1),$C$4,COUNT(C12:E12)>=1,M12) -> 160 | M12: =IF(COUNT($C$6:E12)>=1,TRUNC(SUM($C$6:E12)/COUNT($C$6:E12)),0) -> 160 | N12: =IF(COUNT($C$6:E12)<=6,0,TRUNC((230-M11)*0.9)) -> 59 | O12: =_xlfn.IFS(SUM(C12:E12)<1,"",COUNT($C$6:E12)>9,TRUNC((230-M11)*(0.9)),COUNT($C$6:E12)<=9,0) -> 59 | P12: =_xlfn.IFS(SUM(C12:E12)<1,"",COUNT($C$6:E12)>9,N12*3+H12,COUNT($C$6:E12)<=9,0) -> 623 | S12: =IF(COUNT($C$6:E12)>9,IF(P12=MAX($P$6:$P$35),P12," "),"") ->  | V12: =IF(COUNT(C12:E12)<1,0,IF(COUNT($C$6:E12)>9,C12+N12,0)) -> 202 | W12: =IF(COUNT(C12:E12)<1,0,IF(COUNT($C$6:E12)>9,D12+N12,0)) -> 210 | X12: =IF(COUNT(C12:E12)<1,0,IF(COUNT($C$6:E12)>9,E12+N12,0)) -> 211 | AA12: 0 | AB12: 7 | AC12: 7
